Workbook

Sheet Instructions
A2: CULPEPER CONCEPT ESTIMATE WORKBOOK
B6: INSTRUCTIONS
B7: Follow these steps:
B8: 1. Enable macros & active content. 2. The next tab is the Cost Estimate Summary, also known as the VDOT Cost Estimate Workbook or CEWB. It will auto-populate as you fill out the other tabs and should not be modified. 3. Enter the Project Information, RW Estimate, and Project Schedule on the Culpeper Workbook tab. 4. Go to the CN Estimate Tool tab and follow the directions to complete the CN estimate. 5. Go to the PE Estimate Tool tab and complete the PE Estimate. 6. Review the Suggested Contingencies tab. Consider the level of risk and estimate quality when finalizing contingencies for PE, RW, and CN. Moderately complex and most complex projects may need additional contingency analysis in accordance with the VDOT Cost Estimating Manual. 7. Go back to the Culpeper Workbook tab to review the overall project contingency, and compare to the low, MLE, and high values in accordance with the VDOT Cost Estimating Manual. Adjust contingencies as necessary. Contingencies beyond the low and high values require VDOT Administration approval. 8. All known assumptions and risks should be listed in a separate document filed with the project. 9. The entire estimate, with the assumptions and risks document, must be reviewed by another engineer. 10. Press the "Print Workbook" button to PDF the needed sheets and include with the Cost Estimate Package. The dark green fields in the Project Estimate table on the Culpeper Workbook tab can be entered into the Smart Portal for funding applications.
H9: ENABLING MACROS
H10: If you are having trouble enabling macros in Excel, the following steps might help: 1. Save the Workbook in a good location 2. In Excel, go to File > Options > Trust Center > Trust Center Settings > Trusted Locations 3. Click on Add New Location and enter the folder address where the workbook is saved
B43: Contact Justin.Warfield@vdot.virginia.gov with questions or errors in the workbook.

Sheet Cost Estimate Summary
B2: SYIP PROJECTS DETAILED PROJECT COST ESTIMATE SUMMARY (Version 2.1: 2/1/2023) | J2: Green Cells require input. Allowance / Contingency are not necessarily required. All others are auto calculating. Estimate to be entered based on current dollars and inflation will be applied at the bottom of this workbook for informational purposes only.
B3: Portal ID: | C3: ='CEWB Translation Sheet'!B4 -> 0 | F3: Project UPC: | G3: ='CEWB Translation Sheet'!D4 -> N/A | P3: Select Phase Risk Type Here (when using different contingency values for each discipline) | U3: Select Phase Risk Type Here (when using one phase contingency value)
B4: Prepared By: | C4: ='CEWB Translation Sheet'!B5 -> 0 | F4: Milestone | G4: Creation/Pre Scope | P4: Type 1 Percentage | R4: $ | U4: Type 1 Percentage
B5: Reviewed By: | C5: ='CEWB Translation Sheet'!B6 -> 0 | P5: Type 2 Deterministic | R5: % | U5: Type 2 Deterministic
B6: Project Location: | C6: ='CEWB Translation Sheet'!B7 -> Locality | D6: ='CEWB Translation Sheet'!C7 -> Arlington County (00) | F6: Tier Level | G6: ='CEWB Translation Sheet'!D6 -> 1
B7: Project Complexity Classification | C7: ='CEWB Translation Sheet'!B8 -> 0 | U7: Select
U8: Type 1 Percentage
B9: Preliminary Engineering Phase | D9: 7 | E9: Do not enter a negative value for defined or allowance; Ensure input where required. If no value then enter "0" | P9: Select | U9: Type 2 Deterministic
B10: Project Estimate Component | P10: Percentage
B11: Discipline | C11: Source | D11: Defined($) | E11: Allowance* | F11: Risk Type | G11: Contingency % (Value of Risk) | H11: Total | J11: Assumptions | P11: Lump Sum
B12: Project Management | C12: ='CEWB Translation Sheet'!B13 -> Culpeper Tool | D12: ='CEWB Translation Sheet'!C13 -> 45650 | E12: ='CEWB Translation Sheet'!D13 -> 0 | H12: =IF(C12="Select",0,(D12+E12)) -> 45650 | J12: ='CEWB Translation Sheet'!H13 -> See PE Estimate Tool tab.
B13: Roadway | C13: ='CEWB Translation Sheet'!B14 -> Culpeper Tool | D13: ='CEWB Translation Sheet'!C14 -> 144210 | E13: ='CEWB Translation Sheet'!D14 -> 0 | H13: 144210 | J13: ='CEWB Translation Sheet'!H14 -> See PE Estimate Tool tab.
B14: Hydraulics | C14: ='CEWB Translation Sheet'!B15 -> Culpeper Tool | D14: ='CEWB Translation Sheet'!C15 -> 35640 | E14: ='CEWB Translation Sheet'!D15 -> 0 | H14: 35640 | J14: ='CEWB Translation Sheet'!H15 -> See PE Estimate Tool tab.
B15: Utilities | C15: ='CEWB Translation Sheet'!B16 -> Culpeper Tool | D15: ='CEWB Translation Sheet'!C16 -> 0 | E15: ='CEWB Translation Sheet'!D16 -> 0 | H15: 0 | J15: ='CEWB Translation Sheet'!H16 -> See PE Estimate Tool tab. | P15: CEI Environmental Inspection (Enter %)
B16: Traffic | C16: ='CEWB Translation Sheet'!B17 -> Culpeper Tool | D16: ='CEWB Translation Sheet'!C17 -> 26025 | E16: ='CEWB Translation Sheet'!D17 -> 0 | H16: 26025 | J16: ='CEWB Translation Sheet'!H17 -> See PE Estimate Tool tab. | P16: CEI VDOT or Locality (Enter %)
B17: Structures/Bridges | C17: ='CEWB Translation Sheet'!B18 -> Culpeper Tool | D17: ='CEWB Translation Sheet'!C18 -> 0 | E17: ='CEWB Translation Sheet'!D18 -> 0 | H17: 0 | J17: ='CEWB Translation Sheet'!H18 -> See PE Estimate Tool tab. | P17: CEI Oversight Costs (Enter %)
B18: Materials/Geotech | C18: ='CEWB Translation Sheet'!B19 -> Culpeper Tool | D18: ='CEWB Translation Sheet'!C19 -> 28050 | E18: ='CEWB Translation Sheet'!D19 -> 0 | H18: 28050 | J18: ='CEWB Translation Sheet'!H19 -> See PE Estimate Tool tab.
B19: Survey/SUE/Quality Level A SUE | C19: ='CEWB Translation Sheet'!B20 -> Culpeper Tool | D19: ='CEWB Translation Sheet'!C20 -> 16025 | E19: ='CEWB Translation Sheet'!D20 -> 0 | H19: 16025 | J19: ='CEWB Translation Sheet'!H20 -> See PE Estimate Tool tab.
B20: Environmental | C20: ='CEWB Translation Sheet'!B21 -> Culpeper Tool | D20: ='CEWB Translation Sheet'!C21 -> 0 | E20: ='CEWB Translation Sheet'!D21 -> 0 | H20: 0 | J20: ='CEWB Translation Sheet'!H21 -> See PE Estimate Tool tab. | P20: CEI Environmental Inspection (Enter Lump Sum)
B21: Right of Way | C21: ='CEWB Translation Sheet'!B22 -> Culpeper Tool | D21: ='CEWB Translation Sheet'!C22 -> 14400 | E21: ='CEWB Translation Sheet'!D22 -> 0 | H21: 14400 | J21: ='CEWB Translation Sheet'!H22 -> See PE Estimate Tool tab. | P21: CEI VDOT or Locality (Enter Lump Sum)
B22: Other | C22: ='CEWB Translation Sheet'!B23 -> Culpeper Tool | D22: ='CEWB Translation Sheet'!C23 -> 0 | E22: ='CEWB Translation Sheet'!D23 -> 0 | H22: 0 | J22: ='CEWB Translation Sheet'!H23 -> See PE Estimate Tool tab. | P22: CEI Oversight Costs (Enter Lump Sum)
B23: VDOT PE Oversight on Local Assistance Projects | C23: Total entered from LAD Spreadsheet | H23: ='CEWB Translation Sheet'!G24 -> 0 | J23: ='CEWB Translation Sheet'!H24 -> See PE Estimate Tool tab.
C24: SUBTOTAL PE PHASE ESTIMATE (Without Contingency) | D24: =SUM(D12:D22) -> 310000 | E24: =SUM(E12:E22) -> 0 | F24: Select Phase Risk Type Below | G24: =IF(F25="Type 1 Percentage","Contingency % (Value of Risk)",IF(F25="Type 2 Deterministic","Contingency $ (Value of Risk)","Contingency")) -> Contingency
B25: Phase Risk Type and Contingency (Value of Risk): For Type 1 enter % amount; For Type 2 enter $ amount | F25: ='CEWB Translation Sheet'!E26 -> 0 | G25: ='CEWB Translation Sheet'!F26 -> 15 | H25: =IF(F25="type 1 Percentage",(D24+E24)*((G25/100)),IF(F25="type 2 Deterministic",G25,0)) -> 0 | P25: CEI Environmental Inspection
G26: TOTAL PE PHASE ESTIMATE | H26: =IF(F25="Select",SUM(H12:H23),SUM(H12:H23,H25)) -> 310000 | P26: CEI VDOT or Locality
B27: Phase dates (XX/XX/XXXX) | C27: PE Base Estimate Date | D27: ='CEWB Translation Sheet'!C26 -> 0 | P27: CEI Oversight Costs
C28: Start Date | D28: ='CEWB Translation Sheet'!C27 -> 0
C29: End Date | D29: ='CEWB Translation Sheet'!C28 -> 0
B31: Right-of-Way & Utilities Phase | E31: Do not enter a negative value for defined or allowance costs; For Contingency Values please refer to the ROW Cost Estimate Guide Section 8
B32: Discipline | C32: Source | D32: Defined ($) | E32: Allowance* | F32: ='CEWB Translation Sheet'!E32 -> 0 | G32: =IF(F32="Type 1 Percentage","Contingency (% of Risk)",IF(F32="Type 2 Deterministic","Contingency $ (Value of Risk)","Contingency (Value of Risk)")) -> Contingency (Value of Risk) | H32: Total | J32: Assumptions
B33: Right-of-Way Acquisition | C33: ='CEWB Translation Sheet'!B33 -> Aerial Photo | D33: ='CEWB Translation Sheet'!C33 -> 0 | E33: ='CEWB Translation Sheet'!D33 -> 0 | G33: ='CEWB Translation Sheet'!F33 -> 0 | H33: =IF(AND(C33="select"),0,IF(F32="type 1 Percentage",(D33+E33)*((1+(G33/100))),IF(F32="type 2 Deterministic",D33+E33+G33,IF(F39="type 1 Percentage",(D33+E33),IF(F39="type 2 Deterministic",D33+E33,0))))) -> 0 | J33: ='CEWB Translation Sheet'!H33 -> See separate PCES estimate document for details and assumptions.
B34: Utilities | C34: ='CEWB Translation Sheet'!B34 -> Aerial Photo | D34: ='CEWB Translation Sheet'!C34 -> 0 | E34: ='CEWB Translation Sheet'!D34 -> 0 | G34: ='CEWB Translation Sheet'!F34 -> 0 | H34: =IF(AND(C34="select"),0,IF(F32="type 1 Percentage",(D34+E34)*((1+(G34/100))),IF(F32="type 2 Deterministic",D34+E34+G34,IF(F39="type 1 Percentage",(D34+E34),IF(F39="type 2 Deterministic",D34+E34,0))))) -> 0 | J34: ='CEWB Translation Sheet'!H34 -> See separate PCES estimate document for details and assumptions.
B35: VDOT Project RW/UT Oversight | C35: ='CEWB Translation Sheet'!B35 -> Culpeper Tool | D35: ='CEWB Translation Sheet'!C35 -> 0 | E35: ='CEWB Translation Sheet'!D35 -> 0 | G35: ='CEWB Translation Sheet'!F35 -> 0 | H35: =IF(AND(C35="select"),0,IF(F32="type 1 Percentage",(D35+E35)*((1+(G35/100))),IF(F32="type 2 Deterministic",D35+E35+G35,IF(F39="type 1 Percentage",(D35+E35),IF(F39="type 2 Deterministic",D35+E35,0))))) -> 0 | J35: ='CEWB Translation Sheet'!H35 -> See separate PCES estimate document for details and assumptions.
B36: VDOT RW/UT Oversight on Local Assistance Projects | C36: Total entered from LAD Spreadsheet | H36: ='CEWB Translation Sheet'!G36 -> 0 | J36: ='CEWB Translation Sheet'!H36 -> See separate PCES estimate document for details and assumptions.
B38: SUBTOTAL RW PHASE ESTIMATE (Without Contingency) | D38: =SUM(D33:D35) -> 0 | E38: =SUM(E33:E35) -> 0 | F38: RW Contingency: | G38: =IF(AND(F39="Select Phase Risk Type Here (when using one phase contingency value)",F32="Type 1 percentage"),(SUM(H33:H35)-SUM(D38:E38))/SUM(D38:E38),IF(AND(F39="Select Phase Risk Type Here (when using one phase contingency value)",F32="Type 2 Deterministic"),(H33+H34+H35-D38-E38)/(D38+E38)*100,IF(AND(F32="Select Phase Risk Type Here (when using different contingency values for each discipline)",F39="Type 2 Deterministic"),G39/(D38+E38),IF(AND(F32="Select Phase Risk Type Here (when using different contingency values for each discipline)",F39="Type 1 Percentage"),G39/100,"")))) ->  | H38: =ABS(SUM(H33:H35)-SUM(D33:E35)) -> 0
B39: Phase Risk Type and Contingency (Value of Risk): Use only if applying one contingency to entire phase. For Type 1 enter % amount; For Type 2 enter $ amount | F39: ='CEWB Translation Sheet'!E38 -> Select Phase Risk Type Here (when using one phase contingency value) | G39: ='CEWB Translation Sheet'!F38 -> 0 | H39: =IF((G38)<0, "Complete Inputs from C33 to C35 if available", IF(AND(F32="Select Phase Risk Type Here (when using different contingency values for each discipline)",F39="Select Phase Risk Type Here (when using one Phase contingency value)"),SUM(H33:H35),IF(AND(F32="Select Phase Risk Type Here (when using different contingency values for each discipline)",F39="type 2 Deterministic"),G39,IF(AND(F32="Select Phase Risk Type Here (when using different contingency values for each discipline)",F39="type 1 Percentage"),(G39/100)*(H33+H34+H35),IF(AND(F32="type 1 Percentage",F39="Select Phase Risk Type Here (when using one phase contingency value)"),H33+H34+H35-D38-E38,IF(AND(F32="type 2 Deterministic",F39="Select Phase Risk Type Here (when using one phase contingency value)"),H33+H34+H35-D38-E38,"Select one risk type")))))) -> Select one risk type
B40: TOTAL RW PHASE ESTIMATE | H40: =IF(AND(F32="Type 1 percentage",F39="Select Phase Risk Type Here (when using one phase contingency value)"),SUM(H33:H36),IF(AND(F32="type 2 Deterministic",F39="Select Phase Risk Type Here (when using one phase contingency value)"),SUM(H33:H36),IF(AND(F32="Select Phase Risk Type Here (when using different contingency values for each discipline)",F39="type 1 percentage"),SUM(H33:H36,H39),IF(AND(F32="Select Phase Risk Type Here (when using different contingency values for each discipline)",F39="type 2 Deterministic"),SUM(H33:H36,H39),SUM(H33:H36,H39))))) -> 0
B41: Phase dates (XX/XX/XXXX) | C41: RW Base Estimate Date | D41: ='CEWB Translation Sheet'!C39 -> 0
C42: Start Date | D42: ='CEWB Translation Sheet'!C40 -> 0
C43: End Date | D43: ='CEWB Translation Sheet'!C41 -> 0
B45: Construction Phase | E45: Do not enter a negative value for defined or allowance costs; Ensure input where required. If no value then enter "0"; "0" will result in a gray cell; Total shown is dependent on Risk Type (Phase or Discipline)
B46: Discipline | C46: Source | D46: Defined ($) | E46: Allowance* | F46: Discipline Risk Type (Use when selecting many) | G46: Contingency (Value of or % of Risk) | H46: Total | J46: Assumptions
B47: Mobilization/Construction Support | C47: ='CEWB Translation Sheet'!B47 -> Culpeper Tool | D47: ='CEWB Translation Sheet'!C47 -> 0 | E47: ='CEWB Translation Sheet'!D47 -> 0 | F47: ='CEWB Translation Sheet'!E47 -> 0 | G47: ='CEWB Translation Sheet'!F47 -> 0 | H47: =IF(AND(C47="select"),0,IF(AND(F47="Select",$F$68="Select"),SUM(D47:E47),IF(AND(F47="Select",$F$68<>"Select"),SUM(D47:E47),IF(AND(F47="type 1 Percentage",$F$68="Select"),(SUM(D47:E47)*((1+(G47)/100))),IF(AND($F$68="Select",F47="type 2 Deterministic"),SUM(D47,E47,G47),IF(AND(F47<>"Select",$F$68<>"Select"),"Remove Phase or Change Discipline Risk type to 'Select'")))))) -> FALSE | J47: ='CEWB Translation Sheet'!H47 -> See CN Estimate Tool tabs.
B48: MOT | C48: ='CEWB Translation Sheet'!B48 -> Culpeper Tool | D48: ='CEWB Translation Sheet'!C48 -> 0 | E48: ='CEWB Translation Sheet'!D48 -> 0 | F48: ='CEWB Translation Sheet'!E48 -> 0 | G48: ='CEWB Translation Sheet'!F48 -> 0 | H48: FALSE | J48: ='CEWB Translation Sheet'!H48 -> See CN Estimate Tool tabs.
B49: Roadway | C49: ='CEWB Translation Sheet'!B49 -> Culpeper Tool | D49: ='CEWB Translation Sheet'!C49 -> 0 | E49: ='CEWB Translation Sheet'!D49 -> 0 | F49: ='CEWB Translation Sheet'!E49 -> 0 | G49: ='CEWB Translation Sheet'!F49 -> 0 | H49: FALSE | J49: ='CEWB Translation Sheet'!H49 -> See CN Estimate Tool tabs.
B50: Hydraulics | C50: ='CEWB Translation Sheet'!B50 -> Culpeper Tool | D50: ='CEWB Translation Sheet'!C50 -> 0 | E50: ='CEWB Translation Sheet'!D50 -> 0 | F50: ='CEWB Translation Sheet'!E50 -> 0 | G50: ='CEWB Translation Sheet'!F50 -> 0 | H50: FALSE | J50: ='CEWB Translation Sheet'!H50 -> See CN Estimate Tool tabs.
B51: In-plan Utilities | C51: ='CEWB Translation Sheet'!B51 -> Culpeper Tool | D51: ='CEWB Translation Sheet'!C51 -> 0 | E51: ='CEWB Translation Sheet'!D51 -> 0 | F51: ='CEWB Translation Sheet'!E51 -> 0 | G51: ='CEWB Translation Sheet'!F51 -> 0 | H51: FALSE | J51: ='CEWB Translation Sheet'!H51 -> See CN Estimate Tool tabs.
B52: Traffic | C52: ='CEWB Translation Sheet'!B52 -> Culpeper Tool | D52: ='CEWB Translation Sheet'!C52 -> 0 | E52: ='CEWB Translation Sheet'!D52 -> 0 | F52: ='CEWB Translation Sheet'!E52 -> 0 | G52: ='CEWB Translation Sheet'!F52 -> 0 | H52: FALSE | J52: ='CEWB Translation Sheet'!H52 -> See CN Estimate Tool tabs.
B53: Structures/Bridges | C53: ='CEWB Translation Sheet'!B53 -> Culpeper Tool | D53: ='CEWB Translation Sheet'!C53 -> 0 | E53: ='CEWB Translation Sheet'!D53 -> 0 | F53: ='CEWB Translation Sheet'!E53 -> 0 | G53: ='CEWB Translation Sheet'!F53 -> 0 | H53: FALSE | J53: ='CEWB Translation Sheet'!H53 -> See CN Estimate Tool tabs.
B54: Earthwork/Geotech | C54: ='CEWB Translation Sheet'!B54 -> Culpeper Tool | D54: ='CEWB Translation Sheet'!C54 -> 0 | E54: ='CEWB Translation Sheet'!D54 -> 0 | F54: ='CEWB Translation Sheet'!E54 -> 0 | G54: ='CEWB Translation Sheet'!F54 -> 0 | H54: FALSE | J54: ='CEWB Translation Sheet'!H54 -> See CN Estimate Tool tabs.
B55: Environmental/Soundwalls | C55: ='CEWB Translation Sheet'!B55 -> Culpeper Tool | D55: ='CEWB Translation Sheet'!C55 -> 0 | E55: ='CEWB Translation Sheet'!D55 -> 0 | F55: ='CEWB Translation Sheet'!E55 -> 0 | G55: ='CEWB Translation Sheet'!F55 -> 0 | H55: FALSE | J55: ='CEWB Translation Sheet'!H55 -> See CN Estimate Tool tabs.
B56: Other | C56: ='CEWB Translation Sheet'!B56 -> Culpeper Tool | D56: ='CEWB Translation Sheet'!C56 -> 0 | E56: ='CEWB Translation Sheet'!D56 -> 0 | F56: ='CEWB Translation Sheet'!E56 -> 0 | G56: ='CEWB Translation Sheet'!F56 -> 0 | H56: FALSE | J56: ='CEWB Translation Sheet'!H56 -> See CN Estimate Tool tabs.
C57: Total Bid Items | D57: =SUM(D47:D56) -> 0 | E57: =SUM(E47:E56) -> 0 | G57: 0 | H57: =SUM(H47:H56) -> 0
B58: VDOT Project CN Oversight | C58: ='CEWB Translation Sheet'!B57 -> Culpeper Tool | D58: ='CEWB Translation Sheet'!C57 -> 0 | E58: ='CEWB Translation Sheet'!D57 -> 0 | F58: ='CEWB Translation Sheet'!E57 -> 0 | G58: ='CEWB Translation Sheet'!F57 -> 0 | H58: =IF(AND(C58="select",F58="Select"),SUM(D58:E58),IF(AND(F58="Select",$F$68="Select"),SUM(D58:E58),IF(AND(F58="Select",$F$68<>"Select"),SUM(D58:E58),IF(AND(F58="type 1 Percentage",$F$68="Select"),(D58+E58)*((1+(G58)/100)),IF(AND($F$68="Select",F58="type 2 Deterministic"),D58+E58+G58,IF(AND(F58<>"Select",$F$68<>"Select"),"Remove Phase or Change Discipline Risk type to 'Select'")))))) -> FALSE | J58: ='CEWB Translation Sheet'!H57 -> See CN Estimate Tool tabs.
B59: VDOT CN Oversight on Local Assistance Projects | C59: Total entered from LAD Spreadsheet | H59: ='CEWB Translation Sheet'!G58 -> 0 | J59: ='CEWB Translation Sheet'!H58 -> See CN Estimate Tool tabs.
G60: Oversight Total | H60: =SUM(H58:H59) -> 0
B61: Management Reserve / Construction Contract Contingency Per IIM-LD-249 | C61: ='CEWB Translation Sheet'!B60 -> 0 | D61: Cell C61 is multiplied by the Total Bid Items Cost (H57) to get H61 | H61: =IF(C61="select",0,($H$57)*C61) -> 0 | J61: ='CEWB Translation Sheet'!H60 -> See CN Estimate Tool tabs.
B62: Railroad Flagging/Coordination | D62: ='CEWB Translation Sheet'!C61 -> 0 | E62: ='CEWB Translation Sheet'!D61 -> 0 | F62: ='CEWB Translation Sheet'!E61 -> 0 | G62: ='CEWB Translation Sheet'!F61 -> 0 | H62: =IF(AND(F62="Select",$F$68="Select"),SUM(D62:E62),IF(AND(F62="Select",$F$68<>"Select"),SUM(D62:E62),IF(AND(F62="type 1 Percentage",$F$68="Select"),SUM(D62:E62)*((1+(G62)/100)),IF(AND($F$68="Select",F62="type 2 Deterministic"),SUM(D62:E62:G62),IF(AND(F62<>"Select",$F$68<>"Select"),"Remove Phase or Change Discipline Risk type to 'Select'"))))) -> FALSE | J62: ='CEWB Translation Sheet'!H61 -> See CN Estimate Tool tabs.
B63: State Forces | D63: ='CEWB Translation Sheet'!C62 -> 0 | E63: ='CEWB Translation Sheet'!D62 -> 0 | F63: ='CEWB Translation Sheet'!E62 -> 0 | G63: ='CEWB Translation Sheet'!F62 -> 0 | H63: =IF(AND(F63="Select",$F$68="Select"),SUM(D63:E63),IF(AND(F63="Select",$F$68<>"Select"),SUM(D63:E63),IF(AND(F63="type 1 Percentage",$F$68="Select"),SUM(D63:E63)*((1+(G63)/100)),IF(AND($F$68="Select",F63="type 2 Deterministic"),SUM(D63:E63:G63),IF(AND(F63<>"Select",$F$68<>"Select"),"Remove Phase or Change Discipline Risk type to 'Select'"))))) -> FALSE | J63: ='CEWB Translation Sheet'!H62 -> See CN Estimate Tool tabs.
B64: State Police | D64: ='CEWB Translation Sheet'!C63 -> 0 | E64: ='CEWB Translation Sheet'!D63 -> 0 | F64: ='CEWB Translation Sheet'!E63 -> 0 | G64: ='CEWB Translation Sheet'!F63 -> 0 | H64: =IF(AND(F64="Select",$F$68="Select"),SUM(D64:E64),IF(AND(F64="Select",$F$68<>"Select"),SUM(D64:E64),IF(AND(F64="type 1 Percentage",$F$68="Select"),SUM(D64:E64)*((1+(G64)/100)),IF(AND($F$68="Select",F64="type 2 Deterministic"),SUM(D64:E64:G64),IF(AND(F64<>"Select",$F$68<>"Select"),"Remove Phase or Change Discipline Risk type to 'Select'"))))) -> FALSE | J64: ='CEWB Translation Sheet'!H63 -> See CN Estimate Tool tabs.
B65: Contract Requirements (Incentive/Disincentive; 5% max) | C65: ='CEWB Translation Sheet'!B64 -> 0 | D65: Cell C65 is multiplied by the Total Bid Items Cost (H57) to get H65 | H65: =IF(C65="select",0,($H$57)*C65) -> 0 | J65: ='CEWB Translation Sheet'!H64 -> See CN Estimate Tool tabs.
B66: Total Non-Bid Items | D66: =SUM(D61:D65) -> 0 | E66: =SUM(E61:E65) -> 0 | H66: =SUM(H61:H65) -> 0 | J66: r
B68: Phase Risk Type and Contingency (Value of Risk): Use only if applying one contingency to entire phase. For Type 1 enter % amount; For Type 2 enter $ amount | F68: ='CEWB Translation Sheet'!E66 -> Select | G68: ='CEWB Translation Sheet'!F66 -> 0 | H68: =IF(F68="type 1 Percentage",((SUM(H47:H56)+SUM(H62:H64)+SUM(H58)))*((G68/100)),IF(F68="type 2 Deterministic",G68,0)) -> 0
C69: See Section 5.4.3 in PreCON Manual | G69: Total CN Estimate without CEI | H69: =SUM(H68,H66,H60,H57) -> 0
B70: Construction Engineering (CEI) Source: | D70: ='CEWB Translation Sheet'!C68 -> Percentage | E70: =IF(D70="Select","Please select Percentage or Lump Sum from Cell D70",IF(D70="Percentage","CEI is calculated as a "&D70&" value of the Total Bid Items Cost (H57)",IF(D70="Lump Sum","CEI is calculated as a Lump Sum input in Cells C71-C73 below by estimator"))) -> CEI is calculated as a Percentage value of the Total Bid Items Cost (H57)
B71: =IF($D$70=$P$9,P25,IF($D$70=$P$10,P15,P20)) -> CEI Environmental Inspection (Enter %) | C71: ='CEWB Translation Sheet'!B69 -> 0 | D71: =IF(C71="","",IF($D$70=$P$10,(C71*($H$57))/100,C71)) -> 0 | F71: ='CEWB Translation Sheet'!E69 -> 0 | G71: ='CEWB Translation Sheet'!F69 -> 0 | H71: =IF(AND($D$70="select",C71=0),0,IF(AND($D$70=$P$10,F71="Type 1 Percentage",C71<>""),(D71)+(D71)*(G71/100),IF(AND($D$70=$P$10,F71="Type 2 Deterministic",C71<>""),(D71+G71),IF(AND($D$70=$P$11,F71="Type 1 Percentage",C71<>""),(D71)+(D71)*(G71/100),IF(AND($D$70=$P$11,F71="Type 2 Deterministic",C71<>""),D71+G71,D71))))) -> 0
B72: =IF($D$70=$P$9,P26,IF($D$70=$P$10,P16,P21)) -> CEI VDOT or Locality (Enter %) | C72: ='CEWB Translation Sheet'!B70 -> 0 | D72: =IF(C72="","",IF($D$70=$P$10,(C72*($H$57))/100,C72)) -> 0 | F72: ='CEWB Translation Sheet'!E70 -> 0 | G72: ='CEWB Translation Sheet'!F70 -> 0 | H72: =IF(AND($D$70="select",C72=0),0,IF(AND($D$70=$P$10,F72="Type 1 Percentage",C72<>""),(D72)+(D72)*(G72/100),IF(AND($D$70=$P$10,F72="Type 2 Deterministic",C72<>""),(D72+G72),IF(AND($D$70=$P$11,F72="Type 1 Percentage",C72<>""),(D72)+(D72)*(G72/100),IF(AND($D$70=$P$11,F72="Type 2 Deterministic",C72<>""),D72+G72,D72))))) -> 0
B73: =IF($D$70=$P$9,P27,IF($D$70=$P$10,P17,P22)) -> CEI Oversight Costs (Enter %) | C73: ='CEWB Translation Sheet'!B71 -> 0 | D73: =IF(C73="","",IF($D$70=$P$10,(C73*($H$57))/100,C73)) -> 0 | F73: ='CEWB Translation Sheet'!E71 -> 0 | G73: ='CEWB Translation Sheet'!F71 -> 0 | H73: =IF(AND($D$70="select",C73=0),0,IF(AND($D$70=$P$10,F73="Type 1 Percentage",C73<>""),(D73)+(D73)*(G73/100),IF(AND($D$70=$P$10,F73="Type 2 Deterministic",C73<>""),(D73+G73),IF(AND($D$70=$P$11,F73="Type 1 Percentage",C73<>""),(D73)+(D73)*(G73/100),IF(AND($D$70=$P$11,F73="Type 2 Deterministic",C73<>""),D73+G73,D73))))) -> 0
G74: Total CEI | H74: =SUM(H71:H73) -> 0
G75: Total CN Estimate | H75: =SUM(H74,H69) -> 0
B76: Phase dates (XX/XX/XXXX) | C76: CN Base Estimate Date | D76: ='CEWB Translation Sheet'!C72 -> 0
C77: Start Date | D77: ='CEWB Translation Sheet'!C73 -> 0
C78: End Date | D78: ='CEWB Translation Sheet'!C74 -> 0
G80: TOTAL PROJECT COST ESTIMATE (excluding inflation) (PE+RW+CN) | H80: =SUM(H26,H40,H75) -> 310000
B82: Total Project Cost Estimate Summary | F82: Date of Current Cost
F83: ='CEWB Translation Sheet'!E76 -> 0
B84: Phase | C84: Estimate ($) without LAP OVERSIGHT COST | D84: Contingency ($) | F84: Total Phase*
B85: PE Phase Estimate | C85: =SUM(D24:E24) -> 310000 | D85: =IF(H23="input Req'd",(H26-D24-E24),H26-D24-E24-H23) -> 0 | F85: =IF(H26=(SUM(C85,D85,H23)),(SUM(C85,D85,H23)),"Review PE Estimate") -> 310000
B86: RW Phase Estimate | C86: =SUM(D38:E38) -> 0 | D86: =IF(SUM(H33:H35)=0, 0, IF(F39="Type 2 Deterministic",G39,IF(F39="Type 1 Percentage",H39,(SUM(H33,H34,H35-D38-E38))))) -> 0 | F86: =IF(H40=(SUM(C86,D86,H36)),(SUM(C86,D86,H36)),"Review R/W Estimate") -> 0
B87: CN Phase Estimate(without CEI) | C87: =SUM(D57:E58)+SUM(D66:E66)+H61+H65 -> 0 | D87: =IF($F$68="Type 1 Percentage",H68,IF($F$68="Type 2 Deterministic",H68,IF($F$68="Select",(SUM(H57:H58,H62:H64)-(SUM(D57:E58,D62:E64)))))) -> 0 | F87: =IF(H69=(SUM(C87,D87,H59)),(SUM(C87,D87,H59)),"Review CN Estimate") -> 0
B88: Total CEI | C88: =SUM(D71:E73) -> 0 | D88: =H74-SUM(D71:E73) -> 0 | F88: =IF(H74=(SUM(C88,D88)),(SUM(C88,D88)),"Review CEI Estimate") -> 0
B89: CN Phase Estimate(with CEI) | C89: =SUM(C87:C88) -> 0 | D89: =D87+D88 -> 0 | F89: =IF(H75=(SUM(C89,D89,H59)),(SUM(C89,D89,H59)),"Review CN Estimate") -> 0
B90: Total Estimate | C90: =SUM(C85:C88) -> 310000 | D90: =SUM(D85:D86,D89) -> 0 | F90: =IF(H80=(SUM(C90,D90,H23,H36,H59)),(SUM(C90,D90,H23,H36,H59)),"Review Estimate") -> 310000
B91: * Use combined Defined, Allowance, Contingency Costs and LAP Oversight. Total Phase includes Oversight Costs and Contract Requirements.
B92: Base Estimate Dollar amounts for SMART PORTAL entry: | E92: Risks/Contingency/Unknowns Dollar amounts for SMART PORTAL entry
B93: PE Base Estimate = | D93: =+F85-D85 -> 310000 | E93: PE Phase Risk/Contingency/Unknowns = | G93: =D85 -> 0
B94: RW Base Estimate = | D94: =+F86-D86 -> 0 | E94: RW Phase Risk/Contingency/Unknowns = | G94: =D86 -> 0
B95: CN Base Estimate = | D95: =+F87-D87 -> 0 | E95: CN Phase Estimate Risk/Contingency = | G95: =D87 -> 0
E96: CEI amount = | G96: =F88 -> 0
B120: Select
B121: 1
B122: 2
C123: Select | D123: Select | E123: Select
C124: SPLCE | D124: Creation/Pre Scope | E124: Non-Complex (Minor)
C125: PCES | D125: Final Scoping/PFI | E125: Moderately Complex
C126: Culpeper Tool | D126: Public Hearing/PI | E126: Most Complex (Major)
C127: Staunton Estimating Spreadsheet Tool | D127: Field Inspection
C128: AASHTO Precon | D128: Pre Adv. Conference
C129: Consultant
C130: Similar Project | D130: Select
C131: Profess. Judgement | D131: Aerial Photo
C132: Norms | D132: Tax Map
C133: Other | D133: Other
C134: Aerial Photo
C135: Tax Map | D135: Pre-Scoping Plans
C136: Pre-Scoping Plans | D136: Scoping Plans
C137: Scoping Plans | D137: F.I. Plans
C138: F.I. Plans | D138: R/W Plans
C139: R/W Plans | D139: PAC Plans
C140: PAC Plans
C142: Locality Type | D142: Arlington County (00) | E142: City of Alexandria (100) | F142: Town of Abingdon (140)
C143: City | D143: Accomack County (01) | E143: City of Bedford (141) | F143: Town of Alberta (161)
C144: County | D144: Albemarle County (02) | E144: City of Bristol (102) | F144: Town of Alta Vista (162)
C145: Town | D145: Alleghany County (03) | E145: City of Buena Vista (103) | F145: Town of Altavista (162)
D146: Amelia County (04) | E146: City of Charlottesville (104) | F146: Town of Appalachia (164)
D147: Amherst County (05) | E147: City of Chesapeake (131) | F147: Town of Ashland (166)
D148: Appomattox County (06) | E148: City of Colonial Heights (105) | F148: Town of Belle Haven (167)
D149: Augusta County (07) | E149: City of Covington (107) | F149: Town of Berryville (168)
D150: Bath County (08) | E150: City of Danville (108) | F150: Town of Big Stone Gap (101)
D151: Bedford County (09) | E151: City of Emporia (109) | F151: Town of Blacksburg (150)
D152: Bland County (10) | E152: City of Fairfax (151) | F152: Town of Blackstone (142)
D153: Botetourt County (11) | E153: City of Falls Church (110) | F153: Town of Bluefield (143)
D154: Brunswick County (12) | E154: City of Franklin (145) | F154: Town of Boones Mill(170)
D155: Buchanan County (13) | E155: City of Fredericksburg (111) | F155: Town of Bridgewater (176)
D156: Buckingham County (14) | E156: City of Galax (113) | F156: Town of Broadway(177)
D157: Campbell County (15) | E157: City of Hampton (114) | F157: Town of Brodnax(178)
D158: Caroline County (16) | E158: City of Harrisonburg (115) | F158: Town of Burkeville(181)
D159: Carroll County (17) | E159: City of Hopewell (116) | F159: Town of Cape Charles(182)
D160: Charles City County (18) | E160: City of Lexington (117) | F160: Town of Cedar Bluff(184)
D161: Charlotte County (19) | E161: City of Lynchburg (118) | F161: Town of Charlotte C.H.(185)
D162: Chesterfield County (20) | E162: City of Manassas (155) | F162: Town of Chase City (186)
D163: Clarke County (21) | E163: City of Manassas Park (152) | F163: Town of Chatham(187)
D164: Craig County (22) | E164: City of Martinsville (120) | F164: Town of Cheriton(188)
D165: Culpeper County (23) | E165: City of Newport News (121) | F165: Town of Chilhowie(189)
D166: Cumberland County (24) | E166: City of Norfolk (122) | F166: Town of Chincoteague (190)
D167: Dickenson County (25) | E167: City of Norton (146) | F167: Town of Christiansburg (154)
D168: Dinwiddie County (26) | E168: City of Petersburg (123) | F168: Town of Clarksville(192)
D169: Essex County (28) | E169: City of Poquoson (147) | F169: Town of Clifton Forge (105)
D170: Fairfax County (29) | E170: City of Portsmouth (124) | F170: Town of Clinchco(339)
D171: Fauquier County (30) | E171: City of Radford (126) | F171: Town of Clintwood(196)
D172: Floyd County (31) | E172: City of Richmond (127) | F172: Town of Coeburn(198)
D173: Fluvanna County (32) | E173: City of Roanoke (128) | F173: Town of Colonial Beach (199)
D174: Franklin County (33) | E174: City of Salem (129) | F174: Town of Craigsville(202)
D175: Frederick County (34) | E175: City of South Boston (130) | F175: Town of Crewe(203)
D176: Giles County (35) | E176: City of Staunton (132) | F176: Town of Culpeper (204)
D177: Gloucester County (36) | E177: City of Suffolk (133) | F177: Town of Damascus(205)
D178: Goochland County (37) | E178: City of Virginia Beach (134) | F178: Town of Dayton(206)
D179: Grayson County (38) | E179: City of Waynesboro (136) | F179: Town of Dillwyn(208)
D180: Greene County (39) | E180: City of Williamsburg (137) | F180: Town of Duffield(211)
D181: Greensville County (40) | E181: City of Winchester (138) | F181: Town of Dumfries (212)
D182: Halifax County (41) | F182: Town of Dungannon(213)
D183: Hanover County (42) | F183: Town of Elkton (216)
D184: Henrico County (43) | F184: Town of Exmore(217)
D185: Henry County (44) | F185: Town of Farmville (144)
D186: Highland County (45) | F186: Town of Floyd(219)
D187: Isle of Wight County (46) | F187: Town of Front Royal (112)
D188: James City County (47) | F188: Town of Gate City(221)
D189: King George County (48) | F189: Town of Glade Spring(222)
D190: King & Queen County (49) | F190: Town of Glasgow(223)
D191: King William County (50) | F191: Town of Gordonsville (225)
D192: Lancaster County (51) | F192: Town of Grottoes (228)
D193: Lee County (52) | F193: Town of Grundy(228)
D194: Loudoun County (53) | F194: Town of Hamilton(232)
D195: Louisa County (54) | F195: Town of Haymarket(233)
D196: Lunenburg County (55) | F196: Town of Herndon (235)
D197: Madison County (56) | F197: Town of Hillsboro(236)
D198: Mathews County (57) | F198: Town of Independence(240)
D199: Mecklenburg County (58) | F199: Town of Irvington(242)
D200: Middlesex County (59) | F200: Town of Kenbridge(247)
D201: Montgomery County (60) | F201: Town of Kilmarnock(249)
D202: Nelson County (62) | F202: Town of La Crosse(250)
D203: New Kent County (63) | F203: Town of Lawrenceville(251)
D204: Northampton County (65) | F204: Town of Lebanon (252)
D205: Northumberland County (66) | F205: Town of Leesburg (253)
D206: Nottoway County (67) | F206: Town of Lovettsville(255)
D207: Orange County (68) | F207: Town of Luray (159)
D208: Page County (69) | F208: Town of Marion (119)
D209: Patrick County (70) | F209: Town of Middleburg(259)
D210: Pittsylvania County (71) | F210: Town of Middletown(260)
D211: Powhatan County (72) | F211: Town of Mineral (261)
D212: Prince Edward County (73) | F212: Town of Monterey(262)
D213: Prince George County (74) | F213: Town of Mt. Jackson(265)
D214: Prince William County (76) | F214: Town of Narrows (266)
D215: Pulaski County (77) | F215: Town of New Market(269)
D216: Rappahannock County (78) | F216: Town of Nickelsville(271)
D217: Richmond County (79) | F217: Town of Occoquan(272)
D218: Roanoke County (80) | F218: Town of Onancock(273)
D219: Rockbridge County (81) | F219: Town of Orange (275)
D220: Rockingham County (82) | F220: Town of Pearisburg (279)
D221: Russell County (83) | F221: Town of Pennington Gap(281)
D222: Scott County (84) | F222: Town of Pocahontas(283)
D223: Shenandoah County (85) | F223: Town of Pulaski (125)
D224: Smyth County (86) | F224: Town of Purcellville(286)
D225: Southampton County (87) | F225: Town of Quantico(287)
D226: Spotsylvania County (88) | F226: Town of Remington (288)
D227: Stafford County (89) | F227: Town of Rich Creek(289)
D228: Surry County (90) | F228: Town of Richlands (148)
D229: Sussex County (91) | F229: Town of Rocky Mount (157)
D230: Tazewell County (92) | F230: Town of Round Hill(291)
D231: Warren County (93) | F231: Town of Rural Retreat(292)
... 23 more rows

Sheet Inflation Summary & Upload
B4: Inflation Factors | C4: Future Cost (including inflation)
B6: Inflation** | C6: Total Cost***
A7: PE Phase Estimate | B7: =IFERROR('Inflation Tables'!F4,1) -> 1 | C7: ='Cost Estimate Summary'!F85*B7 -> 310000
A8: RW Phase Estimate | B8: =IFERROR('Inflation Tables'!N4,1) -> 1 | C8: ='Cost Estimate Summary'!F86*B8 -> 0
A9: CN Phase Estimate(without CEI) | B9: =IFERROR('Inflation Tables'!X4,1) -> 1 | C9: ='Cost Estimate Summary'!F87*B9 -> 0
A10: Total CEI | B10: =IFERROR('Inflation Tables'!X4,1) -> 1 | C10: ='Cost Estimate Summary'!F88*B10 -> 0
A11: CN Phase Estimate(with CEI) | B11: =IFERROR('Inflation Tables'!X4,1) -> 1 | C11: ='Cost Estimate Summary'!F89*B11 -> 0
A12: Total Estimate | B12: Total: | C12: =SUM(C7:C8)+C11 -> 310000
B14: ** Inflation rates taken from VDOT Inflation/Escalation Memorandum, Dated 12/5/2022
B15: *** Total Costs should match with total costs output from SMART Portal.
A18: INSTRUCTIONS FOR TRANSFERING A CEWB ESTIMATE INTO A PCES(Workbook)
A19: 1. Download the current version of the PCES workbook for your project from the PCES site and save to you computer (you do not need to open it yet)
A20: 2. Click the "Transfer CEWB to PCES" button below.
A21: 3. After you click the button you will be prompted to open your PCES workbook. After opening the workbook, the following will happen automatically: a. The inflated PE, RW and CN estimate will be populated in the MANUAL tab, along with standard phase comments. b. The PE, RW, Utility and CN phase will all be set to “Manual” on the SUMMARY tab. c. The Ad Year and Construction End Year cells will be set to “FY2022” to avoid any inflation calculations in PCES. d. The estimate shown in the SUMMARY tab should match the inflated estimate from your CEWB.
A22: 4. Review the standard phase comments imported and adjust the comments in the "MANUAL" tab for specificity regarding your estimate.
A23: 5. Save the updated PCES workbook for upload to the PCES site.

Sheet Inflation Tables (hidden)
A2: PE PHASE | I2: RW Phase | S2: CN Phase
A3: application fiscal year | B3: region_code | C3: FY for Phase Start | D3: Phase | E3: Multiplier | F3: PE Inflation Multiplier: | I3: application fiscal year | J3: region_code | K3: FY for Phase Start | L3: Phase | M3: Multiplier | N3: RW Inflation Multiplier: | S3: application fiscal year | T3: region_code | U3: FY for Phase Start | V3: Phase | W3: Multiplier | X3: CN Inflation Multiplier:
A4: 2024 | B4: V1P1 | C4: 2023 | D4: PE | E4: 1 | F4: =INDEX(E4:E136, MATCH(1, (F7=C4:C136) * (F8=D4:D136), 0)) ->  | I4: 2024 | J4: V1R5 | K4: 2023 | L4: RW | M4: 1 | N4: =INDEX(M4:M128, MATCH(1, (N7=K4:K128) * (N8=L4:L128), 0)) ->  | S4: 2024 | T4: V1C5 | U4: 2023 | V4: CN | W4: 1 | X4: =INDEX(W4:W136, MATCH(1, (X7=U4:U136) * (X8=V4:V136), 0)) -> 
A5: 2024 | B5: V1P1 | C5: 2024 | D5: PE | E5: 1.08 | I5: 2024 | J5: V1R5 | K5: 2024 | L5: RW | M5: 1.08 | S5: 2024 | T5: V1C5 | U5: 2024 | V5: CN | W5: 1.08
A6: 2024 | B6: V1P1 | C6: 2025 | D6: PE | E6: 1.134 | F6: Fiscal Year | I6: 2024 | J6: V1R5 | K6: 2025 | L6: RW | M6: 1.134 | N6: Fiscal Year | S6: 2024 | T6: V1C5 | U6: 2025 | V6: CN | W6: 1.134 | X6: Fiscal Year
A7: 2024 | B7: V1P1 | C7: 2026 | D7: PE | E7: 1.1907 | F7: =YEAR('Cost Estimate Summary'!D28)+IF(MONTH('Cost Estimate Summary'!D28)>=7,1,0) -> 1900 | I7: 2024 | J7: V1R5 | K7: 2026 | L7: RW | M7: 1.1907 | N7: =YEAR('Cost Estimate Summary'!D42)+IF(MONTH('Cost Estimate Summary'!D42)>=7,1,0) -> 1900 | S7: 2024 | T7: V1C5 | U7: 2026 | V7: CN | W7: 1.1907 | X7: =YEAR('Cost Estimate Summary'!D77)+IF(MONTH('Cost Estimate Summary'!D77)>=7,1,0) -> 1900
A8: 2024 | B8: V1P1 | C8: 2027 | D8: PE | E8: 1.250235 | F8: =IF('Cost Estimate Summary'!D28>1,"PE","") ->  | I8: 2024 | J8: V1R5 | K8: 2027 | L8: RW | M8: 1.250235 | N8: =IF('Cost Estimate Summary'!D42>1,"RW","") ->  | S8: 2024 | T8: V1C5 | U8: 2027 | V8: CN | W8: 1.250235 | X8: =IF('Cost Estimate Summary'!D77>1,"CN","") -> 
A9: 2024 | B9: V1P1 | C9: 2028 | D9: PE | E9: 1.31274675 | I9: 2024 | J9: V1R5 | K9: 2028 | L9: RW | M9: 1.31274675 | S9: 2024 | T9: V1C5 | U9: 2028 | V9: CN | W9: 1.31274675
A10: 2024 | B10: V1P1 | C10: 2029 | D10: PE | E10: 1.378384088 | I10: 2024 | J10: V1R5 | K10: 2029 | L10: RW | M10: 1.378384088 | S10: 2024 | T10: V1C5 | U10: 2029 | V10: CN | W10: 1.378384088
A11: 2024 | B11: V1P1 | C11: 2030 | D11: PE | E11: 1.41973561 | I11: 2024 | J11: V1R5 | K11: 2030 | L11: RW | M11: 1.41973561 | S11: 2024 | T11: V1C5 | U11: 2030 | V11: CN | W11: 1.41973561
A12: 2024 | B12: V1P1 | C12: 2031 | D12: PE | E12: 1.462327678 | I12: 2024 | J12: V1R5 | K12: 2031 | L12: RW | M12: 1.462327678 | S12: 2024 | T12: V1C5 | U12: 2031 | V12: CN | W12: 1.462327678
A13: 2024 | B13: V1P1 | C13: 2032 | D13: PE | E13: 1.506197509 | I13: 2024 | J13: V1R5 | K13: 2032 | L13: RW | M13: 1.506197509 | S13: 2024 | T13: V1C5 | U13: 2032 | V13: CN | W13: 1.506197509
A14: 2024 | B14: V1P1 | C14: 2033 | D14: PE | E14: 1.551383434 | I14: 2024 | J14: V1R5 | K14: 2033 | L14: RW | M14: 1.551383434 | S14: 2024 | T14: V1C5 | U14: 2033 | V14: CN | W14: 1.551383434
C25: 2021 Values | D25: 2022 Values | E25: 2023 Values
B26: 2023 | C26: 1.03 | D26: 0
B27: 2024 | C27: 1.0609 | D27: 0.08
B28: 2025 | C28: 1.092727 | D28: 0.134
B29: 2026 | C29: 1.1255 | D29: 0.1907
B30: 2027 | C30: 1.159274074 | D30: 0.250235
B31: 2028 | C31: 1.194052297 | D31: 0.31274675
B32: 2029 | C32: 1.229873865 | D32: 0.3783840875
B33: 2030 | C33: 1.266770081 | D33: 0.4197356101
B34: 2031 | C34: 1.304773184 | D34: 0.4623276784
B35: 2032 | C35: 1.343916379 | D35: 0.5061975088
B36: 2033 | C36: 1.384233871 | D36: 0.551383434
B38: 2023 | C38: 1.03
B39: 2024 | C39: 1.0609
B40: 2025 | C40: =ROUND(1.092727,4) -> 1.0927
B41: 2026 | C41: =ROUND(1.12550881,4) -> 1.1255
B42: 2027 | C42: =ROUND(1.1592740743,4) -> 1.1593
B43: 2028 | C43: =ROUND(1.194052296529,4) -> 1.1941
B44: 2029 | C44: =ROUND(1.22987386542487,4) -> 1.2299
B45: 2030 | C45: =ROUND(1.26677008138762,4) -> 1.2668
B46: 2031 | C46: =ROUND(1.30477318382924,4) -> 1.3048
B47: 2032 | C47: =ROUND(1.34391637934412,4) -> 1.3439
B48: 2033 | C48: =ROUND(1.38423387072445,4) -> 1.3842
B50: 2023 | C50: =ROUND(1.03718181818182,4) -> 1.0372
B51: 2024 | C51: =ROUND(1.07574612396694,4) -> 1.0757
B52: 2025 | C52: =ROUND(1.11574432075808,4) -> 1.1157
B53: 2026 | C53: =ROUND(1.1572297232299,4) -> 1.1572
B54: 2027 | C54: =ROUND(1.20025762839363,4) -> 1.2003
B55: 2028 | C55: =ROUND(1.2448853893039,4) -> 1.2449
B56: 2029 | C56: =ROUND(1.2911724915062,4) -> 1.2912
B57: 2030 | C57: =ROUND(1.33918063232675,4) -> 1.3392
B58: 2031 | C58: =ROUND(1.38897380311054,4) -> 1.389
B59: 2032 | C59: =ROUND(1.4406183745171,4) -> 1.4406
B60: 2033 | C60: =ROUND(1.49418318498778,4) -> 1.4942

Sheet CEWB Translation Sheet (hidden)
C2: Data to CEWB | L2: Data from CEWB
A4: Portal ID | B4: =IF('Culpeper Workbook'!$B$8="UPC","N/A",'Culpeper Workbook'!$C$8) -> 0 | C4: UPC | D4: =IF('Culpeper Workbook'!$B$8="UPC",'Culpeper Workbook'!$C$8,"N/A") -> N/A | K4: PE Inflation | L4: ='Inflation Summary & Upload'!B7 -> 1
A5: Prep By | B5: ='Culpeper Workbook'!C11 -> 0 | C5: Milestone | D5: Creation/Pre Scope | K5: RW Inflation | L5: ='Inflation Summary & Upload'!B8 -> 1
A6: Rev By | B6: ='Culpeper Workbook'!C12 -> 0 | C6: Tier | D6: ='Culpeper Workbook'!G17 -> 1 | K6: CN Inflation | L6: ='Inflation Summary & Upload'!B9 -> 1
A7: Location | B7: ="Locality" -> Locality | C7: ='Culpeper Workbook'!N67 -> Arlington County (00)
A8: Complexity | B8: ='Culpeper Workbook'!C13 -> 0
A11: PE ESTIMATE
A12: Discipline | B12: Source | C12: Defined ($) | D12: Allowance | H12: Assumptions
A13: Project Management | B13: Culpeper Tool | C13: ='Culpeper Workbook'!Q18 -> 45650 | D13: 0 | H13: See PE Estimate Tool tab.
A14: Roadway | B14: Culpeper Tool | C14: ='Culpeper Workbook'!Q19 -> 144210 | D14: 0 | H14: See PE Estimate Tool tab.
A15: Hydraulics | B15: Culpeper Tool | C15: ='Culpeper Workbook'!Q20 -> 35640 | D15: 0 | H15: See PE Estimate Tool tab.
A16: Utilities | B16: Culpeper Tool | C16: ='Culpeper Workbook'!Q21 -> 0 | D16: 0 | H16: See PE Estimate Tool tab.
A17: Traffic | B17: Culpeper Tool | C17: ='Culpeper Workbook'!Q22 -> 26025 | D17: 0 | H17: See PE Estimate Tool tab.
A18: Structures/Bridges | B18: Culpeper Tool | C18: ='Culpeper Workbook'!Q23 -> 0 | D18: 0 | H18: See PE Estimate Tool tab.
A19: Materials/Geotech | B19: Culpeper Tool | C19: ='Culpeper Workbook'!Q24 -> 28050 | D19: 0 | H19: See PE Estimate Tool tab.
A20: Survey/SUE | B20: Culpeper Tool | C20: ='Culpeper Workbook'!Q25 -> 16025 | D20: 0 | H20: See PE Estimate Tool tab.
A21: Environmental | B21: Culpeper Tool | C21: ='Culpeper Workbook'!Q26 -> 0 | D21: 0 | H21: See PE Estimate Tool tab.
A22: Right of Way | B22: Culpeper Tool | C22: ='Culpeper Workbook'!Q27 -> 14400 | D22: 0 | H22: See PE Estimate Tool tab.
A23: Other | B23: Culpeper Tool | C23: ='Culpeper Workbook'!Q28 -> 0 | D23: 0 | G23: Total | H23: See PE Estimate Tool tab.
A24: VDOT PE Oversight LAP | G24: ='Culpeper Workbook'!X29 -> 0 | H24: See PE Estimate Tool tab.
E25: Risk Type | F25: Contingency
B26: PE Base Est | C26: ='Culpeper Workbook'!C16 -> 0 | E26: ='Culpeper Workbook'!C14 -> 0 | F26: ='Culpeper Workbook'!W30 -> 15
B27: PE Start | C27: ='Culpeper Workbook'!H8 -> 0
B28: PE End | C28: ='Culpeper Workbook'!H9 -> 0
A31: RW ESTIMATE | E31: Phase Risk
A32: Discipline | B32: Source | C32: Defined ($) | D32: Allowance | E32: ='Culpeper Workbook'!C14 -> 0 | F32: Contingency | H32: Assumptions
A33: Right-of-Way Acquisition | B33: Aerial Photo | C33: ='Culpeper Workbook'!Q33 -> 0 | D33: 0 | F33: ='Culpeper Workbook'!W33 -> 0 | H33: See separate PCES estimate document for details and assumptions.
A34: Utilities | B34: Aerial Photo | C34: ='Culpeper Workbook'!Q34 -> 0 | D34: 0 | F34: ='Culpeper Workbook'!W34 -> 0 | H34: See separate PCES estimate document for details and assumptions.
A35: VDOT Project RW/UT Oversight | B35: Culpeper Tool | C35: ='Culpeper Workbook'!Q35 -> 0 | D35: 0 | F35: ='Culpeper Workbook'!W35 -> 0 | G35: Total | H35: See separate PCES estimate document for details and assumptions.
A36: VDOT RW/UT Oversight LAP | G36: 0 | H36: See separate PCES estimate document for details and assumptions.
E37: Risk Type | F37: Contingency
E38: Select Phase Risk Type Here (when using one phase contingency value) | F38: 0
B39: RW Base Est | C39: ='Culpeper Workbook'!C19 -> 0
B40: RW Start | C40: ='Culpeper Workbook'!H9 -> 0
B41: RW End | C41: ='Culpeper Workbook'!H10 -> 0
A45: CN ESTIMATE
A46: Discipline | B46: Source | C46: Defined ($) | D46: Allowance | E46: Risk Type | F46: Contingency | H46: Assumptions
A47: Mobilization/Construction Support | B47: Culpeper Tool | C47: ='Culpeper Workbook'!Q39 -> 0 | D47: 0 | E47: ='Culpeper Workbook'!$C$14 -> 0 | F47: ='Culpeper Workbook'!W39 -> 0 | H47: See CN Estimate Tool tabs.
A48: MOT | B48: Culpeper Tool | C48: 0 | D48: ='Culpeper Workbook'!Q40 -> 0 | E48: ='Culpeper Workbook'!$C$14 -> 0 | F48: ='Culpeper Workbook'!W40 -> 0 | H48: See CN Estimate Tool tabs.
A49: Roadway | B49: Culpeper Tool | C49: ='Culpeper Workbook'!Q41 -> 0 | D49: 0 | E49: ='Culpeper Workbook'!$C$14 -> 0 | F49: ='Culpeper Workbook'!W41 -> 0 | H49: See CN Estimate Tool tabs.
A50: Hydraulics | B50: Culpeper Tool | C50: ='Culpeper Workbook'!Q42 -> 0 | D50: 0 | E50: ='Culpeper Workbook'!$C$14 -> 0 | F50: ='Culpeper Workbook'!W42 -> 0 | H50: See CN Estimate Tool tabs.
A51: In-plan Utilities | B51: Culpeper Tool | C51: ='Culpeper Workbook'!Q43 -> 0 | D51: 0 | E51: ='Culpeper Workbook'!$C$14 -> 0 | F51: ='Culpeper Workbook'!W43 -> 0 | H51: See CN Estimate Tool tabs.
A52: Traffic | B52: Culpeper Tool | C52: 0 | D52: ='Culpeper Workbook'!Q44 -> 0 | E52: ='Culpeper Workbook'!$C$14 -> 0 | F52: ='Culpeper Workbook'!W44 -> 0 | H52: See CN Estimate Tool tabs.
A53: Structures/Bridges | B53: Culpeper Tool | C53: ='Culpeper Workbook'!Q45 -> 0 | D53: 0 | E53: ='Culpeper Workbook'!$C$14 -> 0 | F53: ='Culpeper Workbook'!W45 -> 0 | H53: See CN Estimate Tool tabs.
A54: Earthwork/Geotech | B54: Culpeper Tool | C54: ='Culpeper Workbook'!Q46 -> 0 | D54: 0 | E54: ='Culpeper Workbook'!$C$14 -> 0 | F54: ='Culpeper Workbook'!W46 -> 0 | H54: See CN Estimate Tool tabs.
A55: Environmental/Soundwalls | B55: Culpeper Tool | C55: ='Culpeper Workbook'!Q47 -> 0 | D55: 0 | E55: ='Culpeper Workbook'!$C$14 -> 0 | F55: ='Culpeper Workbook'!W47 -> 0 | H55: See CN Estimate Tool tabs.
A56: Other | B56: Culpeper Tool | C56: ='Culpeper Workbook'!Q48 -> 0 | D56: 0 | E56: ='Culpeper Workbook'!$C$14 -> 0 | F56: ='Culpeper Workbook'!W48 -> 0 | H56: See CN Estimate Tool tabs.
A57: VDOT Project CN Oversight | B57: Culpeper Tool | C57: 0 | D57: 0 | E57: ='Culpeper Workbook'!$C$14 -> 0 | F57: 0 | G57: Total | H57: See CN Estimate Tool tabs.
A58: VDOT CN Oversight LAP | G58: 0 | H58: See CN Estimate Tool tabs.
A60: Management Reserve | B60: ='Culpeper Workbook'!O52 -> 0 | H60: See CN Estimate Tool tabs.
A61: Railroad Flagging/Coordination | C61: ='Culpeper Workbook'!Q53 -> 0 | D61: 0 | E61: ='Culpeper Workbook'!$C$14 -> 0 | F61: ='Culpeper Workbook'!W53 -> 0 | H61: See CN Estimate Tool tabs.
A62: State Forces | C62: ='Culpeper Workbook'!Q54 -> 0 | D62: 0 | E62: ='Culpeper Workbook'!$C$14 -> 0 | F62: ='Culpeper Workbook'!W54 -> 0 | H62: See CN Estimate Tool tabs.
A63: State Police | C63: ='Culpeper Workbook'!Q55 -> 0 | D63: 0 | E63: ='Culpeper Workbook'!$C$14 -> 0 | F63: ='Culpeper Workbook'!W55 -> 0 | H63: See CN Estimate Tool tabs.
A64: Contract Requirements (Inc/Dis) | B64: ='Culpeper Workbook'!O57 -> 0 | H64: See CN Estimate Tool tabs.
E65: Risk Type | F65: Contingency
E66: Select | F66: 0
B68: CEI Source | C68: Percentage
A69: CEI Environmental Inspection | B69: 0 | E69: ='Culpeper Workbook'!$C$14 -> 0 | F69: ='Culpeper Workbook'!W58 -> 0
A70: CEI VDOT or Locality | B70: ='Culpeper Workbook'!X64*100 -> 0 | E70: ='Culpeper Workbook'!$C$14 -> 0 | F70: ='Culpeper Workbook'!W59 -> 0
A71: CEI Oversight Costs | B71: 0 | E71: ='Culpeper Workbook'!$C$14 -> 0 | F71: ='Culpeper Workbook'!W60 -> 0
B72: CN Base Est | C72: ='Culpeper Workbook'!C21 -> 0
B73: CN Start | C73: ='Culpeper Workbook'!H10 -> 0
B74: CN End | C74: ='Culpeper Workbook'!H11 -> 0
D76: Current Cost Date | E76: ='Culpeper Workbook'!C10 -> 0

Sheet Culpeper Workbook
A2: CULPEPER CONCEPT ESTIMATE WORKBOOK | N2: ROUNDING BREAKDOWN
O3: Inflated Total | P3: Uninfl. Total | Q3: Base | R3: Cont. | S3: % | U3: Inflation Rates
B4: DISTRICT: | C4: Culpeper | F4: Rev: 6/30/23 | N4: PE | O4: =P4*U4 -> 354775 | P4: =Q4+R4 -> 354775 | Q4: =O30 -> 308500 | R4: =R30 -> 46275 | S4: =IF(Q4>0,R4/Q4,0) -> 0.15 | U4: ='CEWB Translation Sheet'!L4 -> 1
N5: RW | O5: =P5*U5 -> 0 | P5: =Q5+R5 -> 0 | Q5: =O36 -> 0 | R5: =R36 -> 0 | S5: =IF(Q5>0,R5/Q5,0) -> 0 | U5: ='CEWB Translation Sheet'!L5 -> 1
B6: PROJECT INFORMATION | N6: CN | O6: =P6*U6 -> 0 | P6: =Q6+R6+R7 -> 0 | Q6: =O63 -> 0 | R6: =O65 -> 0 | S6: =IF(Q6>0,R6/Q6,0) -> 0 | U6: ='CEWB Translation Sheet'!L6 -> 1
B7: Project Description | G7: PROJECT SCHEDULE | N7: CEI | R7: =O64 -> 0 | S7: =IF(Q6>0,R7/Q6,0) -> 0
B8: Application ID | G8: PE Start Date | J8: ROUND TYPE | N8: Total | O8: =SUM(O4:O6) -> 354775 | P8: =SUM(P4:P6) -> 354775 | Q8: =SUM(Q4:Q6) -> 308500 | R8: =SUM(R4:R7) -> 46275
B9: County/City/Town | G9: RW Start Date | J9: Portal | O9: Inflated Total | P9: Uninfl. Total | Q9: Base | R9: Cont. | S9: % | U9: Uninfl. Total | V9: Inflated Total
B10: Estimate Date | G10: CN Start Date | J10: ROUND VALUE | N10: PE | O10: =IF($J$9="Inflated",IF($J$11="Manual",$I13,IF($J$11="More Round",(IF(O4>10000000,ROUNDUP(O4, -6),ROUNDUP(O4, -5))),(IF(O4>10000000,ROUNDUP(O4, -5),ROUNDUP(O4, -4))))),"TBD") -> TBD | P10: =IF($J$9="Uninflated",IF($J$11="Manual",$I13,IF($J$11="More Round",(IF(P4>10000000,ROUNDUP(P4, -6),ROUNDUP(P4, -5))),(IF(P4>10000000,ROUNDUP(P4, -5),ROUNDUP(P4, -4))))),IF($J$9="Inflated",O10/U4,"TBD")) -> TBD | Q10: =IF($J$9="Portal",IF($J$11="Manual",$I13,IF($J$11="More Round",(IF(Q4>10000000,ROUNDUP(Q4, -6),ROUNDUP(Q4, -5))),(IF(Q4>10000000,ROUNDUP(Q4, -5),ROUNDUP(Q4, -4))))),Q4) -> 310000 | R10: =Q10*S10 -> 46500 | S10: =IF($J$9="Portal",IF($J$11="Manual",K13,ROUNDUP(S4,2)),IF(OR($J$9="Inflated",$J$9="Uninflated"),IFERROR((P10-P4+R4)/Q10,0),S4)) -> 0.15 | U10: =Q10+R10 -> 356500 | V10: =U10*U4 -> 356500
B11: Estimate Compiler | G11: CN Finish Date | J11: Default | N11: RW | O11: =IF($J$9="Inflated",IF($J$11="Manual",$I14,IF($J$11="More Round",(IF(O5>10000000,ROUNDUP(O5, -6),ROUNDUP(O5, -5))),(IF(O5>10000000,ROUNDUP(O5, -5),ROUNDUP(O5, -4))))),"TBD") -> TBD | P11: =IF($J$9="Uninflated",IF($J$11="Manual",$I14,IF($J$11="More Round",(IF(P5>10000000,ROUNDUP(P5, -6),ROUNDUP(P5, -5))),(IF(P5>10000000,ROUNDUP(P5, -5),ROUNDUP(P5, -4))))),IF($J$9="Inflated",O11/U5,"TBD")) -> TBD | Q11: =IF($J$9="Portal",IF($J$11="Manual",$I14,IF($J$11="More Round",(IF(Q5>10000000,ROUNDUP(Q5, -6),ROUNDUP(Q5, -5))),(IF(Q5>10000000,ROUNDUP(Q5, -5),ROUNDUP(Q5, -4))))),Q5) -> 0 | R11: =Q11*S11 -> 0 | S11: =IF($J$9="Portal",IF($J$11="Manual",K14,ROUNDUP(S5,2)),IF(OR($J$9="Inflated",$J$9="Uninflated"),IFERROR((P11-P5+R5)/Q11,0),S5)) -> 0 | U11: =Q11+R11 -> 0 | V11: =U11*U5 -> 0
B12: Reviewed By | N12: CN | O12: =IF($J$9="Inflated",IF($J$11="Manual",$I15,IF($J$11="More Round",(IF(O6>10000000,ROUNDUP(O6, -6),ROUNDUP(O6, -5))),(IF(O6>10000000,ROUNDUP(O6, -5),ROUNDUP(O6, -4))))),"TBD") -> TBD | P12: =IF($J$9="Uninflated",IF($J$11="Manual",$I15,IF($J$11="More Round",(IF(P6>10000000,ROUNDUP(P6, -6),ROUNDUP(P6, -5))),(IF(P6>10000000,ROUNDUP(P6, -5),ROUNDUP(P6, -4))))),IF($J$9="Inflated",O12/U6,"TBD")) -> TBD | Q12: =IF($J$9="Portal",IF($J$11="Manual",$I15,IF($J$11="More Round",(IF(Q6>10000000,ROUNDUP(Q6, -6),ROUNDUP(Q6, -5))),(IF(Q6>10000000,ROUNDUP(Q6, -5),ROUNDUP(Q6, -4))))),Q6) -> 0 | R12: =Q12*S12 -> 0 | S12: =IF($J$9="Portal",IF($J$11="Manual",K15,ROUNDUP(S6,2)),IF(OR($J$9="Inflated",$J$9="Uninflated"),IFERROR((P12-P6+R6)/Q12,0),S6)) -> 0 | U12: =Q12+R12+R13 -> 0 | V12: 0
B13: Complexity | H13: Override- PE | I13: 0 | K13: 0 | N13: CEI | R13: =Q12*S13 -> 0 | S13: =IF($J$9="Portal",IF($J$11="Manual",K16,ROUNDUP(S7,2)),S7) -> 0
B14: Contingency Type | H14: RW | I14: 0 | K14: 0 | N14: Total | O14: =SUM(O10:O12) -> 0 | P14: =SUM(P10:P12) -> 0 | Q14: =SUM(Q10:Q12) -> 310000 | R14: =SUM(R10:R13) -> 46500 | U14: =SUM(U10:U12) -> 356500 | V14: =SUM(V10:W12) -> 356500
B15: PE Estimate By | C15: ='PE Estimate Tool'!C10:D10 -> 0 | H15: CN | I15: 0 | K15: 0
B16: PE Estimate Date | C16: ='PE Estimate Tool'!C9:D9 -> 0 | G16: TIER | J16: CEI | K16: 0 | N16: STATE ESTIMATE WORKBOOK BREAKDOWN
B17: RW Acq. Estimate By | G17: =IF(F33<10000000,1,2) -> 1 | N17: PE ESTIMATE ITEMS | O17: Base | P17: Add'l Base | Q17: Rounded Base | R17: Cont. | S17: % | T17: Add'l Cont | U17: Rounded Cont | V17: % | W17: Cont Val | X17: Total
B18: Utility Estimate By | I18: Low | J18: MLE | K18: High | N18: Project Management | O18: ='PE Estimate Tool'!K41 -> 44150 | P18: =P30 -> 1500 | Q18: =O18+P18 -> 45650 | R18: ='PE Estimate Tool'!M41-O18 -> 6622.5 | S18: =IF(O18>0,R18/O18,0) -> 0.15 | T18: =U18-R18 -> 225 | U18: =IFERROR($U$30*Q18/($Q$30-$Q$29),0) -> 6847.5 | V18: =IFERROR(U18/Q18,0) -> 0.15 | W18: =IF($C$14="Type 2 Deterministic",U18,V18*100) -> 15 | X18: =Q18*(1+V18) -> 52497.5
B19: RW Estimate Date | G19: OVERALL CONTINGENCY % | I19: =IF($C$13="Moderately Complex",'Suggested Contingencies'!O7,IF($C$13="Non-Complex (Minor)",'Suggested Contingencies'!O5,IF($C$13="Most Complex (Major)",'Suggested Contingencies'!O9,"-"))) -> - | J19: =IF($C$13="Moderately Complex",'Suggested Contingencies'!P7,IF($C$13="Non-Complex (Minor)",'Suggested Contingencies'!P5,IF($C$13="Most Complex (Major)",'Suggested Contingencies'!P9,"-"))) -> - | K19: =IF($C$13="Moderately Complex",'Suggested Contingencies'!Q7,IF($C$13="Non-Complex (Minor)",'Suggested Contingencies'!Q5,IF($C$13="Most Complex (Major)",'Suggested Contingencies'!Q9,"-"))) -> - | N19: Roadway | O19: ='PE Estimate Tool'!K42 -> 144210 | P19: 0 | Q19: =O19+P19 -> 144210 | R19: ='PE Estimate Tool'!M42-O19 -> 21631.5 | S19: =IF(O19>0,R19/O19,0) -> 0.15 | T19: =U19-R19 -> 0 | U19: =IFERROR($U$30*Q19/($Q$30-$Q$29),0) -> 21631.5 | V19: =IFERROR(U19/Q19,0) -> 0.15 | W19: =IF($C$14="Type 2 Deterministic",U19,V19*100) -> 15 | X19: =Q19*(1+V19) -> 165841.5
B20: CN Estimate By | C20: ='CN Estimate Tool'!C10:E10 -> 0 | G20: All contingencies & rounding. | N20: Hydraulics | O20: ='PE Estimate Tool'!K43 -> 35640 | P20: 0 | Q20: 35640 | R20: ='PE Estimate Tool'!M43-O20 -> 5346 | S20: =IF(O20>0,R20/O20,0) -> 0.15 | T20: 0 | U20: 5346 | V20: 0.15 | W20: =IF($C$14="Type 2 Deterministic",U20,V20*100) -> 15 | X20: =Q20*(1+V20) -> 40986
B21: CN Estimate Date | C21: ='CN Estimate Tool'!C12:E12 -> 0 | G21: PE | H21: =(F29-O30)/O30 -> 0.1555915721 | I21: Compare project contingency to sliding scale contingencies in the VDOT Cost Estimating <- Manual. | N21: In-plan Utilities | O21: ='PE Estimate Tool'!K44 -> 0 | P21: 0 | Q21: 0 | R21: ='PE Estimate Tool'!M44-O21 -> 0 | S21: 0 | T21: 0 | U21: 0 | V21: 0 | W21: 0 | X21: 0
B22: Other Remarks | G22: RW | H22: =IFERROR((F32-O36)/O36,0) -> 0 | N22: Traffic | O22: ='PE Estimate Tool'!K45 -> 26025 | P22: 0 | Q22: 26025 | R22: ='PE Estimate Tool'!M45-O22 -> 3903.75 | S22: 0.15 | T22: 0 | U22: 3903.75 | V22: 0.15 | W22: 15 | X22: 29928.75
G23: CN | H23: =IFERROR((F33-(O62-O51))/(O62-O51),0) -> 0 | N23: Structures/Bridges | O23: ='PE Estimate Tool'!K46 -> 0 | P23: 0 | Q23: 0 | R23: ='PE Estimate Tool'!M46-O23 -> 0 | S23: 0 | T23: 0 | U23: 0 | V23: 0 | W23: 0 | X23: 0
G24: Project | H24: =(F28-(O30+O36+O62-O51))/(O30+O36+O62-O51) -> 0.1555915721 | N24: Materials/Geotech | O24: ='PE Estimate Tool'!K47 -> 28050 | P24: 0 | Q24: 28050 | R24: ='PE Estimate Tool'!M47-O24 -> 4207.5 | S24: 0.15 | T24: 0 | U24: 4207.5 | V24: 0.15 | W24: 15 | X24: 32257.5
N25: Survey | O25: ='PE Estimate Tool'!K48 -> 16025 | P25: 0 | Q25: 16025 | R25: ='PE Estimate Tool'!M48-O25 -> 2403.75 | S25: 0.15 | T25: 0 | U25: 2403.75 | V25: 0.15 | W25: 15 | X25: 18428.75
B26: PROJECT ESTIMATE | N26: Environmental | O26: ='PE Estimate Tool'!K49 -> 0 | P26: 0 | Q26: 0 | R26: ='PE Estimate Tool'!M49-O26 -> 0 | S26: 0 | T26: 0 | U26: 0 | V26: 0 | W26: 0 | X26: 0
C27: Uninflated Base | D27: % Cont. & CEI | E27: $ Cont. & CEI | F27: Uninflated Total | G27: Contingency Assumptions / Notes | N27: Right of Way | O27: ='PE Estimate Tool'!K50 -> 14400 | P27: 0 | Q27: 14400 | R27: ='PE Estimate Tool'!M50-O27 -> 2160 | S27: 0.15 | T27: 0 | U27: 2160 | V27: 0.15 | W27: 15 | X27: 16560
B28: Total Estimate | C28: =C29+C32+C33 -> 310000 | D28: =E28/C28 -> 0.15 | E28: =E29+E32+E33 -> 46500 | F28: =C28+E28 -> 356500 | N28: Other | O28: ='PE Estimate Tool'!K51 -> 0 | P28: 0 | Q28: 0 | R28: ='PE Estimate Tool'!M51-O28 -> 0 | S28: 0 | T28: 0 | U28: 0 | V28: 0 | W28: 0 | X28: 0
B29: PE Estimate | C29: =Q30 -> 310000 | D29: =V30 -> 0.15 | E29: =F29-C29 -> 46500 | F29: =X30 -> 356500 | G29: See PE Estimate Tool. | N29: VDOT Oversight Costs | O29: ='PE Estimate Tool'!K52 -> 0 | P29: 0 | Q29: 0 | R29: ='PE Estimate Tool'!M52-O29 -> 0 | S29: 0 | T29: =U29-R29 -> 0 | U29: 0 | V29: 0 | W29: 0 | X29: 0
B30: RW Property Acq. | E30: =C30*D30 -> 0 | F30: 0 | N30: PE TOTAL | O30: =SUM(O18:O29) -> 308500 | P30: =Q30-O30 -> 1500 | Q30: =Q10 -> 310000 | R30: =SUM(R18:R29) -> 46275 | S30: =IF(O30>0,R30/O30,0) -> 0.15 | T30: =U30-R30 -> 225 | U30: =Q30*V30 -> 46500 | V30: =S10 -> 0.15 | W30: =IF($C$14="Type 2 Deterministic",U30,(U30/(Q30-Q29))*100) -> 15 | X30: =SUM(X18:X29) -> 356500
B31: RW Utility Reloc. | E31: =C31*D31 -> 0 | F31: 0
B32: RW Estimate Total | C32: =Q36 -> 0 | D32: =V36 -> 0 | E32: =F32-C32 -> 0 | F32: =X36 -> 0 | N32: RW ESTIMATE ITEMS | O32: Base | P32: Add'l Base | Q32: Rounded | R32: Cont. | S32: % | T32: Add'l Cont | U32: Rnd Cont | V32: % | X32: Total
B33: CN Estimate | C33: =Q63 -> 0 | D33: =IF(C33=0,0,E33/C33) -> 0 | E33: =E34+E35 -> 0 | F33: 0 | G33: See Construction Estimate Tool. | N33: Right of Way | O33: =C30 -> 0 | P33: =IFERROR(($P$36)*O33/$O$36,0) -> 0 | Q33: =O33+P33 -> 0 | R33: =E30 -> 0 | S33: =IF(O33>0,R33/O33,0) -> 0 | T33: =U33-R33 -> 0 | U33: =IFERROR($U$36*Q33/($Q$36-$Q$35),0) -> 0 | V33: =IFERROR(U33/Q33,0) -> 0 | W33: =IF($C$14="Type 2 Deterministic",U33,V33*100) -> 0 | X33: =Q33*(1+V33) -> 0
B34: -Contingency | D34: =IF(C33=0,0,E34/C33) -> 0 | E34: =Q65 -> 0 | N34: Out of Plan Utilities | O34: =C31 -> 0 | P34: =IFERROR(($P$36)*O34/$O$36,0) -> 0 | Q34: =O34+P34 -> 0 | R34: =E31 -> 0 | S34: =IF(O34>0,R34/O34,0) -> 0 | T34: =U34-R34 -> 0 | U34: =IFERROR($U$36*Q34/($Q$36-$Q$35),0) -> 0 | V34: =IFERROR(U34/Q34,0) -> 0 | W34: =IF($C$14="Type 2 Deterministic",U34,V34*100) -> 0 | X34: =Q34*(1+V34) -> 0
B35: -CEI | D35: =IF(C33=0,0,E35/C33) -> 0 | E35: =Q64 -> 0 | N35: VDOT Oversight Costs | O35: 0 | P35: 0 | Q35: 0 | R35: 0 | S35: =IF(O35>0,R35/O35,0) -> 0 | T35: 0 | U35: 0 | V35: =IFERROR(U35/Q35,0) -> 0 | W35: =IF($C$14="Type 2 Deterministic",U35,V35*100) -> 0 | X35: =Q35*(1+V35) -> 0
N36: RW TOTAL | O36: =SUM(O33:O35) -> 0 | P36: =Q36-O36 -> 0 | Q36: =Q11 -> 0 | R36: =SUM(R33:R35) -> 0 | S36: =IF(O36>0,R36/O36,0) -> 0 | T36: =U36-R36 -> 0 | U36: =Q36*V36 -> 0 | V36: =S11 -> 0 | W36: =IF($C$14="Type 2 Deterministic",U36,V36*100) -> 0 | X36: =SUM(X33:X35) -> 0
B37: Follow these steps:
B38: 1. Enable macros & active content. | N38: CN ESTIMATE ITEMS | O38: Base | P38: Add'l Base | Q38: Rounded | R38: Cont. | S38: % | T38: Add'l Cont | U38: Rnd Cont | V38: % | X38: Total
B39: 2. Enter the Project Information, RW Estimate, and | N39: Mobilization/Survey | O39: ='CN Estimate Tool'!H17+'CN Estimate Tool'!H18 -> 0 | P39: =IFERROR($P$49*O39/$O$49,0) -> 0 | Q39: =O39+P39 -> 0 | R39: ='CN Estimate Tool'!J17+'CN Estimate Tool'!J18 -> 0 | S39: =IF(O39=0,0,R39/O39) -> 0 | T39: =IFERROR($T$49*R39/$R$49,0) -> 0 | U39: =T39+R39 -> 0 | V39: =IF(Q39>0,U39/Q39,0) -> 0 | W39: =IF($C$14="Type 2 Deterministic",U39,V39*100) -> 0 | X39: =Q39*(1+V39) -> 0
B40: Project Schedule on this tab. | N40: MOT | O40: ='CN Estimate Tool'!H31 -> 0 | P40: 0 | Q40: =O40+P40 -> 0 | R40: ='CN Estimate Tool'!J31 -> 0 | S40: =IF(O40=0,0,R40/O40) -> 0 | T40: 0 | U40: =T40+R40 -> 0 | V40: =IF(Q40>0,U40/Q40,0) -> 0 | W40: 0 | X40: 0
B41: 3. Go to the CN Estimate Tool tab and follow the | N41: Roadway | O41: ='CN Estimate Tool'!H28+'CN Estimate Tool'!H29 -> 0 | P41: 0 | Q41: 0 | R41: ='CN Estimate Tool'!J28+'CN Estimate Tool'!J29 -> 0 | S41: 0 | T41: 0 | U41: 0 | V41: 0 | W41: 0 | X41: 0
B42: directions to complete the CN estimate. | N42: Hydraulics | O42: ='CN Estimate Tool'!H27 -> 0 | P42: 0 | Q42: 0 | R42: ='CN Estimate Tool'!J27 -> 0 | S42: 0 | T42: 0 | U42: 0 | V42: 0 | W42: 0 | X42: 0
B43: 4. Go to the PE Estimate Tool tab and complete the | N43: In-Plan Utilities | O43: ='CN Estimate Tool'!H34 -> 0 | P43: 0 | Q43: 0 | R43: ='CN Estimate Tool'!J34 -> 0 | S43: 0 | T43: 0 | U43: 0 | V43: 0 | W43: 0 | X43: 0
B44: PE Estimate. | N44: Traffic | O44: ='CN Estimate Tool'!H33 -> 0 | P44: 0 | Q44: 0 | R44: ='CN Estimate Tool'!J33 -> 0 | S44: 0 | T44: 0 | U44: 0 | V44: 0 | W44: 0 | X44: 0
B45: 5. Review the Suggested Contingencies tab. Consider | N45: Structures/Bridges | O45: ='CN Estimate Tool'!H30 -> 0 | P45: 0 | Q45: 0 | R45: ='CN Estimate Tool'!J30 -> 0 | S45: 0 | T45: 0 | U45: 0 | V45: 0 | W45: 0 | X45: 0
B46: the level of risk and estimate quality when finalizing | N46: Earthwork/Geotech | O46: ='CN Estimate Tool'!H26 -> 0 | P46: 0 | Q46: 0 | R46: ='CN Estimate Tool'!J26 -> 0 | S46: 0 | T46: 0 | U46: 0 | V46: 0 | W46: 0 | X46: 0
B47: contingencies. | N47: Enviro./Soundwall | O47: ='CN Estimate Tool'!H35 -> 0 | P47: 0 | Q47: 0 | R47: ='CN Estimate Tool'!J35 -> 0 | S47: 0 | T47: 0 | U47: 0 | V47: 0 | W47: 0 | X47: 0
B48: 6. The Cost Estimate Summary tab should auto-populate. | N48: Other | O48: ='CN Estimate Tool'!H32 -> 0 | P48: 0 | Q48: 0 | R48: ='CN Estimate Tool'!J32 -> 0 | S48: 0 | T48: 0 | U48: 0 | V48: 0 | W48: 0 | X48: 0
B49: 7. All known assumptions and risks should be listed in | N49: BID TOTAL | O49: =SUM(O39:O48) -> 0 | P49: =(P50-T50*O57/(1+O52))/(1+O57-O52*O57/(1+O52)) -> 0 | Q49: =SUM(Q39:Q48) -> 0 | R49: =SUM(R39:R48) -> 0 | S49: 0 | T49: =(T50-P50*O52/(1+O57))/(1+O52-O52*O57/(1+O57)) -> 0 | U49: =SUM(U39:U48) -> 0 | V49: =IFERROR(U49/Q49,0) -> 0 | W49: 0 | X49: =SUM(X39:X48) -> 0
B50: a separate document filed with the project. | N50: Rounded Remainder | P50: =(P63-SUM(P53:P55)) -> 0 | T50: =(T65-SUM(T53:T55)) -> 0
B51: 8. The entire estimate, with the assumptions and risks | N51: Claims + Work Orders | O51: 0 | P51: 0 | Q51: 0 | R51: ='CN Estimate Tool'!J10+'CN Estimate Tool'!H10 -> 0 | S51: 0 | T51: =O52*(P49+T49) -> 0 | U51: =R51+T51 -> 0 | V51: 0 | W51: 0 | X51: =O51+R51 -> 0
B52: document, must be reviewed by another engineer. | N52: % Claims | O52: =IFERROR('CN Estimate Tool'!H10/'CN Estimate Tool'!H16,0) -> 0 | U52: =X49*O52 -> 0
N53: Railroad Flagging/Co. | O53: ='CN Estimate Tool'!H15 -> 0 | P53: =IFERROR($P$63*O53/$O$63,0) -> 0 | Q53: =O53+P53 -> 0 | R53: ='CN Estimate Tool'!J15 -> 0 | S53: 0 | T53: =IFERROR($T$65*R53/$O$65,0) -> 0 | U53: =R53+T53 -> 0 | V53: =IF(Q53>0,U53/Q53,0) -> 0 | W53: 0 | X53: =Q53*(1+V53) -> 0
N54: State Forces | O54: ='CN Estimate Tool'!H13 -> 0 | P54: =IFERROR($P$63*O54/$O$63,0) -> 0 | Q54: =O54+P54 -> 0 | R54: ='CN Estimate Tool'!J13 -> 0 | S54: 0 | T54: =IFERROR($T$65*R54/$O$65,0) -> 0 | U54: =R54+T54 -> 0 | V54: =IF(Q54>0,U54/Q54,0) -> 0 | W54: 0 | X54: =Q54*(1+V54) -> 0
N55: State Police | O55: ='CN Estimate Tool'!H14 -> 0 | P55: =IFERROR($P$63*O55/$O$63,0) -> 0 | Q55: =O55+P55 -> 0 | R55: ='CN Estimate Tool'!J14 -> 0 | S55: 0 | T55: =IFERROR($T$65*R55/$O$65,0) -> 0 | U55: =R55+T55 -> 0 | V55: =IF(Q55>0,U55/Q55,0) -> 0 | W55: 0 | X55: =Q55*(1+V55) -> 0
N56: Incentive/Disinc. | O56: ='CN Estimate Tool'!K12 -> 0 | P56: =O57*(P49+T49) -> 0 | Q56: =O56+P56 -> 0 | R56: 0 | S56: 0 | T56: 0 | U56: 0 | V56: 0 | W56: 0 | X56: =O56+R56 -> 0
N57: % Incentives | O57: =IFERROR('CN Estimate Tool'!H12/'CN Estimate Tool'!H16,0) -> 0 | Q57: =X49*O57 -> 0
N58: CEI-Environmental | O58: 0 | Q58: =O58+P58 -> 0 | R58: 0 | S58: 0 | T58: 0 | U58: =T58+R58 -> 0 | V58: =IF($Q$64>0,U58/$Q$64,0) -> 0 | W58: 0 | X58: =Q58*(1+V58) -> 0
N59: CEI-VDOT/Local | O59: ='CN Estimate Tool'!H11 -> 0 | P59: =IFERROR(O59/O64*P64,0) -> 0 | Q59: =O59+P59 -> 0 | R59: ='CN Estimate Tool'!J11 -> 0 | S59: 0 | T59: =IFERROR(R59/O64*P64,0) -> 0 | U59: =T59+R59 -> 0 | V59: =IF($Q$59>0,U59/$Q$59,0) -> 0 | W59: 0 | X59: =Q59*(1+V59) -> 0
N60: CEI-VDOT Oversight | O60: 0 | Q60: =O60+P60 -> 0 | R60: 0 | S60: 0 | T60: 0 | U60: =T60+R60 -> 0 | V60: =IF($Q$64>0,U60/$Q$64,0) -> 0 | W60: 0 | X60: =Q60*(1+V60) -> 0
N61: Total CEI | O61: =SUM(O58:O60) -> 0 | Q61: =SUM(Q58:Q60) -> 0 | R61: =SUM(R58:R60) -> 0 | S61: 0 | U61: =SUM(U58:U60) -> 0 | V61: =IF($Q$64>0,U61/$Q$64,0) -> 0 | W61: 0 | X61: =SUM(X58:X60) -> 0
N62: CN TOTAL | O62: =O49+O51+O53+O54+O55+O56+O61 -> 0 | P62: =SUM(P39:P48,P51:P57) -> 0 | Q62: =Q49+Q51+Q53+Q54+Q55+Q56+Q61 -> 0 | R62: =R49+R51+R53+R54+R55+R56+R61 -> 0 | S62: 0 | T62: =SUM(T39:T48,T51:T57) -> 0 | U62: =Q65-Q51 -> 0 | V62: =IF(Q62>0,U62/Q62,0) -> 0 | W62: 0 | X62: =O62+R62 -> 0
N63: CN minus CEI/CN Cont | O63: =O62-O61-O51 -> 0 | P63: =Q63-O63 -> 0 | Q63: =Q12 -> 0
N64: CEI Total | O64: =O61+R61 -> 0 | P64: =Q64-O64 -> 0 | Q64: =Q63*V64 -> 0 | S64: =IFERROR(O64/Q63,0) -> 0 | U64: =U62-U51 -> 0 | V64: =S13 -> 0 | X64: =IFERROR(Q61/X49,0) -> 0
N65: Total CN Cont. | O65: =O51+R62-R61 -> 0 | P65: =Q65-O65 -> 0 | Q65: =Q63*V65 -> 0 | R65: =Q65-Q51 -> 0 | S65: =IFERROR(O65/Q63,0) -> 0 | T65: =Q65-O65 -> 0 | V65: =S12 -> 0
M67: Co #: | N67: =IF(C4="Culpeper",VLOOKUP("*"&LEFT(C9,12)&"*",FormData!AD2:AD248,1,FALSE),C9) -> Arlington County (00)

Sheet Suggested Contingencies
B2: Suggested Contingency for Culpeper-developed Concept Estimates | O2: Sliding Scale Contingency- VDOT Cost Estimating Manual
N4: Risk | O4: Low | P4: MLE | Q4: High
E5: Low Risk | F5: More Risk | G5: High Risk | M5: Non-Complex | O5: 20-23% | P5: 30-35% | Q5: 45-55%
B6: PE | E6: 0.1 | F6: 0.15 | G6: 20%-30% | H6: Use 5% contingency when Consultant rates are used by project is anticipated to be in-house. Increase for highly likely consultant projects or estimates with in-house rates.
M7: Moderately Complex | O7: 25-30% | P7: 40-50% | Q7: 60-75%
M9: Most Complex | O9: 33-40% | P9: 50-60% | Q9: 75-100%
B10: RW - Acquisition | E10: 20%-25% | F10: 0.35 | G10: 0.5 | H10: Use contingincies recommended by the R/W estimator. 25% minimum for moderately complex projects.
M11: Note: | N11: For value range given, first # is for scoping, second is for pre-scoping.
B12: RW - Utilities | E12: 20%-25% | F12: 0.35 | G12: 0.5
B14: CN (Enter by Discipline in CN Estimate Tool) | E14: 0.2 | F14: 25-30% | G14: 0.5 | H14: Contingencies are discipline-based for use in the CN Estimate Tool. 15% is equivalent to 23% total contingency. Using the tool, estimate quality is much higher than typical pre-scoping estimates.
O15: Sliding Scale Contingency - VDOT R/W Cost Estimate Guide
N17: Risk | O17: Low | P17: MLE | Q17: High
B18: CN (Resulting Total) | E18: 0.28 | F18: 0.35 | G18: 50-75%+ | M18: Non-Complex | O18: 20-25% | P18: 30-35% | Q18: 45-55%
B19: Using the Culpeper CN Estimate Tool, construction contingency is applied by item discipline, prior to additives (CEI, work orders, incentive, etc). Categories with poor quantity precision, such as earthwork, should ordinarily be higher, if they are not already conservative. Review total contingency on the Culpeper Workbook tab.
M20: Moderately Complex | O20: 25-30% | P20: 40-50% | Q20: 60-75%
M22: Most Complex | O22: 35-40% | P22: 50-60% | Q22: 75-100%
B23: For Tier 2 and other complex projects, higher values should be used per the Cost Estimating Manual and a risk-based determinisic contingency estimate is required for comparison. For all projects, total contingency should be compared to the sliding scales.
M24: Note: | N24: For value range given, first # is for scoping, second is for pre-scoping.
B26: Culpeper recommendations differ as follows from Estimating Manual scales: Overall, contingency recommendations are generally on the low end due to the high level of scope review and estimate detail compared to national pre-scoping norms. Some Moderately complex projects may even fall below the low threshold for Pre-Scoping, but align more with Scoping level minimums. Level of detail for PE estimates also exceeds typical Pre-Scoping estimates. However, even lower contingencies are recommended for PE due to the conservative estimates given by the PE spreadsheet in comparison to other recent projects. The PE spreadsheet should be updated to reduce the built-in conservatism, but further man-hour data is needed. Until that time, lower contingencies are recommended.

Sheet CN Estimate Tool
A2: CONCEPTUAL CONSTRUCTION ESTIMATING TOOL
B4: DISTRICT: | C4: ='Culpeper Workbook'!$C$4 -> Culpeper | F4: Rev: 6/5/2023
B6: PROJECT INFORMATION | G6: TOTAL SUMMARY | H6: Base Estimate | I6: Conting. % | J6: Conting. Amount | K6: Total Estimate | L6: % of Contract | M6: Override % of Con.
B7: ='Culpeper Workbook'!C7 -> 0
B8: App ID or UPC | C8: ='Culpeper Workbook'!$C$8 -> 0
B9: County/City/Town | C9: ='Culpeper Workbook'!$C$9 -> 0 | G9: Grand Total (No Inflation) | H9: =H16+H10+H11+H12+H15+H13+H14 -> 0 | I9: =IF(H9=0,0,J9/H9) -> 0 | J9: =J16+J10+J11+J12+J15+J13+J14 -> 0 | K9: =K16+K10+K11+K12+K15+K13+K14 -> 0
B10: Estimator Name | G10: Construction Claims/W.O. | H10: =H16*IF(ISBLANK(M10),L10,M10) -> 0 | I10: =IF(H10=0,0,J10/H10) -> 0 | J10: =K10-H10 -> 0 | K10: =K16*IF(ISBLANK(M10),L10,M10) -> 0 | L10: =IF(K16>10000000,0.1,0.05) -> 0.05
B11: Section/Company | C11: Culpeper L&D | G11: CEI | H11: =H16*IF(ISBLANK(M11),L11,M11) -> 0 | I11: =IF(H11=0,0,J11/H11) -> 0 | J11: =K11-H11 -> 0 | K11: =K16*IF(ISBLANK(M11),L11,M11) -> 0 | L11: =IF(K16>25000000,0.15,IF(K16>10000000,0.18,IF(K16>1000000,0.2,0.25))) -> 0.25
B12: Estimate Date | G12: Incentives | H12: =H16*IF(ISBLANK(M12),L12,M12) -> 0 | I12: =IF(H12=0,0,J12/H12) -> 0 | J12: =K12-H12 -> 0 | K12: =K16*IF(ISBLANK(M12),L12,M12) -> 0 | L12: =0.015 -> 0.015
B13: Other Remarks | G13: Other State Forces | H13: =H37-H15-H14 -> 0 | I13: =IF(H13=0,0,J13/H13) -> 0 | J13: =J37-J14-J15 -> 0 | K13: =K37-K14-K15 -> 0
G14: State Police | H14: ='Unit Prices'!H192 -> 0 | I14: =IF(H14=0,0,J14/H14) -> 0 | J14: =H14*$I$37 -> 0 | K14: =H14+J14 -> 0
G15: Railroad Forces | H15: ='Unit Prices'!H193 -> 0 | I15: 0 | J15: =H15*$I$37 -> 0 | K15: =H15+J15 -> 0
B16: Total CN Estimate | C16: ='CN Estimate Tool'!K9 -> 0 | G16: Contract Total | H16: =H19+H18+H17 -> 0 | I16: 0 | J16: =J19+J18+J17 -> 0 | K16: =K19+K18+K17 -> 0
G17: Mobilization | H17: =IF((H18+H19)<200000,(H19+H18)*0.1,IF((H19+H18)<1000000,(H19+H18-200000)*0.075+20000,(H19+H18-1000000)*0.05+80000)) -> 0 | I17: 0 | J17: =K17-H17 -> 0 | K17: =IF((K18+K19)<200000,(K19+K18)*0.1,IF((K19+K18)<1000000,(K19+K18-200000)*0.075+20000,(K19+K18-1000000)*0.05+80000)) -> 0
B18: Estimator data | G18: Construction Survey | H18: =H19*0.01+('Quantity Calculations'!$D$345+'Quantity Calculations'!$D$351)*3+IF(DrngLCVB>0,2000,0) -> 0 | I18: 0 | J18: =K18-H18 -> 0 | K18: =K19*0.01+('Quantity Calculations'!$D$345+'Quantity Calculations'!$D$351)*3+IF(DrngLCVB>0,2000,0) -> 0
B19: Calculated data | G19: CN Bid Sub-total (All areas) | H19: =H25+H20+H21 -> 0 | I19: 0 | J19: =J25+J20+J21 -> 0 | K19: =H19+J19 -> 0
B20: Descriptive | G20: CN Bid Sub-total (2nd Workbk) | H20: =IF(L20="not used",0,L25) -> 0 | I20: =IF(H20=0,0,J20/H20) -> 0 | J20: =IF(L20="not used",0,SUMPRODUCT(L26:L35,M26:M35)) -> 0 | K20: =H20+J20 -> 0 | L20: not used
B23: CATEGORY SUMMARY | D23: Contingency Assumptions / Notes | H23: Estimate | I23: Design | J23: Design | K23: Category | L23: 2nd Book | M23: Design
I24: Conting. | J24: Conting. | K24: Total | L24: Estimate | M24: Conting.
D25: BID SUB-TOTAL | H25: =SUM(H26:H35) -> 0 | I25: =IFERROR(J25/H25,0) -> 0 | J25: =SUM(J26:J35) -> 0 | K25: =SUM(K26:K35) -> 0 | L25: =SUM(L26:L35) -> 0 | M25: =I20 -> 0
B26: Grading Items | H26: ='Unit Prices'!H8 -> 0 | I26: 0.2 | J26: =H26*I26 -> 0 | K26: =H26+J26 -> 0 | M26: 0.15
B27: Drainage Items | H27: ='Unit Prices'!H21 -> 0 | I27: 0.2 | J27: =H27*I27 -> 0 | K27: =H27+J27 -> 0 | M27: 0.15
B28: Pavement Items | H28: ='Unit Prices'!H33 -> 0 | I28: 0.2 | J28: 0 | K28: =H28+J28 -> 0 | M28: 0.15
B29: Roadway Incidentals | H29: ='Unit Prices'!H62 -> 0 | I29: 0.2 | J29: 0 | K29: 0 | M29: 0.15
B30: Bridge Items | H30: ='Unit Prices'!H98 -> 0 | I30: 0.2 | J30: 0 | K30: 0 | M30: 0.15
B31: Temp. Traffic & Construction | H31: ='Unit Prices'!H114 -> 0 | I31: 0.2 | J31: 0 | K31: 0 | M31: 0.15
B32: Planting Items | H32: ='Unit Prices'!H138 -> 0 | I32: 0.2 | J32: 0 | K32: 0 | M32: 0.15
B33: Traffic Control Devices | H33: ='Unit Prices'!H154 -> 0 | I33: 0.2 | J33: 0 | K33: 0 | M33: 0.15
B34: Utility Items | H34: ='Unit Prices'!H169 -> 0 | I34: 0.2 | J34: 0 | K34: 0 | M34: 0.15
B35: Environmental Items | H35: ='Unit Prices'!H179 -> 0 | I35: 0.2 | J35: 0 | K35: 0 | M35: 0.15
B36: NON-BID
B37: Non-Bid Items | H37: ='Unit Prices'!H190 -> 0 | I37: 0.2 | J37: =H37*I37 -> 0 | K37: =H37+J37 -> 0 | M37: 0.15
B40: Follow these steps:
B41: 1. Enable macros & active content.
B42: 2. Enter project information on this tab.
B43: 2. Fill out Quantity Calculations tab. Document
B44: assumptions and risks. Enter custom pay
B45: quantities as need for each section.
B46: 3. Fill out Unit Prices tab and document price
B47: sources. Use Culpeper Unit Cost Norms only for
B48: typical Culpeper intersection improvement
B49: projects for pay items with similar quantities.
B50: 4. After entering unit prices, review all % based
B51: estimates again on the Quantity Calc's tab.
B52: 5. Review this tab again and enter contingencies
B53: based on risk and the estimate quality.
B54: 6. If using multiple workbooks for different areas
B55: of the project, enter bid sub-totals in the main
B56: book. Verify CEI and other contract items.
B57: 7. Review entire estimate for completion and
B58: accuracy. Preferably by another person.

Sheet Quantity Calculations
B1: Quantity Calculations | F1: ='CN Estimate Tool'!F4 -> Rev: 6/5/2023
G2: Update Workbook:
C3: ='CN Estimate Tool'!B7 -> 0 | D3: =IF(NOT('CN Estimate Tool'!C10=0),'CN Estimate Tool'!C10,"") -> 
C4: =IF(NOT('CN Estimate Tool'!C9=0),'CN Estimate Tool'!C9,"") ->  | D4: =IF(NOT('CN Estimate Tool'!C12=0),'CN Estimate Tool'!C12,"") -> 
C6: EARTHWORK ITEMS
C8: EARTHWORK TYPICAL SECTIONS | L8: QUANTITY CALCULATIONS | AD8: HALF SECTION AREAS BY CASE
C9: Description | D9: Case | E9: Location | F9: Section | G9: Drainage | H9: Length | I9: Width | J9: Depth | K9: Slope | L9: Cut Area | M9: Fill Area | N9: RMC Area | O9: RMF Area | P9: Cut Vol | Q9: Fill Vol | R9: RMC Vol | S9: RMF Vol | T9: GR Length | U9: GR Term | V9: Ret Wall | W9: RM-2 | X9: RM-3 | Y9: RW Exc | Z9: Por B.F. | AA9: Unsuit. | AB9: Slp Prot. | AD9: Multiply | AE9: New Fill | AF9: New Fill | AG9: New Fill | AH9: New Fill | AI9: Wide Fill | AJ9: Wide Fill | AK9: Wide Fill | AL9: Wide Fill | AM9: New Cut | AN9: New Cut | AO9: New Cut | AP9: New Cut | AQ9: Wide Cut | AR9: Wide Cut | AS9: Wide Cut | AT9: Wide Cut | AU9: Slope # | AV9: Ditch Size | AW9: Adj Wid. | AX9: Wall Len. | AY9: Slope # - | AZ9: S.P. Wid | BA9: Ret Wall | BB9: RM-2 | BC9: RM-3 | BD9: RW Exc | BE9: Por B.F. | BF9: GR Wrnt
H10: FT | I10: (W) | J10: (D) | K10: (G:1) | L10: SF | M10: SF | N10: SF | O10: SF | P10: CY | Q10: CY | R10: CY | S10: CY | T10: LF | V10: SF | W10: CF | X10: CF | Y10: CF | Z10: CF | AA10: CY | AB10: SF | AD10: x | AE10: Cut | AF10: Fill | AG10: RM Cut | AH10: RM Fill | AI10: Cut | AJ10: Fill | AK10: RM Cut | AL10: RM Fill | AM10: Cut | AN10: Fill | AO10: RM Cut | AP10: RM Fill | AQ10: Cut | AR10: Fill | AS10: RM Cut | AT10: RM Fill | AU10: # | AV10: SF/LF | AW10: LF | AX10: LF | AY10: # | AZ10: LF | BA10: VF | BB10: SF | BC10: SF | BD10: SF | BE10: CF | BF10: ?
L11: =IF($D11=FormData!$H$2,AE11,IF($D11=FormData!$H$3,AI11,IF($D11=FormData!$H$4,AM11,IF($D11=FormData!$H$5,AQ11,0))))*AD11 -> 0 | M11: =IF($D11=FormData!$H$2,AF11,IF($D11=FormData!$H$3,AJ11,IF($D11=FormData!$H$4,AN11,IF($D11=FormData!$H$5,AR11,0))))*AD11 -> 0 | N11: =IF($D11=FormData!$H$2,AG11,IF($D11=FormData!$H$3,AK11,IF($D11=FormData!$H$4,AO11,IF($D11=FormData!$H$5,AS11,0))))*AD11 -> 0 | O11: =IF($D11=FormData!$H$2,AH11,IF($D11=FormData!$H$3,AL11,IF($D11=FormData!$H$4,AP11,IF($D11=FormData!$H$5,AT11,0))))*AD11 -> 0 | P11: =IF($E11="Start",0,IF(OR($E11="Middle",$E11="End"),(L11+L10)*$H11/27/2,L11*$H11/27)) -> 0 | Q11: =IF($E11="Start",0,IF(OR($E11="Middle",$E11="End"),(M11+M10)*$H11/27/2,M11*$H11/27)) -> 0 | R11: =IF($E11="Start",0,IF(OR($E11="Middle",$E11="End"),(N11+N10)*$H11/27/2,N11*$H11/27)) -> 0 | S11: =IF($E11="Start",0,IF(OR($E11="Middle",$E11="End"),(O11+O10)*$H11/27/2,O11*$H11/27)) -> 0 | T11: =IF(E11="Average",BF11*H11,IF(OR(E11="Start",E11=""),0,(BF11+BF10)*H11/2)) -> 0 | U11: =IF(E11="Average",BF11*2,OR(E11="Start",E11="End")*BF11+IF(OR(E11="End",E11="Middle"),ABS(BF11-BF10),0)) -> 0 | V11: =$H11*IF($E11="Start",0,IF($E11="Average",BA11,IF($E11="",0,(BA10+BA11)/2))) -> 0 | W11: =$H11*IF($E11="Start",0,IF($E11="Average",BB11,IF($E11="",0,(BB10+BB11)/2))) -> 0 | X11: =$H11*IF($E11="Start",0,IF($E11="Average",BC11,IF($E11="",0,(BC10+BC11)/2))) -> 0 | Y11: =$H11*IF($E11="Start",0,IF($E11="Average",BD11,IF($E11="",0,(BD10+BD11)/2))) -> 0 | Z11: =$H11*IF($E11="Start",0,IF($E11="Average",BE11,IF($E11="",0,(BE10+BE11)/2))) -> 0 | AA11: =IF(E11="Start",0,IF(OR(E11="Middle",E11="End"),(I11+I10)/2,I11))*1*H11/27 -> 0 | AB11: =$H11*IF($E11="Start",0,IF($E11="Average",AZ11,IF($E11="",0,(AZ10+AZ11)/2))) -> 0 | AD11: =IF(F11="Half Sect", 1, 2) -> 2 | AE11: =IF(K11="Ret. Wall", 0, IF(AU11=4, 16, 12)) -> 16 | AF11: =J11*AW11+0.5*J11^2*AU11-$E$121*0.5*AW11/12 -> 0 | AG11: =AE11*0.75 -> 12 | AH11: =AW11 -> 0 | AI11: =IF(K11="Ret. Wall", 0, IF(AU11=4, 16, 12)) -> 16 | AJ11: =J11*AW11+0.5*J11^2*AU11-$E$121*0.5*AW11/12-0.5*(J11-1)^2*2 -> -1 | AK11: =AI11*0.75 -> 12 | AL11: =AW11+4 -> 4 | AM11: =J11*AW11+AV11+AV11*J11+0.5*J11^2*AU11+$E$121*0.8*AW11/12 -> 16 | AN11: =0 -> 0 | AO11: =AW11+AV11+J11*AU11 -> 16 | AP11: =0 -> 0 | AQ11: =J11*AW11+AV11+AV11*J11+0.5*J11^2*AU11-6*J11-0.5*J11^2*2 -> 16 | AR11: =6 -> 6 | AS11: =(AW11-6)+AV11+J11*AU11 -> 10 | AT11: =8 -> 8 | AU11: =IF(K11="Ret. WALL", 0,IF(K11=0,4,VALUE(LEFT(K11,FIND(":",K11)-1)))) -> 4 | AV11: =IF(G11=0,16,VLOOKUP(G11,FormData!$J$2:$K$5,2,FALSE)) -> 16 | AW11: =I11/AD11 -> 0 | AX11: =IF(AND(K11="Ret. Wall",E11="Average"),H11*AD11,IF(OR(E11="Start",E11="",E11="Average"),0,H11*((K11="Ret. Wall")*AD11+(K10="Ret. Wall")*AD10)/2)) -> 0 | AY11: =AU11*IF(OR(D11="Widen Cut", D11="New Cut"),-1,1) -> 4 | AZ11: =IF(K11="1.5:1",SQRT((J11*AU11)^2+J11^2)*AD11,0) -> 0 | BA11: =IF(K11="Ret. Wall",J11,0)*AD11 -> 0 | BB11: =IF(OR(D11="New Cut", D11="Widen Cut"),IF(K11="Ret. Wall",(1*(J11+1.5)+MAX((0.4*(J11+1.5)-1)*(J11+1.5)/2,0)+0.625)*AD11,0),0) -> 0 | BC11: =IF(OR(D11="New Fill", D11="Widen Fill"),IF(K11="Ret. Wall",(1*(J11+1.5)+MAX((0.6*(J11+1.5)-1)*(J11+1.5)/2,0)+0.625)*AD11,0),0) -> 0 | BD11: =IF(OR(D11="New Cut", D11="Widen Cut"),IF(K11="Ret. Wall",((0.4*(J11+1.5)+1.5)*(J11+1.5)+3)*AD11,0),0) -> 0 | BE11: =IF(K11="Ret. Wall",(J11-0.5)*1*AD11,0) -> 0 | BF11: =AND(OR((J11>7),AND(K11="Ret. Wall",J11>1)),OR(D11="Widen Fill",D11="New Fill"),AU11<4)*AD11 -> 0
L12: =IF($D12=FormData!$H$2,AE12,IF($D12=FormData!$H$3,AI12,IF($D12=FormData!$H$4,AM12,IF($D12=FormData!$H$5,AQ12,0))))*AD12 -> 0 | M12: =IF($D12=FormData!$H$2,AF12,IF($D12=FormData!$H$3,AJ12,IF($D12=FormData!$H$4,AN12,IF($D12=FormData!$H$5,AR12,0))))*AD12 -> 0 | N12: =IF($D12=FormData!$H$2,AG12,IF($D12=FormData!$H$3,AK12,IF($D12=FormData!$H$4,AO12,IF($D12=FormData!$H$5,AS12,0))))*AD12 -> 0 | O12: =IF($D12=FormData!$H$2,AH12,IF($D12=FormData!$H$3,AL12,IF($D12=FormData!$H$4,AP12,IF($D12=FormData!$H$5,AT12,0))))*AD12 -> 0 | P12: =IF($E12="Start",0,IF(OR($E12="Middle",$E12="End"),(L12+L11)*$H12/27/2,L12*$H12/27)) -> 0 | Q12: =IF($E12="Start",0,IF(OR($E12="Middle",$E12="End"),(M12+M11)*$H12/27/2,M12*$H12/27)) -> 0 | R12: =IF($E12="Start",0,IF(OR($E12="Middle",$E12="End"),(N12+N11)*$H12/27/2,N12*$H12/27)) -> 0 | S12: =IF($E12="Start",0,IF(OR($E12="Middle",$E12="End"),(O12+O11)*$H12/27/2,O12*$H12/27)) -> 0 | T12: =IF(E12="Average",BF12*H12,IF(OR(E12="Start",E12=""),0,(BF12+BF11)*H12/2)) -> 0 | U12: =IF(E12="Average",BF12*2,OR(E12="Start",E12="End")*BF12+IF(OR(E12="End",E12="Middle"),ABS(BF12-BF11),0)) -> 0 | V12: =$H12*IF($E12="Start",0,IF($E12="Average",BA12,IF($E12="",0,(BA11+BA12)/2))) -> 0 | W12: =$H12*IF($E12="Start",0,IF($E12="Average",BB12,IF($E12="",0,(BB11+BB12)/2))) -> 0 | X12: =$H12*IF($E12="Start",0,IF($E12="Average",BC12,IF($E12="",0,(BC11+BC12)/2))) -> 0 | Y12: =$H12*IF($E12="Start",0,IF($E12="Average",BD12,IF($E12="",0,(BD11+BD12)/2))) -> 0 | Z12: =$H12*IF($E12="Start",0,IF($E12="Average",BE12,IF($E12="",0,(BE11+BE12)/2))) -> 0 | AA12: 0 | AB12: =$H12*IF($E12="Start",0,IF($E12="Average",AZ12,IF($E12="",0,(AZ11+AZ12)/2))) -> 0 | AD12: 2 | AE12: 16 | AF12: 0 | AG12: =AE12*0.75 -> 12 | AH12: =AW12 -> 0 | AI12: 16 | AJ12: -1 | AK12: =AI12*0.75 -> 12 | AL12: =AW12+4 -> 4 | AM12: 16 | AN12: =0 -> 0 | AO12: 16 | AP12: =0 -> 0 | AQ12: 16 | AR12: =6 -> 6 | AS12: 10 | AT12: =8 -> 8 | AU12: 4 | AV12: =IF(G12=0,16,VLOOKUP(G12,FormData!$J$2:$K$5,2,FALSE)) -> 16 | AW12: =I12/AD12 -> 0 | AX12: =IF(AND(K12="Ret. Wall",E12="Average"),H12*AD12,IF(OR(E12="Start",E12="",E12="Average"),0,H12*((K12="Ret. Wall")*AD12+(K11="Ret. Wall")*AD11)/2)) -> 0 | AY12: 4 | AZ12: 0 | BA12: 0 | BB12: 0 | BC12: 0 | BD12: 0 | BE12: 0 | BF12: 0
L13: =IF($D13=FormData!$H$2,AE13,IF($D13=FormData!$H$3,AI13,IF($D13=FormData!$H$4,AM13,IF($D13=FormData!$H$5,AQ13,0))))*AD13 -> 0 | M13: =IF($D13=FormData!$H$2,AF13,IF($D13=FormData!$H$3,AJ13,IF($D13=FormData!$H$4,AN13,IF($D13=FormData!$H$5,AR13,0))))*AD13 -> 0 | N13: =IF($D13=FormData!$H$2,AG13,IF($D13=FormData!$H$3,AK13,IF($D13=FormData!$H$4,AO13,IF($D13=FormData!$H$5,AS13,0))))*AD13 -> 0 | O13: =IF($D13=FormData!$H$2,AH13,IF($D13=FormData!$H$3,AL13,IF($D13=FormData!$H$4,AP13,IF($D13=FormData!$H$5,AT13,0))))*AD13 -> 0 | P13: 0 | Q13: 0 | R13: 0 | S13: 0 | T13: 0 | U13: 0 | V13: 0 | W13: 0 | X13: 0 | Y13: 0 | Z13: 0 | AA13: 0 | AB13: 0 | AD13: 2 | AE13: 16 | AF13: 0 | AG13: 12 | AH13: 0 | AI13: 16 | AJ13: -1 | AK13: 12 | AL13: 4 | AM13: 16 | AN13: =0 -> 0 | AO13: 16 | AP13: =0 -> 0 | AQ13: 16 | AR13: =6 -> 6 | AS13: 10 | AT13: =8 -> 8 | AU13: 4 | AV13: =IF(G13=0,16,VLOOKUP(G13,FormData!$J$2:$K$5,2,FALSE)) -> 16 | AW13: =I13/AD13 -> 0 | AX13: 0 | AY13: 4 | AZ13: 0 | BA13: 0 | BB13: 0 | BC13: 0 | BD13: 0 | BE13: 0 | BF13: 0
L14: =IF($D14=FormData!$H$2,AE14,IF($D14=FormData!$H$3,AI14,IF($D14=FormData!$H$4,AM14,IF($D14=FormData!$H$5,AQ14,0))))*AD14 -> 0 | M14: =IF($D14=FormData!$H$2,AF14,IF($D14=FormData!$H$3,AJ14,IF($D14=FormData!$H$4,AN14,IF($D14=FormData!$H$5,AR14,0))))*AD14 -> 0 | N14: =IF($D14=FormData!$H$2,AG14,IF($D14=FormData!$H$3,AK14,IF($D14=FormData!$H$4,AO14,IF($D14=FormData!$H$5,AS14,0))))*AD14 -> 0 | O14: =IF($D14=FormData!$H$2,AH14,IF($D14=FormData!$H$3,AL14,IF($D14=FormData!$H$4,AP14,IF($D14=FormData!$H$5,AT14,0))))*AD14 -> 0 | P14: 0 | Q14: 0 | R14: 0 | S14: 0 | T14: 0 | U14: 0 | V14: 0 | W14: 0 | X14: 0 | Y14: 0 | Z14: 0 | AA14: 0 | AB14: 0 | AD14: 2 | AE14: 16 | AF14: 0 | AG14: 12 | AH14: 0 | AI14: 16 | AJ14: -1 | AK14: 12 | AL14: 4 | AM14: 16 | AN14: =0 -> 0 | AO14: 16 | AP14: =0 -> 0 | AQ14: 16 | AR14: =6 -> 6 | AS14: 10 | AT14: =8 -> 8 | AU14: 4 | AV14: =IF(G14=0,16,VLOOKUP(G14,FormData!$J$2:$K$5,2,FALSE)) -> 16 | AW14: 0 | AX14: 0 | AY14: 4 | AZ14: 0 | BA14: 0 | BB14: 0 | BC14: 0 | BD14: 0 | BE14: 0 | BF14: 0
L15: =IF($D15=FormData!$H$2,AE15,IF($D15=FormData!$H$3,AI15,IF($D15=FormData!$H$4,AM15,IF($D15=FormData!$H$5,AQ15,0))))*AD15 -> 0 | M15: =IF($D15=FormData!$H$2,AF15,IF($D15=FormData!$H$3,AJ15,IF($D15=FormData!$H$4,AN15,IF($D15=FormData!$H$5,AR15,0))))*AD15 -> 0 | N15: =IF($D15=FormData!$H$2,AG15,IF($D15=FormData!$H$3,AK15,IF($D15=FormData!$H$4,AO15,IF($D15=FormData!$H$5,AS15,0))))*AD15 -> 0 | O15: =IF($D15=FormData!$H$2,AH15,IF($D15=FormData!$H$3,AL15,IF($D15=FormData!$H$4,AP15,IF($D15=FormData!$H$5,AT15,0))))*AD15 -> 0 | P15: 0 | Q15: 0 | R15: 0 | S15: 0 | T15: 0 | U15: 0 | V15: 0 | W15: 0 | X15: 0 | Y15: 0 | Z15: 0 | AA15: 0 | AB15: 0 | AD15: 2 | AE15: 16 | AF15: 0 | AG15: 12 | AH15: 0 | AI15: 16 | AJ15: -1 | AK15: 12 | AL15: 4 | AM15: 16 | AN15: =0 -> 0 | AO15: 16 | AP15: =0 -> 0 | AQ15: 16 | AR15: =6 -> 6 | AS15: 10 | AT15: =8 -> 8 | AU15: 4 | AV15: =IF(G15=0,16,VLOOKUP(G15,FormData!$J$2:$K$5,2,FALSE)) -> 16 | AW15: 0 | AX15: 0 | AY15: 4 | AZ15: 0 | BA15: 0 | BB15: 0 | BC15: 0 | BD15: 0 | BE15: 0 | BF15: 0
L16: =IF($D16=FormData!$H$2,AE16,IF($D16=FormData!$H$3,AI16,IF($D16=FormData!$H$4,AM16,IF($D16=FormData!$H$5,AQ16,0))))*AD16 -> 0 | M16: =IF($D16=FormData!$H$2,AF16,IF($D16=FormData!$H$3,AJ16,IF($D16=FormData!$H$4,AN16,IF($D16=FormData!$H$5,AR16,0))))*AD16 -> 0 | N16: =IF($D16=FormData!$H$2,AG16,IF($D16=FormData!$H$3,AK16,IF($D16=FormData!$H$4,AO16,IF($D16=FormData!$H$5,AS16,0))))*AD16 -> 0 | O16: =IF($D16=FormData!$H$2,AH16,IF($D16=FormData!$H$3,AL16,IF($D16=FormData!$H$4,AP16,IF($D16=FormData!$H$5,AT16,0))))*AD16 -> 0 | P16: 0 | Q16: 0 | R16: 0 | S16: 0 | T16: 0 | U16: 0 | V16: 0 | W16: 0 | X16: 0 | Y16: 0 | Z16: 0 | AA16: 0 | AB16: 0 | AD16: 2 | AE16: 16 | AF16: 0 | AG16: 12 | AH16: 0 | AI16: 16 | AJ16: -1 | AK16: 12 | AL16: 4 | AM16: 16 | AN16: =0 -> 0 | AO16: 16 | AP16: =0 -> 0 | AQ16: 16 | AR16: =6 -> 6 | AS16: 10 | AT16: =8 -> 8 | AU16: 4 | AV16: =IF(G16=0,16,VLOOKUP(G16,FormData!$J$2:$K$5,2,FALSE)) -> 16 | AW16: 0 | AX16: 0 | AY16: 4 | AZ16: 0 | BA16: 0 | BB16: 0 | BC16: 0 | BD16: 0 | BE16: 0 | BF16: 0
L17: =IF($D17=FormData!$H$2,AE17,IF($D17=FormData!$H$3,AI17,IF($D17=FormData!$H$4,AM17,IF($D17=FormData!$H$5,AQ17,0))))*AD17 -> 0 | M17: =IF($D17=FormData!$H$2,AF17,IF($D17=FormData!$H$3,AJ17,IF($D17=FormData!$H$4,AN17,IF($D17=FormData!$H$5,AR17,0))))*AD17 -> 0 | N17: =IF($D17=FormData!$H$2,AG17,IF($D17=FormData!$H$3,AK17,IF($D17=FormData!$H$4,AO17,IF($D17=FormData!$H$5,AS17,0))))*AD17 -> 0 | O17: =IF($D17=FormData!$H$2,AH17,IF($D17=FormData!$H$3,AL17,IF($D17=FormData!$H$4,AP17,IF($D17=FormData!$H$5,AT17,0))))*AD17 -> 0 | P17: 0 | Q17: 0 | R17: 0 | S17: 0 | T17: 0 | U17: 0 | V17: 0 | W17: 0 | X17: 0 | Y17: 0 | Z17: 0 | AA17: 0 | AB17: 0 | AD17: 2 | AE17: 16 | AF17: 0 | AG17: 12 | AH17: 0 | AI17: 16 | AJ17: -1 | AK17: 12 | AL17: 4 | AM17: 16 | AN17: =0 -> 0 | AO17: 16 | AP17: =0 -> 0 | AQ17: 16 | AR17: =6 -> 6 | AS17: 10 | AT17: =8 -> 8 | AU17: 4 | AV17: =IF(G17=0,16,VLOOKUP(G17,FormData!$J$2:$K$5,2,FALSE)) -> 16 | AW17: 0 | AX17: 0 | AY17: 4 | AZ17: 0 | BA17: 0 | BB17: 0 | BC17: 0 | BD17: 0 | BE17: 0 | BF17: 0
L18: =IF($D18=FormData!$H$2,AE18,IF($D18=FormData!$H$3,AI18,IF($D18=FormData!$H$4,AM18,IF($D18=FormData!$H$5,AQ18,0))))*AD18 -> 0 | M18: =IF($D18=FormData!$H$2,AF18,IF($D18=FormData!$H$3,AJ18,IF($D18=FormData!$H$4,AN18,IF($D18=FormData!$H$5,AR18,0))))*AD18 -> 0 | N18: =IF($D18=FormData!$H$2,AG18,IF($D18=FormData!$H$3,AK18,IF($D18=FormData!$H$4,AO18,IF($D18=FormData!$H$5,AS18,0))))*AD18 -> 0 | O18: =IF($D18=FormData!$H$2,AH18,IF($D18=FormData!$H$3,AL18,IF($D18=FormData!$H$4,AP18,IF($D18=FormData!$H$5,AT18,0))))*AD18 -> 0 | P18: 0 | Q18: 0 | R18: 0 | S18: 0 | T18: 0 | U18: 0 | V18: 0 | W18: 0 | X18: 0 | Y18: 0 | Z18: 0 | AA18: 0 | AB18: 0 | AD18: 2 | AE18: 16 | AF18: 0 | AG18: 12 | AH18: 0 | AI18: 16 | AJ18: -1 | AK18: 12 | AL18: 4 | AM18: 16 | AN18: =0 -> 0 | AO18: 16 | AP18: =0 -> 0 | AQ18: 16 | AR18: =6 -> 6 | AS18: 10 | AT18: =8 -> 8 | AU18: 4 | AV18: =IF(G18=0,16,VLOOKUP(G18,FormData!$J$2:$K$5,2,FALSE)) -> 16 | AW18: 0 | AX18: 0 | AY18: 4 | AZ18: 0 | BA18: 0 | BB18: 0 | BC18: 0 | BD18: 0 | BE18: 0 | BF18: 0
L19: =IF($D19=FormData!$H$2,AE19,IF($D19=FormData!$H$3,AI19,IF($D19=FormData!$H$4,AM19,IF($D19=FormData!$H$5,AQ19,0))))*AD19 -> 0 | M19: =IF($D19=FormData!$H$2,AF19,IF($D19=FormData!$H$3,AJ19,IF($D19=FormData!$H$4,AN19,IF($D19=FormData!$H$5,AR19,0))))*AD19 -> 0 | N19: =IF($D19=FormData!$H$2,AG19,IF($D19=FormData!$H$3,AK19,IF($D19=FormData!$H$4,AO19,IF($D19=FormData!$H$5,AS19,0))))*AD19 -> 0 | O19: =IF($D19=FormData!$H$2,AH19,IF($D19=FormData!$H$3,AL19,IF($D19=FormData!$H$4,AP19,IF($D19=FormData!$H$5,AT19,0))))*AD19 -> 0 | P19: 0 | Q19: 0 | R19: 0 | S19: 0 | T19: 0 | U19: 0 | V19: 0 | W19: 0 | X19: 0 | Y19: 0 | Z19: 0 | AA19: 0 | AB19: 0 | AD19: 2 | AE19: 16 | AF19: 0 | AG19: 12 | AH19: 0 | AI19: 16 | AJ19: -1 | AK19: 12 | AL19: 4 | AM19: 16 | AN19: =0 -> 0 | AO19: 16 | AP19: =0 -> 0 | AQ19: 16 | AR19: =6 -> 6 | AS19: 10 | AT19: =8 -> 8 | AU19: 4 | AV19: =IF(G19=0,16,VLOOKUP(G19,FormData!$J$2:$K$5,2,FALSE)) -> 16 | AW19: 0 | AX19: 0 | AY19: 4 | AZ19: 0 | BA19: 0 | BB19: 0 | BC19: 0 | BD19: 0 | BE19: 0 | BF19: 0
L20: =IF($D20=FormData!$H$2,AE20,IF($D20=FormData!$H$3,AI20,IF($D20=FormData!$H$4,AM20,IF($D20=FormData!$H$5,AQ20,0))))*AD20 -> 0 | M20: =IF($D20=FormData!$H$2,AF20,IF($D20=FormData!$H$3,AJ20,IF($D20=FormData!$H$4,AN20,IF($D20=FormData!$H$5,AR20,0))))*AD20 -> 0 | N20: =IF($D20=FormData!$H$2,AG20,IF($D20=FormData!$H$3,AK20,IF($D20=FormData!$H$4,AO20,IF($D20=FormData!$H$5,AS20,0))))*AD20 -> 0 | O20: =IF($D20=FormData!$H$2,AH20,IF($D20=FormData!$H$3,AL20,IF($D20=FormData!$H$4,AP20,IF($D20=FormData!$H$5,AT20,0))))*AD20 -> 0 | P20: =IF($E20="Start",0,IF(OR($E20="Middle",$E20="End"),(L20+L19)*$H20/27/2,L20*$H20/27)) -> 0 | Q20: =IF($E20="Start",0,IF(OR($E20="Middle",$E20="End"),(M20+M19)*$H20/27/2,M20*$H20/27)) -> 0 | R20: =IF($E20="Start",0,IF(OR($E20="Middle",$E20="End"),(N20+N19)*$H20/27/2,N20*$H20/27)) -> 0 | S20: =IF($E20="Start",0,IF(OR($E20="Middle",$E20="End"),(O20+O19)*$H20/27/2,O20*$H20/27)) -> 0 | T20: =IF(E20="Average",BF20*H20,IF(OR(E20="Start",E20=""),0,(BF20+BF19)*H20/2)) -> 0 | U20: =IF(E20="Average",BF20*2,OR(E20="Start",E20="End")*BF20+IF(OR(E20="End",E20="Middle"),ABS(BF20-BF19),0)) -> 0 | V20: =$H20*IF($E20="Start",0,IF($E20="Average",BA20,IF($E20="",0,(BA19+BA20)/2))) -> 0 | W20: =$H20*IF($E20="Start",0,IF($E20="Average",BB20,IF($E20="",0,(BB19+BB20)/2))) -> 0 | X20: =$H20*IF($E20="Start",0,IF($E20="Average",BC20,IF($E20="",0,(BC19+BC20)/2))) -> 0 | Y20: =$H20*IF($E20="Start",0,IF($E20="Average",BD20,IF($E20="",0,(BD19+BD20)/2))) -> 0 | Z20: =$H20*IF($E20="Start",0,IF($E20="Average",BE20,IF($E20="",0,(BE19+BE20)/2))) -> 0 | AA20: =IF(E20="Start",0,IF(OR(E20="Middle",E20="End"),(I20+I19)/2,I20))*1*H20/27 -> 0 | AB20: =$H20*IF($E20="Start",0,IF($E20="Average",AZ20,IF($E20="",0,(AZ19+AZ20)/2))) -> 0 | AD20: =IF(F20="Half Sect", 1, 2) -> 2 | AE20: =IF(K20="Ret. Wall", 0, IF(AU20=4, 16, 12)) -> 16 | AF20: 0 | AG20: =AE20*0.75 -> 12 | AH20: =AW20 -> 0 | AI20: =IF(K20="Ret. Wall", 0, IF(AU20=4, 16, 12)) -> 16 | AJ20: -1 | AK20: =AI20*0.75 -> 12 | AL20: =AW20+4 -> 4 | AM20: 16 | AN20: =0 -> 0 | AO20: =AW20+AV20+J20*AU20 -> 16 | AP20: =0 -> 0 | AQ20: =J20*AW20+AV20+AV20*J20+0.5*J20^2*AU20-6*J20-0.5*J20^2*2 -> 16 | AR20: =6 -> 6 | AS20: =(AW20-6)+AV20+J20*AU20 -> 10 | AT20: =8 -> 8 | AU20: =IF(K20="Ret. WALL", 0,IF(K20=0,4,VALUE(LEFT(K20,FIND(":",K20)-1)))) -> 4 | AV20: =IF(G20=0,16,VLOOKUP(G20,FormData!$J$2:$K$5,2,FALSE)) -> 16 | AW20: =I20/AD20 -> 0 | AX20: 0 | AY20: =AU20*IF(OR(D20="Widen Cut", D20="New Cut"),-1,1) -> 4 | AZ20: =IF(K20="1.5:1",SQRT((J20*AU20)^2+J20^2)*AD20,0) -> 0 | BA20: =IF(K20="Ret. Wall",J20,0)*AD20 -> 0 | BB20: =IF(OR(D20="New Cut", D20="Widen Cut"),IF(K20="Ret. Wall",(1*(J20+1.5)+MAX((0.4*(J20+1.5)-1)*(J20+1.5)/2,0)+0.625)*AD20,0),0) -> 0 | BC20: =IF(OR(D20="New Fill", D20="Widen Fill"),IF(K20="Ret. Wall",(1*(J20+1.5)+MAX((0.6*(J20+1.5)-1)*(J20+1.5)/2,0)+0.625)*AD20,0),0) -> 0 | BD20: =IF(OR(D20="New Cut", D20="Widen Cut"),IF(K20="Ret. Wall",((0.4*(J20+1.5)+1.5)*(J20+1.5)+3)*AD20,0),0) -> 0 | BE20: =IF(K20="Ret. Wall",(J20-0.5)*1*AD20,0) -> 0 | BF20: =AND(OR((J20>7),AND(K20="Ret. Wall",J20>1)),OR(D20="Widen Fill",D20="New Fill"),AU20<4)*AD20 -> 0
L21: =IF($D21=FormData!$H$2,AE21,IF($D21=FormData!$H$3,AI21,IF($D21=FormData!$H$4,AM21,IF($D21=FormData!$H$5,AQ21,0))))*AD21 -> 0 | M21: =IF($D21=FormData!$H$2,AF21,IF($D21=FormData!$H$3,AJ21,IF($D21=FormData!$H$4,AN21,IF($D21=FormData!$H$5,AR21,0))))*AD21 -> 0 | N21: =IF($D21=FormData!$H$2,AG21,IF($D21=FormData!$H$3,AK21,IF($D21=FormData!$H$4,AO21,IF($D21=FormData!$H$5,AS21,0))))*AD21 -> 0 | O21: =IF($D21=FormData!$H$2,AH21,IF($D21=FormData!$H$3,AL21,IF($D21=FormData!$H$4,AP21,IF($D21=FormData!$H$5,AT21,0))))*AD21 -> 0 | P21: 0 | Q21: 0 | R21: 0 | S21: 0 | T21: 0 | U21: 0 | V21: 0 | W21: 0 | X21: 0 | Y21: 0 | Z21: 0 | AA21: 0 | AB21: 0 | AD21: 2 | AE21: 16 | AF21: 0 | AG21: 12 | AH21: 0 | AI21: 16 | AJ21: -1 | AK21: 12 | AL21: 4 | AM21: 16 | AN21: =0 -> 0 | AO21: 16 | AP21: =0 -> 0 | AQ21: 16 | AR21: =6 -> 6 | AS21: 10 | AT21: =8 -> 8 | AU21: 4 | AV21: =IF(G21=0,16,VLOOKUP(G21,FormData!$J$2:$K$5,2,FALSE)) -> 16 | AW21: 0 | AX21: 0 | AY21: 4 | AZ21: 0 | BA21: 0 | BB21: 0 | BC21: 0 | BD21: 0 | BE21: 0 | BF21: 0
L22: =IF($D22=FormData!$H$2,AE22,IF($D22=FormData!$H$3,AI22,IF($D22=FormData!$H$4,AM22,IF($D22=FormData!$H$5,AQ22,0))))*AD22 -> 0 | M22: =IF($D22=FormData!$H$2,AF22,IF($D22=FormData!$H$3,AJ22,IF($D22=FormData!$H$4,AN22,IF($D22=FormData!$H$5,AR22,0))))*AD22 -> 0 | N22: =IF($D22=FormData!$H$2,AG22,IF($D22=FormData!$H$3,AK22,IF($D22=FormData!$H$4,AO22,IF($D22=FormData!$H$5,AS22,0))))*AD22 -> 0 | O22: =IF($D22=FormData!$H$2,AH22,IF($D22=FormData!$H$3,AL22,IF($D22=FormData!$H$4,AP22,IF($D22=FormData!$H$5,AT22,0))))*AD22 -> 0 | P22: 0 | Q22: 0 | R22: 0 | S22: 0 | T22: 0 | U22: 0 | V22: 0 | W22: 0 | X22: 0 | Y22: 0 | Z22: 0 | AA22: 0 | AB22: 0 | AD22: 2 | AE22: 16 | AF22: 0 | AG22: 12 | AH22: 0 | AI22: 16 | AJ22: -1 | AK22: 12 | AL22: 4 | AM22: 16 | AN22: =0 -> 0 | AO22: 16 | AP22: =0 -> 0 | AQ22: 16 | AR22: =6 -> 6 | AS22: 10 | AT22: =8 -> 8 | AU22: 4 | AV22: =IF(G22=0,16,VLOOKUP(G22,FormData!$J$2:$K$5,2,FALSE)) -> 16 | AW22: 0 | AX22: 0 | AY22: 4 | AZ22: 0 | BA22: 0 | BB22: 0 | BC22: 0 | BD22: 0 | BE22: 0 | BF22: 0
L23: =IF($D23=FormData!$H$2,AE23,IF($D23=FormData!$H$3,AI23,IF($D23=FormData!$H$4,AM23,IF($D23=FormData!$H$5,AQ23,0))))*AD23 -> 0 | M23: =IF($D23=FormData!$H$2,AF23,IF($D23=FormData!$H$3,AJ23,IF($D23=FormData!$H$4,AN23,IF($D23=FormData!$H$5,AR23,0))))*AD23 -> 0 | N23: =IF($D23=FormData!$H$2,AG23,IF($D23=FormData!$H$3,AK23,IF($D23=FormData!$H$4,AO23,IF($D23=FormData!$H$5,AS23,0))))*AD23 -> 0 | O23: =IF($D23=FormData!$H$2,AH23,IF($D23=FormData!$H$3,AL23,IF($D23=FormData!$H$4,AP23,IF($D23=FormData!$H$5,AT23,0))))*AD23 -> 0 | P23: 0 | Q23: 0 | R23: 0 | S23: 0 | T23: 0 | U23: 0 | V23: 0 | W23: 0 | X23: 0 | Y23: 0 | Z23: 0 | AA23: 0 | AB23: 0 | AD23: 2 | AE23: 16 | AF23: 0 | AG23: 12 | AH23: 0 | AI23: 16 | AJ23: -1 | AK23: 12 | AL23: 4 | AM23: 16 | AN23: =0 -> 0 | AO23: 16 | AP23: =0 -> 0 | AQ23: 16 | AR23: =6 -> 6 | AS23: 10 | AT23: =8 -> 8 | AU23: 4 | AV23: =IF(G23=0,16,VLOOKUP(G23,FormData!$J$2:$K$5,2,FALSE)) -> 16 | AW23: 0 | AX23: 0 | AY23: 4 | AZ23: 0 | BA23: 0 | BB23: 0 | BC23: 0 | BD23: 0 | BE23: 0 | BF23: 0
L24: =IF($D24=FormData!$H$2,AE24,IF($D24=FormData!$H$3,AI24,IF($D24=FormData!$H$4,AM24,IF($D24=FormData!$H$5,AQ24,0))))*AD24 -> 0 | M24: =IF($D24=FormData!$H$2,AF24,IF($D24=FormData!$H$3,AJ24,IF($D24=FormData!$H$4,AN24,IF($D24=FormData!$H$5,AR24,0))))*AD24 -> 0 | N24: =IF($D24=FormData!$H$2,AG24,IF($D24=FormData!$H$3,AK24,IF($D24=FormData!$H$4,AO24,IF($D24=FormData!$H$5,AS24,0))))*AD24 -> 0 | O24: =IF($D24=FormData!$H$2,AH24,IF($D24=FormData!$H$3,AL24,IF($D24=FormData!$H$4,AP24,IF($D24=FormData!$H$5,AT24,0))))*AD24 -> 0 | P24: 0 | Q24: 0 | R24: 0 | S24: 0 | T24: 0 | U24: 0 | V24: 0 | W24: 0 | X24: 0 | Y24: 0 | Z24: 0 | AA24: 0 | AB24: 0 | AD24: 2 | AE24: 16 | AF24: 0 | AG24: 12 | AH24: 0 | AI24: 16 | AJ24: -1 | AK24: 12 | AL24: 4 | AM24: 16 | AN24: =0 -> 0 | AO24: 16 | AP24: =0 -> 0 | AQ24: 16 | AR24: =6 -> 6 | AS24: 10 | AT24: =8 -> 8 | AU24: 4 | AV24: =IF(G24=0,16,VLOOKUP(G24,FormData!$J$2:$K$5,2,FALSE)) -> 16 | AW24: 0 | AX24: 0 | AY24: 4 | AZ24: 0 | BA24: 0 | BB24: 0 | BC24: 0 | BD24: 0 | BE24: 0 | BF24: 0
L25: =IF($D25=FormData!$H$2,AE25,IF($D25=FormData!$H$3,AI25,IF($D25=FormData!$H$4,AM25,IF($D25=FormData!$H$5,AQ25,0))))*AD25 -> 0 | M25: =IF($D25=FormData!$H$2,AF25,IF($D25=FormData!$H$3,AJ25,IF($D25=FormData!$H$4,AN25,IF($D25=FormData!$H$5,AR25,0))))*AD25 -> 0 | N25: =IF($D25=FormData!$H$2,AG25,IF($D25=FormData!$H$3,AK25,IF($D25=FormData!$H$4,AO25,IF($D25=FormData!$H$5,AS25,0))))*AD25 -> 0 | O25: =IF($D25=FormData!$H$2,AH25,IF($D25=FormData!$H$3,AL25,IF($D25=FormData!$H$4,AP25,IF($D25=FormData!$H$5,AT25,0))))*AD25 -> 0 | P25: 0 | Q25: 0 | R25: 0 | S25: 0 | T25: 0 | U25: 0 | V25: 0 | W25: 0 | X25: 0 | Y25: 0 | Z25: 0 | AA25: 0 | AB25: 0 | AD25: 2 | AE25: 16 | AF25: 0 | AG25: 12 | AH25: 0 | AI25: 16 | AJ25: -1 | AK25: 12 | AL25: 4 | AM25: 16 | AN25: =0 -> 0 | AO25: 16 | AP25: =0 -> 0 | AQ25: 16 | AR25: =6 -> 6 | AS25: 10 | AT25: =8 -> 8 | AU25: 4 | AV25: =IF(G25=0,16,VLOOKUP(G25,FormData!$J$2:$K$5,2,FALSE)) -> 16 | AW25: 0 | AX25: 0 | AY25: 4 | AZ25: 0 | BA25: 0 | BB25: 0 | BC25: 0 | BD25: 0 | BE25: 0 | BF25: 0
L26: =IF($D26=FormData!$H$2,AE26,IF($D26=FormData!$H$3,AI26,IF($D26=FormData!$H$4,AM26,IF($D26=FormData!$H$5,AQ26,0))))*AD26 -> 0 | M26: =IF($D26=FormData!$H$2,AF26,IF($D26=FormData!$H$3,AJ26,IF($D26=FormData!$H$4,AN26,IF($D26=FormData!$H$5,AR26,0))))*AD26 -> 0 | N26: =IF($D26=FormData!$H$2,AG26,IF($D26=FormData!$H$3,AK26,IF($D26=FormData!$H$4,AO26,IF($D26=FormData!$H$5,AS26,0))))*AD26 -> 0 | O26: =IF($D26=FormData!$H$2,AH26,IF($D26=FormData!$H$3,AL26,IF($D26=FormData!$H$4,AP26,IF($D26=FormData!$H$5,AT26,0))))*AD26 -> 0 | P26: 0 | Q26: 0 | R26: 0 | S26: 0 | T26: 0 | U26: 0 | V26: 0 | W26: 0 | X26: 0 | Y26: 0 | Z26: 0 | AA26: 0 | AB26: 0 | AD26: 2 | AE26: 16 | AF26: 0 | AG26: 12 | AH26: 0 | AI26: 16 | AJ26: -1 | AK26: 12 | AL26: 4 | AM26: 16 | AN26: =0 -> 0 | AO26: 16 | AP26: =0 -> 0 | AQ26: 16 | AR26: =6 -> 6 | AS26: 10 | AT26: =8 -> 8 | AU26: 4 | AV26: =IF(G26=0,16,VLOOKUP(G26,FormData!$J$2:$K$5,2,FALSE)) -> 16 | AW26: 0 | AX26: 0 | AY26: 4 | AZ26: 0 | BA26: 0 | BB26: 0 | BC26: 0 | BD26: 0 | BE26: 0 | BF26: 0
L27: =IF($D27=FormData!$H$2,AE27,IF($D27=FormData!$H$3,AI27,IF($D27=FormData!$H$4,AM27,IF($D27=FormData!$H$5,AQ27,0))))*AD27 -> 0 | M27: =IF($D27=FormData!$H$2,AF27,IF($D27=FormData!$H$3,AJ27,IF($D27=FormData!$H$4,AN27,IF($D27=FormData!$H$5,AR27,0))))*AD27 -> 0 | N27: =IF($D27=FormData!$H$2,AG27,IF($D27=FormData!$H$3,AK27,IF($D27=FormData!$H$4,AO27,IF($D27=FormData!$H$5,AS27,0))))*AD27 -> 0 | O27: =IF($D27=FormData!$H$2,AH27,IF($D27=FormData!$H$3,AL27,IF($D27=FormData!$H$4,AP27,IF($D27=FormData!$H$5,AT27,0))))*AD27 -> 0 | P27: 0 | Q27: 0 | R27: 0 | S27: 0 | T27: 0 | U27: 0 | V27: 0 | W27: 0 | X27: 0 | Y27: 0 | Z27: 0 | AA27: 0 | AB27: 0 | AD27: 2 | AE27: 16 | AF27: 0 | AG27: 12 | AH27: 0 | AI27: 16 | AJ27: -1 | AK27: 12 | AL27: 4 | AM27: 16 | AN27: =0 -> 0 | AO27: 16 | AP27: =0 -> 0 | AQ27: 16 | AR27: =6 -> 6 | AS27: 10 | AT27: =8 -> 8 | AU27: 4 | AV27: =IF(G27=0,16,VLOOKUP(G27,FormData!$J$2:$K$5,2,FALSE)) -> 16 | AW27: 0 | AX27: 0 | AY27: 4 | AZ27: 0 | BA27: 0 | BB27: 0 | BC27: 0 | BD27: 0 | BE27: 0 | BF27: 0
L28: =IF($D28=FormData!$H$2,AE28,IF($D28=FormData!$H$3,AI28,IF($D28=FormData!$H$4,AM28,IF($D28=FormData!$H$5,AQ28,0))))*AD28 -> 0 | M28: =IF($D28=FormData!$H$2,AF28,IF($D28=FormData!$H$3,AJ28,IF($D28=FormData!$H$4,AN28,IF($D28=FormData!$H$5,AR28,0))))*AD28 -> 0 | N28: =IF($D28=FormData!$H$2,AG28,IF($D28=FormData!$H$3,AK28,IF($D28=FormData!$H$4,AO28,IF($D28=FormData!$H$5,AS28,0))))*AD28 -> 0 | O28: =IF($D28=FormData!$H$2,AH28,IF($D28=FormData!$H$3,AL28,IF($D28=FormData!$H$4,AP28,IF($D28=FormData!$H$5,AT28,0))))*AD28 -> 0 | P28: 0 | Q28: 0 | R28: 0 | S28: 0 | T28: 0 | U28: 0 | V28: 0 | W28: 0 | X28: 0 | Y28: 0 | Z28: 0 | AA28: 0 | AB28: 0 | AD28: 2 | AE28: 16 | AF28: 0 | AG28: 12 | AH28: 0 | AI28: 16 | AJ28: -1 | AK28: 12 | AL28: 4 | AM28: 16 | AN28: =0 -> 0 | AO28: 16 | AP28: =0 -> 0 | AQ28: 16 | AR28: =6 -> 6 | AS28: 10 | AT28: =8 -> 8 | AU28: 4 | AV28: =IF(G28=0,16,VLOOKUP(G28,FormData!$J$2:$K$5,2,FALSE)) -> 16 | AW28: 0 | AX28: 0 | AY28: 4 | AZ28: 0 | BA28: 0 | BB28: 0 | BC28: 0 | BD28: 0 | BE28: 0 | BF28: 0
L29: =IF($D29=FormData!$H$2,AE29,IF($D29=FormData!$H$3,AI29,IF($D29=FormData!$H$4,AM29,IF($D29=FormData!$H$5,AQ29,0))))*AD29 -> 0 | M29: =IF($D29=FormData!$H$2,AF29,IF($D29=FormData!$H$3,AJ29,IF($D29=FormData!$H$4,AN29,IF($D29=FormData!$H$5,AR29,0))))*AD29 -> 0 | N29: =IF($D29=FormData!$H$2,AG29,IF($D29=FormData!$H$3,AK29,IF($D29=FormData!$H$4,AO29,IF($D29=FormData!$H$5,AS29,0))))*AD29 -> 0 | O29: =IF($D29=FormData!$H$2,AH29,IF($D29=FormData!$H$3,AL29,IF($D29=FormData!$H$4,AP29,IF($D29=FormData!$H$5,AT29,0))))*AD29 -> 0 | P29: 0 | Q29: 0 | R29: 0 | S29: 0 | T29: 0 | U29: 0 | V29: 0 | W29: 0 | X29: 0 | Y29: 0 | Z29: 0 | AA29: 0 | AB29: 0 | AD29: 2 | AE29: 16 | AF29: 0 | AG29: 12 | AH29: 0 | AI29: 16 | AJ29: -1 | AK29: 12 | AL29: 4 | AM29: 16 | AN29: =0 -> 0 | AO29: 16 | AP29: =0 -> 0 | AQ29: 16 | AR29: =6 -> 6 | AS29: 10 | AT29: =8 -> 8 | AU29: 4 | AV29: =IF(G29=0,16,VLOOKUP(G29,FormData!$J$2:$K$5,2,FALSE)) -> 16 | AW29: 0 | AX29: 0 | AY29: 4 | AZ29: 0 | BA29: 0 | BB29: 0 | BC29: 0 | BD29: 0 | BE29: 0 | BF29: 0
L30: =IF($D30=FormData!$H$2,AE30,IF($D30=FormData!$H$3,AI30,IF($D30=FormData!$H$4,AM30,IF($D30=FormData!$H$5,AQ30,0))))*AD30 -> 0 | M30: =IF($D30=FormData!$H$2,AF30,IF($D30=FormData!$H$3,AJ30,IF($D30=FormData!$H$4,AN30,IF($D30=FormData!$H$5,AR30,0))))*AD30 -> 0 | N30: =IF($D30=FormData!$H$2,AG30,IF($D30=FormData!$H$3,AK30,IF($D30=FormData!$H$4,AO30,IF($D30=FormData!$H$5,AS30,0))))*AD30 -> 0 | O30: =IF($D30=FormData!$H$2,AH30,IF($D30=FormData!$H$3,AL30,IF($D30=FormData!$H$4,AP30,IF($D30=FormData!$H$5,AT30,0))))*AD30 -> 0 | P30: 0 | Q30: 0 | R30: 0 | S30: 0 | T30: 0 | U30: 0 | V30: 0 | W30: 0 | X30: 0 | Y30: 0 | Z30: 0 | AA30: 0 | AB30: 0 | AD30: 2 | AE30: 16 | AF30: 0 | AG30: 12 | AH30: 0 | AI30: 16 | AJ30: -1 | AK30: 12 | AL30: 4 | AM30: 16 | AN30: =0 -> 0 | AO30: 16 | AP30: =0 -> 0 | AQ30: 16 | AR30: =6 -> 6 | AS30: 10 | AT30: =8 -> 8 | AU30: 4 | AV30: =IF(G30=0,16,VLOOKUP(G30,FormData!$J$2:$K$5,2,FALSE)) -> 16 | AW30: 0 | AX30: 0 | AY30: 4 | AZ30: 0 | BA30: 0 | BB30: 0 | BC30: 0 | BD30: 0 | BE30: 0 | BF30: 0
C31: TEMPORARY EARTHWORK SECTIONS | L31: x | M31: x | N31: x | O31: x | P31: x | Q31: x | R31: x | S31: x | T31: x | V31: x | W31: x | X31: x | Y31: x | Z31: x | AA31: x | AB31: x | AD31: x | AE31: x | AF31: x | AG31: x | AH31: x | AI31: x | AJ31: x | AK31: x | AL31: x | AM31: x | AN31: x | AO31: x | AP31: x | AQ31: x | AR31: x | AS31: x | AT31: x | AU31: x | AV31: x | AW31: x | AX31: x | AY31: x | AZ31: x | BA31: x | BB31: x | BC31: x | BD31: x | BE31: x | BF31: x
L32: =IF($D32=FormData!$H$2,AE32,IF($D32=FormData!$H$3,AI32,IF($D32=FormData!$H$4,AM32,IF($D32=FormData!$H$5,AQ32,0))))*AD32 -> 0 | M32: =IF($D32=FormData!$H$2,AF32,IF($D32=FormData!$H$3,AJ32,IF($D32=FormData!$H$4,AN32,IF($D32=FormData!$H$5,AR32,0))))*AD32 -> 0 | N32: =IF($D32=FormData!$H$2,AG32,IF($D32=FormData!$H$3,AK32,IF($D32=FormData!$H$4,AO32,IF($D32=FormData!$H$5,AS32,0))))*AD32 -> 0 | O32: =IF($D32=FormData!$H$2,AH32,IF($D32=FormData!$H$3,AL32,IF($D32=FormData!$H$4,AP32,IF($D32=FormData!$H$5,AT32,0))))*AD32 -> 0 | P32: =IF($E32="Start",0,IF(OR($E32="Middle",$E32="End"),(L32+L31)*$H32/27/2,L32*$H32/27)) -> 0 | Q32: 0 | R32: 0 | S32: 0 | T32: 0 | U32: 0 | V32: =$H32*IF($E32="Start",0,IF($E32="Average",BA32,IF($E32="",0,(BA31+BA32)/2))) -> 0 | W32: 0 | X32: 0 | Y32: 0 | Z32: 0 | AA32: =IF(E32="Start",0,IF(OR(E32="Middle",E32="End"),(I32+I31)/2,I32))*1*H32/27 -> 0 | AB32: 0 | AD32: =IF(F32="Half Sect", 1, 2) -> 2 | AE32: =IF(K32="Ret. Wall", 0, IF(AU32=4, 16, 12)) -> 16 | AF32: =J32*AW32+0.5*J32^2*AU32-$E$121*0.5*AW32/12 -> 0 | AG32: =AE32*0.75 -> 12 | AH32: =AW32 -> 0 | AI32: =IF(K32="Ret. Wall", 0, IF(AU32=4, 16, 12)) -> 16 | AJ32: =J32*AW32+0.5*J32^2*AU32-$E$121*0.5*AW32/12-0.5*(J32-1)^2*2 -> -1 | AK32: =AI32*0.75 -> 12 | AL32: =AW32+4 -> 4 | AM32: =J32*AW32+AV32+AV32*J32+0.5*J32^2*AU32+$E$121*0.8*AW32/12 -> 16 | AN32: =0 -> 0 | AO32: =AW32+AV32+J32*AU32 -> 16 | AP32: =0 -> 0 | AQ32: =J32*AW32+AV32+AV32*J32+0.5*J32^2*AU32-6*J32-0.5*J32^2*2 -> 16 | AR32: =6 -> 6 | AS32: =(AW32-6)+AV32+J32*AU32 -> 10 | AT32: =8 -> 8 | AU32: =IF(K32="Ret. WALL", 0,IF(K32=0,4,VALUE(LEFT(K32,FIND(":",K32)-1)))) -> 4 | AV32: =IF(G32=0,16,VLOOKUP(G32,FormData!$J$2:$K$5,2,FALSE)) -> 16 | AW32: =I32/AD32 -> 0 | AX32: 0 | AY32: =AU32*IF(OR(D32="Widen Cut", D32="New Cut"),-1,1) -> 4 | AZ32: =IF(K32="1.5:1",SQRT((J32*AU32)^2+J32^2)*AD32,0) -> 0 | BA32: =IF(K32="Ret. Wall",J32,0)*AD32 -> 0 | BB32: =IF(OR(D32="New Cut", D32="Widen Cut"),IF(K32="Ret. Wall",(1*(J32+1.5)+MAX((0.4*(J32+1.5)-1)*(J32+1.5)/2,0)+0.625)*AD32,0),0) -> 0 | BC32: =IF(OR(D32="New Fill", D32="Widen Fill"),IF(K32="Ret. Wall",(1*(J32+1.5)+MAX((0.6*(J32+1.5)-1)*(J32+1.5)/2,0)+0.625)*AD32,0),0) -> 0 | BD32: =IF(OR(D32="New Cut", D32="Widen Cut"),IF(K32="Ret. Wall",((0.4*(J32+1.5)+1.5)*(J32+1.5)+3)*AD32,0),0) -> 0 | BE32: =IF(K32="Ret. Wall",(J32-0.5)*1*AD32,0) -> 0 | BF32: =AND(OR((J32>7),AND(K32="Ret. Wall",J32>1)),OR(D32="Widen Fill",D32="New Fill"),AU32<4)*AD32 -> 0
L33: =IF($D33=FormData!$H$2,AE33,IF($D33=FormData!$H$3,AI33,IF($D33=FormData!$H$4,AM33,IF($D33=FormData!$H$5,AQ33,0))))*AD33 -> 0 | M33: =IF($D33=FormData!$H$2,AF33,IF($D33=FormData!$H$3,AJ33,IF($D33=FormData!$H$4,AN33,IF($D33=FormData!$H$5,AR33,0))))*AD33 -> 0 | N33: =IF($D33=FormData!$H$2,AG33,IF($D33=FormData!$H$3,AK33,IF($D33=FormData!$H$4,AO33,IF($D33=FormData!$H$5,AS33,0))))*AD33 -> 0 | O33: =IF($D33=FormData!$H$2,AH33,IF($D33=FormData!$H$3,AL33,IF($D33=FormData!$H$4,AP33,IF($D33=FormData!$H$5,AT33,0))))*AD33 -> 0 | P33: 0 | Q33: 0 | R33: 0 | S33: 0 | T33: 0 | U33: 0 | V33: 0 | W33: 0 | X33: 0 | Y33: 0 | Z33: 0 | AA33: =IF(E33="Start",0,IF(OR(E33="Middle",E33="End"),(I33+I32)/2,I33))*1*H33/27 -> 0 | AB33: 0 | AD33: =IF(F33="Half Sect", 1, 2) -> 2 | AE33: =IF(K33="Ret. Wall", 0, IF(AU33=4, 16, 12)) -> 16 | AF33: =J33*AW33+0.5*J33^2*AU33-$E$121*0.5*AW33/12 -> 0 | AG33: =AE33*0.75 -> 12 | AH33: =AW33 -> 0 | AI33: =IF(K33="Ret. Wall", 0, IF(AU33=4, 16, 12)) -> 16 | AJ33: =J33*AW33+0.5*J33^2*AU33-$E$121*0.5*AW33/12-0.5*(J33-1)^2*2 -> -1 | AK33: =AI33*0.75 -> 12 | AL33: =AW33+4 -> 4 | AM33: =J33*AW33+AV33+AV33*J33+0.5*J33^2*AU33+$E$121*0.8*AW33/12 -> 16 | AN33: =0 -> 0 | AO33: =AW33+AV33+J33*AU33 -> 16 | AP33: =0 -> 0 | AQ33: =J33*AW33+AV33+AV33*J33+0.5*J33^2*AU33-6*J33-0.5*J33^2*2 -> 16 | AR33: =6 -> 6 | AS33: =(AW33-6)+AV33+J33*AU33 -> 10 | AT33: =8 -> 8 | AU33: =IF(K33="Ret. WALL", 0,IF(K33=0,4,VALUE(LEFT(K33,FIND(":",K33)-1)))) -> 4 | AV33: =IF(G33=0,16,VLOOKUP(G33,FormData!$J$2:$K$5,2,FALSE)) -> 16 | AW33: =I33/AD33 -> 0 | AX33: 0 | AY33: =AU33*IF(OR(D33="Widen Cut", D33="New Cut"),-1,1) -> 4 | AZ33: =IF(K33="1.5:1",SQRT((J33*AU33)^2+J33^2)*AD33,0) -> 0 | BA33: =IF(K33="Ret. Wall",J33,0)*AD33 -> 0 | BB33: =IF(OR(D33="New Cut", D33="Widen Cut"),IF(K33="Ret. Wall",(1*(J33+1.5)+MAX((0.4*(J33+1.5)-1)*(J33+1.5)/2,0)+0.625)*AD33,0),0) -> 0 | BC33: =IF(OR(D33="New Fill", D33="Widen Fill"),IF(K33="Ret. Wall",(1*(J33+1.5)+MAX((0.6*(J33+1.5)-1)*(J33+1.5)/2,0)+0.625)*AD33,0),0) -> 0 | BD33: =IF(OR(D33="New Cut", D33="Widen Cut"),IF(K33="Ret. Wall",((0.4*(J33+1.5)+1.5)*(J33+1.5)+3)*AD33,0),0) -> 0 | BE33: =IF(K33="Ret. Wall",(J33-0.5)*1*AD33,0) -> 0 | BF33: =AND(OR((J33>7),AND(K33="Ret. Wall",J33>1)),OR(D33="Widen Fill",D33="New Fill"),AU33<4)*AD33 -> 0
L34: =IF($D34=FormData!$H$2,AE34,IF($D34=FormData!$H$3,AI34,IF($D34=FormData!$H$4,AM34,IF($D34=FormData!$H$5,AQ34,0))))*AD34 -> 0 | M34: =IF($D34=FormData!$H$2,AF34,IF($D34=FormData!$H$3,AJ34,IF($D34=FormData!$H$4,AN34,IF($D34=FormData!$H$5,AR34,0))))*AD34 -> 0 | N34: =IF($D34=FormData!$H$2,AG34,IF($D34=FormData!$H$3,AK34,IF($D34=FormData!$H$4,AO34,IF($D34=FormData!$H$5,AS34,0))))*AD34 -> 0 | O34: =IF($D34=FormData!$H$2,AH34,IF($D34=FormData!$H$3,AL34,IF($D34=FormData!$H$4,AP34,IF($D34=FormData!$H$5,AT34,0))))*AD34 -> 0 | P34: 0 | Q34: 0 | R34: 0 | S34: 0 | T34: 0 | U34: 0 | V34: 0 | W34: 0 | X34: 0 | Y34: 0 | Z34: 0 | AA34: =IF(E34="Start",0,IF(OR(E34="Middle",E34="End"),(I34+I33)/2,I34))*1*H34/27 -> 0 | AB34: 0 | AD34: =IF(F34="Half Sect", 1, 2) -> 2 | AE34: =IF(K34="Ret. Wall", 0, IF(AU34=4, 16, 12)) -> 16 | AF34: =J34*AW34+0.5*J34^2*AU34-$E$121*0.5*AW34/12 -> 0 | AG34: =AE34*0.75 -> 12 | AH34: =AW34 -> 0 | AI34: =IF(K34="Ret. Wall", 0, IF(AU34=4, 16, 12)) -> 16 | AJ34: =J34*AW34+0.5*J34^2*AU34-$E$121*0.5*AW34/12-0.5*(J34-1)^2*2 -> -1 | AK34: =AI34*0.75 -> 12 | AL34: =AW34+4 -> 4 | AM34: =J34*AW34+AV34+AV34*J34+0.5*J34^2*AU34+$E$121*0.8*AW34/12 -> 16 | AN34: =0 -> 0 | AO34: =AW34+AV34+J34*AU34 -> 16 | AP34: =0 -> 0 | AQ34: =J34*AW34+AV34+AV34*J34+0.5*J34^2*AU34-6*J34-0.5*J34^2*2 -> 16 | AR34: =6 -> 6 | AS34: =(AW34-6)+AV34+J34*AU34 -> 10 | AT34: =8 -> 8 | AU34: =IF(K34="Ret. WALL", 0,IF(K34=0,4,VALUE(LEFT(K34,FIND(":",K34)-1)))) -> 4 | AV34: =IF(G34=0,16,VLOOKUP(G34,FormData!$J$2:$K$5,2,FALSE)) -> 16 | AW34: =I34/AD34 -> 0 | AX34: 0 | AY34: =AU34*IF(OR(D34="Widen Cut", D34="New Cut"),-1,1) -> 4 | AZ34: =IF(K34="1.5:1",SQRT((J34*AU34)^2+J34^2)*AD34,0) -> 0 | BA34: =IF(K34="Ret. Wall",J34,0)*AD34 -> 0 | BB34: =IF(OR(D34="New Cut", D34="Widen Cut"),IF(K34="Ret. Wall",(1*(J34+1.5)+MAX((0.4*(J34+1.5)-1)*(J34+1.5)/2,0)+0.625)*AD34,0),0) -> 0 | BC34: =IF(OR(D34="New Fill", D34="Widen Fill"),IF(K34="Ret. Wall",(1*(J34+1.5)+MAX((0.6*(J34+1.5)-1)*(J34+1.5)/2,0)+0.625)*AD34,0),0) -> 0 | BD34: =IF(OR(D34="New Cut", D34="Widen Cut"),IF(K34="Ret. Wall",((0.4*(J34+1.5)+1.5)*(J34+1.5)+3)*AD34,0),0) -> 0 | BE34: =IF(K34="Ret. Wall",(J34-0.5)*1*AD34,0) -> 0 | BF34: =AND(OR((J34>7),AND(K34="Ret. Wall",J34>1)),OR(D34="Widen Fill",D34="New Fill"),AU34<4)*AD34 -> 0
C35: EARTHWORK ADJUSTMENTS
C36: Clearing and Grubbing Area | E36: SF | K36: SUMMARY CALCULATIONS
C37: Anticipated Unsuitable % | E37: % | K37: Cut Vol | L37: Fill Vol | M37: RMC Vol | N37: RMF Vol | O37: Uns Cut | P37: Uns Subg | Q37: Total Fill | R37: Use Cut | S37: Reg Exc | T37: Borrow | U37: Slope Pro | V37: Rock Exc | W37: Reg Exc
C38: Anticipated % Excavation that is Rock | E38: % | I38: Shrinkage | K38: CY | L38: CY | M38: CY | N38: CY | O38: CY | P38: CY | Q38: CY | R38: CY | S38: CY | T38: CY | U38: SY | V38: CY | W38: -Rock
C39: Temporary Grading | E39: ? | I39: 0.85 | K39: =SUM(P11:P30) -> 0 | L39: =SUM(Q11:Q30) -> 0 | M39: =SUM(R11:R30) -> 0 | N39: =SUM(S11:S30) -> 0 | O39: =K39*D37/100 -> 0 | P39: =SUM(AA11:AA30)*D37/100 -> 0 | Q39: =N39+L39+P39 -> 0 | R39: =(K39-M39-O39)*$I$39 -> 0 | S39: =K39+N39+P39 -> 0 | T39: =MAX((Q39-R39)/$I$39,0) -> 0 | U39: =SUM(AB11:AB30)/9 -> 0 | V39: =(S39)*D38/100 -> 0 | W39: =S39-V39 -> 0
C40: % Overrun for Temporary Grading | E40: % | S40: =IF(ErwkManQuaA="No",D48,S39)*IF(D39="Use %",D40/100,0) -> 0 | T40: =IF(ErwkManQuaA="No",D49,T39)*IF(D39="Use %",D40/100,0) -> 0 | V40: =IF(ErwkManQuaA="No",0,(S40)*D38/100) -> 0 | W40: =S40-V40 -> 0
C41: CALCULATED QUANTITIES | J41: Temp > | K41: =SUM(P32:P34) -> 0 | L41: =SUM(Q32:Q34) -> 0 | M41: =SUM(R32:R34) -> 0 | N41: =SUM(S32:S34) -> 0 | O41: =K41*D37/100 -> 0 | P41: =SUM(AA32:AA34)*D37/100 -> 0 | Q41: =N41+L41+P41 -> 0 | R41: =(K41-M41-O41)*$I$39 -> 0 | S41: =K41+N41+P41 -> 0 | T41: =MAX((Q41-R41)/$I$39,0) -> 0 | V41: =(S41)*D38/100 -> 0 | W41: =S41-V41 -> 0
C42: Regular Excavation | D42: =W39 -> 0 | E42: CY
C43: Borrow Excavation | D43: =T39 -> 0 | E43: CY
C44: Rock Excavation | D44: =V39+IF(ErwkTmpGrdA="Use %",V40,IF(ErwkTmpGrdA="Sections",V41,0)) -> 0 | E44: CY
C45: RECP EC-3 Type 3 for Slope Protection (>2:1) | D45: =U39 -> 0 | E45: SY
C46: Use the above Calculated Quantities? | E46: ?
C47: MANUAL QUANTITIES
C48: Regular Excavation | E48: CY
C49: Borrow Excavation | E49: CY
C50: Rock Excavation | E50: CY
C51: RECP EC-3 Type 3 for Slope Protection | E51: SY
C52: RECOMMENDED INCIDENTALS
C53: Retaining Wall Area (for Alternative Walls) | D53: =SUM(V11:V30) -> 0 | E53: SF
C54: RM-2 Retaining Wall (for Gravity Wall) | D54: =SUM(W11:W30)/27 -> 0 | E54: CY
C55: RM-3 Retaining Wall (for Gravity Wall) | D55: =SUM(X11:X30)/27 -> 0 | E55: CY
C56: Retaining Wall Excavation (for Gravity Wall) | D56: =SUM(Y11:Y30)/27 -> 0 | E56: CY
C57: Porous Backfill (for Gravity Wall) | D57: =SUM(Z11:Z30)/27 -> 0 | E57: CY
C58: Guardrail | D58: =SUM(T11:T30) -> 0 | E58: LF
C59: Guardrail Terminals | D59: =SUM(U11:U30) -> 0 | E59: EA
C60: Handrail | D60: =SUM(AX11:AX30) -> 0 | E60: LF
C61: Temporary Regular Excavation | D61: =IF(ErwkTmpGrdA="Use %",W40,IF(ErwkTmpGrdA="Sections",W41,0)) -> 0 | E61: CY
C62: Temporary Borrow | D62: =IF(ErwkTmpGrdA="Use %",T40,IF(ErwkTmpGrdA="Sections",T41,0)) -> 0 | E62: CY
C63: QUANTITY TOTALS
C64: Clearing and Grubbing | D64: =D36/43560 -> 0 | E64: AC | H64: Total Exc.
C65: Regular Excavation | D65: =IF($D$46="No",D48,D42) -> 0 | E65: CY | H65: =D65+D66+D67 -> 0
C66: Borrow Excavation | D66: =IF($D$46="No",D49,D43) -> 0 | E66: CY
C67: Rock Excavation | D67: =IF($D$46="No",D50,D44) -> 0 | E67: CY
C68: RECP EC-3 Type 3 for Slope Protection | D68: =IF($D$46="No",D51,D45) -> 0 | E68: SY
C69: ADDITIONAL CUSTOM PAY ITEMS
C70: Description | D70: Quantity | E70: Units
C77: ADDITIONAL COMMENTS AND ASSUMPTIONS
C83: DRAINAGE ITEMS
C85: LUMP SUM DRAINAGE ITEMS
C86: Hydraulics Estimate Provided by:
C87: Hydraulics Estimate Date:
C88: Drainage estimate provided from Hydraulics= | E88: LS
C89: Above number includes SWM? | E89: ?
C90: Separate cost for SWM = | E90: LS
C91: Above includes Erosion/Sediment Control? | E91: ?
C92: Separate cost for Erosion/Sediment Control= | E92: LS
C93: Above includes Large Culverts? | E93: ?
C94: Separate cost for Large Culverts= | E94: LS
C95: Above includes Nutrient Credits? | E95: ?
C96: Separate cost for Nutrient Credits= | E96: LS
C97: Total Hydraulics CN Cost | D97: =D88-IF(D95="Yes",D96,0)+IF(D89="No",D90,0)+IF(D93="No",D94,0)+IF(D91="No",D92,0) -> 0 | E97: LS
C98: Normal Drainage Items Cost | D98: =D88-IF(D95="Yes",D96,0)-IF(D89="Yes",D90,0)-IF(D93="Yes",D94,0)-IF(D91="Yes",D92,0) -> 0 | E98: LS
C99: ADDITIONAL CUSTOM PAY ITEMS
C100: Description | D100: Quantity | E100: Units
C107: ADDITIONAL COMMENTS AND ASSUMPTIONS
C113: PAVEMENT ITEMS
C115: ROADWAY #1
C116: Pavement Structure Design | D116: Type | E116: Depth
C117: Surface Course Type | D117: =IF(ISBLANK($D$204),"",$D$204) ->  | F117: IN
C118: Intermediate Course Type | D118: =IF(ISBLANK($D$205),"",$D$205) ->  | F118: IN
C119: Base Course Type | D119: =IF(ISBLANK($D$206),"",$D$206) ->  | F119: IN
C120: Aggregate Base Type | D120: =IF(ISBLANK($D$207),"",$D$207) ->  | F120: IN
C121: Total Depth | E121: =E120+E119+E118+E117 -> 0 | F121: IN
C122: Average Variable Overlay Depth | E122: IN
C123: Pavement Design Provided by: | G123: QUANTITY CALCULATIONS
C124: Pavement Design Date: | G124: SM Area | H124: SM Depth | I124: SM Vol. | J124: IM Area | K124: IM Depth | L124: IM Vol. | M124: BM Area | N124: BM Depth | O124: BM Vol. | P124: Agg Area | Q124: Agg Depth | R124: Agg Vol.
C125: Pavement Quantities | G125: SY | H125: IN | I125: TON | J125: SY | K125: IN | L125: TON | M125: SY | N125: IN | O125: TON | P125: SY | Q125: IN | R125: TON
C126: Full Depth Pavement | E126: SF | G126: =$D126/9 -> 0 | H126: =E117 -> 0 | I126: =G126*H126*$G$204/2000 -> 0 | J126: =$D126/9 -> 0 | K126: =E118 -> 0 | L126: =J126*K126*$G$205/2000 -> 0 | M126: =$D126/9 -> 0 | N126: =E119 -> 0 | O126: =M126*N126*$G$206/2000 -> 0 | P126: =$D126/9 -> 0 | Q126: =E120 -> 0 | R126: =P126*Q126*$G$208/2000 -> 0
C127: Full Depth Shoulders | E127: SF | G127: =$D127/9 -> 0 | H127: =E117 -> 0 | I127: =G127*H127*$G$204/2000 -> 0 | J127: =$D127/9 -> 0 | K127: =E118 -> 0 | L127: =J127*K127*$G$205/2000 -> 0 | M127: =$D127/9 -> 0 | N127: =IF($D128="Yes",0,E119) -> 0 | O127: =M127*N127*$G$206/2000 -> 0 | P127: =$D127/9 -> 0 | Q127: =IF($D128="Yes",E120+E119,E120) -> 0 | R127: =P127*Q127*$G$208/2000 -> 0
C128: Remove BM from Shoulders? | E128: ?
C129: Mill & Overlay | E129: SF | G129: =IF($D129>$D131,$D129-$D131,$D129)/9 -> 0 | H129: =IF(D122=0, 1.5, IF((E118+E119)=0,D122,MAX(MIN(D122,3), 1.5))) -> 1.5 | I129: =G129*H129*$G$204/2000 -> 0 | J129: =IF($D129>$D131,$D129-$D131,$D129)/9 -> 0 | K129: =IF(E119=0,MAX(D122-H129,0),IF(E118>0,MAX(MIN(2.75,MAX(D122-H129,0)),0),0)) -> 0 | L129: =J129*K129*$G$205/2000 -> 0 | M129: =IF($D129>$D131,$D129-$D131,$D129)/9 -> 0 | N129: =IF(E119>0,MAX(D122-H129-K129,0),0) -> 0 | O129: =M129*N129*$G$206/2000 -> 0 | P129: =IF($D129>$D131,$D129-$D131,$D129)/9 -> 0 | Q129: 0 | R129: =P129*Q129*$G$208/2000 -> 0
C130: Temporary Pavement | E130: SF | G130: =$D130/9 -> 0 | H130: =E117 -> 0 | I130: =G130*H130*$G$204/2000 -> 0 | J130: =$D130/9 -> 0 | K130: =E118 -> 0 | L130: =J130*K130*$G$205/2000 -> 0 | M130: =$D130/9 -> 0 | N130: =E119 -> 0 | O130: =M130*N130*$G$206/2000 -> 0 | P130: =$D130/9 -> 0 | Q130: =E120 -> 0 | R130: =P130*Q130*$G$208/2000 -> 0
C131: 1' WP-2 for Pvmt Widening or C&G Narrowing | E131: LF | G131: =$D131/9 -> 0 | H131: =E117 -> 0 | I131: =G131*H131*$G$204/2000 -> 0 | J131: =$D131/9 -> 0 | K131: =E118 -> 0 | L131: =J131*K131*$G$205/2000 -> 0 | M131: =$D131/9 -> 0 | N131: =E119 -> 0 | O131: =M131*N131*$G$206/2000 -> 0 | P131: =$D131/9 -> 0 | Q131: =E120 -> 0 | R131: =P131*Q131*$G$208/2000 -> 0
C132: Curbing Quantities | F132: Conc. D.
C133: Curb Type | E133: ? | F133: (IN)
C134: Length of Concrete Curb | E134: LF | F134: 12 | P134: =D134*(1.5+IF(D133="Vertical",0,1/12))/9 -> 0 | Q134: =MAX(E121-F134,4) -> 4 | R134: =P134*Q134*$G$208/2000 -> 0
C135: Length of Curb & Gutter | E135: LF | F135: 7 | P135: =D135*(3.5+IF(D133="Vertical",0,1/12))/9 -> 0 | Q135: =MAX(E121-F135,4) -> 4 | R135: =P135*Q135*$G$208/2000 -> 0
C136: Length of Shoulder Gutter | E136: LF | F136: 10 | P136: =D136*5.5/9 -> 0 | Q136: =MAX(E121-F136,4) -> 4 | R136: =P136*Q136*$G$208/2000 -> 0
C137: ROADWAY #2
C138: Use: | D138: No | E138: ?
C139: Pavement Structure Design | D139: Type | E139: Depth
C140: Surface Course Type | D140: =IF(ISBLANK($D$204),"",$D$204) ->  | F140: IN
C141: Intermediate Course Type | D141: =IF(ISBLANK($D$205),"",$D$205) ->  | F141: IN
C142: Base Course Type | D142: =IF(ISBLANK($D$206),"",$D$206) ->  | F142: IN
C143: Aggregate Base Type | D143: =IF(ISBLANK($D$207),"",$D$207) ->  | F143: IN
C144: Total Depth | E144: =E143+E142+E141+E140 -> 0 | F144: IN
C145: Average Variable Overlay Depth | E145: IN
C146: Pavement Design Provided by: | G146: QUANTITY CALCULATIONS
C147: Pavement Design Date: | G147: SM Area | H147: SM Depth | I147: SM Vol. | J147: IM Area | K147: IM Depth | L147: IM Vol. | M147: BM Area | N147: BM Depth | O147: BM Vol. | P147: Agg Area | Q147: Agg Depth | R147: Agg Vol.
C148: Pavement Quantities | G148: SY | H148: IN | I148: TON | J148: SY | K148: IN | L148: TON | M148: SY | N148: IN | O148: TON | P148: SY | Q148: IN | R148: TON
C149: Full Depth Pavement | E149: SF | G149: =$D149/9 -> 0 | H149: =E140 -> 0 | I149: =G149*H149*$G$204/2000 -> 0 | J149: =$D149/9 -> 0 | K149: =E141 -> 0 | L149: =J149*K149*$G$205/2000 -> 0 | M149: =$D149/9 -> 0 | N149: =E142 -> 0 | O149: =M149*N149*$G$206/2000 -> 0 | P149: =$D149/9 -> 0 | Q149: =E143 -> 0 | R149: =P149*Q149*$G$208/2000 -> 0
C150: Full Depth Shoulders | E150: SF | G150: =$D150/9 -> 0 | H150: =E140 -> 0 | I150: =G150*H150*$G$204/2000 -> 0 | J150: =$D150/9 -> 0 | K150: =E141 -> 0 | L150: =J150*K150*$G$205/2000 -> 0 | M150: =$D150/9 -> 0 | N150: =IF($D151="Yes",0,E142) -> 0 | O150: =M150*N150*$G$206/2000 -> 0 | P150: =$D150/9 -> 0 | Q150: =IF($D151="Yes",E143+E142,E143) -> 0 | R150: =P150*Q150*$G$208/2000 -> 0
C151: Remove BM from Shoulders? | E151: ?
C152: Mill & Overlay | E152: SF | G152: =IF($D152>$D154,$D152-$D154,$D152)/9 -> 0 | H152: =IF(D145=0, 1.5, IF((E141+E142)=0,D145,MAX(MIN(D145,3), 1.5))) -> 1.5 | I152: =G152*H152*$G$204/2000 -> 0 | J152: =IF($D152>$D154,$D152-$D154,$D152)/9 -> 0 | K152: =IF(E142=0,MAX(D145-H152,0),IF(E141>0,MAX(MIN(2.75,MAX(D145-H152,0)),0),0)) -> 0 | L152: =J152*K152*$G$205/2000 -> 0 | M152: =IF($D152>$D154,$D152-$D154,$D152)/9 -> 0 | N152: =IF(E142>0,MAX(D145-H152-K152,0),0) -> 0 | O152: =M152*N152*$G$206/2000 -> 0 | P152: =IF($D152>$D154,$D152-$D154,$D152)/9 -> 0 | Q152: 0 | R152: =P152*Q152*$G$208/2000 -> 0
C153: Temporary Pavement | E153: SF | G153: =$D153/9 -> 0 | H153: =E140 -> 0 | I153: =G153*H153*$G$204/2000 -> 0 | J153: =$D153/9 -> 0 | K153: =E141 -> 0 | L153: =J153*K153*$G$205/2000 -> 0 | M153: =$D153/9 -> 0 | N153: =E142 -> 0 | O153: =M153*N153*$G$206/2000 -> 0 | P153: =$D153/9 -> 0 | Q153: =E143 -> 0 | R153: =P153*Q153*$G$208/2000 -> 0
C154: 1' WP-2 for Pvmt Widening or C&G Narrowing | E154: LF | G154: =$D154/9 -> 0 | H154: =E140 -> 0 | I154: =G154*H154*$G$204/2000 -> 0 | J154: =$D154/9 -> 0 | K154: =E141 -> 0 | L154: =J154*K154*$G$205/2000 -> 0 | M154: =$D154/9 -> 0 | N154: =E142 -> 0 | O154: =M154*N154*$G$206/2000 -> 0 | P154: =$D154/9 -> 0 | Q154: =E143 -> 0 | R154: =P154*Q154*$G$208/2000 -> 0
C155: Curbing Quantities | F155: Conc. D.
C156: Curb Type | E156: ? | F156: (IN)
C157: Length of Concrete Curb | E157: LF | F157: 12 | P157: =D157*(1.5+IF(D156="Vertical",0,1/12))/9 -> 0 | Q157: =MAX(E144-F157,4) -> 4 | R157: =P157*Q157*$G$208/2000 -> 0
C158: Length of Curb & Gutter | E158: LF | F158: 7 | P158: =D158*(3.5+IF(D156="Vertical",0,1/12))/9 -> 0 | Q158: =MAX(E144-F158,4) -> 4 | R158: =P158*Q158*$G$208/2000 -> 0
C159: Length of Shoulder Gutter | E159: LF | F159: 10 | P159: =D159*5.5/9 -> 0 | Q159: =MAX(E144-F159,4) -> 4 | R159: =P159*Q159*$G$208/2000 -> 0
C160: ROADWAY #3
C161: Use: | D161: No | E161: ?
C162: Pavement Structure Design | D162: Type | E162: Depth
C163: Surface Course Type | D163: =IF(ISBLANK($D$204),"",$D$204) ->  | F163: IN
C164: Intermediate Course Type | D164: =IF(ISBLANK($D$205),"",$D$205) ->  | F164: IN
C165: Base Course Type | D165: =IF(ISBLANK($D$206),"",$D$206) ->  | F165: IN
C166: Aggregate Base Type | D166: =IF(ISBLANK($D$207),"",$D$207) ->  | F166: IN
C167: Total Depth | E167: =E166+E165+E164+E163 -> 0 | F167: IN
C168: Average Variable Overlay Depth | E168: IN
C169: Pavement Design Provided by: | G169: QUANTITY CALCULATIONS
C170: Pavement Design Date: | G170: SM Area | H170: SM Depth | I170: SM Vol. | J170: IM Area | K170: IM Depth | L170: IM Vol. | M170: BM Area | N170: BM Depth | O170: BM Vol. | P170: Agg Area | Q170: Agg Depth | R170: Agg Vol.
C171: Pavement Quantities | G171: SY | H171: IN | I171: TON | J171: SY | K171: IN | L171: TON | M171: SY | N171: IN | O171: TON | P171: SY | Q171: IN | R171: TON
C172: Full Depth Pavement | E172: SF | G172: =$D172/9 -> 0 | H172: =E163 -> 0 | I172: =G172*H172*$G$204/2000 -> 0 | J172: =$D172/9 -> 0 | K172: =E164 -> 0 | L172: =J172*K172*$G$205/2000 -> 0 | M172: =$D172/9 -> 0 | N172: =E165 -> 0 | O172: =M172*N172*$G$206/2000 -> 0 | P172: =$D172/9 -> 0 | Q172: =E166 -> 0 | R172: =P172*Q172*$G$208/2000 -> 0
C173: Full Depth Shoulders | E173: SF | G173: =$D173/9 -> 0 | H173: =E163 -> 0 | I173: =G173*H173*$G$204/2000 -> 0 | J173: =$D173/9 -> 0 | K173: =E164 -> 0 | L173: =J173*K173*$G$205/2000 -> 0 | M173: =$D173/9 -> 0 | N173: =IF($D174="Yes",0,E165) -> 0 | O173: =M173*N173*$G$206/2000 -> 0 | P173: =$D173/9 -> 0 | Q173: =IF($D174="Yes",E166+E165,E166) -> 0 | R173: =P173*Q173*$G$208/2000 -> 0
C174: Remove BM from Shoulders? | E174: ?
C175: Mill & Overlay | E175: SF | G175: =IF($D175>$D177,$D175-$D177,$D175)/9 -> 0 | H175: =IF(D168=0, 1.5, IF((E164+E165)=0,D168,MAX(MIN(D168,3), 1.5))) -> 1.5 | I175: =G175*H175*$G$204/2000 -> 0 | J175: =IF($D175>$D177,$D175-$D177,$D175)/9 -> 0 | K175: =IF(E165=0,MAX(D168-H175,0),IF(E164>0,MAX(MIN(2.75,MAX(D168-H175,0)),0),0)) -> 0 | L175: =J175*K175*$G$205/2000 -> 0 | M175: =IF($D175>$D177,$D175-$D177,$D175)/9 -> 0 | N175: =IF(E165>0,MAX(D168-H175-K175,0),0) -> 0 | O175: =M175*N175*$G$206/2000 -> 0 | P175: =IF($D175>$D177,$D175-$D177,$D175)/9 -> 0 | Q175: 0 | R175: =P175*Q175*$G$208/2000 -> 0
C176: Temporary Pavement | E176: SF | G176: =$D176/9 -> 0 | H176: =E163 -> 0 | I176: =G176*H176*$G$204/2000 -> 0 | J176: =$D176/9 -> 0 | K176: =E164 -> 0 | L176: =J176*K176*$G$205/2000 -> 0 | M176: =$D176/9 -> 0 | N176: =E165 -> 0 | O176: =M176*N176*$G$206/2000 -> 0 | P176: =$D176/9 -> 0 | Q176: =E166 -> 0 | R176: =P176*Q176*$G$208/2000 -> 0
C177: 1' WP-2 for Pvmt Widening or C&G Narrowing | E177: LF | G177: =$D177/9 -> 0 | H177: =E163 -> 0 | I177: =G177*H177*$G$204/2000 -> 0 | J177: =$D177/9 -> 0 | K177: =E164 -> 0 | L177: =J177*K177*$G$205/2000 -> 0 | M177: =$D177/9 -> 0 | N177: =E165 -> 0 | O177: =M177*N177*$G$206/2000 -> 0 | P177: =$D177/9 -> 0 | Q177: =E166 -> 0 | R177: =P177*Q177*$G$208/2000 -> 0
C178: Curbing Quantities | F178: Conc. D.
C179: Curb Type | E179: ? | F179: (IN)
C180: Length of Concrete Curb | E180: LF | F180: 12 | P180: =D180*(1.5+IF(D179="Vertical",0,1/12))/9 -> 0 | Q180: =MAX(E167-F180,4) -> 4 | R180: =P180*Q180*$G$208/2000 -> 0
C181: Length of Curb & Gutter | E181: LF | F181: 7 | P181: =D181*(3.5+IF(D179="Vertical",0,1/12))/9 -> 0 | Q181: =MAX(E167-F181,4) -> 4 | R181: =P181*Q181*$G$208/2000 -> 0
C182: Length of Shoulder Gutter | E182: LF | F182: 10 | P182: =D182*5.5/9 -> 0 | Q182: =MAX(E167-F182,4) -> 4 | R182: =P182*Q182*$G$208/2000 -> 0
C183: ENTRANCES | G183: SM Area | H183: SM Depth | I183: SM Vol. | J183: IM Area | K183: IM Depth | L183: IM Vol. | M183: BM Area | N183: BM Depth | O183: BM Vol. | P183: Agg Area | Q183: Agg Depth | R183: Agg Vol.
C184: Private Entrance Method? | E184: ? | G184: SY | H184: IN | I184: TON | J184: SY | K184: IN | L184: TON | M184: SY | N184: IN | O184: TON | P184: SY | Q184: IN | R184: TON
C185: Private Entrance Area (asphalt) | E185: SF | G185: =IF(D184="Count",0, $D185/9) -> 0 | H185: 2 | I185: =G185*H185*$G$204/2000 -> 0 | J185: =IF(D184="Count",0, $D185/9) -> 0 | K185: 0 | L185: =J185*K185*$G$205/2000 -> 0 | M185: =IF(D184="Count",0, $D185/9) -> 0 | N185: 0 | O185: =M185*N185*$G$206/2000 -> 0 | P185: =IF(D184="Count",0, $D185/9) -> 0 | Q185: 4 | R185: =P185*Q185*$G$208/2000 -> 0
C186: Concrete Apron Area | E186: SF | P186: =IF(D184="Count",0, $D186/9) -> 0 | Q186: 6 | R186: =P186*Q186*$G$208/2000 -> 0
C187: Private Entrances - Rural (shoulder section) | E187: EA | G187: =IF($D184="Count", ($D187*600+$D188*500)/9,0) -> 0 | H187: 2 | I187: =G187*H187*$G$204/2000 -> 0 | J187: =IF($D184="Count", ($D187*600+$D188*500)/9,0) -> 0 | K187: 0 | L187: =J187*K187*$G$205/2000 -> 0 | M187: =IF($D184="Count", ($D187*600+$D188*500)/9,0) -> 0 | N187: 0 | O187: =M187*N187*$G$206/2000 -> 0 | P187: =IF($D184="Count", ($D187*600+$D188*500)/9,0) -> 0 | Q187: 4 | R187: =P187*Q187*$G$208/2000 -> 0
C188: Private Entrances - Urban (w/ concrete apron) | E188: EA | P188: =IF(D184="Count", $D188*275/9,0) -> 0 | Q188: 6 | R188: =P188*Q188*$G$208/2000 -> 0
C189: Commercial Entrances/Parking Lots | E189: SF | G189: =$D189/9 -> 0 | H189: 1.5 | I189: =G189*H189*$G$204/2000 -> 0 | J189: =$D189/9 -> 0 | K189: 0 | L189: =J189*K189*$G$205/2000 -> 0 | M189: =$D189/9 -> 0 | N189: 4 | O189: =M189*N189*$G$206/2000 -> 0 | P189: =$D189/9 -> 0 | Q189: 6 | R189: =P189*Q189*$G$208/2000 -> 0
C190: MISCELLANEOUS PAVEMENTS | F190: Conc. D.
C191: Shared Use Path | E191: SF | F191: (IN) | G191: =$D191/9 -> 0 | H191: 2 | I191: =G191*H191*$G$204/2000 -> 0 | J191: =$D191/9 -> 0 | K191: 0 | L191: =J191*K191*$G$205/2000 -> 0 | M191: =$D191/9 -> 0 | N191: 0 | O191: =M191*N191*$G$206/2000 -> 0 | P191: =$D191/9 -> 0 | Q191: 6 | R191: =P191*Q191*$G$208/2000 -> 0
C192: Concrete Truck Apron | E192: SF | F192: 9 | P192: =$D192/9 -> 0 | Q192: =MAX((E121-F192), 4) -> 4 | R192: =P192*Q192*$G$208/2000 -> 0
C193: AGGREGATE BASE FOR ADDITIONAL INCIDENTAL ITEMS
C194: Curbing | D194: =D241*(1.5+IF(D243="Vertical",0,1/12)) -> 0 | E194: SF | F194: 12 | P194: =D194/9 -> 0 | Q194: =MAX(11.5-F194,4) -> 4 | R194: =P194*Q194*$G$208/2000 -> 0
C195: Curb and Gutter | D195: =D242*(3.5+IF(D243="Vertical",0,1/12)) -> 0 | E195: SF | F195: 7 | P195: =D195/9 -> 0 | Q195: =MAX(11.5-F195,4) -> 4.5 | R195: =P195*Q195*$G$208/2000 -> 0
C196: PAVEMENT REMOVAL & MODIFICATION
C197: Demolition of Pavement from WP-2 | D197: =D131+IF(D138="Yes",D154,0)+IF(D161="Yes",D177,0) -> 0 | E197: SF
C198: Additional Demolition of Pavement | E198: SF
C199: Saw Cut from WP-2 | D199: =D131+IF(D138="Yes",D154,0)+IF(D161="Yes",D177,0) -> 0 | E199: LF
C200: Additional Saw Cut (Full Depth or 1.5" Depth) | E200: LF
C201: Obscuring Roadway | E201: SF
C202: Rumble Strips | E202: LF
C203: PAVEMENT SPECIFICATIONS | G203: Unit Weights | J203: Custom Weights
C204: Surface Course Type | E204: ? | G204: =IF($D$208="Custom",J204,110) -> 110 | H204: LB/IN/SY | I204: SM | J204: 110 | K204: LB/IN/SY
C205: Intermediate Course Type | E205: ? | G205: =IF($D$208="Custom",J205,110) -> 110 | H205: LB/IN/SY | I205: IM | J205: 110 | K205: LB/IN/SY
C206: Base Course Type | E206: ? | G206: =IF($D$208="Culpeper",113,IF($D$208="NoVa",122,IF($D$208="Custom",J206,118))) -> 118 | H206: LB/IN/SY | I206: BM | J206: 118 | K206: LB/IN/SY
C207: Aggregate Base Type | E207: ? | G207: =IF($D$208="C'ville", 160, IF($D$208="Custom", J207, 170)) -> 170 | H207: LB/CY | I207: Agg. | J207: 170 | K207: LB/CY
C208: Location for Asphalt Weight | E208: ? | G208: =G207*27/36*1.06 -> 135.15 | H208: LB/IN/SY | I208: ^^^ | J208: =J207*27/36*1.06 -> 135.15 | K208: LB/IN/SY
C209: QUANTITY TOTALS | G209: TEMPORARY
C210: =CONCATENATE( "Surface Course ", IF($D$204=""," NO SPEC ENTERED",$D$204)) -> Surface Course NO SPEC ENTERED | D210: =(I126+I127+I129+I131)+IF(D138="Yes",I149+I150+I152+I154,0)+IF(D161="Yes",I172+I173+I175+I177,0)+I185+I187+I189+I191 -> 0 | E210: TON | G210: =I130+IF(D138="Yes",I153,0)+IF(D161="Yes",I176,0) -> 0 | H210: TON
C211: =CONCATENATE( "Intermediate Course ",IF($D$205="","NO SPEC ENTERED",$D$205)) -> Intermediate Course NO SPEC ENTERED | D211: =(L126+L127+L129+L131)+IF(D138="Yes",L149+L150+L152+L154,0)+IF(D161="Yes",L172+L173+L175+L177,0)+L185+L187+L189+L191 -> 0 | E211: TON | G211: =L130+IF(D138="Yes",L153,0)+IF(D161="Yes",L176,0) -> 0 | H211: TON
C212: =CONCATENATE( "Base Course ", IF($D$206="","NO SPEC ENTERED",$D$206)) -> Base Course NO SPEC ENTERED | D212: =(O126+O127+O129+O131)+IF(D138="Yes",O149+O150+O152+O154,0)+IF(D161="Yes",O172+O173+O175+O177,0)+O185+O187+O189+O191 -> 0 | E212: TON | G212: =O130+IF(D138="Yes",O153,0)+IF(D161="Yes",O176,0) -> 0 | H212: TON
C213: =CONCATENATE( "Aggregate Base ", IF($D$207="","NO SPEC ENTERED",$D$207)) -> Aggregate Base NO SPEC ENTERED | D213: =(R126+R127+R129+R131+R134+R135+R136)+IF(D138="Yes",R149+R150+R152+R154+R157+R158+R159,0)+IF(D161="Yes",R172+R173+R175+R177+R180+R181+R182,0)+R185+R186+R187+R188+R189+R191+R192+R194+R195 -> 0 | E213: TON | G213: =R130+IF(D138="Yes",R153,0)+IF(D161="Yes",R176,0) -> 0 | H213: TON
C214: 9" Concrete Truck Apron | D214: =D192/9 -> 0 | E214: SY
C215: Flexible Pavement Planing | D215: =(D129+IF(D138="Yes",D152,0)+IF(D161="Yes",D175,0))/9 -> 0 | E215: SY
C216: Saw Cut (Variable Depth Asphalt) | D216: =D199+D200 -> 0 | E216: LF
C217: Demolition of Pavement | D217: =(D197+D198)/9 -> 0 | E217: SY | G217: =G130+IF(D138="Yes",G153,0)+IF(D161="Yes",G176,0) -> 0 | H217: SY
C218: Obscuring Roadway | D218: =D201*2/1000 -> 0 | E218: UNIT
C219: Rumble Strip (Asphalt) | D219: =D202 -> 0 | E219: LF
C220: ADDITIONAL CUSTOM PAY ITEMS
C221: Description | D221: Quantity | E221: Units
C228: ADDITIONAL COMMENTS AND ASSUMPTIONS
C234: ROADWAY INCIDENTAL ITEMS
C236: CURBING
C237: Concrete Curb (Vertical) from above | D237: =IF(D133="Vertical",D134,0)+IF(AND(D138="Yes",D156="Vertical"),D157,0)+IF(AND(D161="Yes",D179="Vertical"),D180,0) -> 0 | E237: LF
C238: Concrete Curb (Mountable) from above | D238: =IF(D133="Vertical",0,D134)+IF(AND(D138="Yes",NOT(D156="Vertical")),D157,0)+IF(AND(D161="Yes",NOT(D179="Vertical")),D180,0) -> 0 | E238: LF
... 255 more rows

Sheet Earthwork (hidden)
A1: Description | B1: Length | C1: Case | D1: Section | E1: Area | F1: Width (W) | G1: Max Depth | H1: Min Depth | I1: Widest Depth | J1: Prop. Slope | K1: Prop. Drainage | L1: Prop. Pvmt W | M1: Prop. Pvmt D | N1: Exist. Slope | O1: Exist. Drainage | P1: Exist. Pvmt W | Q1: Exist. Pvmt D | R1: Terrain Slope
C9: Median
A18: Methods:
A19: Average Depth
A20: By Cross Section
A23: Detail:
A24: Assumed Dimensions
A25: Detailed Dimensions
A26: Areas
A27: Direct Entry

Sheet Suggested Values (hidden)
A6: Quantity Related
A7: Typical Unsuitable Earthwork Percentage | B7: 0.15
A8: Typical Variable Overlay Depth | B8: 6 | C8: IN
A9: Typical Private Entrance Width | B9: 12 | C9: FT
A10: Typical Private Entrance Length | B10: 50 | C10: FT
A11: CG-12 Curb Cut Ramp Dimension | B11: 2x10 | C11: FT
A12: Fence overrun for bracing & gates | B12: 0.5
A13: Width of roadside seeding | B13: 25 | C13: FT
A15: Cost Related | D15: Updated | F15: 45082
A16: Police Patrol Cost | B16: 10000 | C16: LS | F16: 10% increase
A17: Temporary Signal Modification | B17: 25000 | C17: EA | D17: 44916 | F17: =B17*1.1 -> 27500
A18: New Temporary Signals | B18: 120000 | C18: EA | D18: 44916 | F18: =B18*1.1 -> 132000
A19: Full roundabout center landscaping | B19: 75000 | C19: EA | D19: 44916 | F19: 82500
A20: Roundabout center basic planting | B20: 10000 | C20: EA | D20: 44916 | E20: less than $3000 for 4-5 trees
A21: Signal removal | B21: 20000 | C21: EA | D21: 44916
A22: 3 Leg Roundabout Lighting | B22: 170000 | C22: EA | D22: 44916 | F22: 187000
A23: 4 Leg Roundabout Lighting | B23: 215000 | C23: EA | D23: 44916 | F23: 236500
A24: Camera pole relocation | B24: 30000 | C24: EA | D24: 44916 | F24: 33000
A25: Contaminated soil remediation | B25: 60000 | C25: LS | D25: 44916 | F25: 66000
A27: Other Suggested Values
A28: MOT percentage guidance
A29: Landscaping percentage guidance
A30: Signage percentage guidance
A31: Pavement marking percentage guidance

Sheet Unit Prices
B1: Unit Cost Entry | C1: ='CN Estimate Tool'!F4 -> Rev: 6/5/2023
B3: ='CN Estimate Tool'!B7 -> 0 | C3: =IF(NOT('CN Estimate Tool'!C10=0),'CN Estimate Tool'!C10,"") -> 
B4: =IF(NOT('CN Estimate Tool'!C9=0),'CN Estimate Tool'!C9,"") ->  | C4: =IF(NOT('CN Estimate Tool'!C12=0),'CN Estimate Tool'!C12,"") -> 
J5: Norms Updated:
B6: =IF(K6=0,"",CONCATENATE("WARNING- ",K6," ITEMS MISSING COSTS")) ->  | J6: ='Unit Cost Norms'!F6 -> 45082 | K6: =SUM(K9:K199) -> 0
B7: GRADING ITEMS | C7: --- | H7: Estimate | J7: ='Unit Cost Norms'!$D$6 -> Culpeper
A8: Item Code | B8: Description | C8: Quantity | D8: Units | E8: Unit Cost | F8: Price Source | G8: Remarks | H8: =SUM(H9:H19) -> 0 | J8: Unit Norm
A9: 00111 | B9: Clearing and Grubbing | C9: ='Quantity Calculations'!D64 -> 0 | D9: AC | H9: =E9*C9 -> 0 | J9: =IF(OR(ISNA(VLOOKUP(B9,'Unit Cost Norms'!$B$9:$F$99,3,FALSE)),VLOOKUP(B9,'Unit Cost Norms'!$B$9:$F$99,3,FALSE)=0),"N/A",CONCATENATE("$",VLOOKUP(B9,'Unit Cost Norms'!$B$9:$F$99,3,FALSE)," with ",VLOOKUP(B9,'Unit Cost Norms'!$B$9:$F$99,5,FALSE)," ",VLOOKUP(B9,'Unit Cost Norms'!$B$9:$F$99,2,FALSE))) -> $145000 with 0.1-0.7 AC | K9: =IF(AND(C9>0,E9=0),1,0) -> 0
A10: 00120 | B10: Regular Excavation | C10: ='Quantity Calculations'!D65 -> 0 | D10: CY | H10: =E10*C10 -> 0 | J10: =IF(OR(ISNA(VLOOKUP(B10,'Unit Cost Norms'!$B$9:$F$99,3,FALSE)),VLOOKUP(B10,'Unit Cost Norms'!$B$9:$F$99,3,FALSE)=0),"N/A",CONCATENATE("$",VLOOKUP(B10,'Unit Cost Norms'!$B$9:$F$99,3,FALSE)," with ",VLOOKUP(B10,'Unit Cost Norms'!$B$9:$F$99,5,FALSE)," ",VLOOKUP(B10,'Unit Cost Norms'!$B$9:$F$99,2,FALSE))) -> $70 with 1400-2600 CY | K10: =IF(AND(C10>0,E10=0),1,0) -> 0
A11: 00124 | B11: Rock Excavation | C11: ='Quantity Calculations'!D67 -> 0 | D11: CY | H11: 0 | J11: =IF(OR(ISNA(VLOOKUP(B11,'Unit Cost Norms'!$B$9:$F$99,3,FALSE)),VLOOKUP(B11,'Unit Cost Norms'!$B$9:$F$99,3,FALSE)=0),"N/A",CONCATENATE("$",VLOOKUP(B11,'Unit Cost Norms'!$B$9:$F$99,3,FALSE)," with ",VLOOKUP(B11,'Unit Cost Norms'!$B$9:$F$99,5,FALSE)," ",VLOOKUP(B11,'Unit Cost Norms'!$B$9:$F$99,2,FALSE))) -> $1750 with 1-15 CY | K11: 0
A12: 00136 or 00140 | B12: Borrow Excavation | C12: ='Quantity Calculations'!D66 -> 0 | D12: CY | H12: 0 | J12: =IF(OR(ISNA(VLOOKUP(B12,'Unit Cost Norms'!$B$9:$F$99,3,FALSE)),VLOOKUP(B12,'Unit Cost Norms'!$B$9:$F$99,3,FALSE)=0),"N/A",CONCATENATE("$",VLOOKUP(B12,'Unit Cost Norms'!$B$9:$F$99,3,FALSE)," with ",VLOOKUP(B12,'Unit Cost Norms'!$B$9:$F$99,5,FALSE)," ",VLOOKUP(B12,'Unit Cost Norms'!$B$9:$F$99,2,FALSE))) -> $56 with 1400-2600 CY | K12: 0
A13: 27327 | B13: Rolled Erosion Ctrl Product EC-3 Type 3 (Slope Protection) | C13: ='Quantity Calculations'!D68 -> 0 | D13: SY | H13: 0 | J13: =IF(OR(ISNA(VLOOKUP(B13,'Unit Cost Norms'!$B$9:$F$99,3,FALSE)),VLOOKUP(B13,'Unit Cost Norms'!$B$9:$F$99,3,FALSE)=0),"N/A",CONCATENATE("$",VLOOKUP(B13,'Unit Cost Norms'!$B$9:$F$99,3,FALSE)," with ",VLOOKUP(B13,'Unit Cost Norms'!$B$9:$F$99,5,FALSE)," ",VLOOKUP(B13,'Unit Cost Norms'!$B$9:$F$99,2,FALSE))) -> $16 with 25-100 SY | K13: 0
B14: ='Quantity Calculations'!C71 -> 0 | C14: ='Quantity Calculations'!D71 -> 0 | D14: ='Quantity Calculations'!E71 -> 0 | H14: 0 | J14: =IF(OR(ISNA(VLOOKUP(B14,'Unit Cost Norms'!$B$9:$F$99,3,FALSE)),VLOOKUP(B14,'Unit Cost Norms'!$B$9:$F$99,3,FALSE)=0),"N/A",CONCATENATE("$",VLOOKUP(B14,'Unit Cost Norms'!$B$9:$F$99,3,FALSE)," with ",VLOOKUP(B14,'Unit Cost Norms'!$B$9:$F$99,5,FALSE)," ",VLOOKUP(B14,'Unit Cost Norms'!$B$9:$F$99,2,FALSE))) ->  | K14: 0
B15: ='Quantity Calculations'!C72 -> 0 | C15: ='Quantity Calculations'!D72 -> 0 | D15: ='Quantity Calculations'!E72 -> 0 | H15: 0 | J15: =IF(OR(ISNA(VLOOKUP(B15,'Unit Cost Norms'!$B$9:$F$99,3,FALSE)),VLOOKUP(B15,'Unit Cost Norms'!$B$9:$F$99,3,FALSE)=0),"N/A",CONCATENATE("$",VLOOKUP(B15,'Unit Cost Norms'!$B$9:$F$99,3,FALSE)," with ",VLOOKUP(B15,'Unit Cost Norms'!$B$9:$F$99,5,FALSE)," ",VLOOKUP(B15,'Unit Cost Norms'!$B$9:$F$99,2,FALSE))) ->  | K15: 0
B16: ='Quantity Calculations'!C73 -> 0 | C16: ='Quantity Calculations'!D73 -> 0 | D16: ='Quantity Calculations'!E73 -> 0 | H16: 0 | J16: =IF(OR(ISNA(VLOOKUP(B16,'Unit Cost Norms'!$B$9:$F$99,3,FALSE)),VLOOKUP(B16,'Unit Cost Norms'!$B$9:$F$99,3,FALSE)=0),"N/A",CONCATENATE("$",VLOOKUP(B16,'Unit Cost Norms'!$B$9:$F$99,3,FALSE)," with ",VLOOKUP(B16,'Unit Cost Norms'!$B$9:$F$99,5,FALSE)," ",VLOOKUP(B16,'Unit Cost Norms'!$B$9:$F$99,2,FALSE))) ->  | K16: 0
B17: ='Quantity Calculations'!C74 -> 0 | C17: ='Quantity Calculations'!D74 -> 0 | D17: ='Quantity Calculations'!E74 -> 0 | H17: 0 | J17: =IF(OR(ISNA(VLOOKUP(B17,'Unit Cost Norms'!$B$9:$F$99,3,FALSE)),VLOOKUP(B17,'Unit Cost Norms'!$B$9:$F$99,3,FALSE)=0),"N/A",CONCATENATE("$",VLOOKUP(B17,'Unit Cost Norms'!$B$9:$F$99,3,FALSE)," with ",VLOOKUP(B17,'Unit Cost Norms'!$B$9:$F$99,5,FALSE)," ",VLOOKUP(B17,'Unit Cost Norms'!$B$9:$F$99,2,FALSE))) ->  | K17: 0
B18: ='Quantity Calculations'!C75 -> 0 | C18: ='Quantity Calculations'!D75 -> 0 | D18: ='Quantity Calculations'!E75 -> 0 | H18: 0 | J18: =IF(OR(ISNA(VLOOKUP(B18,'Unit Cost Norms'!$B$9:$F$99,3,FALSE)),VLOOKUP(B18,'Unit Cost Norms'!$B$9:$F$99,3,FALSE)=0),"N/A",CONCATENATE("$",VLOOKUP(B18,'Unit Cost Norms'!$B$9:$F$99,3,FALSE)," with ",VLOOKUP(B18,'Unit Cost Norms'!$B$9:$F$99,5,FALSE)," ",VLOOKUP(B18,'Unit Cost Norms'!$B$9:$F$99,2,FALSE))) ->  | K18: 0
B19: ='Quantity Calculations'!C76 -> 0 | C19: ='Quantity Calculations'!D76 -> 0 | D19: ='Quantity Calculations'!E76 -> 0 | H19: 0 | J19: =IF(OR(ISNA(VLOOKUP(B19,'Unit Cost Norms'!$B$9:$F$99,3,FALSE)),VLOOKUP(B19,'Unit Cost Norms'!$B$9:$F$99,3,FALSE)=0),"N/A",CONCATENATE("$",VLOOKUP(B19,'Unit Cost Norms'!$B$9:$F$99,3,FALSE)," with ",VLOOKUP(B19,'Unit Cost Norms'!$B$9:$F$99,5,FALSE)," ",VLOOKUP(B19,'Unit Cost Norms'!$B$9:$F$99,2,FALSE))) ->  | K19: 0
B20: DRAINAGE ITEMS | C20: --- | H20: Estimate | J20: ='Unit Cost Norms'!$D$6 -> Culpeper
A21: Item Code | B21: Description | C21: Quantity | D21: Units | E21: Unit Cost | F21: Price Source | G21: Remarks | H21: =SUM(H22:H31) -> 0 | J21: Cost Norm
A22: LS | B22: Roadway General Drainage | C22: =IF(E22>0,1,0) -> 0 | D22: LS | E22: ='Quantity Calculations'!D98 -> 0 | H22: =E22*C22 -> 0 | J22: =IF(OR(ISNA(VLOOKUP(B22,'Unit Cost Norms'!$B$9:$F$99,3,FALSE)),VLOOKUP(B22,'Unit Cost Norms'!$B$9:$F$99,3,FALSE)=0),"N/A",CONCATENATE("$",VLOOKUP(B22,'Unit Cost Norms'!$B$9:$F$99,3,FALSE)," with ",VLOOKUP(B22,'Unit Cost Norms'!$B$9:$F$99,5,FALSE)," ",VLOOKUP(B22,'Unit Cost Norms'!$B$9:$F$99,2,FALSE))) ->  | K22: 0
A23: LS | B23: Erosion & Sediment Control | C23: =IF(E23>0,1,0) -> 0 | D23: LS | E23: =DrngESCB -> 0 | H23: =E23*C23 -> 0 | J23: =IF(OR(ISNA(VLOOKUP(B23,'Unit Cost Norms'!$B$9:$F$99,3,FALSE)),VLOOKUP(B23,'Unit Cost Norms'!$B$9:$F$99,3,FALSE)=0),"N/A",CONCATENATE("$",VLOOKUP(B23,'Unit Cost Norms'!$B$9:$F$99,3,FALSE)," with ",VLOOKUP(B23,'Unit Cost Norms'!$B$9:$F$99,5,FALSE)," ",VLOOKUP(B23,'Unit Cost Norms'!$B$9:$F$99,2,FALSE))) ->  | K23: 0
A24: LS | B24: Large Culverts | C24: =IF(E24>0,1,0) -> 0 | D24: LS | E24: =DrngLCVB -> 0 | H24: 0 | J24: =IF(OR(ISNA(VLOOKUP(B24,'Unit Cost Norms'!$B$9:$F$99,3,FALSE)),VLOOKUP(B24,'Unit Cost Norms'!$B$9:$F$99,3,FALSE)=0),"N/A",CONCATENATE("$",VLOOKUP(B24,'Unit Cost Norms'!$B$9:$F$99,3,FALSE)," with ",VLOOKUP(B24,'Unit Cost Norms'!$B$9:$F$99,5,FALSE)," ",VLOOKUP(B24,'Unit Cost Norms'!$B$9:$F$99,2,FALSE))) ->  | K24: 0
A25: LS | B25: Stormwater Management | C25: =IF(E25>0,1,0) -> 0 | D25: LS | E25: =DrngSWMB -> 0 | H25: 0 | J25: =IF(OR(ISNA(VLOOKUP(B25,'Unit Cost Norms'!$B$9:$F$99,3,FALSE)),VLOOKUP(B25,'Unit Cost Norms'!$B$9:$F$99,3,FALSE)=0),"N/A",CONCATENATE("$",VLOOKUP(B25,'Unit Cost Norms'!$B$9:$F$99,3,FALSE)," with ",VLOOKUP(B25,'Unit Cost Norms'!$B$9:$F$99,5,FALSE)," ",VLOOKUP(B25,'Unit Cost Norms'!$B$9:$F$99,2,FALSE))) ->  | K25: 0
B26: ='Quantity Calculations'!C101 -> 0 | C26: ='Quantity Calculations'!D101 -> 0 | D26: ='Quantity Calculations'!E101 -> 0 | H26: 0 | J26: =IF(OR(ISNA(VLOOKUP(B26,'Unit Cost Norms'!$B$9:$F$99,3,FALSE)),VLOOKUP(B26,'Unit Cost Norms'!$B$9:$F$99,3,FALSE)=0),"N/A",CONCATENATE("$",VLOOKUP(B26,'Unit Cost Norms'!$B$9:$F$99,3,FALSE)," with ",VLOOKUP(B26,'Unit Cost Norms'!$B$9:$F$99,5,FALSE)," ",VLOOKUP(B26,'Unit Cost Norms'!$B$9:$F$99,2,FALSE))) ->  | K26: 0
B27: ='Quantity Calculations'!C102 -> 0 | C27: ='Quantity Calculations'!D102 -> 0 | D27: ='Quantity Calculations'!E102 -> 0 | H27: 0 | J27: =IF(OR(ISNA(VLOOKUP(B27,'Unit Cost Norms'!$B$9:$F$99,3,FALSE)),VLOOKUP(B27,'Unit Cost Norms'!$B$9:$F$99,3,FALSE)=0),"N/A",CONCATENATE("$",VLOOKUP(B27,'Unit Cost Norms'!$B$9:$F$99,3,FALSE)," with ",VLOOKUP(B27,'Unit Cost Norms'!$B$9:$F$99,5,FALSE)," ",VLOOKUP(B27,'Unit Cost Norms'!$B$9:$F$99,2,FALSE))) ->  | K27: 0
B28: ='Quantity Calculations'!C103 -> 0 | C28: ='Quantity Calculations'!D103 -> 0 | D28: ='Quantity Calculations'!E103 -> 0 | H28: 0 | J28: =IF(OR(ISNA(VLOOKUP(B28,'Unit Cost Norms'!$B$9:$F$99,3,FALSE)),VLOOKUP(B28,'Unit Cost Norms'!$B$9:$F$99,3,FALSE)=0),"N/A",CONCATENATE("$",VLOOKUP(B28,'Unit Cost Norms'!$B$9:$F$99,3,FALSE)," with ",VLOOKUP(B28,'Unit Cost Norms'!$B$9:$F$99,5,FALSE)," ",VLOOKUP(B28,'Unit Cost Norms'!$B$9:$F$99,2,FALSE))) ->  | K28: 0
B29: ='Quantity Calculations'!C104 -> 0 | C29: ='Quantity Calculations'!D104 -> 0 | D29: ='Quantity Calculations'!E104 -> 0 | H29: 0 | J29: =IF(OR(ISNA(VLOOKUP(B29,'Unit Cost Norms'!$B$9:$F$99,3,FALSE)),VLOOKUP(B29,'Unit Cost Norms'!$B$9:$F$99,3,FALSE)=0),"N/A",CONCATENATE("$",VLOOKUP(B29,'Unit Cost Norms'!$B$9:$F$99,3,FALSE)," with ",VLOOKUP(B29,'Unit Cost Norms'!$B$9:$F$99,5,FALSE)," ",VLOOKUP(B29,'Unit Cost Norms'!$B$9:$F$99,2,FALSE))) ->  | K29: 0
B30: ='Quantity Calculations'!C105 -> 0 | C30: ='Quantity Calculations'!D105 -> 0 | D30: ='Quantity Calculations'!E105 -> 0 | H30: 0 | J30: =IF(OR(ISNA(VLOOKUP(B30,'Unit Cost Norms'!$B$9:$F$99,3,FALSE)),VLOOKUP(B30,'Unit Cost Norms'!$B$9:$F$99,3,FALSE)=0),"N/A",CONCATENATE("$",VLOOKUP(B30,'Unit Cost Norms'!$B$9:$F$99,3,FALSE)," with ",VLOOKUP(B30,'Unit Cost Norms'!$B$9:$F$99,5,FALSE)," ",VLOOKUP(B30,'Unit Cost Norms'!$B$9:$F$99,2,FALSE))) ->  | K30: 0
B31: ='Quantity Calculations'!C106 -> 0 | C31: ='Quantity Calculations'!D106 -> 0 | D31: ='Quantity Calculations'!E106 -> 0 | H31: 0 | J31: =IF(OR(ISNA(VLOOKUP(B31,'Unit Cost Norms'!$B$9:$F$99,3,FALSE)),VLOOKUP(B31,'Unit Cost Norms'!$B$9:$F$99,3,FALSE)=0),"N/A",CONCATENATE("$",VLOOKUP(B31,'Unit Cost Norms'!$B$9:$F$99,3,FALSE)," with ",VLOOKUP(B31,'Unit Cost Norms'!$B$9:$F$99,5,FALSE)," ",VLOOKUP(B31,'Unit Cost Norms'!$B$9:$F$99,2,FALSE))) ->  | K31: 0
B32: PAVEMENT ITEMS | C32: --- | H32: Estimate | J32: ='Unit Cost Norms'!$D$6 -> Culpeper
A33: Item Code | B33: Description | C33: Quantity | D33: Units | E33: Unit Cost | F33: Price Source | G33: Remarks | H33: =SUM(H34:H60) -> 0 | J33: Cost Norm
A34: 10243 or 10123 | B34: Aggr. Base Matl. Ty. I No. 21A | C34: =IF('Quantity Calculations'!D207= "No. 21A",'Quantity Calculations'!D213,0) -> 0 | D34: TON | H34: =E34*C34 -> 0 | J34: =IF(OR(ISNA(VLOOKUP(B34,'Unit Cost Norms'!$B$9:$F$99,3,FALSE)),VLOOKUP(B34,'Unit Cost Norms'!$B$9:$F$99,3,FALSE)=0),"N/A",CONCATENATE("$",VLOOKUP(B34,'Unit Cost Norms'!$B$9:$F$99,3,FALSE)," with ",VLOOKUP(B34,'Unit Cost Norms'!$B$9:$F$99,5,FALSE)," ",VLOOKUP(B34,'Unit Cost Norms'!$B$9:$F$99,2,FALSE))) -> $65 with 1400-2600 TON | K34: 0
A35: 10245 or 10128 | B35: Aggr. Base Matl. Ty. I No. 21B | C35: =IF('Quantity Calculations'!D207= "No. 21B",'Quantity Calculations'!D213,0) -> 0 | D35: TON | H35: =E35*C35 -> 0 | J35: =IF(OR(ISNA(VLOOKUP(B35,'Unit Cost Norms'!$B$9:$F$99,3,FALSE)),VLOOKUP(B35,'Unit Cost Norms'!$B$9:$F$99,3,FALSE)=0),"N/A",CONCATENATE("$",VLOOKUP(B35,'Unit Cost Norms'!$B$9:$F$99,3,FALSE)," with ",VLOOKUP(B35,'Unit Cost Norms'!$B$9:$F$99,5,FALSE)," ",VLOOKUP(B35,'Unit Cost Norms'!$B$9:$F$99,2,FALSE))) -> $68 with 1400-2600 TON | K35: 0
A36: 10250 | B36: Other Aggr. Base Matl. | C36: =IF(OR('Quantity Calculations'!D207= "Other ABC",'Quantity Calculations'!D207= ""),'Quantity Calculations'!D213,0) -> 0 | D36: TON | H36: =E36*C36 -> 0 | J36: =IF(OR(ISNA(VLOOKUP(B36,'Unit Cost Norms'!$B$9:$F$99,3,FALSE)),VLOOKUP(B36,'Unit Cost Norms'!$B$9:$F$99,3,FALSE)=0),"N/A",CONCATENATE("$",VLOOKUP(B36,'Unit Cost Norms'!$B$9:$F$99,3,FALSE)," with ",VLOOKUP(B36,'Unit Cost Norms'!$B$9:$F$99,5,FALSE)," ",VLOOKUP(B36,'Unit Cost Norms'!$B$9:$F$99,2,FALSE))) ->  | K36: =IF(AND(C36>0,E36=0),1,0) -> 0
A37: 10375 or 10891 | B37: Reinf. HCC Pave. 9" Truck Apron (Include stamped pattern) | C37: ='Quantity Calculations'!D214 -> 0 | D37: SY | H37: 0 | J37: =IF(OR(ISNA(VLOOKUP(B37,'Unit Cost Norms'!$B$9:$F$99,3,FALSE)),VLOOKUP(B37,'Unit Cost Norms'!$B$9:$F$99,3,FALSE)=0),"N/A",CONCATENATE("$",VLOOKUP(B37,'Unit Cost Norms'!$B$9:$F$99,3,FALSE)," with ",VLOOKUP(B37,'Unit Cost Norms'!$B$9:$F$99,5,FALSE)," ",VLOOKUP(B37,'Unit Cost Norms'!$B$9:$F$99,2,FALSE))) -> $610 with 350-450 SY | K37: 0
A38: 10598 | B38: Other Asphalt Conc. Ty. SM | C38: =IF(OR('Quantity Calculations'!D204= "Other SM",'Quantity Calculations'!D204= ""),'Quantity Calculations'!D210,0) -> 0 | D38: TON | H38: =E38*C38 -> 0 | J38: =IF(OR(ISNA(VLOOKUP(B38,'Unit Cost Norms'!$B$9:$F$99,3,FALSE)),VLOOKUP(B38,'Unit Cost Norms'!$B$9:$F$99,3,FALSE)=0),"N/A",CONCATENATE("$",VLOOKUP(B38,'Unit Cost Norms'!$B$9:$F$99,3,FALSE)," with ",VLOOKUP(B38,'Unit Cost Norms'!$B$9:$F$99,5,FALSE)," ",VLOOKUP(B38,'Unit Cost Norms'!$B$9:$F$99,2,FALSE))) ->  | K38: =IF(AND(C38>0,E38=0),1,0) -> 0
A39: 10598 | B39: Other Asphalt Conc. Ty. IM | C39: =IF(OR('Quantity Calculations'!D205= "Other IM",'Quantity Calculations'!D205= ""),'Quantity Calculations'!D211,0) -> 0 | D39: TON | H39: 0 | J39: =IF(OR(ISNA(VLOOKUP(B39,'Unit Cost Norms'!$B$9:$F$99,3,FALSE)),VLOOKUP(B39,'Unit Cost Norms'!$B$9:$F$99,3,FALSE)=0),"N/A",CONCATENATE("$",VLOOKUP(B39,'Unit Cost Norms'!$B$9:$F$99,3,FALSE)," with ",VLOOKUP(B39,'Unit Cost Norms'!$B$9:$F$99,5,FALSE)," ",VLOOKUP(B39,'Unit Cost Norms'!$B$9:$F$99,2,FALSE))) ->  | K39: 0
A40: 10598 | B40: Other Asphalt Conc. Ty. BM | C40: =IF(OR('Quantity Calculations'!D206= "Other BM",'Quantity Calculations'!D206= ""),'Quantity Calculations'!D212,0) -> 0 | D40: TON | H40: 0 | J40: =IF(OR(ISNA(VLOOKUP(B40,'Unit Cost Norms'!$B$9:$F$99,3,FALSE)),VLOOKUP(B40,'Unit Cost Norms'!$B$9:$F$99,3,FALSE)=0),"N/A",CONCATENATE("$",VLOOKUP(B40,'Unit Cost Norms'!$B$9:$F$99,3,FALSE)," with ",VLOOKUP(B40,'Unit Cost Norms'!$B$9:$F$99,5,FALSE)," ",VLOOKUP(B40,'Unit Cost Norms'!$B$9:$F$99,2,FALSE))) ->  | K40: 0
A41: 10607 | B41: Asphalt Conc. Ty. SM-12.5A | C41: =IF('Quantity Calculations'!D204= "SM-12.5A",'Quantity Calculations'!D210,0) -> 0 | D41: TON | H41: =E41*C41 -> 0 | J41: =IF(OR(ISNA(VLOOKUP(B41,'Unit Cost Norms'!$B$9:$F$99,3,FALSE)),VLOOKUP(B41,'Unit Cost Norms'!$B$9:$F$99,3,FALSE)=0),"N/A",CONCATENATE("$",VLOOKUP(B41,'Unit Cost Norms'!$B$9:$F$99,3,FALSE)," with ",VLOOKUP(B41,'Unit Cost Norms'!$B$9:$F$99,5,FALSE)," ",VLOOKUP(B41,'Unit Cost Norms'!$B$9:$F$99,2,FALSE))) -> $166 with 500-1500 TON | K41: =IF(AND(C41>0,E41=0),1,0) -> 0
A42: 10608 | B42: Asphalt Conc. Ty. SM-12.5D | C42: =IF('Quantity Calculations'!D204= "SM-12.5D",'Quantity Calculations'!D210,0) -> 0 | D42: TON | H42: 0 | J42: =IF(OR(ISNA(VLOOKUP(B42,'Unit Cost Norms'!$B$9:$F$99,3,FALSE)),VLOOKUP(B42,'Unit Cost Norms'!$B$9:$F$99,3,FALSE)=0),"N/A",CONCATENATE("$",VLOOKUP(B42,'Unit Cost Norms'!$B$9:$F$99,3,FALSE)," with ",VLOOKUP(B42,'Unit Cost Norms'!$B$9:$F$99,5,FALSE)," ",VLOOKUP(B42,'Unit Cost Norms'!$B$9:$F$99,2,FALSE))) -> $185 with 500-1500 TON | K42: 0
A43: 10609 | B43: Asphalt Conc. Ty. SM-12.5E | C43: =IF('Quantity Calculations'!D204= "SM-12.5E",'Quantity Calculations'!D210,0) -> 0 | D43: TON | H43: 0 | J43: =IF(OR(ISNA(VLOOKUP(B43,'Unit Cost Norms'!$B$9:$F$99,3,FALSE)),VLOOKUP(B43,'Unit Cost Norms'!$B$9:$F$99,3,FALSE)=0),"N/A",CONCATENATE("$",VLOOKUP(B43,'Unit Cost Norms'!$B$9:$F$99,3,FALSE)," with ",VLOOKUP(B43,'Unit Cost Norms'!$B$9:$F$99,5,FALSE)," ",VLOOKUP(B43,'Unit Cost Norms'!$B$9:$F$99,2,FALSE))) -> $210 with 500-1500 TON | K43: 0
A44: 10610 | B44: Asphalt Concrete Ty. IM-19.0A | C44: =IF('Quantity Calculations'!D205= "IM-19.0A",'Quantity Calculations'!D211,0) -> 0 | D44: TON | H44: 0 | J44: =IF(OR(ISNA(VLOOKUP(B44,'Unit Cost Norms'!$B$9:$F$99,3,FALSE)),VLOOKUP(B44,'Unit Cost Norms'!$B$9:$F$99,3,FALSE)=0),"N/A",CONCATENATE("$",VLOOKUP(B44,'Unit Cost Norms'!$B$9:$F$99,3,FALSE)," with ",VLOOKUP(B44,'Unit Cost Norms'!$B$9:$F$99,5,FALSE)," ",VLOOKUP(B44,'Unit Cost Norms'!$B$9:$F$99,2,FALSE))) -> $177 with 500-1100 TON | K44: 0
A45: 10611 | B45: Asphalt Concrete Ty. IM-19.0D | C45: =IF('Quantity Calculations'!D205= "IM-19.0D",'Quantity Calculations'!D211,0) -> 0 | D45: TON | H45: =E45*C45 -> 0 | J45: =IF(OR(ISNA(VLOOKUP(B45,'Unit Cost Norms'!$B$9:$F$99,3,FALSE)),VLOOKUP(B45,'Unit Cost Norms'!$B$9:$F$99,3,FALSE)=0),"N/A",CONCATENATE("$",VLOOKUP(B45,'Unit Cost Norms'!$B$9:$F$99,3,FALSE)," with ",VLOOKUP(B45,'Unit Cost Norms'!$B$9:$F$99,5,FALSE)," ",VLOOKUP(B45,'Unit Cost Norms'!$B$9:$F$99,2,FALSE))) -> $192 with 500-1100 TON | K45: =IF(AND(C45>0,E45=0),1,0) -> 0
A46: 10628 | B46: Flexible Pave. Planing 0"-2" | C46: ='Quantity Calculations'!D215 -> 0 | D46: SY | H46: 0 | J46: =IF(OR(ISNA(VLOOKUP(B46,'Unit Cost Norms'!$B$9:$F$99,3,FALSE)),VLOOKUP(B46,'Unit Cost Norms'!$B$9:$F$99,3,FALSE)=0),"N/A",CONCATENATE("$",VLOOKUP(B46,'Unit Cost Norms'!$B$9:$F$99,3,FALSE)," with ",VLOOKUP(B46,'Unit Cost Norms'!$B$9:$F$99,5,FALSE)," ",VLOOKUP(B46,'Unit Cost Norms'!$B$9:$F$99,2,FALSE))) -> $14 with 2500-3500 SY | K46: 0
A47: 10635 | B47: Asphalt Conc. Ty. SM-9.5A | C47: =IF('Quantity Calculations'!D204= "SM-9.5A",'Quantity Calculations'!D210,0) -> 0 | D47: TON | H47: 0 | J47: =IF(OR(ISNA(VLOOKUP(B47,'Unit Cost Norms'!$B$9:$F$99,3,FALSE)),VLOOKUP(B47,'Unit Cost Norms'!$B$9:$F$99,3,FALSE)=0),"N/A",CONCATENATE("$",VLOOKUP(B47,'Unit Cost Norms'!$B$9:$F$99,3,FALSE)," with ",VLOOKUP(B47,'Unit Cost Norms'!$B$9:$F$99,5,FALSE)," ",VLOOKUP(B47,'Unit Cost Norms'!$B$9:$F$99,2,FALSE))) -> $156 with 500-1500 TON | K47: 0
A48: 10636 | B48: Asphalt Conc. Ty. SM-9.5D | C48: =IF('Quantity Calculations'!D204= "SM-9.5D",'Quantity Calculations'!D210,0) -> 0 | D48: TON | H48: 0 | J48: =IF(OR(ISNA(VLOOKUP(B48,'Unit Cost Norms'!$B$9:$F$99,3,FALSE)),VLOOKUP(B48,'Unit Cost Norms'!$B$9:$F$99,3,FALSE)=0),"N/A",CONCATENATE("$",VLOOKUP(B48,'Unit Cost Norms'!$B$9:$F$99,3,FALSE)," with ",VLOOKUP(B48,'Unit Cost Norms'!$B$9:$F$99,5,FALSE)," ",VLOOKUP(B48,'Unit Cost Norms'!$B$9:$F$99,2,FALSE))) -> $224 with 500-1500 TON | K48: 0
A49: 10642 | B49: Asphalt Concrete Ty. BM-25.0A | C49: =IF('Quantity Calculations'!D206= "BM-25.0A",'Quantity Calculations'!D212,0) -> 0 | D49: TON | H49: 0 | J49: =IF(OR(ISNA(VLOOKUP(B49,'Unit Cost Norms'!$B$9:$F$99,3,FALSE)),VLOOKUP(B49,'Unit Cost Norms'!$B$9:$F$99,3,FALSE)=0),"N/A",CONCATENATE("$",VLOOKUP(B49,'Unit Cost Norms'!$B$9:$F$99,3,FALSE)," with ",VLOOKUP(B49,'Unit Cost Norms'!$B$9:$F$99,5,FALSE)," ",VLOOKUP(B49,'Unit Cost Norms'!$B$9:$F$99,2,FALSE))) -> $184 with 500-1500 TON | K49: 0
A50: 10643 | B50: Asphalt Concrete Ty. BM-25.0D | C50: =IF('Quantity Calculations'!D206= "BM-25.0D",'Quantity Calculations'!D212,0) -> 0 | D50: TON | H50: =E50*C50 -> 0 | J50: =IF(OR(ISNA(VLOOKUP(B50,'Unit Cost Norms'!$B$9:$F$99,3,FALSE)),VLOOKUP(B50,'Unit Cost Norms'!$B$9:$F$99,3,FALSE)=0),"N/A",CONCATENATE("$",VLOOKUP(B50,'Unit Cost Norms'!$B$9:$F$99,3,FALSE)," with ",VLOOKUP(B50,'Unit Cost Norms'!$B$9:$F$99,5,FALSE)," ",VLOOKUP(B50,'Unit Cost Norms'!$B$9:$F$99,2,FALSE))) -> $184 with 500-1500 TON | K50: =IF(AND(C50>0,E50=0),1,0) -> 0
A51: 10700 | B51: Rumble Strip, Asphalt | C51: ='Quantity Calculations'!D219 -> 0 | D51: LF | H51: =E51*C51 -> 0 | J51: =IF(OR(ISNA(VLOOKUP(B51,'Unit Cost Norms'!$B$9:$F$99,3,FALSE)),VLOOKUP(B51,'Unit Cost Norms'!$B$9:$F$99,3,FALSE)=0),"N/A",CONCATENATE("$",VLOOKUP(B51,'Unit Cost Norms'!$B$9:$F$99,3,FALSE)," with ",VLOOKUP(B51,'Unit Cost Norms'!$B$9:$F$99,5,FALSE)," ",VLOOKUP(B51,'Unit Cost Norms'!$B$9:$F$99,2,FALSE))) -> $48 with 100-500 LF | K51: 0
A52: 11070 | B52: Saw-Cut Asph Conc. (Variable Depth) | C52: ='Quantity Calculations'!D216 -> 0 | D52: LF | H52: 0 | J52: =IF(OR(ISNA(VLOOKUP(B52,'Unit Cost Norms'!$B$9:$F$99,3,FALSE)),VLOOKUP(B52,'Unit Cost Norms'!$B$9:$F$99,3,FALSE)=0),"N/A",CONCATENATE("$",VLOOKUP(B52,'Unit Cost Norms'!$B$9:$F$99,3,FALSE)," with ",VLOOKUP(B52,'Unit Cost Norms'!$B$9:$F$99,5,FALSE)," ",VLOOKUP(B52,'Unit Cost Norms'!$B$9:$F$99,2,FALSE))) -> $8 with 1200-3000 LF | K52: 0
A53: 24400 | B53: Obscuring Roadway | C53: ='Quantity Calculations'!D218 -> 0 | D53: UNIT | H53: 0 | J53: =IF(OR(ISNA(VLOOKUP(B53,'Unit Cost Norms'!$B$9:$F$99,3,FALSE)),VLOOKUP(B53,'Unit Cost Norms'!$B$9:$F$99,3,FALSE)=0),"N/A",CONCATENATE("$",VLOOKUP(B53,'Unit Cost Norms'!$B$9:$F$99,3,FALSE)," with ",VLOOKUP(B53,'Unit Cost Norms'!$B$9:$F$99,5,FALSE)," ",VLOOKUP(B53,'Unit Cost Norms'!$B$9:$F$99,2,FALSE))) -> $2300 with 1-6 UNIT | K53: 0
A54: 24430 | B54: Demolition of Pavement (Flexible) | C54: ='Quantity Calculations'!D217 -> 0 | D54: SY | H54: 0 | J54: =IF(OR(ISNA(VLOOKUP(B54,'Unit Cost Norms'!$B$9:$F$99,3,FALSE)),VLOOKUP(B54,'Unit Cost Norms'!$B$9:$F$99,3,FALSE)=0),"N/A",CONCATENATE("$",VLOOKUP(B54,'Unit Cost Norms'!$B$9:$F$99,3,FALSE)," with ",VLOOKUP(B54,'Unit Cost Norms'!$B$9:$F$99,5,FALSE)," ",VLOOKUP(B54,'Unit Cost Norms'!$B$9:$F$99,2,FALSE))) -> $16 with 1000-3000 SY | K54: 0
B55: ='Quantity Calculations'!C222 -> 0 | C55: ='Quantity Calculations'!D222 -> 0 | D55: ='Quantity Calculations'!E222 -> 0 | H55: 0 | J55: =IF(OR(ISNA(VLOOKUP(B55,'Unit Cost Norms'!$B$9:$F$99,3,FALSE)),VLOOKUP(B55,'Unit Cost Norms'!$B$9:$F$99,3,FALSE)=0),"N/A",CONCATENATE("$",VLOOKUP(B55,'Unit Cost Norms'!$B$9:$F$99,3,FALSE)," with ",VLOOKUP(B55,'Unit Cost Norms'!$B$9:$F$99,5,FALSE)," ",VLOOKUP(B55,'Unit Cost Norms'!$B$9:$F$99,2,FALSE))) ->  | K55: 0
B56: ='Quantity Calculations'!C223 -> 0 | C56: ='Quantity Calculations'!D223 -> 0 | D56: ='Quantity Calculations'!E223 -> 0 | H56: 0 | J56: =IF(OR(ISNA(VLOOKUP(B56,'Unit Cost Norms'!$B$9:$F$99,3,FALSE)),VLOOKUP(B56,'Unit Cost Norms'!$B$9:$F$99,3,FALSE)=0),"N/A",CONCATENATE("$",VLOOKUP(B56,'Unit Cost Norms'!$B$9:$F$99,3,FALSE)," with ",VLOOKUP(B56,'Unit Cost Norms'!$B$9:$F$99,5,FALSE)," ",VLOOKUP(B56,'Unit Cost Norms'!$B$9:$F$99,2,FALSE))) ->  | K56: 0
B57: ='Quantity Calculations'!C224 -> 0 | C57: ='Quantity Calculations'!D224 -> 0 | D57: ='Quantity Calculations'!E224 -> 0 | H57: 0 | J57: =IF(OR(ISNA(VLOOKUP(B57,'Unit Cost Norms'!$B$9:$F$99,3,FALSE)),VLOOKUP(B57,'Unit Cost Norms'!$B$9:$F$99,3,FALSE)=0),"N/A",CONCATENATE("$",VLOOKUP(B57,'Unit Cost Norms'!$B$9:$F$99,3,FALSE)," with ",VLOOKUP(B57,'Unit Cost Norms'!$B$9:$F$99,5,FALSE)," ",VLOOKUP(B57,'Unit Cost Norms'!$B$9:$F$99,2,FALSE))) ->  | K57: 0
B58: ='Quantity Calculations'!C225 -> 0 | C58: ='Quantity Calculations'!D225 -> 0 | D58: ='Quantity Calculations'!E225 -> 0 | H58: 0 | J58: =IF(OR(ISNA(VLOOKUP(B58,'Unit Cost Norms'!$B$9:$F$99,3,FALSE)),VLOOKUP(B58,'Unit Cost Norms'!$B$9:$F$99,3,FALSE)=0),"N/A",CONCATENATE("$",VLOOKUP(B58,'Unit Cost Norms'!$B$9:$F$99,3,FALSE)," with ",VLOOKUP(B58,'Unit Cost Norms'!$B$9:$F$99,5,FALSE)," ",VLOOKUP(B58,'Unit Cost Norms'!$B$9:$F$99,2,FALSE))) ->  | K58: 0
B59: ='Quantity Calculations'!C226 -> 0 | C59: ='Quantity Calculations'!D226 -> 0 | D59: ='Quantity Calculations'!E226 -> 0 | H59: 0 | J59: =IF(OR(ISNA(VLOOKUP(B59,'Unit Cost Norms'!$B$9:$F$99,3,FALSE)),VLOOKUP(B59,'Unit Cost Norms'!$B$9:$F$99,3,FALSE)=0),"N/A",CONCATENATE("$",VLOOKUP(B59,'Unit Cost Norms'!$B$9:$F$99,3,FALSE)," with ",VLOOKUP(B59,'Unit Cost Norms'!$B$9:$F$99,5,FALSE)," ",VLOOKUP(B59,'Unit Cost Norms'!$B$9:$F$99,2,FALSE))) ->  | K59: 0
B60: ='Quantity Calculations'!C227 -> 0 | C60: ='Quantity Calculations'!D227 -> 0 | D60: ='Quantity Calculations'!E227 -> 0 | H60: 0 | J60: =IF(OR(ISNA(VLOOKUP(B60,'Unit Cost Norms'!$B$9:$F$99,3,FALSE)),VLOOKUP(B60,'Unit Cost Norms'!$B$9:$F$99,3,FALSE)=0),"N/A",CONCATENATE("$",VLOOKUP(B60,'Unit Cost Norms'!$B$9:$F$99,3,FALSE)," with ",VLOOKUP(B60,'Unit Cost Norms'!$B$9:$F$99,5,FALSE)," ",VLOOKUP(B60,'Unit Cost Norms'!$B$9:$F$99,2,FALSE))) ->  | K60: 0
B61: ROADWAY INCIDENTAL ITEMS | C61: --- | H61: Estimate | J61: ='Unit Cost Norms'!$D$6 -> Culpeper
A62: Item Code | B62: Description | C62: Quantity | D62: Units | E62: Unit Cost | F62: Price Source | G62: Remarks | H62: =SUM(H63:H96) -> 0 | J62: Cost Norm
A63: 00540 | B63: Reinforcing Steel (for Stairs) | C63: ='Quantity Calculations'!D296 -> 0 | D63: LB | H63: =E63*C63 -> 0 | J63: =IF(OR(ISNA(VLOOKUP(B63,'Unit Cost Norms'!$B$9:$F$99,3,FALSE)),VLOOKUP(B63,'Unit Cost Norms'!$B$9:$F$99,3,FALSE)=0),"N/A",CONCATENATE("$",VLOOKUP(B63,'Unit Cost Norms'!$B$9:$F$99,3,FALSE)," with ",VLOOKUP(B63,'Unit Cost Norms'!$B$9:$F$99,5,FALSE)," ",VLOOKUP(B63,'Unit Cost Norms'!$B$9:$F$99,2,FALSE))) -> $12 with 80 LB | K63: 0
A64: 09246 | B64: Modified Shoulder Gutter | C64: ='Quantity Calculations'!D288 -> 0 | D64: SY | H64: 0 | J64: =IF(OR(ISNA(VLOOKUP(B64,'Unit Cost Norms'!$B$9:$F$99,3,FALSE)),VLOOKUP(B64,'Unit Cost Norms'!$B$9:$F$99,3,FALSE)=0),"N/A",CONCATENATE("$",VLOOKUP(B64,'Unit Cost Norms'!$B$9:$F$99,3,FALSE)," with ",VLOOKUP(B64,'Unit Cost Norms'!$B$9:$F$99,5,FALSE)," ",VLOOKUP(B64,'Unit Cost Norms'!$B$9:$F$99,2,FALSE))) -> $160 with 150-400 SY | K64: 0
A65: 12020 or 12022 | B65: Standard or Radial CG-2 | C65: ='Quantity Calculations'!D284 -> 0 | D65: LF | H65: 0 | J65: =IF(OR(ISNA(VLOOKUP(B65,'Unit Cost Norms'!$B$9:$F$99,3,FALSE)),VLOOKUP(B65,'Unit Cost Norms'!$B$9:$F$99,3,FALSE)=0),"N/A",CONCATENATE("$",VLOOKUP(B65,'Unit Cost Norms'!$B$9:$F$99,3,FALSE)," with ",VLOOKUP(B65,'Unit Cost Norms'!$B$9:$F$99,5,FALSE)," ",VLOOKUP(B65,'Unit Cost Norms'!$B$9:$F$99,2,FALSE))) -> $62 with 100-400 LF | K65: 0
A66: 12030 or 12032 | B66: Standard or Radial CG-3 | C66: ='Quantity Calculations'!D285 -> 0 | D66: LF | H66: 0 | J66: =IF(OR(ISNA(VLOOKUP(B66,'Unit Cost Norms'!$B$9:$F$99,3,FALSE)),VLOOKUP(B66,'Unit Cost Norms'!$B$9:$F$99,3,FALSE)=0),"N/A",CONCATENATE("$",VLOOKUP(B66,'Unit Cost Norms'!$B$9:$F$99,3,FALSE)," with ",VLOOKUP(B66,'Unit Cost Norms'!$B$9:$F$99,5,FALSE)," ",VLOOKUP(B66,'Unit Cost Norms'!$B$9:$F$99,2,FALSE))) -> $70 with 100-400 LF | K66: 0
A67: 12322 | B67: Asphalt Concrete Curb Type MC-3B | C67: ='Quantity Calculations'!D289 -> 0 | D67: LF | H67: =E67*C67 -> 0 | J67: =IF(OR(ISNA(VLOOKUP(B67,'Unit Cost Norms'!$B$9:$F$99,3,FALSE)),VLOOKUP(B67,'Unit Cost Norms'!$B$9:$F$99,3,FALSE)=0),"N/A",CONCATENATE("$",VLOOKUP(B67,'Unit Cost Norms'!$B$9:$F$99,3,FALSE)," with ",VLOOKUP(B67,'Unit Cost Norms'!$B$9:$F$99,5,FALSE)," ",VLOOKUP(B67,'Unit Cost Norms'!$B$9:$F$99,2,FALSE))) -> $90 with 100-300 LF | K67: 0
A68: 12600 or 12610 | B68: Standard or Radial CG-6 | C68: ='Quantity Calculations'!D286 -> 0 | D68: LF | H68: 0 | J68: =IF(OR(ISNA(VLOOKUP(B68,'Unit Cost Norms'!$B$9:$F$99,3,FALSE)),VLOOKUP(B68,'Unit Cost Norms'!$B$9:$F$99,3,FALSE)=0),"N/A",CONCATENATE("$",VLOOKUP(B68,'Unit Cost Norms'!$B$9:$F$99,3,FALSE)," with ",VLOOKUP(B68,'Unit Cost Norms'!$B$9:$F$99,5,FALSE)," ",VLOOKUP(B68,'Unit Cost Norms'!$B$9:$F$99,2,FALSE))) -> $60 with 1000-3000 LF | K68: 0
A69: 12700 or 12710 | B69: Standard or Radial CG-7 | C69: ='Quantity Calculations'!D287 -> 0 | D69: LF | H69: 0 | J69: =IF(OR(ISNA(VLOOKUP(B69,'Unit Cost Norms'!$B$9:$F$99,3,FALSE)),VLOOKUP(B69,'Unit Cost Norms'!$B$9:$F$99,3,FALSE)=0),"N/A",CONCATENATE("$",VLOOKUP(B69,'Unit Cost Norms'!$B$9:$F$99,3,FALSE)," with ",VLOOKUP(B69,'Unit Cost Norms'!$B$9:$F$99,5,FALSE)," ",VLOOKUP(B69,'Unit Cost Norms'!$B$9:$F$99,2,FALSE))) -> $60 with 1000-3000 LF | K69: 0
A70: 12940 | B70: Entrance Gutter CG-9D | C70: ='Quantity Calculations'!D291 -> 0 | D70: SY | H70: 0 | J70: =IF(OR(ISNA(VLOOKUP(B70,'Unit Cost Norms'!$B$9:$F$99,3,FALSE)),VLOOKUP(B70,'Unit Cost Norms'!$B$9:$F$99,3,FALSE)=0),"N/A",CONCATENATE("$",VLOOKUP(B70,'Unit Cost Norms'!$B$9:$F$99,3,FALSE)," with ",VLOOKUP(B70,'Unit Cost Norms'!$B$9:$F$99,5,FALSE)," ",VLOOKUP(B70,'Unit Cost Norms'!$B$9:$F$99,2,FALSE))) -> $200 with 15-60 SY | K70: 0
A71: 13108 | B71: CG-12 Detectable Warning Surface | C71: ='Quantity Calculations'!D294 -> 0 | D71: SY | H71: 0 | J71: =IF(OR(ISNA(VLOOKUP(B71,'Unit Cost Norms'!$B$9:$F$99,3,FALSE)),VLOOKUP(B71,'Unit Cost Norms'!$B$9:$F$99,3,FALSE)=0),"N/A",CONCATENATE("$",VLOOKUP(B71,'Unit Cost Norms'!$B$9:$F$99,3,FALSE)," with ",VLOOKUP(B71,'Unit Cost Norms'!$B$9:$F$99,5,FALSE)," ",VLOOKUP(B71,'Unit Cost Norms'!$B$9:$F$99,2,FALSE))) -> $720 with 10-30 SY | K71: 0
A72: 13215 | B72: Mailbox Post, Single | C72: ='Quantity Calculations'!D310 -> 0 | D72: EA | H72: 0 | J72: =IF(OR(ISNA(VLOOKUP(B72,'Unit Cost Norms'!$B$9:$F$99,3,FALSE)),VLOOKUP(B72,'Unit Cost Norms'!$B$9:$F$99,3,FALSE)=0),"N/A",CONCATENATE("$",VLOOKUP(B72,'Unit Cost Norms'!$B$9:$F$99,3,FALSE)," with ",VLOOKUP(B72,'Unit Cost Norms'!$B$9:$F$99,5,FALSE)," ",VLOOKUP(B72,'Unit Cost Norms'!$B$9:$F$99,2,FALSE))) -> $415 with 2-7 EA | K72: 0
A73: 13220 | B73: Hydraulic Cement Concrete Sidewalk 4" | C73: ='Quantity Calculations'!D293 -> 0 | D73: SY | H73: 0 | J73: =IF(OR(ISNA(VLOOKUP(B73,'Unit Cost Norms'!$B$9:$F$99,3,FALSE)),VLOOKUP(B73,'Unit Cost Norms'!$B$9:$F$99,3,FALSE)=0),"N/A",CONCATENATE("$",VLOOKUP(B73,'Unit Cost Norms'!$B$9:$F$99,3,FALSE)," with ",VLOOKUP(B73,'Unit Cost Norms'!$B$9:$F$99,5,FALSE)," ",VLOOKUP(B73,'Unit Cost Norms'!$B$9:$F$99,2,FALSE))) -> $107 with 100-500 SY | K73: 0
A74: 13252 | B74: Concrete Class A-3 Misc. (for Stairs) | C74: ='Quantity Calculations'!D295 -> 0 | D74: CY | H74: 0 | J74: =IF(OR(ISNA(VLOOKUP(B74,'Unit Cost Norms'!$B$9:$F$99,3,FALSE)),VLOOKUP(B74,'Unit Cost Norms'!$B$9:$F$99,3,FALSE)=0),"N/A",CONCATENATE("$",VLOOKUP(B74,'Unit Cost Norms'!$B$9:$F$99,3,FALSE)," with ",VLOOKUP(B74,'Unit Cost Norms'!$B$9:$F$99,5,FALSE)," ",VLOOKUP(B74,'Unit Cost Norms'!$B$9:$F$99,2,FALSE))) -> $1600 with 3 CY | K74: 0
A75: 13280 or 13282 | B75: Guardrail GR-MGS1 (consider 6' or 9' post) | C75: ='Quantity Calculations'!D300 -> 0 | D75: LF | H75: 0 | J75: =IF(OR(ISNA(VLOOKUP(B75,'Unit Cost Norms'!$B$9:$F$99,3,FALSE)),VLOOKUP(B75,'Unit Cost Norms'!$B$9:$F$99,3,FALSE)=0),"N/A",CONCATENATE("$",VLOOKUP(B75,'Unit Cost Norms'!$B$9:$F$99,3,FALSE)," with ",VLOOKUP(B75,'Unit Cost Norms'!$B$9:$F$99,5,FALSE)," ",VLOOKUP(B75,'Unit Cost Norms'!$B$9:$F$99,2,FALSE))) -> $53 with 200-700 LF | K75: 0
A76: 13286 | B76: Guardrail Terminal GR-MGS2 | C76: ='Quantity Calculations'!D301 -> 0 | D76: EA | H76: 0 | J76: =IF(OR(ISNA(VLOOKUP(B76,'Unit Cost Norms'!$B$9:$F$99,3,FALSE)),VLOOKUP(B76,'Unit Cost Norms'!$B$9:$F$99,3,FALSE)=0),"N/A",CONCATENATE("$",VLOOKUP(B76,'Unit Cost Norms'!$B$9:$F$99,3,FALSE)," with ",VLOOKUP(B76,'Unit Cost Norms'!$B$9:$F$99,5,FALSE)," ",VLOOKUP(B76,'Unit Cost Norms'!$B$9:$F$99,2,FALSE))) -> $5900 with 1-2 EA | K76: 0
A77: 13287 | B77: Guardrail End Anchorage GR-MGS3 | C77: ='Quantity Calculations'!D302 -> 0 | D77: EA | H77: 0 | J77: =IF(OR(ISNA(VLOOKUP(B77,'Unit Cost Norms'!$B$9:$F$99,3,FALSE)),VLOOKUP(B77,'Unit Cost Norms'!$B$9:$F$99,3,FALSE)=0),"N/A",CONCATENATE("$",VLOOKUP(B77,'Unit Cost Norms'!$B$9:$F$99,3,FALSE)," with ",VLOOKUP(B77,'Unit Cost Norms'!$B$9:$F$99,5,FALSE)," ",VLOOKUP(B77,'Unit Cost Norms'!$B$9:$F$99,2,FALSE))) -> $2600 with 1-2 EA | K77: 0
A78: 13383 or 13392 | B78: Fixed Object Attachment GR-FOA | C78: ='Quantity Calculations'!D303 -> 0 | D78: EA | H78: 0 | J78: =IF(OR(ISNA(VLOOKUP(B78,'Unit Cost Norms'!$B$9:$F$99,3,FALSE)),VLOOKUP(B78,'Unit Cost Norms'!$B$9:$F$99,3,FALSE)=0),"N/A",CONCATENATE("$",VLOOKUP(B78,'Unit Cost Norms'!$B$9:$F$99,3,FALSE)," with ",VLOOKUP(B78,'Unit Cost Norms'!$B$9:$F$99,5,FALSE)," ",VLOOKUP(B78,'Unit Cost Norms'!$B$9:$F$99,2,FALSE))) -> $4000 with 1-2 EA | K78: 0
A79: 13460 or 13461 | B79: Median Barrier MB-7D (one barrier) or MB-7E (variable gap) | C79: ='Quantity Calculations'!D305 -> 0 | D79: LF | H79: 0 | J79: =IF(OR(ISNA(VLOOKUP(B79,'Unit Cost Norms'!$B$9:$F$99,3,FALSE)),VLOOKUP(B79,'Unit Cost Norms'!$B$9:$F$99,3,FALSE)=0),"N/A",CONCATENATE("$",VLOOKUP(B79,'Unit Cost Norms'!$B$9:$F$99,3,FALSE)," with ",VLOOKUP(B79,'Unit Cost Norms'!$B$9:$F$99,5,FALSE)," ",VLOOKUP(B79,'Unit Cost Norms'!$B$9:$F$99,2,FALSE))) -> $220 with 100-400 LF | K79: 0
A80: 13487 | B80: Median Barrier MB-8A Type III | C80: ='Quantity Calculations'!D306 -> 0 | D80: LF | H80: 0 | J80: =IF(OR(ISNA(VLOOKUP(B80,'Unit Cost Norms'!$B$9:$F$99,3,FALSE)),VLOOKUP(B80,'Unit Cost Norms'!$B$9:$F$99,3,FALSE)=0),"N/A",CONCATENATE("$",VLOOKUP(B80,'Unit Cost Norms'!$B$9:$F$99,3,FALSE)," with ",VLOOKUP(B80,'Unit Cost Norms'!$B$9:$F$99,5,FALSE)," ",VLOOKUP(B80,'Unit Cost Norms'!$B$9:$F$99,2,FALSE))) ->  | K80: 0
A81: 13607 | B81: Impact Attenuator St'd IA-1, TL-3 | C81: ='Quantity Calculations'!D307 -> 0 | D81: EA | H81: 0 | J81: =IF(OR(ISNA(VLOOKUP(B81,'Unit Cost Norms'!$B$9:$F$99,3,FALSE)),VLOOKUP(B81,'Unit Cost Norms'!$B$9:$F$99,3,FALSE)=0),"N/A",CONCATENATE("$",VLOOKUP(B81,'Unit Cost Norms'!$B$9:$F$99,3,FALSE)," with ",VLOOKUP(B81,'Unit Cost Norms'!$B$9:$F$99,5,FALSE)," ",VLOOKUP(B81,'Unit Cost Norms'!$B$9:$F$99,2,FALSE))) -> $42000 with 1-2 EA | K81: 0
A82: 21110 or 21020 | B82: Median Strip MS-1A or MS-1 (on asphalt) | C82: ='Quantity Calculations'!D290 -> 0 | D82: SY | H82: 0 | J82: =IF(OR(ISNA(VLOOKUP(B82,'Unit Cost Norms'!$B$9:$F$99,3,FALSE)),VLOOKUP(B82,'Unit Cost Norms'!$B$9:$F$99,3,FALSE)=0),"N/A",CONCATENATE("$",VLOOKUP(B82,'Unit Cost Norms'!$B$9:$F$99,3,FALSE)," with ",VLOOKUP(B82,'Unit Cost Norms'!$B$9:$F$99,5,FALSE)," ",VLOOKUP(B82,'Unit Cost Norms'!$B$9:$F$99,2,FALSE))) -> $225 with 200-700 SY | K82: 0
A83: 22501 | B83: Fence (FE-W1) | C83: ='Quantity Calculations'!D308 -> 0 | D83: LF | H83: 0 | J83: =IF(OR(ISNA(VLOOKUP(B83,'Unit Cost Norms'!$B$9:$F$99,3,FALSE)),VLOOKUP(B83,'Unit Cost Norms'!$B$9:$F$99,3,FALSE)=0),"N/A",CONCATENATE("$",VLOOKUP(B83,'Unit Cost Norms'!$B$9:$F$99,3,FALSE)," with ",VLOOKUP(B83,'Unit Cost Norms'!$B$9:$F$99,5,FALSE)," ",VLOOKUP(B83,'Unit Cost Norms'!$B$9:$F$99,2,FALSE))) -> $60 with 250-750 LF | K83: =IF(AND(C83>0,E83=0),1,0) -> 0
A84: 22685 | B84: Fence (Wood Board) | C84: ='Quantity Calculations'!D309 -> 0 | D84: LF | H84: 0 | J84: =IF(OR(ISNA(VLOOKUP(B84,'Unit Cost Norms'!$B$9:$F$99,3,FALSE)),VLOOKUP(B84,'Unit Cost Norms'!$B$9:$F$99,3,FALSE)=0),"N/A",CONCATENATE("$",VLOOKUP(B84,'Unit Cost Norms'!$B$9:$F$99,3,FALSE)," with ",VLOOKUP(B84,'Unit Cost Norms'!$B$9:$F$99,5,FALSE)," ",VLOOKUP(B84,'Unit Cost Norms'!$B$9:$F$99,2,FALSE))) -> $125 with 30-100 LF | K84: 0
A85: 24600 | B85: Remove Existing Guardrail | C85: ='Quantity Calculations'!D304 -> 0 | D85: LF | H85: 0 | J85: =IF(OR(ISNA(VLOOKUP(B85,'Unit Cost Norms'!$B$9:$F$99,3,FALSE)),VLOOKUP(B85,'Unit Cost Norms'!$B$9:$F$99,3,FALSE)=0),"N/A",CONCATENATE("$",VLOOKUP(B85,'Unit Cost Norms'!$B$9:$F$99,3,FALSE)," with ",VLOOKUP(B85,'Unit Cost Norms'!$B$9:$F$99,5,FALSE)," ",VLOOKUP(B85,'Unit Cost Norms'!$B$9:$F$99,2,FALSE))) -> $18 with 300-800 LF | K85: 0
A86: 25002 | B86: Handrail HR-1 Type 1 (Stairs) | C86: ='Quantity Calculations'!D297 -> 0 | D86: LF | H86: 0 | J86: =IF(OR(ISNA(VLOOKUP(B86,'Unit Cost Norms'!$B$9:$F$99,3,FALSE)),VLOOKUP(B86,'Unit Cost Norms'!$B$9:$F$99,3,FALSE)=0),"N/A",CONCATENATE("$",VLOOKUP(B86,'Unit Cost Norms'!$B$9:$F$99,3,FALSE)," with ",VLOOKUP(B86,'Unit Cost Norms'!$B$9:$F$99,5,FALSE)," ",VLOOKUP(B86,'Unit Cost Norms'!$B$9:$F$99,2,FALSE))) -> $540 with 10-40 LF | K86: 0
A87: 25003 | B87: Handrail HR-1 Type 2 (Pedestrian) | C87: ='Quantity Calculations'!D298 -> 0 | D87: LF | H87: 0 | J87: =IF(OR(ISNA(VLOOKUP(B87,'Unit Cost Norms'!$B$9:$F$99,3,FALSE)),VLOOKUP(B87,'Unit Cost Norms'!$B$9:$F$99,3,FALSE)=0),"N/A",CONCATENATE("$",VLOOKUP(B87,'Unit Cost Norms'!$B$9:$F$99,3,FALSE)," with ",VLOOKUP(B87,'Unit Cost Norms'!$B$9:$F$99,5,FALSE)," ",VLOOKUP(B87,'Unit Cost Norms'!$B$9:$F$99,2,FALSE))) -> $355 with 50-300 LF | K87: 0
A88: 25004 | B88: Handrail HR-1 Type 3 (Bicycle) | C88: ='Quantity Calculations'!D299 -> 0 | D88: LF | H88: 0 | J88: =IF(OR(ISNA(VLOOKUP(B88,'Unit Cost Norms'!$B$9:$F$99,3,FALSE)),VLOOKUP(B88,'Unit Cost Norms'!$B$9:$F$99,3,FALSE)=0),"N/A",CONCATENATE("$",VLOOKUP(B88,'Unit Cost Norms'!$B$9:$F$99,3,FALSE)," with ",VLOOKUP(B88,'Unit Cost Norms'!$B$9:$F$99,5,FALSE)," ",VLOOKUP(B88,'Unit Cost Norms'!$B$9:$F$99,2,FALSE))) -> $404.7 with 50-300 LF | K88: 0
A89: 38950 or 2092 | B89: Concrete Wheel Stops | C89: ='Quantity Calculations'!D292 -> 0 | D89: EA | H89: 0 | J89: =IF(OR(ISNA(VLOOKUP(B89,'Unit Cost Norms'!$B$9:$F$99,3,FALSE)),VLOOKUP(B89,'Unit Cost Norms'!$B$9:$F$99,3,FALSE)=0),"N/A",CONCATENATE("$",VLOOKUP(B89,'Unit Cost Norms'!$B$9:$F$99,3,FALSE)," with ",VLOOKUP(B89,'Unit Cost Norms'!$B$9:$F$99,5,FALSE)," ",VLOOKUP(B89,'Unit Cost Norms'!$B$9:$F$99,2,FALSE))) -> $500 with 3-8 EA | K89: 0
A90: 70000 | B90: Clearing Parcels/Demolition of Buildings/Etc | C90: =IF(E90>0,1,0) -> 0 | D90: LS | E90: ='Quantity Calculations'!D311 -> 0 | H90: 0 | J90: =IF(OR(ISNA(VLOOKUP(B90,'Unit Cost Norms'!$B$9:$F$99,3,FALSE)),VLOOKUP(B90,'Unit Cost Norms'!$B$9:$F$99,3,FALSE)=0),"N/A",CONCATENATE("$",VLOOKUP(B90,'Unit Cost Norms'!$B$9:$F$99,3,FALSE)," with ",VLOOKUP(B90,'Unit Cost Norms'!$B$9:$F$99,5,FALSE)," ",VLOOKUP(B90,'Unit Cost Norms'!$B$9:$F$99,2,FALSE))) ->  | K90: 0
B91: ='Quantity Calculations'!C314 -> 0 | C91: ='Quantity Calculations'!D314 -> 0 | D91: ='Quantity Calculations'!E314 -> 0 | H91: 0 | J91: =IF(OR(ISNA(VLOOKUP(B91,'Unit Cost Norms'!$B$9:$F$99,3,FALSE)),VLOOKUP(B91,'Unit Cost Norms'!$B$9:$F$99,3,FALSE)=0),"N/A",CONCATENATE("$",VLOOKUP(B91,'Unit Cost Norms'!$B$9:$F$99,3,FALSE)," with ",VLOOKUP(B91,'Unit Cost Norms'!$B$9:$F$99,5,FALSE)," ",VLOOKUP(B91,'Unit Cost Norms'!$B$9:$F$99,2,FALSE))) ->  | K91: 0
B92: ='Quantity Calculations'!C315 -> 0 | C92: ='Quantity Calculations'!D315 -> 0 | D92: ='Quantity Calculations'!E315 -> 0 | H92: 0 | J92: =IF(OR(ISNA(VLOOKUP(B92,'Unit Cost Norms'!$B$9:$F$99,3,FALSE)),VLOOKUP(B92,'Unit Cost Norms'!$B$9:$F$99,3,FALSE)=0),"N/A",CONCATENATE("$",VLOOKUP(B92,'Unit Cost Norms'!$B$9:$F$99,3,FALSE)," with ",VLOOKUP(B92,'Unit Cost Norms'!$B$9:$F$99,5,FALSE)," ",VLOOKUP(B92,'Unit Cost Norms'!$B$9:$F$99,2,FALSE))) ->  | K92: 0
B93: ='Quantity Calculations'!C316 -> 0 | C93: ='Quantity Calculations'!D316 -> 0 | D93: ='Quantity Calculations'!E316 -> 0 | H93: 0 | J93: =IF(OR(ISNA(VLOOKUP(B93,'Unit Cost Norms'!$B$9:$F$99,3,FALSE)),VLOOKUP(B93,'Unit Cost Norms'!$B$9:$F$99,3,FALSE)=0),"N/A",CONCATENATE("$",VLOOKUP(B93,'Unit Cost Norms'!$B$9:$F$99,3,FALSE)," with ",VLOOKUP(B93,'Unit Cost Norms'!$B$9:$F$99,5,FALSE)," ",VLOOKUP(B93,'Unit Cost Norms'!$B$9:$F$99,2,FALSE))) ->  | K93: 0
B94: ='Quantity Calculations'!C317 -> 0 | C94: ='Quantity Calculations'!D317 -> 0 | D94: ='Quantity Calculations'!E317 -> 0 | H94: 0 | J94: =IF(OR(ISNA(VLOOKUP(B94,'Unit Cost Norms'!$B$9:$F$99,3,FALSE)),VLOOKUP(B94,'Unit Cost Norms'!$B$9:$F$99,3,FALSE)=0),"N/A",CONCATENATE("$",VLOOKUP(B94,'Unit Cost Norms'!$B$9:$F$99,3,FALSE)," with ",VLOOKUP(B94,'Unit Cost Norms'!$B$9:$F$99,5,FALSE)," ",VLOOKUP(B94,'Unit Cost Norms'!$B$9:$F$99,2,FALSE))) ->  | K94: 0
B95: ='Quantity Calculations'!C318 -> 0 | C95: ='Quantity Calculations'!D318 -> 0 | D95: ='Quantity Calculations'!E318 -> 0 | H95: 0 | J95: =IF(OR(ISNA(VLOOKUP(B95,'Unit Cost Norms'!$B$9:$F$99,3,FALSE)),VLOOKUP(B95,'Unit Cost Norms'!$B$9:$F$99,3,FALSE)=0),"N/A",CONCATENATE("$",VLOOKUP(B95,'Unit Cost Norms'!$B$9:$F$99,3,FALSE)," with ",VLOOKUP(B95,'Unit Cost Norms'!$B$9:$F$99,5,FALSE)," ",VLOOKUP(B95,'Unit Cost Norms'!$B$9:$F$99,2,FALSE))) ->  | K95: 0
B96: ='Quantity Calculations'!C319 -> 0 | C96: ='Quantity Calculations'!D319 -> 0 | D96: ='Quantity Calculations'!E319 -> 0 | H96: 0 | J96: =IF(OR(ISNA(VLOOKUP(B96,'Unit Cost Norms'!$B$9:$F$99,3,FALSE)),VLOOKUP(B96,'Unit Cost Norms'!$B$9:$F$99,3,FALSE)=0),"N/A",CONCATENATE("$",VLOOKUP(B96,'Unit Cost Norms'!$B$9:$F$99,3,FALSE)," with ",VLOOKUP(B96,'Unit Cost Norms'!$B$9:$F$99,5,FALSE)," ",VLOOKUP(B96,'Unit Cost Norms'!$B$9:$F$99,2,FALSE))) ->  | K96: 0
B97: STRUCTURE & BRIDGE ITEMS | C97: --- | H97: Estimate | J97: ='Unit Cost Norms'!$D$6 -> Culpeper
A98: Item Code | B98: Description | C98: Quantity | D98: Units | E98: Unit Cost | F98: Price Source | G98: Remarks | H98: =SUM(H99:H112) -> 0 | J98: Cost Norm
A99: LS | B99: Permanent Bridge Structures | C99: =IF(E99>0,1,0) -> 0 | D99: LS | E99: =BridgeA -> 0 | H99: =E99*C99 -> 0 | J99: =IF(OR(ISNA(VLOOKUP(B99,'Unit Cost Norms'!$B$9:$F$99,3,FALSE)),VLOOKUP(B99,'Unit Cost Norms'!$B$9:$F$99,3,FALSE)=0),"N/A",CONCATENATE("$",VLOOKUP(B99,'Unit Cost Norms'!$B$9:$F$99,3,FALSE)," with ",VLOOKUP(B99,'Unit Cost Norms'!$B$9:$F$99,5,FALSE)," ",VLOOKUP(B99,'Unit Cost Norms'!$B$9:$F$99,2,FALSE))) ->  | K99: 0
A100: LS | B100: Rehabilitated Bridge Structures | C100: =IF(E100>0,1,0) -> 0 | D100: LS | E100: ='Quantity Calculations'!D357 -> 0 | H100: =E100*C100 -> 0 | J100: =IF(OR(ISNA(VLOOKUP(B100,'Unit Cost Norms'!$B$9:$F$99,3,FALSE)),VLOOKUP(B100,'Unit Cost Norms'!$B$9:$F$99,3,FALSE)=0),"N/A",CONCATENATE("$",VLOOKUP(B100,'Unit Cost Norms'!$B$9:$F$99,3,FALSE)," with ",VLOOKUP(B100,'Unit Cost Norms'!$B$9:$F$99,5,FALSE)," ",VLOOKUP(B100,'Unit Cost Norms'!$B$9:$F$99,2,FALSE))) ->  | K100: =IF(AND(C100>0,E100=0),1,0) -> 0
A101: 13520 | B101: Retaining Wall RW-2 | C101: ='Quantity Calculations'!D359 -> 0 | D101: CY | H101: 0 | J101: =IF(OR(ISNA(VLOOKUP(B101,'Unit Cost Norms'!$B$9:$F$99,3,FALSE)),VLOOKUP(B101,'Unit Cost Norms'!$B$9:$F$99,3,FALSE)=0),"N/A",CONCATENATE("$",VLOOKUP(B101,'Unit Cost Norms'!$B$9:$F$99,3,FALSE)," with ",VLOOKUP(B101,'Unit Cost Norms'!$B$9:$F$99,5,FALSE)," ",VLOOKUP(B101,'Unit Cost Norms'!$B$9:$F$99,2,FALSE))) -> $2600 with 10-30 CY | K101: 0
A102: 13530 | B102: Retaining Wall RW-3 | C102: ='Quantity Calculations'!D360 -> 0 | D102: CY | H102: 0 | J102: =IF(OR(ISNA(VLOOKUP(B102,'Unit Cost Norms'!$B$9:$F$99,3,FALSE)),VLOOKUP(B102,'Unit Cost Norms'!$B$9:$F$99,3,FALSE)=0),"N/A",CONCATENATE("$",VLOOKUP(B102,'Unit Cost Norms'!$B$9:$F$99,3,FALSE)," with ",VLOOKUP(B102,'Unit Cost Norms'!$B$9:$F$99,5,FALSE)," ",VLOOKUP(B102,'Unit Cost Norms'!$B$9:$F$99,2,FALSE))) -> $3200 with 10-50 CY | K102: 0
A103: 13561 | B103: Porous Backfill | C103: ='Quantity Calculations'!D362 -> 0 | D103: CY | H103: 0 | J103: =IF(OR(ISNA(VLOOKUP(B103,'Unit Cost Norms'!$B$9:$F$99,3,FALSE)),VLOOKUP(B103,'Unit Cost Norms'!$B$9:$F$99,3,FALSE)=0),"N/A",CONCATENATE("$",VLOOKUP(B103,'Unit Cost Norms'!$B$9:$F$99,3,FALSE)," with ",VLOOKUP(B103,'Unit Cost Norms'!$B$9:$F$99,5,FALSE)," ",VLOOKUP(B103,'Unit Cost Norms'!$B$9:$F$99,2,FALSE))) -> $510 with 3-10 CY | K103: 0
A104: 13565 | B104: Retaining Wall Excavation | C104: ='Quantity Calculations'!D361 -> 0 | D104: CY | H104: 0 | J104: =IF(OR(ISNA(VLOOKUP(B104,'Unit Cost Norms'!$B$9:$F$99,3,FALSE)),VLOOKUP(B104,'Unit Cost Norms'!$B$9:$F$99,3,FALSE)=0),"N/A",CONCATENATE("$",VLOOKUP(B104,'Unit Cost Norms'!$B$9:$F$99,3,FALSE)," with ",VLOOKUP(B104,'Unit Cost Norms'!$B$9:$F$99,5,FALSE)," ",VLOOKUP(B104,'Unit Cost Norms'!$B$9:$F$99,2,FALSE))) -> $172 with 50-200 CY | K104: 0
A105: 13570 or 13815 | B105: Nonstandard Retaining Wall/Structure | C105: ='Quantity Calculations'!D363 -> 0 | D105: SF | H105: 0 | J105: =IF(OR(ISNA(VLOOKUP(B105,'Unit Cost Norms'!$B$9:$F$99,3,FALSE)),VLOOKUP(B105,'Unit Cost Norms'!$B$9:$F$99,3,FALSE)=0),"N/A",CONCATENATE("$",VLOOKUP(B105,'Unit Cost Norms'!$B$9:$F$99,3,FALSE)," with ",VLOOKUP(B105,'Unit Cost Norms'!$B$9:$F$99,5,FALSE)," ",VLOOKUP(B105,'Unit Cost Norms'!$B$9:$F$99,2,FALSE))) ->  | K105: 0
A106: 69710 or 65710 | B106: Pier Protection System 54" | C106: ='Quantity Calculations'!D354 -> 0 | D106: LF | H106: =E106*C106 -> 0 | J106: =IF(OR(ISNA(VLOOKUP(B106,'Unit Cost Norms'!$B$9:$F$99,3,FALSE)),VLOOKUP(B106,'Unit Cost Norms'!$B$9:$F$99,3,FALSE)=0),"N/A",CONCATENATE("$",VLOOKUP(B106,'Unit Cost Norms'!$B$9:$F$99,3,FALSE)," with ",VLOOKUP(B106,'Unit Cost Norms'!$B$9:$F$99,5,FALSE)," ",VLOOKUP(B106,'Unit Cost Norms'!$B$9:$F$99,2,FALSE))) -> $1000 with 100-200 LF | K106: =IF(AND(C106>0,E106=0),1,0) -> 0
B107: ='Quantity Calculations'!C366 -> 0 | C107: ='Quantity Calculations'!D366 -> 0 | D107: ='Quantity Calculations'!E366 -> 0 | H107: 0 | J107: =IF(OR(ISNA(VLOOKUP(B107,'Unit Cost Norms'!$B$9:$F$99,3,FALSE)),VLOOKUP(B107,'Unit Cost Norms'!$B$9:$F$99,3,FALSE)=0),"N/A",CONCATENATE("$",VLOOKUP(B107,'Unit Cost Norms'!$B$9:$F$99,3,FALSE)," with ",VLOOKUP(B107,'Unit Cost Norms'!$B$9:$F$99,5,FALSE)," ",VLOOKUP(B107,'Unit Cost Norms'!$B$9:$F$99,2,FALSE))) ->  | K107: 0
B108: ='Quantity Calculations'!C367 -> 0 | C108: ='Quantity Calculations'!D367 -> 0 | D108: ='Quantity Calculations'!E367 -> 0 | H108: 0 | J108: =IF(OR(ISNA(VLOOKUP(B108,'Unit Cost Norms'!$B$9:$F$99,3,FALSE)),VLOOKUP(B108,'Unit Cost Norms'!$B$9:$F$99,3,FALSE)=0),"N/A",CONCATENATE("$",VLOOKUP(B108,'Unit Cost Norms'!$B$9:$F$99,3,FALSE)," with ",VLOOKUP(B108,'Unit Cost Norms'!$B$9:$F$99,5,FALSE)," ",VLOOKUP(B108,'Unit Cost Norms'!$B$9:$F$99,2,FALSE))) ->  | K108: 0
B109: ='Quantity Calculations'!C368 -> 0 | C109: ='Quantity Calculations'!D368 -> 0 | D109: ='Quantity Calculations'!E368 -> 0 | H109: 0 | J109: =IF(OR(ISNA(VLOOKUP(B109,'Unit Cost Norms'!$B$9:$F$99,3,FALSE)),VLOOKUP(B109,'Unit Cost Norms'!$B$9:$F$99,3,FALSE)=0),"N/A",CONCATENATE("$",VLOOKUP(B109,'Unit Cost Norms'!$B$9:$F$99,3,FALSE)," with ",VLOOKUP(B109,'Unit Cost Norms'!$B$9:$F$99,5,FALSE)," ",VLOOKUP(B109,'Unit Cost Norms'!$B$9:$F$99,2,FALSE))) ->  | K109: 0
B110: ='Quantity Calculations'!C369 -> 0 | C110: ='Quantity Calculations'!D369 -> 0 | D110: ='Quantity Calculations'!E369 -> 0 | H110: 0 | J110: =IF(OR(ISNA(VLOOKUP(B110,'Unit Cost Norms'!$B$9:$F$99,3,FALSE)),VLOOKUP(B110,'Unit Cost Norms'!$B$9:$F$99,3,FALSE)=0),"N/A",CONCATENATE("$",VLOOKUP(B110,'Unit Cost Norms'!$B$9:$F$99,3,FALSE)," with ",VLOOKUP(B110,'Unit Cost Norms'!$B$9:$F$99,5,FALSE)," ",VLOOKUP(B110,'Unit Cost Norms'!$B$9:$F$99,2,FALSE))) ->  | K110: 0
B111: ='Quantity Calculations'!C370 -> 0 | C111: ='Quantity Calculations'!D370 -> 0 | D111: ='Quantity Calculations'!E370 -> 0 | H111: 0 | J111: =IF(OR(ISNA(VLOOKUP(B111,'Unit Cost Norms'!$B$9:$F$99,3,FALSE)),VLOOKUP(B111,'Unit Cost Norms'!$B$9:$F$99,3,FALSE)=0),"N/A",CONCATENATE("$",VLOOKUP(B111,'Unit Cost Norms'!$B$9:$F$99,3,FALSE)," with ",VLOOKUP(B111,'Unit Cost Norms'!$B$9:$F$99,5,FALSE)," ",VLOOKUP(B111,'Unit Cost Norms'!$B$9:$F$99,2,FALSE))) ->  | K111: 0
B112: ='Quantity Calculations'!C371 -> 0 | C112: ='Quantity Calculations'!D371 -> 0 | D112: ='Quantity Calculations'!E371 -> 0 | H112: 0 | J112: =IF(OR(ISNA(VLOOKUP(B112,'Unit Cost Norms'!$B$9:$F$99,3,FALSE)),VLOOKUP(B112,'Unit Cost Norms'!$B$9:$F$99,3,FALSE)=0),"N/A",CONCATENATE("$",VLOOKUP(B112,'Unit Cost Norms'!$B$9:$F$99,3,FALSE)," with ",VLOOKUP(B112,'Unit Cost Norms'!$B$9:$F$99,5,FALSE)," ",VLOOKUP(B112,'Unit Cost Norms'!$B$9:$F$99,2,FALSE))) ->  | K112: 0
B113: TEMPORARY TRAFFIC & CONSTRUCTION ITEMS | C113: --- | H113: Estimate | J113: ='Unit Cost Norms'!$D$6 -> Culpeper
A114: Item Code | B114: Description | C114: Quantity | D114: Units | E114: Unit Cost | F114: Price Source | G114: Remarks | H114: =SUM(H115:H136) -> 0 | J114: Cost Norm
A115: LS | B115: General Maintenance of Traffic | C115: =IF(E115>0,1,0) -> 0 | D115: LS | E115: =MOTMetC -> 0 | H115: =E115*C115 -> 0 | J115: =IF(OR(ISNA(VLOOKUP(B115,'Unit Cost Norms'!$B$9:$F$99,3,FALSE)),VLOOKUP(B115,'Unit Cost Norms'!$B$9:$F$99,3,FALSE)=0),"N/A",CONCATENATE("$",VLOOKUP(B115,'Unit Cost Norms'!$B$9:$F$99,3,FALSE)," with ",VLOOKUP(B115,'Unit Cost Norms'!$B$9:$F$99,5,FALSE)," ",VLOOKUP(B115,'Unit Cost Norms'!$B$9:$F$99,2,FALSE))) ->  | K115: 0
A116: LS | B116: Temporary Signalization | C116: =IF(E116>0,1,0) -> 0 | D116: LS | E116: =MOTTSA -> 0 | H116: 0 | J116: =IF(OR(ISNA(VLOOKUP(B116,'Unit Cost Norms'!$B$9:$F$99,3,FALSE)),VLOOKUP(B116,'Unit Cost Norms'!$B$9:$F$99,3,FALSE)=0),"N/A",CONCATENATE("$",VLOOKUP(B116,'Unit Cost Norms'!$B$9:$F$99,3,FALSE)," with ",VLOOKUP(B116,'Unit Cost Norms'!$B$9:$F$99,5,FALSE)," ",VLOOKUP(B116,'Unit Cost Norms'!$B$9:$F$99,2,FALSE))) ->  | K116: 0
A117: LS | B117: Temporary Bridge Structures | C117: =IF(E117>0,1,0) -> 0 | D117: LS | E117: ='Quantity Calculations'!D424 -> 0 | H117: =E117*C117 -> 0 | J117: =IF(OR(ISNA(VLOOKUP(B117,'Unit Cost Norms'!$B$9:$F$99,3,FALSE)),VLOOKUP(B117,'Unit Cost Norms'!$B$9:$F$99,3,FALSE)=0),"N/A",CONCATENATE("$",VLOOKUP(B117,'Unit Cost Norms'!$B$9:$F$99,3,FALSE)," with ",VLOOKUP(B117,'Unit Cost Norms'!$B$9:$F$99,5,FALSE)," ",VLOOKUP(B117,'Unit Cost Norms'!$B$9:$F$99,2,FALSE))) ->  | K117: 0
A118: 00120 | B118: Regular Excavation | C118: ='Quantity Calculations'!D417 -> 0 | D118: CY | E118: =E10 -> 0 | H118: =E118*C118 -> 0 | J118: =IF(OR(ISNA(VLOOKUP(B118,'Unit Cost Norms'!$B$9:$F$99,3,FALSE)),VLOOKUP(B118,'Unit Cost Norms'!$B$9:$F$99,3,FALSE)=0),"N/A",CONCATENATE("$",VLOOKUP(B118,'Unit Cost Norms'!$B$9:$F$99,3,FALSE)," with ",VLOOKUP(B118,'Unit Cost Norms'!$B$9:$F$99,5,FALSE)," ",VLOOKUP(B118,'Unit Cost Norms'!$B$9:$F$99,2,FALSE))) -> $70 with 1400-2600 CY | K118: 0
A119: 00136 or 00140 | B119: Borrow Excavation | C119: ='Quantity Calculations'!D418 -> 0 | D119: CY | E119: =E12 -> 0 | H119: =E119*C119 -> 0 | J119: =IF(OR(ISNA(VLOOKUP(B119,'Unit Cost Norms'!$B$9:$F$99,3,FALSE)),VLOOKUP(B119,'Unit Cost Norms'!$B$9:$F$99,3,FALSE)=0),"N/A",CONCATENATE("$",VLOOKUP(B119,'Unit Cost Norms'!$B$9:$F$99,3,FALSE)," with ",VLOOKUP(B119,'Unit Cost Norms'!$B$9:$F$99,5,FALSE)," ",VLOOKUP(B119,'Unit Cost Norms'!$B$9:$F$99,2,FALSE))) -> $56 with 1400-2600 CY | K119: 0
A120: 00515 | B120: Temporary Sheet Piling | C120: ='Quantity Calculations'!D407 -> 0 | D120: SF | H120: 0 | J120: =IF(OR(ISNA(VLOOKUP(B120,'Unit Cost Norms'!$B$9:$F$99,3,FALSE)),VLOOKUP(B120,'Unit Cost Norms'!$B$9:$F$99,3,FALSE)=0),"N/A",CONCATENATE("$",VLOOKUP(B120,'Unit Cost Norms'!$B$9:$F$99,3,FALSE)," with ",VLOOKUP(B120,'Unit Cost Norms'!$B$9:$F$99,5,FALSE)," ",VLOOKUP(B120,'Unit Cost Norms'!$B$9:$F$99,2,FALSE))) ->  | K120: 0
A121: 10234 or 10123 | B121: Aggr. Base Matl. Ty. I No. 21A | C121: =IF('Quantity Calculations'!D207= "No. 21A",'Quantity Calculations'!D422,0) -> 0 | D121: TON | E121: =E34 -> 0 | H121: =E121*C121 -> 0 | J121: =IF(OR(ISNA(VLOOKUP(B121,'Unit Cost Norms'!$B$9:$F$99,3,FALSE)),VLOOKUP(B121,'Unit Cost Norms'!$B$9:$F$99,3,FALSE)=0),"N/A",CONCATENATE("$",VLOOKUP(B121,'Unit Cost Norms'!$B$9:$F$99,3,FALSE)," with ",VLOOKUP(B121,'Unit Cost Norms'!$B$9:$F$99,5,FALSE)," ",VLOOKUP(B121,'Unit Cost Norms'!$B$9:$F$99,2,FALSE))) -> $65 with 1400-2600 TON | K121: 0
A122: 10238 or 10128 | B122: Aggr. Base Matl. Ty. I No. 21B | C122: =IF('Quantity Calculations'!D207= "No. 21B",'Quantity Calculations'!D422,0) -> 0 | D122: TON | E122: =E35 -> 0 | H122: 0 | J122: =IF(OR(ISNA(VLOOKUP(B122,'Unit Cost Norms'!$B$9:$F$99,3,FALSE)),VLOOKUP(B122,'Unit Cost Norms'!$B$9:$F$99,3,FALSE)=0),"N/A",CONCATENATE("$",VLOOKUP(B122,'Unit Cost Norms'!$B$9:$F$99,3,FALSE)," with ",VLOOKUP(B122,'Unit Cost Norms'!$B$9:$F$99,5,FALSE)," ",VLOOKUP(B122,'Unit Cost Norms'!$B$9:$F$99,2,FALSE))) -> $68 with 1400-2600 TON | K122: 0
A123: 10610 | B123: Asphalt Concrete Ty. IM-19.0A | C123: =IF('Quantity Calculations'!D205= "IM-19.0A",'Quantity Calculations'!D420,0) -> 0 | D123: TON | E123: =E44 -> 0 | H123: 0 | J123: =IF(OR(ISNA(VLOOKUP(B123,'Unit Cost Norms'!$B$9:$F$99,3,FALSE)),VLOOKUP(B123,'Unit Cost Norms'!$B$9:$F$99,3,FALSE)=0),"N/A",CONCATENATE("$",VLOOKUP(B123,'Unit Cost Norms'!$B$9:$F$99,3,FALSE)," with ",VLOOKUP(B123,'Unit Cost Norms'!$B$9:$F$99,5,FALSE)," ",VLOOKUP(B123,'Unit Cost Norms'!$B$9:$F$99,2,FALSE))) -> $177 with 500-1100 TON | K123: 0
A124: 10635 | B124: Asphalt Conc. Ty. SM-9.5A | C124: =IF('Quantity Calculations'!D204= "SM-9.5A",'Quantity Calculations'!D419,0) -> 0 | D124: TON | E124: =E47 -> 0 | H124: 0 | J124: =IF(OR(ISNA(VLOOKUP(B124,'Unit Cost Norms'!$B$9:$F$99,3,FALSE)),VLOOKUP(B124,'Unit Cost Norms'!$B$9:$F$99,3,FALSE)=0),"N/A",CONCATENATE("$",VLOOKUP(B124,'Unit Cost Norms'!$B$9:$F$99,3,FALSE)," with ",VLOOKUP(B124,'Unit Cost Norms'!$B$9:$F$99,5,FALSE)," ",VLOOKUP(B124,'Unit Cost Norms'!$B$9:$F$99,2,FALSE))) -> $156 with 500-1500 TON | K124: 0
A125: 10636 | B125: Asphalt Conc. Ty. SM-9.5D | C125: =IF('Quantity Calculations'!D204= "SM-9.5D",'Quantity Calculations'!D419,0) -> 0 | D125: TON | E125: =E48 -> 0 | H125: 0 | J125: =IF(OR(ISNA(VLOOKUP(B125,'Unit Cost Norms'!$B$9:$F$99,3,FALSE)),VLOOKUP(B125,'Unit Cost Norms'!$B$9:$F$99,3,FALSE)=0),"N/A",CONCATENATE("$",VLOOKUP(B125,'Unit Cost Norms'!$B$9:$F$99,3,FALSE)," with ",VLOOKUP(B125,'Unit Cost Norms'!$B$9:$F$99,5,FALSE)," ",VLOOKUP(B125,'Unit Cost Norms'!$B$9:$F$99,2,FALSE))) -> $224 with 500-1500 TON | K125: 0
A126: 10642 | B126: Asphalt Concrete Ty. BM-25.0A | C126: =IF('Quantity Calculations'!D206= "BM-25.0A",'Quantity Calculations'!D421,0) -> 0 | D126: TON | E126: =E49 -> 0 | H126: 0 | J126: =IF(OR(ISNA(VLOOKUP(B126,'Unit Cost Norms'!$B$9:$F$99,3,FALSE)),VLOOKUP(B126,'Unit Cost Norms'!$B$9:$F$99,3,FALSE)=0),"N/A",CONCATENATE("$",VLOOKUP(B126,'Unit Cost Norms'!$B$9:$F$99,3,FALSE)," with ",VLOOKUP(B126,'Unit Cost Norms'!$B$9:$F$99,5,FALSE)," ",VLOOKUP(B126,'Unit Cost Norms'!$B$9:$F$99,2,FALSE))) -> $184 with 500-1500 TON | K126: 0
A127: 13604 | B127: Impact Attenuator Service Ty. 1 TL-3 | C127: ='Quantity Calculations'!D409 -> 0 | D127: EA | H127: 0 | J127: =IF(OR(ISNA(VLOOKUP(B127,'Unit Cost Norms'!$B$9:$F$99,3,FALSE)),VLOOKUP(B127,'Unit Cost Norms'!$B$9:$F$99,3,FALSE)=0),"N/A",CONCATENATE("$",VLOOKUP(B127,'Unit Cost Norms'!$B$9:$F$99,3,FALSE)," with ",VLOOKUP(B127,'Unit Cost Norms'!$B$9:$F$99,5,FALSE)," ",VLOOKUP(B127,'Unit Cost Norms'!$B$9:$F$99,2,FALSE))) -> $21500 with 1 EA | K127: 0
A128: 24290 | B128: Traffic Barrier Service Concrete MB-7D PC | C128: ='Quantity Calculations'!D408 -> 0 | D128: LF | H128: 0 | J128: =IF(OR(ISNA(VLOOKUP(B128,'Unit Cost Norms'!$B$9:$F$99,3,FALSE)),VLOOKUP(B128,'Unit Cost Norms'!$B$9:$F$99,3,FALSE)=0),"N/A",CONCATENATE("$",VLOOKUP(B128,'Unit Cost Norms'!$B$9:$F$99,3,FALSE)," with ",VLOOKUP(B128,'Unit Cost Norms'!$B$9:$F$99,5,FALSE)," ",VLOOKUP(B128,'Unit Cost Norms'!$B$9:$F$99,2,FALSE))) -> $76 with 100-600 LF | K128: 0
A129: 24430 | B129: Demolition of Pavement (Flexible) | C129: ='Quantity Calculations'!D423 -> 0 | D129: SY | E129: =E54 -> 0 | H129: =E129*C129 -> 0 | J129: =IF(OR(ISNA(VLOOKUP(B129,'Unit Cost Norms'!$B$9:$F$99,3,FALSE)),VLOOKUP(B129,'Unit Cost Norms'!$B$9:$F$99,3,FALSE)=0),"N/A",CONCATENATE("$",VLOOKUP(B129,'Unit Cost Norms'!$B$9:$F$99,3,FALSE)," with ",VLOOKUP(B129,'Unit Cost Norms'!$B$9:$F$99,5,FALSE)," ",VLOOKUP(B129,'Unit Cost Norms'!$B$9:$F$99,2,FALSE))) -> $16 with 1000-3000 SY | K129: 0
A130: 25505 or 25508 | B130: Field Office Type 1 or Type 1 Modified | C130: ='Quantity Calculations'!D405 -> 0 | D130: MO | H130: 0 | J130: =IF(OR(ISNA(VLOOKUP(B130,'Unit Cost Norms'!$B$9:$F$99,3,FALSE)),VLOOKUP(B130,'Unit Cost Norms'!$B$9:$F$99,3,FALSE)=0),"N/A",CONCATENATE("$",VLOOKUP(B130,'Unit Cost Norms'!$B$9:$F$99,3,FALSE)," with ",VLOOKUP(B130,'Unit Cost Norms'!$B$9:$F$99,5,FALSE)," ",VLOOKUP(B130,'Unit Cost Norms'!$B$9:$F$99,2,FALSE))) -> $5000 with 7-15 MO | K130: 0
B131: ='Quantity Calculations'!C430 -> 0 | C131: ='Quantity Calculations'!D430 -> 0 | D131: ='Quantity Calculations'!E430 -> 0 | H131: 0 | J131: =IF(OR(ISNA(VLOOKUP(B131,'Unit Cost Norms'!$B$9:$F$99,3,FALSE)),VLOOKUP(B131,'Unit Cost Norms'!$B$9:$F$99,3,FALSE)=0),"N/A",CONCATENATE("$",VLOOKUP(B131,'Unit Cost Norms'!$B$9:$F$99,3,FALSE)," with ",VLOOKUP(B131,'Unit Cost Norms'!$B$9:$F$99,5,FALSE)," ",VLOOKUP(B131,'Unit Cost Norms'!$B$9:$F$99,2,FALSE))) ->  | K131: 0
B132: ='Quantity Calculations'!C431 -> 0 | C132: ='Quantity Calculations'!D431 -> 0 | D132: ='Quantity Calculations'!E431 -> 0 | H132: 0 | J132: =IF(OR(ISNA(VLOOKUP(B132,'Unit Cost Norms'!$B$9:$F$99,3,FALSE)),VLOOKUP(B132,'Unit Cost Norms'!$B$9:$F$99,3,FALSE)=0),"N/A",CONCATENATE("$",VLOOKUP(B132,'Unit Cost Norms'!$B$9:$F$99,3,FALSE)," with ",VLOOKUP(B132,'Unit Cost Norms'!$B$9:$F$99,5,FALSE)," ",VLOOKUP(B132,'Unit Cost Norms'!$B$9:$F$99,2,FALSE))) ->  | K132: 0
B133: ='Quantity Calculations'!C432 -> 0 | C133: ='Quantity Calculations'!D432 -> 0 | D133: ='Quantity Calculations'!E432 -> 0 | H133: 0 | J133: =IF(OR(ISNA(VLOOKUP(B133,'Unit Cost Norms'!$B$9:$F$99,3,FALSE)),VLOOKUP(B133,'Unit Cost Norms'!$B$9:$F$99,3,FALSE)=0),"N/A",CONCATENATE("$",VLOOKUP(B133,'Unit Cost Norms'!$B$9:$F$99,3,FALSE)," with ",VLOOKUP(B133,'Unit Cost Norms'!$B$9:$F$99,5,FALSE)," ",VLOOKUP(B133,'Unit Cost Norms'!$B$9:$F$99,2,FALSE))) ->  | K133: 0
B134: ='Quantity Calculations'!C433 -> 0 | C134: ='Quantity Calculations'!D433 -> 0 | D134: ='Quantity Calculations'!E433 -> 0 | H134: 0 | J134: =IF(OR(ISNA(VLOOKUP(B134,'Unit Cost Norms'!$B$9:$F$99,3,FALSE)),VLOOKUP(B134,'Unit Cost Norms'!$B$9:$F$99,3,FALSE)=0),"N/A",CONCATENATE("$",VLOOKUP(B134,'Unit Cost Norms'!$B$9:$F$99,3,FALSE)," with ",VLOOKUP(B134,'Unit Cost Norms'!$B$9:$F$99,5,FALSE)," ",VLOOKUP(B134,'Unit Cost Norms'!$B$9:$F$99,2,FALSE))) ->  | K134: 0
B135: ='Quantity Calculations'!C434 -> 0 | C135: ='Quantity Calculations'!D434 -> 0 | D135: ='Quantity Calculations'!E434 -> 0 | H135: 0 | J135: =IF(OR(ISNA(VLOOKUP(B135,'Unit Cost Norms'!$B$9:$F$99,3,FALSE)),VLOOKUP(B135,'Unit Cost Norms'!$B$9:$F$99,3,FALSE)=0),"N/A",CONCATENATE("$",VLOOKUP(B135,'Unit Cost Norms'!$B$9:$F$99,3,FALSE)," with ",VLOOKUP(B135,'Unit Cost Norms'!$B$9:$F$99,5,FALSE)," ",VLOOKUP(B135,'Unit Cost Norms'!$B$9:$F$99,2,FALSE))) ->  | K135: 0
B136: ='Quantity Calculations'!C435 -> 0 | C136: ='Quantity Calculations'!D435 -> 0 | D136: ='Quantity Calculations'!E435 -> 0 | H136: 0 | J136: =IF(OR(ISNA(VLOOKUP(B136,'Unit Cost Norms'!$B$9:$F$99,3,FALSE)),VLOOKUP(B136,'Unit Cost Norms'!$B$9:$F$99,3,FALSE)=0),"N/A",CONCATENATE("$",VLOOKUP(B136,'Unit Cost Norms'!$B$9:$F$99,3,FALSE)," with ",VLOOKUP(B136,'Unit Cost Norms'!$B$9:$F$99,5,FALSE)," ",VLOOKUP(B136,'Unit Cost Norms'!$B$9:$F$99,2,FALSE))) ->  | K136: 0
B137: PLANTING ITEMS | C137: --- | H137: Estimate | J137: ='Unit Cost Norms'!$D$6 -> Culpeper
A138: Item Code | B138: Description | C138: Quantity | D138: Units | E138: Unit Cost | F138: Price Source | G138: Remarks | H138: =SUM(H139:H152) -> 0 | J138: Cost Norm
A139: LS | B139: Landscaping | C139: =IF(E139>0,1,0) -> 0 | D139: LS | E139: ='Quantity Calculations'!D468 -> 0 | H139: =E139*C139 -> 0 | J139: =IF(OR(ISNA(VLOOKUP(B139,'Unit Cost Norms'!$B$9:$F$99,3,FALSE)),VLOOKUP(B139,'Unit Cost Norms'!$B$9:$F$99,3,FALSE)=0),"N/A",CONCATENATE("$",VLOOKUP(B139,'Unit Cost Norms'!$B$9:$F$99,3,FALSE)," with ",VLOOKUP(B139,'Unit Cost Norms'!$B$9:$F$99,5,FALSE)," ",VLOOKUP(B139,'Unit Cost Norms'!$B$9:$F$99,2,FALSE))) ->  | K139: 0
A140: 27012 | B140: Topsoil Class A 2" | C140: ='Quantity Calculations'!D464 -> 0 | D140: ACRE | H140: 0 | J140: =IF(OR(ISNA(VLOOKUP(B140,'Unit Cost Norms'!$B$9:$F$99,3,FALSE)),VLOOKUP(B140,'Unit Cost Norms'!$B$9:$F$99,3,FALSE)=0),"N/A",CONCATENATE("$",VLOOKUP(B140,'Unit Cost Norms'!$B$9:$F$99,3,FALSE)," with ",VLOOKUP(B140,'Unit Cost Norms'!$B$9:$F$99,5,FALSE)," ",VLOOKUP(B140,'Unit Cost Norms'!$B$9:$F$99,2,FALSE))) -> $21100 with 1-3 ACRE | K140: 0
A141: 27101 | B141: Temporary Seed | C141: ='Quantity Calculations'!D463 -> 0 | D141: LB | H141: 0 | J141: =IF(OR(ISNA(VLOOKUP(B141,'Unit Cost Norms'!$B$9:$F$99,3,FALSE)),VLOOKUP(B141,'Unit Cost Norms'!$B$9:$F$99,3,FALSE)=0),"N/A",CONCATENATE("$",VLOOKUP(B141,'Unit Cost Norms'!$B$9:$F$99,3,FALSE)," with ",VLOOKUP(B141,'Unit Cost Norms'!$B$9:$F$99,5,FALSE)," ",VLOOKUP(B141,'Unit Cost Norms'!$B$9:$F$99,2,FALSE))) -> $22 with 100-400 LB | K141: 0
A142: 27102 | B142: Regular Seed | C142: ='Quantity Calculations'!D461 -> 0 | D142: LB | H142: 0 | J142: =IF(OR(ISNA(VLOOKUP(B142,'Unit Cost Norms'!$B$9:$F$99,3,FALSE)),VLOOKUP(B142,'Unit Cost Norms'!$B$9:$F$99,3,FALSE)=0),"N/A",CONCATENATE("$",VLOOKUP(B142,'Unit Cost Norms'!$B$9:$F$99,3,FALSE)," with ",VLOOKUP(B142,'Unit Cost Norms'!$B$9:$F$99,5,FALSE)," ",VLOOKUP(B142,'Unit Cost Norms'!$B$9:$F$99,2,FALSE))) -> $20 with 500-3000 LB | K142: 0
A143: 27103 | B143: Overseeding | C143: ='Quantity Calculations'!D462 -> 0 | D143: LB | H143: 0 | J143: =IF(OR(ISNA(VLOOKUP(B143,'Unit Cost Norms'!$B$9:$F$99,3,FALSE)),VLOOKUP(B143,'Unit Cost Norms'!$B$9:$F$99,3,FALSE)=0),"N/A",CONCATENATE("$",VLOOKUP(B143,'Unit Cost Norms'!$B$9:$F$99,3,FALSE)," with ",VLOOKUP(B143,'Unit Cost Norms'!$B$9:$F$99,5,FALSE)," ",VLOOKUP(B143,'Unit Cost Norms'!$B$9:$F$99,2,FALSE))) -> $14 with 500-3000 LB | K143: 0
A144: 27112 | B144: Hydraulic Erosion Control Product Type 3 | C144: ='Quantity Calculations'!D467 -> 0 | D144: SY | H144: 0 | J144: =IF(OR(ISNA(VLOOKUP(B144,'Unit Cost Norms'!$B$9:$F$99,3,FALSE)),VLOOKUP(B144,'Unit Cost Norms'!$B$9:$F$99,3,FALSE)=0),"N/A",CONCATENATE("$",VLOOKUP(B144,'Unit Cost Norms'!$B$9:$F$99,3,FALSE)," with ",VLOOKUP(B144,'Unit Cost Norms'!$B$9:$F$99,5,FALSE)," ",VLOOKUP(B144,'Unit Cost Norms'!$B$9:$F$99,2,FALSE))) -> $1.7 with 10k-30k SY | K144: 0
A145: 27230/31/32 | B145: Fertilizer N-P-K | C145: ='Quantity Calculations'!D466 -> 0 | D145: LB | H145: 0 | J145: =IF(OR(ISNA(VLOOKUP(B145,'Unit Cost Norms'!$B$9:$F$99,3,FALSE)),VLOOKUP(B145,'Unit Cost Norms'!$B$9:$F$99,3,FALSE)=0),"N/A",CONCATENATE("$",VLOOKUP(B145,'Unit Cost Norms'!$B$9:$F$99,3,FALSE)," with ",VLOOKUP(B145,'Unit Cost Norms'!$B$9:$F$99,5,FALSE)," ",VLOOKUP(B145,'Unit Cost Norms'!$B$9:$F$99,2,FALSE))) -> $4.5 with 400-1500 LB | K145: 0
A146: 27250 | B146: Lime | C146: ='Quantity Calculations'!D465 -> 0 | D146: TON | H146: 0 | J146: =IF(OR(ISNA(VLOOKUP(B146,'Unit Cost Norms'!$B$9:$F$99,3,FALSE)),VLOOKUP(B146,'Unit Cost Norms'!$B$9:$F$99,3,FALSE)=0),"N/A",CONCATENATE("$",VLOOKUP(B146,'Unit Cost Norms'!$B$9:$F$99,3,FALSE)," with ",VLOOKUP(B146,'Unit Cost Norms'!$B$9:$F$99,5,FALSE)," ",VLOOKUP(B146,'Unit Cost Norms'!$B$9:$F$99,2,FALSE))) -> $440 with 4-20 TON | K146: 0
B147: ='Quantity Calculations'!C471 -> 0 | C147: ='Quantity Calculations'!D471 -> 0 | D147: ='Quantity Calculations'!E471 -> 0 | H147: 0 | J147: =IF(OR(ISNA(VLOOKUP(B147,'Unit Cost Norms'!$B$9:$F$99,3,FALSE)),VLOOKUP(B147,'Unit Cost Norms'!$B$9:$F$99,3,FALSE)=0),"N/A",CONCATENATE("$",VLOOKUP(B147,'Unit Cost Norms'!$B$9:$F$99,3,FALSE)," with ",VLOOKUP(B147,'Unit Cost Norms'!$B$9:$F$99,5,FALSE)," ",VLOOKUP(B147,'Unit Cost Norms'!$B$9:$F$99,2,FALSE))) ->  | K147: 0
B148: ='Quantity Calculations'!C472 -> 0 | C148: ='Quantity Calculations'!D472 -> 0 | D148: ='Quantity Calculations'!E472 -> 0 | H148: 0 | J148: =IF(OR(ISNA(VLOOKUP(B148,'Unit Cost Norms'!$B$9:$F$99,3,FALSE)),VLOOKUP(B148,'Unit Cost Norms'!$B$9:$F$99,3,FALSE)=0),"N/A",CONCATENATE("$",VLOOKUP(B148,'Unit Cost Norms'!$B$9:$F$99,3,FALSE)," with ",VLOOKUP(B148,'Unit Cost Norms'!$B$9:$F$99,5,FALSE)," ",VLOOKUP(B148,'Unit Cost Norms'!$B$9:$F$99,2,FALSE))) ->  | K148: =IF(AND(C148>0,E148=0),1,0) -> 0
B149: ='Quantity Calculations'!C473 -> 0 | C149: ='Quantity Calculations'!D473 -> 0 | D149: ='Quantity Calculations'!E473 -> 0 | H149: 0 | J149: =IF(OR(ISNA(VLOOKUP(B149,'Unit Cost Norms'!$B$9:$F$99,3,FALSE)),VLOOKUP(B149,'Unit Cost Norms'!$B$9:$F$99,3,FALSE)=0),"N/A",CONCATENATE("$",VLOOKUP(B149,'Unit Cost Norms'!$B$9:$F$99,3,FALSE)," with ",VLOOKUP(B149,'Unit Cost Norms'!$B$9:$F$99,5,FALSE)," ",VLOOKUP(B149,'Unit Cost Norms'!$B$9:$F$99,2,FALSE))) ->  | K149: 0
B150: ='Quantity Calculations'!C474 -> 0 | C150: ='Quantity Calculations'!D474 -> 0 | D150: ='Quantity Calculations'!E474 -> 0 | H150: 0 | J150: =IF(OR(ISNA(VLOOKUP(B150,'Unit Cost Norms'!$B$9:$F$99,3,FALSE)),VLOOKUP(B150,'Unit Cost Norms'!$B$9:$F$99,3,FALSE)=0),"N/A",CONCATENATE("$",VLOOKUP(B150,'Unit Cost Norms'!$B$9:$F$99,3,FALSE)," with ",VLOOKUP(B150,'Unit Cost Norms'!$B$9:$F$99,5,FALSE)," ",VLOOKUP(B150,'Unit Cost Norms'!$B$9:$F$99,2,FALSE))) ->  | K150: 0
B151: ='Quantity Calculations'!C475 -> 0 | C151: ='Quantity Calculations'!D475 -> 0 | D151: ='Quantity Calculations'!E475 -> 0 | H151: 0 | J151: =IF(OR(ISNA(VLOOKUP(B151,'Unit Cost Norms'!$B$9:$F$99,3,FALSE)),VLOOKUP(B151,'Unit Cost Norms'!$B$9:$F$99,3,FALSE)=0),"N/A",CONCATENATE("$",VLOOKUP(B151,'Unit Cost Norms'!$B$9:$F$99,3,FALSE)," with ",VLOOKUP(B151,'Unit Cost Norms'!$B$9:$F$99,5,FALSE)," ",VLOOKUP(B151,'Unit Cost Norms'!$B$9:$F$99,2,FALSE))) ->  | K151: 0
B152: ='Quantity Calculations'!C476 -> 0 | C152: ='Quantity Calculations'!D476 -> 0 | D152: ='Quantity Calculations'!E476 -> 0 | H152: 0 | J152: =IF(OR(ISNA(VLOOKUP(B152,'Unit Cost Norms'!$B$9:$F$99,3,FALSE)),VLOOKUP(B152,'Unit Cost Norms'!$B$9:$F$99,3,FALSE)=0),"N/A",CONCATENATE("$",VLOOKUP(B152,'Unit Cost Norms'!$B$9:$F$99,3,FALSE)," with ",VLOOKUP(B152,'Unit Cost Norms'!$B$9:$F$99,5,FALSE)," ",VLOOKUP(B152,'Unit Cost Norms'!$B$9:$F$99,2,FALSE))) ->  | K152: 0
B153: TRAFFIC CONTROL DEVICE ITEMS | C153: --- | H153: Estimate | J153: ='Unit Cost Norms'!$D$6 -> Culpeper
A154: Item Code | B154: Description | C154: Quantity | D154: Units | E154: Unit Cost | F154: Price Source | G154: Remarks | H154: =SUM(H155:H167) -> 0 | J154: Cost Norm
A155: LS | B155: Signing | C155: =IF(E155>0,1,0) -> 0 | D155: LS | E155: =TCDSiC -> 0 | H155: =E155*C155 -> 0 | J155: =IF(OR(ISNA(VLOOKUP(B155,'Unit Cost Norms'!$B$9:$F$99,3,FALSE)),VLOOKUP(B155,'Unit Cost Norms'!$B$9:$F$99,3,FALSE)=0),"N/A",CONCATENATE("$",VLOOKUP(B155,'Unit Cost Norms'!$B$9:$F$99,3,FALSE)," with ",VLOOKUP(B155,'Unit Cost Norms'!$B$9:$F$99,5,FALSE)," ",VLOOKUP(B155,'Unit Cost Norms'!$B$9:$F$99,2,FALSE))) ->  | K155: 0
A156: LS | B156: Overhead Signing | C156: =IF(E156>0,1,0) -> 0 | D156: LS | E156: =TCDSiD1 -> 0 | H156: 0 | J156: =IF(OR(ISNA(VLOOKUP(B156,'Unit Cost Norms'!$B$9:$F$99,3,FALSE)),VLOOKUP(B156,'Unit Cost Norms'!$B$9:$F$99,3,FALSE)=0),"N/A",CONCATENATE("$",VLOOKUP(B156,'Unit Cost Norms'!$B$9:$F$99,3,FALSE)," with ",VLOOKUP(B156,'Unit Cost Norms'!$B$9:$F$99,5,FALSE)," ",VLOOKUP(B156,'Unit Cost Norms'!$B$9:$F$99,2,FALSE))) ->  | K156: 0
A157: LS | B157: Pavement Markings | C157: 0 | D157: LS | E157: =TCDPMC -> 0 | H157: 0 | J157: =IF(OR(ISNA(VLOOKUP(B157,'Unit Cost Norms'!$B$9:$F$99,3,FALSE)),VLOOKUP(B157,'Unit Cost Norms'!$B$9:$F$99,3,FALSE)=0),"N/A",CONCATENATE("$",VLOOKUP(B157,'Unit Cost Norms'!$B$9:$F$99,3,FALSE)," with ",VLOOKUP(B157,'Unit Cost Norms'!$B$9:$F$99,5,FALSE)," ",VLOOKUP(B157,'Unit Cost Norms'!$B$9:$F$99,2,FALSE))) ->  | K157: 0
A158: 54032 | B158: Type B Class I Pavement Line Marking 4" | C158: ='Quantity Calculations'!D501 -> 0 | D158: LF | H158: 0 | J158: =IF(OR(ISNA(VLOOKUP(B158,'Unit Cost Norms'!$B$9:$F$99,3,FALSE)),VLOOKUP(B158,'Unit Cost Norms'!$B$9:$F$99,3,FALSE)=0),"N/A",CONCATENATE("$",VLOOKUP(B158,'Unit Cost Norms'!$B$9:$F$99,3,FALSE)," with ",VLOOKUP(B158,'Unit Cost Norms'!$B$9:$F$99,5,FALSE)," ",VLOOKUP(B158,'Unit Cost Norms'!$B$9:$F$99,2,FALSE))) -> $3 with 1000-6000 LF | K158: 0
A159: LS | B159: Signals | C159: 0 | D159: LS | E159: ='Quantity Calculations'!D503 -> 0 | H159: 0 | J159: =IF(OR(ISNA(VLOOKUP(B159,'Unit Cost Norms'!$B$9:$F$99,3,FALSE)),VLOOKUP(B159,'Unit Cost Norms'!$B$9:$F$99,3,FALSE)=0),"N/A",CONCATENATE("$",VLOOKUP(B159,'Unit Cost Norms'!$B$9:$F$99,3,FALSE)," with ",VLOOKUP(B159,'Unit Cost Norms'!$B$9:$F$99,5,FALSE)," ",VLOOKUP(B159,'Unit Cost Norms'!$B$9:$F$99,2,FALSE))) ->  | K159: 0
A160: LS | B160: Lighting | C160: 0 | D160: LS | E160: ='Quantity Calculations'!D508 -> 0 | H160: 0 | J160: =IF(OR(ISNA(VLOOKUP(B160,'Unit Cost Norms'!$B$9:$F$99,3,FALSE)),VLOOKUP(B160,'Unit Cost Norms'!$B$9:$F$99,3,FALSE)=0),"N/A",CONCATENATE("$",VLOOKUP(B160,'Unit Cost Norms'!$B$9:$F$99,3,FALSE)," with ",VLOOKUP(B160,'Unit Cost Norms'!$B$9:$F$99,5,FALSE)," ",VLOOKUP(B160,'Unit Cost Norms'!$B$9:$F$99,2,FALSE))) ->  | K160: 0
A161: LS | B161: ITS | C161: 0 | D161: LS | E161: ='Quantity Calculations'!D512 -> 0 | H161: 0 | J161: =IF(OR(ISNA(VLOOKUP(B161,'Unit Cost Norms'!$B$9:$F$99,3,FALSE)),VLOOKUP(B161,'Unit Cost Norms'!$B$9:$F$99,3,FALSE)=0),"N/A",CONCATENATE("$",VLOOKUP(B161,'Unit Cost Norms'!$B$9:$F$99,3,FALSE)," with ",VLOOKUP(B161,'Unit Cost Norms'!$B$9:$F$99,5,FALSE)," ",VLOOKUP(B161,'Unit Cost Norms'!$B$9:$F$99,2,FALSE))) ->  | K161: 0
B162: ='Quantity Calculations'!C517 -> 0 | C162: ='Quantity Calculations'!D517 -> 0 | D162: ='Quantity Calculations'!E517 -> 0 | H162: 0 | J162: =IF(OR(ISNA(VLOOKUP(B162,'Unit Cost Norms'!$B$9:$F$99,3,FALSE)),VLOOKUP(B162,'Unit Cost Norms'!$B$9:$F$99,3,FALSE)=0),"N/A",CONCATENATE("$",VLOOKUP(B162,'Unit Cost Norms'!$B$9:$F$99,3,FALSE)," with ",VLOOKUP(B162,'Unit Cost Norms'!$B$9:$F$99,5,FALSE)," ",VLOOKUP(B162,'Unit Cost Norms'!$B$9:$F$99,2,FALSE))) ->  | K162: 0
B163: ='Quantity Calculations'!C518 -> 0 | C163: ='Quantity Calculations'!D518 -> 0 | D163: ='Quantity Calculations'!E518 -> 0 | H163: 0 | J163: =IF(OR(ISNA(VLOOKUP(B163,'Unit Cost Norms'!$B$9:$F$99,3,FALSE)),VLOOKUP(B163,'Unit Cost Norms'!$B$9:$F$99,3,FALSE)=0),"N/A",CONCATENATE("$",VLOOKUP(B163,'Unit Cost Norms'!$B$9:$F$99,3,FALSE)," with ",VLOOKUP(B163,'Unit Cost Norms'!$B$9:$F$99,5,FALSE)," ",VLOOKUP(B163,'Unit Cost Norms'!$B$9:$F$99,2,FALSE))) ->  | K163: 0
B164: ='Quantity Calculations'!C519 -> 0 | C164: ='Quantity Calculations'!D519 -> 0 | D164: ='Quantity Calculations'!E519 -> 0 | H164: 0 | J164: =IF(OR(ISNA(VLOOKUP(B164,'Unit Cost Norms'!$B$9:$F$99,3,FALSE)),VLOOKUP(B164,'Unit Cost Norms'!$B$9:$F$99,3,FALSE)=0),"N/A",CONCATENATE("$",VLOOKUP(B164,'Unit Cost Norms'!$B$9:$F$99,3,FALSE)," with ",VLOOKUP(B164,'Unit Cost Norms'!$B$9:$F$99,5,FALSE)," ",VLOOKUP(B164,'Unit Cost Norms'!$B$9:$F$99,2,FALSE))) ->  | K164: 0
B165: ='Quantity Calculations'!C520 -> 0 | C165: ='Quantity Calculations'!D520 -> 0 | D165: ='Quantity Calculations'!E520 -> 0 | H165: 0 | J165: =IF(OR(ISNA(VLOOKUP(B165,'Unit Cost Norms'!$B$9:$F$99,3,FALSE)),VLOOKUP(B165,'Unit Cost Norms'!$B$9:$F$99,3,FALSE)=0),"N/A",CONCATENATE("$",VLOOKUP(B165,'Unit Cost Norms'!$B$9:$F$99,3,FALSE)," with ",VLOOKUP(B165,'Unit Cost Norms'!$B$9:$F$99,5,FALSE)," ",VLOOKUP(B165,'Unit Cost Norms'!$B$9:$F$99,2,FALSE))) ->  | K165: 0
B166: ='Quantity Calculations'!C521 -> 0 | C166: ='Quantity Calculations'!D521 -> 0 | D166: ='Quantity Calculations'!E521 -> 0 | H166: 0 | J166: =IF(OR(ISNA(VLOOKUP(B166,'Unit Cost Norms'!$B$9:$F$99,3,FALSE)),VLOOKUP(B166,'Unit Cost Norms'!$B$9:$F$99,3,FALSE)=0),"N/A",CONCATENATE("$",VLOOKUP(B166,'Unit Cost Norms'!$B$9:$F$99,3,FALSE)," with ",VLOOKUP(B166,'Unit Cost Norms'!$B$9:$F$99,5,FALSE)," ",VLOOKUP(B166,'Unit Cost Norms'!$B$9:$F$99,2,FALSE))) ->  | K166: 0
B167: ='Quantity Calculations'!C522 -> 0 | C167: ='Quantity Calculations'!D522 -> 0 | D167: ='Quantity Calculations'!E522 -> 0 | H167: 0 | J167: =IF(OR(ISNA(VLOOKUP(B167,'Unit Cost Norms'!$B$9:$F$99,3,FALSE)),VLOOKUP(B167,'Unit Cost Norms'!$B$9:$F$99,3,FALSE)=0),"N/A",CONCATENATE("$",VLOOKUP(B167,'Unit Cost Norms'!$B$9:$F$99,3,FALSE)," with ",VLOOKUP(B167,'Unit Cost Norms'!$B$9:$F$99,5,FALSE)," ",VLOOKUP(B167,'Unit Cost Norms'!$B$9:$F$99,2,FALSE))) ->  | K167: 0
B168: UTILITY ITEMS | C168: --- | H168: Estimate | J168: ='Unit Cost Norms'!$D$6 -> Culpeper
A169: Item Code | B169: Description | C169: Quantity | D169: Units | E169: Unit Cost | F169: Price Source | G169: Remarks | H169: =SUM(H170:H177) -> 0 | J169: Cost Norm
A170: LS | B170: Water Utility | C170: =IF(E170>0,1,0) -> 0 | D170: LS | E170: =UtilityA -> 0 | H170: =E170*C170 -> 0 | J170: =IF(OR(ISNA(VLOOKUP(B170,'Unit Cost Norms'!$B$9:$F$99,3,FALSE)),VLOOKUP(B170,'Unit Cost Norms'!$B$9:$F$99,3,FALSE)=0),"N/A",CONCATENATE("$",VLOOKUP(B170,'Unit Cost Norms'!$B$9:$F$99,3,FALSE)," with ",VLOOKUP(B170,'Unit Cost Norms'!$B$9:$F$99,5,FALSE)," ",VLOOKUP(B170,'Unit Cost Norms'!$B$9:$F$99,2,FALSE))) ->  | K170: 0
A171: LS | B171: Sanitary Sewer | C171: =IF(E171>0,1,0) -> 0 | D171: LS | E171: =UtilityB -> 0 | H171: 0 | J171: =IF(OR(ISNA(VLOOKUP(B171,'Unit Cost Norms'!$B$9:$F$99,3,FALSE)),VLOOKUP(B171,'Unit Cost Norms'!$B$9:$F$99,3,FALSE)=0),"N/A",CONCATENATE("$",VLOOKUP(B171,'Unit Cost Norms'!$B$9:$F$99,3,FALSE)," with ",VLOOKUP(B171,'Unit Cost Norms'!$B$9:$F$99,5,FALSE)," ",VLOOKUP(B171,'Unit Cost Norms'!$B$9:$F$99,2,FALSE))) ->  | K171: 0
B172: ='Quantity Calculations'!C537 -> 0 | C172: ='Quantity Calculations'!D537 -> 0 | D172: ='Quantity Calculations'!E537 -> 0 | H172: 0 | J172: =IF(OR(ISNA(VLOOKUP(B172,'Unit Cost Norms'!$B$9:$F$99,3,FALSE)),VLOOKUP(B172,'Unit Cost Norms'!$B$9:$F$99,3,FALSE)=0),"N/A",CONCATENATE("$",VLOOKUP(B172,'Unit Cost Norms'!$B$9:$F$99,3,FALSE)," with ",VLOOKUP(B172,'Unit Cost Norms'!$B$9:$F$99,5,FALSE)," ",VLOOKUP(B172,'Unit Cost Norms'!$B$9:$F$99,2,FALSE))) ->  | K172: 0
B173: ='Quantity Calculations'!C538 -> 0 | C173: ='Quantity Calculations'!D538 -> 0 | D173: ='Quantity Calculations'!E538 -> 0 | H173: 0 | J173: =IF(OR(ISNA(VLOOKUP(B173,'Unit Cost Norms'!$B$9:$F$99,3,FALSE)),VLOOKUP(B173,'Unit Cost Norms'!$B$9:$F$99,3,FALSE)=0),"N/A",CONCATENATE("$",VLOOKUP(B173,'Unit Cost Norms'!$B$9:$F$99,3,FALSE)," with ",VLOOKUP(B173,'Unit Cost Norms'!$B$9:$F$99,5,FALSE)," ",VLOOKUP(B173,'Unit Cost Norms'!$B$9:$F$99,2,FALSE))) ->  | K173: 0
B174: ='Quantity Calculations'!C539 -> 0 | C174: ='Quantity Calculations'!D539 -> 0 | D174: ='Quantity Calculations'!E539 -> 0 | H174: 0 | J174: =IF(OR(ISNA(VLOOKUP(B174,'Unit Cost Norms'!$B$9:$F$99,3,FALSE)),VLOOKUP(B174,'Unit Cost Norms'!$B$9:$F$99,3,FALSE)=0),"N/A",CONCATENATE("$",VLOOKUP(B174,'Unit Cost Norms'!$B$9:$F$99,3,FALSE)," with ",VLOOKUP(B174,'Unit Cost Norms'!$B$9:$F$99,5,FALSE)," ",VLOOKUP(B174,'Unit Cost Norms'!$B$9:$F$99,2,FALSE))) ->  | K174: 0
B175: ='Quantity Calculations'!C540 -> 0 | C175: ='Quantity Calculations'!D540 -> 0 | D175: ='Quantity Calculations'!E540 -> 0 | H175: 0 | J175: =IF(OR(ISNA(VLOOKUP(B175,'Unit Cost Norms'!$B$9:$F$99,3,FALSE)),VLOOKUP(B175,'Unit Cost Norms'!$B$9:$F$99,3,FALSE)=0),"N/A",CONCATENATE("$",VLOOKUP(B175,'Unit Cost Norms'!$B$9:$F$99,3,FALSE)," with ",VLOOKUP(B175,'Unit Cost Norms'!$B$9:$F$99,5,FALSE)," ",VLOOKUP(B175,'Unit Cost Norms'!$B$9:$F$99,2,FALSE))) ->  | K175: 0
B176: ='Quantity Calculations'!C541 -> 0 | C176: ='Quantity Calculations'!D541 -> 0 | D176: ='Quantity Calculations'!E541 -> 0 | H176: 0 | J176: =IF(OR(ISNA(VLOOKUP(B176,'Unit Cost Norms'!$B$9:$F$99,3,FALSE)),VLOOKUP(B176,'Unit Cost Norms'!$B$9:$F$99,3,FALSE)=0),"N/A",CONCATENATE("$",VLOOKUP(B176,'Unit Cost Norms'!$B$9:$F$99,3,FALSE)," with ",VLOOKUP(B176,'Unit Cost Norms'!$B$9:$F$99,5,FALSE)," ",VLOOKUP(B176,'Unit Cost Norms'!$B$9:$F$99,2,FALSE))) ->  | K176: 0
B177: ='Quantity Calculations'!C542 -> 0 | C177: ='Quantity Calculations'!D542 -> 0 | D177: ='Quantity Calculations'!E542 -> 0 | H177: 0 | J177: =IF(OR(ISNA(VLOOKUP(B177,'Unit Cost Norms'!$B$9:$F$99,3,FALSE)),VLOOKUP(B177,'Unit Cost Norms'!$B$9:$F$99,3,FALSE)=0),"N/A",CONCATENATE("$",VLOOKUP(B177,'Unit Cost Norms'!$B$9:$F$99,3,FALSE)," with ",VLOOKUP(B177,'Unit Cost Norms'!$B$9:$F$99,5,FALSE)," ",VLOOKUP(B177,'Unit Cost Norms'!$B$9:$F$99,2,FALSE))) ->  | K177: 0
B178: ENVIRONMENTAL MITIGATION ITEMS | C178: --- | H178: Estimate | J178: ='Unit Cost Norms'!$D$6 -> Culpeper
A179: Item Code | B179: Description | C179: Quantity | D179: Units | E179: Unit Cost | F179: Price Source | G179: Remarks | H179: =SUM(H180:H188) -> 0 | J179: Cost Norm
A180: LS | B180: Stream or Wetland Restoration | C180: =IF(E180>0,1,0) -> 0 | D180: LS | E180: =MisInEnvA -> 0 | H180: =E180*C180 -> 0 | J180: =IF(OR(ISNA(VLOOKUP(B180,'Unit Cost Norms'!$B$9:$F$99,3,FALSE)),VLOOKUP(B180,'Unit Cost Norms'!$B$9:$F$99,3,FALSE)=0),"N/A",CONCATENATE("$",VLOOKUP(B180,'Unit Cost Norms'!$B$9:$F$99,3,FALSE)," with ",VLOOKUP(B180,'Unit Cost Norms'!$B$9:$F$99,5,FALSE)," ",VLOOKUP(B180,'Unit Cost Norms'!$B$9:$F$99,2,FALSE))) ->  | K180: 0
A181: LS | B181: Contaminated Soil Disposal / Tank Removal | C181: =IF(E181>0,1,0) -> 0 | D181: LS | E181: =MisInEnvB -> 0 | H181: 0 | J181: =IF(OR(ISNA(VLOOKUP(B181,'Unit Cost Norms'!$B$9:$F$99,3,FALSE)),VLOOKUP(B181,'Unit Cost Norms'!$B$9:$F$99,3,FALSE)=0),"N/A",CONCATENATE("$",VLOOKUP(B181,'Unit Cost Norms'!$B$9:$F$99,3,FALSE)," with ",VLOOKUP(B181,'Unit Cost Norms'!$B$9:$F$99,5,FALSE)," ",VLOOKUP(B181,'Unit Cost Norms'!$B$9:$F$99,2,FALSE))) ->  | K181: 0
A182: 13752 or 13755 | B182: Sound Barrier Wall (Absorptive) | C182: ='Quantity Calculations'!D551 -> 0 | D182: SF | H182: 0 | J182: =IF(OR(ISNA(VLOOKUP(B182,'Unit Cost Norms'!$B$9:$F$99,3,FALSE)),VLOOKUP(B182,'Unit Cost Norms'!$B$9:$F$99,3,FALSE)=0),"N/A",CONCATENATE("$",VLOOKUP(B182,'Unit Cost Norms'!$B$9:$F$99,3,FALSE)," with ",VLOOKUP(B182,'Unit Cost Norms'!$B$9:$F$99,5,FALSE)," ",VLOOKUP(B182,'Unit Cost Norms'!$B$9:$F$99,2,FALSE))) -> $68 with 20000 SF | K182: 0
B183: ='Quantity Calculations'!C558 -> 0 | C183: ='Quantity Calculations'!D558 -> 0 | D183: ='Quantity Calculations'!E558 -> 0 | H183: 0 | J183: =IF(OR(ISNA(VLOOKUP(B183,'Unit Cost Norms'!$B$9:$F$99,3,FALSE)),VLOOKUP(B183,'Unit Cost Norms'!$B$9:$F$99,3,FALSE)=0),"N/A",CONCATENATE("$",VLOOKUP(B183,'Unit Cost Norms'!$B$9:$F$99,3,FALSE)," with ",VLOOKUP(B183,'Unit Cost Norms'!$B$9:$F$99,5,FALSE)," ",VLOOKUP(B183,'Unit Cost Norms'!$B$9:$F$99,2,FALSE))) ->  | K183: 0
B184: ='Quantity Calculations'!C559 -> 0 | C184: ='Quantity Calculations'!D559 -> 0 | D184: ='Quantity Calculations'!E559 -> 0 | H184: 0 | J184: =IF(OR(ISNA(VLOOKUP(B184,'Unit Cost Norms'!$B$9:$F$99,3,FALSE)),VLOOKUP(B184,'Unit Cost Norms'!$B$9:$F$99,3,FALSE)=0),"N/A",CONCATENATE("$",VLOOKUP(B184,'Unit Cost Norms'!$B$9:$F$99,3,FALSE)," with ",VLOOKUP(B184,'Unit Cost Norms'!$B$9:$F$99,5,FALSE)," ",VLOOKUP(B184,'Unit Cost Norms'!$B$9:$F$99,2,FALSE))) ->  | K184: 0
B185: ='Quantity Calculations'!C560 -> 0 | C185: ='Quantity Calculations'!D560 -> 0 | D185: ='Quantity Calculations'!E560 -> 0 | H185: 0 | J185: =IF(OR(ISNA(VLOOKUP(B185,'Unit Cost Norms'!$B$9:$F$99,3,FALSE)),VLOOKUP(B185,'Unit Cost Norms'!$B$9:$F$99,3,FALSE)=0),"N/A",CONCATENATE("$",VLOOKUP(B185,'Unit Cost Norms'!$B$9:$F$99,3,FALSE)," with ",VLOOKUP(B185,'Unit Cost Norms'!$B$9:$F$99,5,FALSE)," ",VLOOKUP(B185,'Unit Cost Norms'!$B$9:$F$99,2,FALSE))) ->  | K185: 0
B186: ='Quantity Calculations'!C561 -> 0 | C186: ='Quantity Calculations'!D561 -> 0 | D186: ='Quantity Calculations'!E561 -> 0 | H186: 0 | J186: =IF(OR(ISNA(VLOOKUP(B186,'Unit Cost Norms'!$B$9:$F$99,3,FALSE)),VLOOKUP(B186,'Unit Cost Norms'!$B$9:$F$99,3,FALSE)=0),"N/A",CONCATENATE("$",VLOOKUP(B186,'Unit Cost Norms'!$B$9:$F$99,3,FALSE)," with ",VLOOKUP(B186,'Unit Cost Norms'!$B$9:$F$99,5,FALSE)," ",VLOOKUP(B186,'Unit Cost Norms'!$B$9:$F$99,2,FALSE))) ->  | K186: 0
B187: ='Quantity Calculations'!C562 -> 0 | C187: ='Quantity Calculations'!D562 -> 0 | D187: ='Quantity Calculations'!E562 -> 0 | H187: 0 | J187: =IF(OR(ISNA(VLOOKUP(B187,'Unit Cost Norms'!$B$9:$F$99,3,FALSE)),VLOOKUP(B187,'Unit Cost Norms'!$B$9:$F$99,3,FALSE)=0),"N/A",CONCATENATE("$",VLOOKUP(B187,'Unit Cost Norms'!$B$9:$F$99,3,FALSE)," with ",VLOOKUP(B187,'Unit Cost Norms'!$B$9:$F$99,5,FALSE)," ",VLOOKUP(B187,'Unit Cost Norms'!$B$9:$F$99,2,FALSE))) ->  | K187: 0
B188: ='Quantity Calculations'!C563 -> 0 | C188: ='Quantity Calculations'!D563 -> 0 | D188: ='Quantity Calculations'!E563 -> 0 | H188: 0 | J188: =IF(OR(ISNA(VLOOKUP(B188,'Unit Cost Norms'!$B$9:$F$99,3,FALSE)),VLOOKUP(B188,'Unit Cost Norms'!$B$9:$F$99,3,FALSE)=0),"N/A",CONCATENATE("$",VLOOKUP(B188,'Unit Cost Norms'!$B$9:$F$99,3,FALSE)," with ",VLOOKUP(B188,'Unit Cost Norms'!$B$9:$F$99,5,FALSE)," ",VLOOKUP(B188,'Unit Cost Norms'!$B$9:$F$99,2,FALSE))) ->  | K188: 0
B189: NON-BID INCIDENTAL ITEMS | C189: --- | H189: Estimate | J189: ='Unit Cost Norms'!$D$6 -> Culpeper
A190: Item Code | B190: Description | C190: Quantity | D190: Units | E190: Unit Cost | F190: Price Source | G190: Remarks | H190: =SUM(H191:H199) -> 0 | J190: Cost Norm
A191: 13212 | B191: R/W Monument RM-2 | C191: ='Quantity Calculations'!D573 -> 0 | D191: EA | H191: =E191*C191 -> 0 | J191: =IF(OR(ISNA(VLOOKUP(B191,'Unit Cost Norms'!$B$9:$F$99,3,FALSE)),VLOOKUP(B191,'Unit Cost Norms'!$B$9:$F$99,3,FALSE)=0),"N/A",CONCATENATE("$",VLOOKUP(B191,'Unit Cost Norms'!$B$9:$F$99,3,FALSE)," with ",VLOOKUP(B191,'Unit Cost Norms'!$B$9:$F$99,5,FALSE)," ",VLOOKUP(B191,'Unit Cost Norms'!$B$9:$F$99,2,FALSE))) -> $300 with 15 EA | K191: 0
A192: 24283 | B192: Police Patrol | C192: =IF(E192>0,1,0) -> 0 | D192: TEC | E192: ='Quantity Calculations'!D574 -> 0 | H192: =E192*C192 -> 0 | J192: =IF(OR(ISNA(VLOOKUP(B192,'Unit Cost Norms'!$B$9:$F$99,3,FALSE)),VLOOKUP(B192,'Unit Cost Norms'!$B$9:$F$99,3,FALSE)=0),"N/A",CONCATENATE("$",VLOOKUP(B192,'Unit Cost Norms'!$B$9:$F$99,3,FALSE)," with ",VLOOKUP(B192,'Unit Cost Norms'!$B$9:$F$99,5,FALSE)," ",VLOOKUP(B192,'Unit Cost Norms'!$B$9:$F$99,2,FALSE))) -> $10000 with TEC | K192: 0
A193: 80061/65/66 | B193: Railroad Force Account | C193: =IF(E193>0,1,0) -> 0 | D193: TEC | E193: =MisInRRA -> 0 | H193: 0 | J193: =IF(OR(ISNA(VLOOKUP(B193,'Unit Cost Norms'!$B$9:$F$99,3,FALSE)),VLOOKUP(B193,'Unit Cost Norms'!$B$9:$F$99,3,FALSE)=0),"N/A",CONCATENATE("$",VLOOKUP(B193,'Unit Cost Norms'!$B$9:$F$99,3,FALSE)," with ",VLOOKUP(B193,'Unit Cost Norms'!$B$9:$F$99,5,FALSE)," ",VLOOKUP(B193,'Unit Cost Norms'!$B$9:$F$99,2,FALSE))) ->  | K193: 0
B194: =MisInAddB1 -> 0 | C194: 0 | D194: 0 | H194: 0 | J194: =IF(OR(ISNA(VLOOKUP(B194,'Unit Cost Norms'!$B$9:$F$99,3,FALSE)),VLOOKUP(B194,'Unit Cost Norms'!$B$9:$F$99,3,FALSE)=0),"N/A",CONCATENATE("$",VLOOKUP(B194,'Unit Cost Norms'!$B$9:$F$99,3,FALSE)," with ",VLOOKUP(B194,'Unit Cost Norms'!$B$9:$F$99,5,FALSE)," ",VLOOKUP(B194,'Unit Cost Norms'!$B$9:$F$99,2,FALSE))) ->  | K194: 0
B195: 0 | C195: 0 | D195: 0 | H195: 0 | J195: =IF(OR(ISNA(VLOOKUP(B195,'Unit Cost Norms'!$B$9:$F$99,3,FALSE)),VLOOKUP(B195,'Unit Cost Norms'!$B$9:$F$99,3,FALSE)=0),"N/A",CONCATENATE("$",VLOOKUP(B195,'Unit Cost Norms'!$B$9:$F$99,3,FALSE)," with ",VLOOKUP(B195,'Unit Cost Norms'!$B$9:$F$99,5,FALSE)," ",VLOOKUP(B195,'Unit Cost Norms'!$B$9:$F$99,2,FALSE))) ->  | K195: 0
B196: 0 | C196: 0 | D196: 0 | H196: 0 | J196: =IF(OR(ISNA(VLOOKUP(B196,'Unit Cost Norms'!$B$9:$F$99,3,FALSE)),VLOOKUP(B196,'Unit Cost Norms'!$B$9:$F$99,3,FALSE)=0),"N/A",CONCATENATE("$",VLOOKUP(B196,'Unit Cost Norms'!$B$9:$F$99,3,FALSE)," with ",VLOOKUP(B196,'Unit Cost Norms'!$B$9:$F$99,5,FALSE)," ",VLOOKUP(B196,'Unit Cost Norms'!$B$9:$F$99,2,FALSE))) ->  | K196: 0
B197: 0 | C197: 0 | D197: 0 | H197: 0 | J197: =IF(OR(ISNA(VLOOKUP(B197,'Unit Cost Norms'!$B$9:$F$99,3,FALSE)),VLOOKUP(B197,'Unit Cost Norms'!$B$9:$F$99,3,FALSE)=0),"N/A",CONCATENATE("$",VLOOKUP(B197,'Unit Cost Norms'!$B$9:$F$99,3,FALSE)," with ",VLOOKUP(B197,'Unit Cost Norms'!$B$9:$F$99,5,FALSE)," ",VLOOKUP(B197,'Unit Cost Norms'!$B$9:$F$99,2,FALSE))) ->  | K197: 0
B198: 0 | C198: 0 | D198: 0 | H198: 0 | J198: =IF(OR(ISNA(VLOOKUP(B198,'Unit Cost Norms'!$B$9:$F$99,3,FALSE)),VLOOKUP(B198,'Unit Cost Norms'!$B$9:$F$99,3,FALSE)=0),"N/A",CONCATENATE("$",VLOOKUP(B198,'Unit Cost Norms'!$B$9:$F$99,3,FALSE)," with ",VLOOKUP(B198,'Unit Cost Norms'!$B$9:$F$99,5,FALSE)," ",VLOOKUP(B198,'Unit Cost Norms'!$B$9:$F$99,2,FALSE))) ->  | K198: 0
B199: 0 | C199: 0 | D199: 0 | H199: 0 | J199: =IF(OR(ISNA(VLOOKUP(B199,'Unit Cost Norms'!$B$9:$F$99,3,FALSE)),VLOOKUP(B199,'Unit Cost Norms'!$B$9:$F$99,3,FALSE)=0),"N/A",CONCATENATE("$",VLOOKUP(B199,'Unit Cost Norms'!$B$9:$F$99,3,FALSE)," with ",VLOOKUP(B199,'Unit Cost Norms'!$B$9:$F$99,5,FALSE)," ",VLOOKUP(B199,'Unit Cost Norms'!$B$9:$F$99,2,FALSE))) ->  | K199: 0
C200: ---
C201: ---
... 6 more rows

Sheet Unit Cost Norms
B1: =_xlfn.CONCAT(D6," Unit Cost Norms") -> Culpeper Unit Cost Norms | C1: ='CN Estimate Tool'!F4 -> Rev: 6/5/2023
B3: =_xlfn.CONCAT("Typical Expected Costs- ",$E$7) -> Typical Expected Costs- Moderate Intersection Project
B5: UNIT COST NORM DESCRIPTION
B6: Unit Cost Norm Location: | D6: Culpeper | E6: Date of Update: | F6: 45082
D7: Project Type: | E7: Moderate Intersection Project
B8: GRADING ITEMS
A9: Item Code | B9: Description | C9: Units | D9: Unit Cost | E9: Source | F9: Quantity
A10: 00111 | B10: Clearing and Grubbing | C10: AC | D10: 145000 | E10: State Range Avg Inflated 24 mo | F10: 0.1-0.7
A11: 00120 | B11: Regular Excavation | C11: CY | D11: 70 | E11: State Range Avg 90% Inflated 24 mo | F11: 1400-2600
A12: 00124 | B12: Rock Excavation | C12: CY | D12: 1750 | E12: State Range Avg 90% Inflated 24 mo | F12: 1-15
A13: 00136 or 00140 | B13: Borrow Excavation | C13: CY | D13: 56 | E13: State Range Avg 90% Inflated 24 mo | F13: 1400-2600
A14: 27327 | B14: Rolled Erosion Ctrl Product EC-3 Type 3 (Slope Protection) | C14: SY | D14: 16 | E14: State Range Avg 90% Inflated 24 mo | F14: 25-100
B15: DRAINAGE ITEMS
A16: Item Code | B16: Description | C16: Units | D16: Unit Cost | E16: Source | F16: Quantity
B17: No items
B18: PAVEMENT ITEMS
A19: Item Code | B19: Description | C19: Units | D19: Unit Cost | E19: Source | F19: Quantity
A20: 10243 or 10123 | B20: Aggr. Base Matl. Ty. I No. 21A | C20: TON | D20: 65 | E20: Bid tab review | F20: 1400-2600
A21: 10245 or 10128 | B21: Aggr. Base Matl. Ty. I No. 21B | C21: TON | D21: 68 | E21: State Range Avg 90% Inflated 24 mo | F21: 1400-2600
A22: 10375 or 10891 | B22: Reinf. HCC Pave. 9" Truck Apron (Include stamped pattern) | C22: SY | D22: 610 | E22: 10499 Bid Tab review inflated | F22: 350-450
A23: 10607 | B23: Asphalt Conc. Ty. SM-12.5A | C23: TON | D23: 166 | E23: State Range Avg 90% Inflated 24 mo | F23: 500-1500
A24: 10608 | B24: Asphalt Conc. Ty. SM-12.5D | C24: TON | D24: 185 | E24: State Range Avg 90% Inflated 24 mo | F24: 500-1500
A25: 10609 | B25: Asphalt Conc. Ty. SM-12.5E | C25: TON | D25: 210 | E25: State Range Avg 90% Inflated 24 mo | F25: 500-1500
A26: 10610 | B26: Asphalt Concrete Ty. IM-19.0A | C26: TON | D26: 177 | E26: State Range Avg 90% Inflated 24 mo | F26: 500-1100
A27: 10611 | B27: Asphalt Concrete Ty. IM-19.0D | C27: TON | D27: 192 | E27: State Range Avg Inflated 24 mo | F27: 500-1100
A28: 10628 | B28: Flexible Pave. Planing 0"-2" | C28: SY | D28: 14 | E28: State Range Avg 90% Inflated 24 mo | F28: 2500-3500
A29: 10635 | B29: Asphalt Conc. Ty. SM-9.5A | C29: TON | D29: 156 | E29: State Range Avg 90% Inflated 24 mo | F29: 500-1500
A30: 10636 | B30: Asphalt Conc. Ty. SM-9.5D | C30: TON | D30: 224 | E30: State Range Avg 90% Inflated 24 mo | F30: 500-1500
A31: 10642 | B31: Asphalt Concrete Ty. BM-25.0A | C31: TON | D31: 184 | E31: State Range Avg 90% Inflated 24 mo | F31: 500-1500
A32: 10643 | B32: Asphalt Concrete Ty. BM-25.0D | C32: TON | D32: 184 | E32: Bid tab review | F32: 500-1500
A33: 10700 | B33: Rumble Strip, Asphalt | C33: LF | D33: 48 | E33: State Range Avg 90% Inflated 24 mo | F33: 100-500
A34: 11070 | B34: Saw-Cut Asph Conc. (Variable Depth) | C34: LF | D34: 8 | E34: State Range Avg Inflated 24 mo | F34: 1200-3000
A35: 24400 | B35: Obscuring Roadway | C35: UNIT | D35: 2300 | E35: State Range Avg 90% Inflated 24 mo | F35: 1-6
A36: 24430 | B36: Demolition of Pavement (Flexible) | C36: SY | D36: 16 | E36: State Range Avg 90% Inflated 24 mo | F36: 1000-3000
B37: ROADWAY INCIDENTAL ITEMS
A38: Item Code | B38: Description | C38: Units | D38: Unit Cost | E38: Source | F38: Quantity
A39: 00540 | B39: Reinforcing Steel (for Stairs) | C39: LB | D39: 12 | E39: Bid tabs rounded up- low quantity | F39: 80
A40: 09246 | B40: Modified Shoulder Gutter | C40: SY | D40: 160 | E40: Recent Projects inflated | F40: 150-400
A41: 12020 or 12022 | B41: Standard or Radial CG-2 | C41: LF | D41: 62 | E41: State Range C-Plan 90% Infl (62 vs 62) | F41: 100-400
A42: 12030 or 12032 | B42: Standard or Radial CG-3 | C42: LF | D42: 70 | E42: State Range C-Plan 90% Infl (66 vs 74) | F42: 100-400
A43: 12322 | B43: Asphalt Concrete Curb Type MC-3B | C43: LF | D43: 90 | E43: State Range Avg Inflated | F43: 100-300
A44: 12600 or 12610 | B44: Standard or Radial CG-6 | C44: LF | D44: 60 | E44: State Range Avg Inflated (60 vs 52) | F44: 1000-3000
A45: 12700 or 12710 | B45: Standard or Radial CG-7 | C45: LF | D45: 60 | E45: State Range Avg Inflated (56 vs 42) | F45: 1000-3000
A46: 12940 | B46: Entrance Gutter CG-9D | C46: SY | D46: 200 | E46: State Range Avg 90% Inflated 24 mo | F46: 15-60
A47: 13108 | B47: CG-12 Detectable Warning Surface | C47: SY | D47: 720 | E47: District Range Avg 90% Inflated 24mo | F47: 10-30
A48: 13215 | B48: Mailbox Post, Single | C48: EA | D48: 415 | E48: State Range Avg 90% Inflated 24 mo | F48: 2-7
A49: 13220 | B49: Hydraulic Cement Concrete Sidewalk 4" | C49: SY | D49: 107 | E49: State Range Avg 90% Inflated 24 mo | F49: 100-500
A50: 13252 | B50: Concrete Class A-3 Misc. (for Stairs) | C50: CY | D50: 1600 | E50: State Bid Tab Review | F50: 3
A51: 13280 or 13282 | B51: Guardrail GR-MGS1 (consider 6' or 9' post) | C51: LF | D51: 53 | E51: State Range Avg 90% Inf (51 vs 59) | F51: 200-700
A52: 13286 | B52: Guardrail Terminal GR-MGS2 | C52: EA | D52: 5900 | E52: State Range Avg 90% Inflated 24 mo | F52: 1-2
A53: 13287 | B53: Guardrail End Anchorage GR-MGS3 | C53: EA | D53: 2600 | E53: State Range Avg 90% Inflated 24 mo | F53: 1-2
A54: 13383 or 13392 | B54: Fixed Object Attachment GR-FOA | C54: EA | D54: 4000 | E54: State Range Avg 90% Inflated 24 mo | F54: 1-2
A55: 13460 or 13461 | B55: Median Barrier MB-7D (one barrier) or MB-7E (variable gap) | C55: LF | D55: 220 | E55: State Bid Tab Review | F55: 100-400
A56: 13607 | B56: Impact Attenuator St'd IA-1, TL-3 | C56: EA | D56: 42000 | E56: State Range Avg 90% Inflated 24 mo | F56: 1-2
A57: 21110 or 21020 | B57: Median Strip MS-1A or MS-1 (on asphalt) | C57: SY | D57: 225 | E57: State Range Avg 90% Inflated 24 mo | F57: 200-700
A58: 22501 | B58: Fence (FE-W1) | C58: LF | D58: 60 | E58: State Range Avg Inflated 24 mo | F58: 250-750
A59: 22685 | B59: Fence (Wood Board) | C59: LF | D59: 125 | E59: State Avg Inflated | F59: 30-100
A60: 24600 | B60: Remove Existing Guardrail | C60: LF | D60: 18 | E60: Recent projects- District C01 90% Inf | F60: 300-800
A61: 25002 | B61: Handrail HR-1 Type 1 (Stairs) | C61: LF | D61: 540 | E61: State Range Avg 90% Inflated 24 mo | F61: 10-40
A62: 25003 | B62: Handrail HR-1 Type 2 (Pedestrian) | C62: LF | D62: 355 | E62: State Range Avg 90% Inflated 24 mo | F62: 50-300
A63: 25004 | B63: Handrail HR-1 Type 3 (Bicycle) | C63: LF | D63: =D62*1.14 -> 404.7 | E63: HR-1 Ty 2 escalated per 113518 | F63: 50-300
A64: 38950 or 2092 | B64: Concrete Wheel Stops | C64: EA | D64: 500 | E64: Prev norm inflated 10% | F64: 3-8
B65: STRUCTURE & BRIDGE ITEMS
A66: Item Code | B66: Description | C66: Units | D66: Unit Cost | E66: Source | F66: Quantity
A67: 13520 | B67: Retaining Wall RW-2 | C67: CY | D67: 2600 | E67: Bid tab review | F67: 10-30
A68: 13530 | B68: Retaining Wall RW-3 | C68: CY | D68: 3200 | E68: State Range Avg Inflated 24 mo | F68: 10-50
A69: 13561 | B69: Porous Backfill | C69: CY | D69: 510 | E69: State Range Avg Inflated 24 mo | F69: 3-10
A70: 13565 | B70: Retaining Wall Excavation | C70: CY | D70: 172 | E70: State Avg Inflated 24 mo | F70: 50-200
A71: 69710 or 65710 | B71: Pier Protection System 54" | C71: LF | D71: 1000 | E71: State Avg Inflated 24 mo | F71: 100-200
B72: TEMPORARY TRAFFIC & CONSTRUCTION ITEMS
A73: Item Code | B73: Description | C73: Units | D73: Unit Cost | E73: Source | F73: Quantity
A74: 13604 | B74: Impact Attenuator Service Ty. 1 TL-3 | C74: EA | D74: 21500 | E74: State 1 Qty Avg 90% Inflated 24 mo | F74: 1
A75: 24290 | B75: Traffic Barrier Service Concrete MB-7D PC | C75: LF | D75: 76 | E75: State Range Avg 90% Inflated 24 mo | F75: 100-600
A76: 25505 or 25508 | B76: Field Office Type 1 or Type 1 Modified | C76: MO | D76: 5000 | E76: District Avg C01 Projects infl/round | F76: 7-15
B77: PLANTING ITEMS
A78: Item Code | B78: Description | C78: Units | D78: Unit Cost | E78: Source | F78: Quantity
A79: 27012 | B79: Topsoil Class A 2" | C79: ACRE | D79: 21100 | E79: State Range Avg 90% Inflated 24 mo | F79: 1-3
A80: 27101 | B80: Temporary Seed | C80: LB | D80: 22 | E80: State Range Avg 90% Inflated 24 mo | F80: 100-400
A81: 27102 | B81: Regular Seed | C81: LB | D81: 20 | E81: State Range Avg 90% Inflated 24 mo | F81: 500-3000
A82: 27103 | B82: Overseeding | C82: LB | D82: 14 | E82: State Range Avg 90% Inflated 24 mo | F82: 500-3000
A83: 27112 | B83: Hydraulic Erosion Control Product Type 3 | C83: SY | D83: 1.7 | E83: State Range Avg 90% Inflated 24 mo | F83: 10k-30k
A84: 27230/31/32 | B84: Fertilizer N-P-K | C84: LB | D84: 4.5 | E84: Bid tab review | F84: 400-1500
A85: 27250 | B85: Lime | C85: TON | D85: 440 | E85: State Range Avg 90% Inflated 24 mo | F85: 4-20
B86: TRAFFIC CONTROL DEVICE ITEMS
A87: Item Code | B87: Description | C87: Units | D87: Unit Cost | E87: Source | F87: Quantity
A88: 54032 | B88: Type B Class I Pavement Line Marking 4" | C88: LF | D88: 3 | E88: State Range Avg 90% Inflated 24 mo | F88: 1000-6000
B89: UTILITY ITEMS
A90: Item Code | B90: Description | C90: Units | D90: Unit Cost | E90: Source | F90: Quantity
B91: No items
B92: ENVIRONMENTAL MITIGATION ITEMS
A93: Item Code | B93: Description | C93: Units | D93: Unit Cost | E93: Source | F93: Quantity
A94: 13752 or 13755 | B94: Sound Barrier Wall (Absorptive) | C94: SF | D94: 68 | E94: State Bid Tab Review Inflated | F94: 20000
B95: NON-BID INCIDENTAL ITEMS
A96: Item Code | B96: Description | C96: Units | D96: Unit Cost | E96: Source | F96: Quantity
A97: 13212 | B97: R/W Monument RM-2 | C97: EA | D97: 300 | E97: $180 for In-House work (2 man-hr ea) | F97: 15
A98: 24283 | B98: Police Patrol | C98: TEC | D98: 10000 | E98: $75 per hour

Sheet FormData (hidden)
G1: Pvmt Wts | H1: XS Type | I1: S. Slopes | J1: Drainage | K1: Dit. A/W | L1: XS Type | M1: Curb Type | N1: Temp Erwk | O1: Ret Wall Type | P1: Ret Wall Method | Q1: SM | R1: IM | S1: BM | T1: Agg Base | V1: Y/N | W1: C/F | X1: Est Method | Y1: Unit Cost Src | Z1: Update | AA1: Culp Counties | AB1: Pvmt Des | AC1: Admin | AD1: All Counties | AE1: District | AF1: Seed Method | AG1: MOT Method | AH1: Erwk Loc | AI1: Estimate Complexity | AJ1: Locality Listing | AK1: UPC vs App ID | AL1: Round Type | AM1: Round Value | AO1: Culpeper
A2: ✓ | B2: ✓ | C2: Yes | D2: Tier 1 | E2: Consultant | F2: Area | G2: Culpeper | H2: New Fill | I2: 4:1 | J2: 6:1 Ditch | K2: 20 | L2: Full Sect | M2: Vertical | N2: N/A | O2: None | P2: Earthwork | Q2: SM-9.5A | R2: IM-19.0A | S2: BM-25.0A | T2: No. 21A | U2: Concrete Barrier | V2: Yes | W2: Cut | X2: None | Y2: =_xlfn.CONCAT('Unit Cost Norms'!D6, " Norm") -> Culpeper Norm | Z2: Update | AA2: Albemarle | AB2: Design 1 | AC2: VDOT | AD2: Arlington County (00) | AE2: Bristol | AF2: Area | AG2: None | AH2: Start | AI2: Non-Complex (Minor) | AJ2: District | AK2: Application ID | AL2: None | AM2: Default | AN2: Culpeper | AO2: Albemarle County (02) | AP2: County
A3: N/A | B3: ✘ | C3: No | D3: Tier 2 | E3: District | F3: Count | G3: C'ville | H3: Widen Fill | I3: 3:1 | J3: 4:1 Ditch | K3: 16 | L3: Half Sect | M3: Mountable | N3: Sections | O3: Gravity | P3: Calculated | Q3: SM-9.5D | R3: IM-19.0D | S3: BM-25.0D | T3: No. 21B | U3: Guardrail | V3: No | W3: Fill | X3: Percent | Y3: AWP Precon | AA3: Charlottesville City | AB3: Design 2 | AC3: Locality | AD3: Accomack County (01) | AE3: Culpeper | AF3: Length | AG3: CU Duration | AH3: Middle | AI3: Moderately Complex | AK3: UPC | AL3: Portal | AM3: Manual | AN3: Northern Va | AO3: Arlington County (00) | AP3: County
A4: ✘ | E4: Central Office | G4: NoVa | H4: New Cut | I4: 2:1 | J4: 3:1 Ditch | K4: 12 | N4: Use % | O4: Alternative | P4: Quantity | Q4: SM-12.5A | R4: Other IM | S4: Other BM | T4: Other ABC | U4: None | V4: N/A | X4: Lump Sum | Y4: District Average | AA4: Culpeper | AB4: Average | AD4: Albemarle County (02) | AE4: Fredericksburg | AG4: Percent | AH4: End | AI4: Most Complex (Major) | AL4: Uninflated | AM4: More Round | AN4: Culpeper | AO4: Culpeper County (23) | AP4: County
G5: Custom | H5: Widen Cut | I5: 1.5:1 | J5: Curbing | K5: 0 | Q5: SM-12.5D | X5: 4in Lines | Y5: District Linear | AA5: Greene | AD5: Alleghany County (03) | AE5: Hampton Rds | AG5: Lump Sum | AH5: Average | AL5: Inflated
I6: Ret. Wall | Q6: SM-12.5E | Y6: District Non-Ln | AA6: Fauquier | AD6: Amelia County (04) | AE6: Lynchburg
Q7: Other SM | Y7: District Range | AA7: Fluvanna | AD7: Amherst County (05) | AE7: Northern Va
Y8: State Average | AA8: Louisa | AD8: Appomattox County (06) | AE8: Richmond
Y9: State Linear | AA9: Madison | AD9: Augusta County (07) | AE9: Salem
Y10: State Non-Ln | AA10: Orange | AD10: Bath County (08) | AE10: Staunton
Y11: State Range | AA11: Rappahannock | AD11: Bedford County (09)
Y12: Bid Tab Review | AA12: Town of Culpeper | AD12: Bland County (10)
Y13: Recent Projects | AA13: Town of Orange | AD13: Botetourt County (11)
Y14: Percent | AA14: Town of Warrenton | AD14: Brunswick County (12)
Y15: Itemized | AD15: Buchanan County (13)
Y16: Judgement | AD16: Buckingham County (14)
Y17: Other | AD17: Campbell County (15)
AD18: Caroline County (16)
AD19: Carroll County (17)
AD20: Charles City County (18)
AD21: Charlotte County (19)
AD22: Chesterfield County (20)
AD23: Clarke County (21)
AD24: Craig County (22)
AD25: Culpeper County (23)
AD26: Cumberland County (24)
AD27: Dickenson County (25)
AD28: Dinwiddie County (26)
AD29: Essex County (28)
AD30: Fairfax County (29)
AD31: Fauquier County (30)
AD32: Floyd County (31)
AD33: Fluvanna County (32)
AD34: Franklin County (33)
AD35: Frederick County (34)
AD36: Giles County (35)
AD37: Gloucester County (36)
AD38: Goochland County (37)
AD39: Grayson County (38)
AD40: Greene County (39)
AD41: Greensville County (40)
AD42: Halifax County (41)
AD43: Hanover County (42)
AD44: Henrico County (43)
AD45: Henry County (44)
AD46: Highland County (45)
AD47: Isle of Wight County (46)
AD48: James City County (47)
AD49: King George County (48)
AD50: King & Queen County (49)
AD51: King William County (50)
AD52: Lancaster County (51)
AD53: Lee County (52)
AD54: Loudoun County (53)
AD55: Louisa County (54)
AD56: Lunenburg County (55)
AD57: Madison County (56)
AD58: Mathews County (57)
AD59: Mecklenburg County (58)
AD60: Middlesex County (59)
AD61: Montgomery County (60)
AD62: Nelson County (62)
AD63: New Kent County (63)
AD64: Northampton County (65)
AD65: Northumberland County (66)
AD66: Nottoway County (67)
AD67: Orange County (68)
AD68: Page County (69)
AD69: Patrick County (70)
AD70: Pittsylvania County (71)
AD71: Powhatan County (72)
AD72: Prince Edward County (73)
AD73: Prince George County (74)
AD74: Prince William County (76)
AD75: Pulaski County (77)
AD76: Rappahannock County (78)
AD77: Richmond County (79)
AD78: Roanoke County (80)
AD79: Rockbridge County (81)
AD80: Rockingham County (82)
AD81: Russell County (83)
AD82: Scott County (84)
AD83: Shenandoah County (85)
AD84: Smyth County (86)
AD85: Southampton County (87)
AD86: Spotsylvania County (88)
AD87: Stafford County (89)
AD88: Surry County (90)
AD89: Sussex County (91)
AD90: Tazewell County (92)
AD91: Warren County (93)
AD92: Washington County (95)
AD93: Westmoreland County (96)
AD94: Wise County (97)
AD95: Wythe County (98)
AD96: York County (99)
AD97: City of Alexandria (100)
AD98: City of Bedford (141)
AD99: City of Bristol (102)
AD100: City of Buena Vista (103)
AD101: City of Charlottesville (104)
AD102: City of Chesapeake (131)
AD103: City of Colonial Heights (105)
AD104: City of Covington (107)
AD105: City of Danville (108)
AD106: City of Emporia (109)
AD107: City of Fairfax (151)
AD108: City of Falls Church (110)
AD109: City of Franklin (145)
AD110: City of Fredericksburg (111)
AD111: City of Galax (113)
AD112: City of Hampton (114)
AD113: City of Harrisonburg (115)
AD114: City of Hopewell (116)
AD115: City of Lexington (117)
AD116: City of Lynchburg (118)
AD117: City of Manassas (155)
AD118: City of Manassas Park (152)
AD119: City of Martinsville (120)
AD120: City of Newport News (121)
AD121: City of Norfolk (122)
AD122: City of Norton (146)
AD123: City of Petersburg (123)
AD124: City of Poquoson (147)
AD125: City of Portsmouth (124)
AD126: City of Radford (126)
AD127: City of Richmond (127)
AD128: City of Roanoke (128)
AD129: City of Salem (129)
AD130: City of South Boston (130)
AD131: City of Staunton (132)
AD132: City of Suffolk (133)
AD133: City of Virginia Beach (134)
AD134: City of Waynesboro (136)
AD135: City of Williamsburg (137)
AD136: City of Winchester (138)
AD137: Town of Abingdon (140)
AD138: Town of Alberta(161)
AD139: Town of Alta Vista (162)
AD140: Town of Altavista(162)
AD141: Town of Appalachia(164)
AD142: Town of Ashland (166)
AD143: Town of Belle Haven(167)
AD144: Town of Berryville(168)
AD145: Town of Big Stone Gap (101)
AD146: Town of Blacksburg (150)
AD147: Town of Blackstone (142)
AD148: Town of Bluefield (143)
AD149: Town of Boones Mill(170)
AD150: Town of Bridgewater (176)
AD151: Town of Broadway(177)
AD152: Town of Brodnax(178)
AD153: Town of Burkeville(181)
AD154: Town of Cape Charles(182)
AD155: Town of Cedar Bluff(184)
AD156: Town of Charlotte C.H.(185)
AD157: Town of Chase City (186)
AD158: Town of Chatham(187)
AD159: Town of Cheriton(188)
AD160: Town of Chilhowie(189)
AD161: Town of Chincoteague (190)
AD162: Town of Christiansburg (154)
AD163: Town of Clarksville(192)
AD164: Town of Clifton Forge (105)
AD165: Town of Clinchco(339)
AD166: Town of Clintwood(196)
AD167: Town of Coeburn(198)
AD168: Town of Colonial Beach (199)
AD169: Town of Craigsville(202)
AD170: Town of Crewe(203)
AD171: Town of Culpeper (204)
AD172: Town of Damascus(205)
AD173: Town of Dayton(206)
AD174: Town of Dillwyn(208)
AD175: Town of Duffield(211)
AD176: Town of Dumfries (212)
AD177: Town of Dungannon(213)
AD178: Town of Elkton (216)
AD179: Town of Exmore(217)
AD180: Town of Farmville (144)
AD181: Town of Floyd(219)
AD182: Town of Front Royal (112)
AD183: Town of Gate City(221)
AD184: Town of Glade Spring(222)
AD185: Town of Glasgow(223)
AD186: Town of Gordonsville(225)
AD187: Town of Grottoes (228)
AD188: Town of Grundy(228)
AD189: Town of Hamilton(232)
AD190: Town of Haymarket(233)
AD191: Town of Herndon (235)
AD192: Town of Hillsboro(236)
AD193: Town of Independence(240)
AD194: Town of Irvington(242)
AD195: Town of Kenbridge(247)
AD196: Town of Kilmarnock(249)
AD197: Town of La Crosse(250)
AD198: Town of Lawrenceville(251)
AD199: Town of Lebanon (252)
AD200: Town of Leesburg (253)
... 48 more rows

Sheet PE Estimate Tool
B2: PROJECT INFORMATION | G2: CONCEPTUAL PE ESTIMATING TOOL
B3: ='Culpeper Workbook'!C7 -> 0
B4: Enter Project Description
B5: App. ID or UPC | C5: ='Culpeper Workbook'!$C$8 -> 0 | H5: =CONCATENATE("DISTRICT: ",'Culpeper Workbook'!$C$4) -> DISTRICT: Culpeper | K5: Rev: 6/6/23
B6: App. ID or UPC | H6: DISTRICT: | I6: Culpeper | K6: =K5 -> Rev: 6/6/23
B7: County/City/Town | C7: ='Culpeper Workbook'!$C$9 -> 0
B8: County/City/Town
B9: Estimate Date
B10: Estimator Name | H10: Estimator data
B11: Administered by | C11: VDOT | D11: ? | H11: Calculated data
B12: Project Lengths | H12: Descriptive | K12: Toggle P.E. Only Workbook:
B13: Undivided Road | D13: LF | H13: Estimate totals | K13: All
B14: Divided Rd / Ramps | D14: LF
B15: Bike/Ped Trails | D15: LF | K15: Show/Hide Manhours:
B16: Adj. Align. Length | C16: =C13+C14*1.3+C15*0.7 -> 0 | D16: LF | K16: Show
B17: Total Project Length | C17: =SUM(C13:C15) -> 0 | D17: LF
B18: Estimated # Sheets | C18: =ROUNDUP(C17/700,0) -> 0 | D18: Sheets
B19: Project Tier | N19: Check: | O19: =(K55+K71+K81+K100+K112+K133+K149+K164+K188+K197+K208+IF(C11="Locality",K218,0))-K40 -> 0
B20: # of Connections | D20: EA | G20: Sources for manhour norms vary in reliability and scope. See the "PE Hour Norms" tab for hour sources. The "Moderate" complexity level matches the norms. Simple and Complex levels are a judgement by the estimator to adjust the manhour norms. Avoid using the "Simple" level for low-hours tasks. The total estimate should be compared to similar projects or a %-based method for validation.
B21: # of Exist. Bridges | D21: Bridges
B22: # of Prop. Bridges | D22: Bridges
B23: Survey Length | C23: =C17+500*(C20+2) -> 1000 | D23: LF
B24: VDOT In-House Rate | C24: 90 | D24: $/HR
B25: Consult. Survey Rate | C25: 140 | D25: $/HR
B26: Consultant Eng. Rate | C26: 165 | D26: $/HR
B27: Locality Rate | C27: 90 | D27: $/HR
B28: Other Remarks | G28: =IF(C17<2000,"WARNING: PROJECT LENGTH < 2000', TOTAL", "") -> WARNING: PROJECT LENGTH < 2000', TOTAL
G29: =IF(C17<2000,"HAS BEEN REVIEWED BY:", "") -> HAS BEEN REVIEWED BY:
B33: TOTAL CALCULATIONS | I33: GRAND TOTAL | K33: =IF(K13="PE",K34+K35,K35) -> 354775
B34: INFLATION | C34: Inflation/Yr | D34: not used | E34: Current FY | F34: 2023 | G34: Start FY | H34: 2023 | I34: Inflation Tot. | J34: 0 | K34: =($K$35)*J34 -> 0
B35: SUB-TOTAL | H35: =K40 -> 308500 | I35: 0.15 | J35: =L40 -> 46275 | K35: =H35+J35 -> 354775
B36: Contingency
B37: Remarks
B38: Discipline | C38: VDOT Base $ | D38: VDOT Hours | E38: VDOT $ + Cont. | F38: Consult Base $ | G38: Consult Hours | H38: Consult $ + Cont. | I38: Lump Sum Cost | J38: Total Hours | K38: Total Base $ | L38: Total Conting. | M38: Total
B40: TOTAL | C40: =SUM(C41:C52) -> 49050 | D40: =SUM(D41:D52) -> 545 | E40: 56407.5 | F40: =SUM(F41:F52) -> 254450 | G40: =SUM(G41:G52) -> 1555 | H40: 292617.5 | I40: 5000 | J40: =SUM(J41:J52) -> 2100 | K40: =SUM(K41:K52) -> 308500 | L40: =SUM(L41:L52) -> 46275 | M40: =SUM(M41:M52) -> 354775
B41: Project Mgmt- | C41: =SUM(N59:N67) -> 29250 | D41: =SUM(O59:O67) -> 325 | E41: =C41*(1+$I$35) -> 33637.5 | F41: =SUM(P59:P67) -> 9900 | G41: =SUM(Q59:Q67) -> 60 | H41: =F41*(1+$I$35) -> 11385 | I41: =SUM(R59:R67) -> 5000 | J41: =G41+D41 -> 385 | K41: =C41+F41+I41 -> 44150 | L41: =K41*$I$35 -> 6622.5 | M41: =K41+L41 -> 50772.5
B42: Roadway- | C42: =SUM(N73:N77) -> 0 | D42: =SUM(O73:O77) -> 0 | E42: =C42*(1+$I$35) -> 0 | F42: =SUM(P73:P77) -> 144210 | G42: =SUM(Q73:Q77) -> 874 | H42: =F42*(1+$I$35) -> 165841.5 | I42: =SUM(R73:R77) -> 0 | J42: =G42+D42 -> 874 | K42: =C42+F42+I42 -> 144210 | L42: =K42*$I$35 -> 21631.5 | M42: =K42+L42 -> 165841.5
B43: Hydraulics- | C43: =SUM(N88:N96) -> 0 | D43: =SUM(O88:O96) -> 0 | E43: 0 | F43: =SUM(P88:P96) -> 35640 | G43: =SUM(Q88:Q96) -> 216 | H43: 40986 | I43: =SUM(R88:R96) -> 0 | J43: 216 | K43: 35640 | L43: 5346 | M43: 40986
B44: In-Plan Utilities- | C44: =SUM(N106:N108) -> 0 | D44: =SUM(O106:O108) -> 0 | E44: 0 | F44: =SUM(P106:P108) -> 0 | G44: =SUM(Q106:Q108) -> 0 | H44: 0 | I44: =SUM(R106:R108) -> 0 | J44: 0 | K44: 0 | L44: 0 | M44: 0
B45: Traffic- | C45: =SUM(N120:N129) -> 5400 | D45: =SUM(O120:O129) -> 60 | E45: 6210 | F45: =SUM(P120:P129) -> 20625 | G45: =SUM(Q120:Q129) -> 125 | H45: 23718.75 | I45: =SUM(R120:R129) -> 0 | J45: 185 | K45: 26025 | L45: 3903.75 | M45: 29928.75
B46: Structures/Bridges- | C46: =SUM(N140:N145) -> 0 | D46: =SUM(O140:O145) -> 0 | E46: 0 | F46: =SUM(P140:P145) -> 0 | G46: =SUM(Q140:Q145) -> 0 | H46: 0 | I46: =SUM(R140:R145) -> 0 | J46: 0 | K46: 0 | L46: 0 | M46: 0
B47: Materials/Geotech- | C47: =SUM(N157:N160) -> 0 | D47: =SUM(O157:O160) -> 0 | E47: 0 | F47: =SUM(P157:P160) -> 28050 | G47: =SUM(Q157:Q160) -> 170 | H47: 32257.5 | I47: =SUM(R157:R160) -> 0 | J47: 170 | K47: 28050 | L47: 4207.5 | M47: 32257.5
B48: Survey- | C48: =SUM(N178:N184) -> 0 | D48: =SUM(O178:O184) -> 0 | E48: 0 | F48: =SUM(P178:P184) -> 16025 | G48: =SUM(Q178:Q184) -> 110 | H48: 18428.75 | I48: =SUM(R178:R184) -> 0 | J48: 110 | K48: 16025 | L48: 2403.75 | M48: 18428.75
B49: Environmental- | C49: =SUM(N190:N193) -> 0 | D49: =SUM(O190:O193) -> 0 | E49: 0 | F49: =SUM(P190:P193) -> 0 | G49: =SUM(Q190:Q193) -> 0 | H49: 0 | I49: =SUM(R190:R193) -> 0 | J49: 0 | K49: 0 | L49: 0 | M49: 0
B50: Right of Way- | C50: =SUM(N200:N204) -> 14400 | D50: =SUM(O200:O204) -> 160 | E50: 16560 | F50: =SUM(P200:P204) -> 0 | G50: =SUM(Q200:Q204) -> 0 | H50: 0 | I50: =SUM(R200:R204) -> 0 | J50: 160 | K50: 14400 | L50: 2160 | M50: 16560
B51: Other- | C51: =SUM(N210:N214) -> 0 | D51: =SUM(O210:O214) -> 0 | E51: 0 | F51: =SUM(P210:P214) -> 0 | G51: =SUM(Q210:Q214) -> 0 | H51: 0 | I51: =SUM(R210:R214) -> 0 | J51: 0 | K51: 0 | L51: 0 | M51: 0
B52: LAP Oversight- | C52: =IF(C11="Locality",SUM(N219:N221),0) -> 0 | D52: =IF(C11="Locality",SUM(O219:O221),0) -> 0 | E52: =C52*(1) -> 0 | F52: =IF(C11="Locality",SUM(P219:P221),0) -> 0 | G52: =IF(C11="Locality",SUM(Q219:Q221),0) -> 0 | H52: =F52*(1) -> 0 | I52: =IF(C11="Locality",SUM(R219:R221),0) -> 0 | J52: 0 | K52: 0 | L52: =K52*0 -> 0 | M52: 0
F53: =IF(O19=0,"","SHEET CALCULATION ERROR") -> 
B55: PROJECT MANAGEMENT | J55: Subtotal | K55: =SUM(K59:K67) -> 44150
B56: # of Public Meetings | C56: 2
B57: Roundabout?
C58: Personnel | D58: Level | E58: Base Hrs | F58: Hrs/Unit | G58: Unit | H58: Total Hrs | I58: Override Hrs | J58: Unit Price | K58: Total Cost | N58: VDOT $ | O58: VDOT Hr | P58: Consl $ | Q58: Consl Hr | R58: LS $
B59: Project Mgmt | C59: District | D59: Moderate | E59: =IFERROR(VLOOKUP('PE Estimate Tool'!$D59,PE_ComplexModTbl,2,FALSE),0)*'PE Hour Norms'!$D$11 -> 225 | F59: =IFERROR(VLOOKUP('PE Estimate Tool'!$D59,PE_ComplexModTbl,2,FALSE),0)*'PE Hour Norms'!$E$11 -> 450 | G59: /Mile | H59: =E59+F59*$C$17/5280 -> 225 | J59: =IF(C59="Consultant",$C$26,IF(C59="Local Staff",$C$27,$C$24)) -> 90 | K59: =IF(I59="", H59*J59,I59*J59) -> 20250 | N59: =IF(C59="Consultant",0,K59) -> 20250 | O59: =IF(C59="Consultant",0,IF(I59="",H59,I59)) -> 225 | P59: =IF(C59="Consultant",K59,0) -> 0 | Q59: =IF(C59="Consultant",IF(I59="",H59,I59),0) -> 0 | R59: 0
B60: Construction Review | C60: Consultant | D60: Moderate | E60: =IFERROR(VLOOKUP('PE Estimate Tool'!$D60,PE_ComplexModTbl,2,FALSE),0)*'PE Hour Norms'!$D$13 -> 60 | F60: =IFERROR(VLOOKUP('PE Estimate Tool'!$D60,PE_ComplexModTbl,2,FALSE),0)*'PE Hour Norms'!$E$13 -> 15 | G60: /Sheet | H60: =E60+F60*$C$18 -> 60 | J60: =IF(C60="Consultant",$C$26,IF(C60="Local Staff",$C$27,$C$24)) -> 165 | K60: =IF(I60="", H60*J60,I60*J60) -> 9900 | N60: =IF(C60="Consultant",0,K60) -> 0 | O60: =IF(C60="Consultant",0,IF(I60="",H60,I60)) -> 0 | P60: =IF(C60="Consultant",K60,0) -> 9900 | Q60: =IF(C60="Consultant",IF(I60="",H60,I60),0) -> 60 | R60: 0
B61: Programming | C61: District | D61: Moderate | E61: =IFERROR(VLOOKUP('PE Estimate Tool'!$D61,PE_ComplexModTbl,2,FALSE),0)*'PE Hour Norms'!$D$15 -> 100 | F61: =IFERROR(VLOOKUP('PE Estimate Tool'!$D61,PE_ComplexModTbl,2,FALSE),0)*'PE Hour Norms'!$E$15 -> 0 | G61: /Sheet | H61: =E61+F61*$C$18 -> 100 | J61: 90 | K61: =IF(I61="", H61*J61,I61*J61) -> 9000 | N61: 9000 | O61: =IF(C61="Consultant",0,IF(I61="",H61,I61)) -> 100 | P61: 0 | Q61: =IF(C61="Consultant",IF(I61="",H61,I61),0) -> 0 | R61: 0
B62: V.E. Study | C62: District | D62: Moderate | E62: =IFERROR(VLOOKUP('PE Estimate Tool'!$D62,PE_ComplexModTbl,2,FALSE),0)*'PE Hour Norms'!$D$16 -> 240 | F62: =IFERROR(VLOOKUP('PE Estimate Tool'!$D62,PE_ComplexModTbl,2,FALSE),0)*'PE Hour Norms'!$E$16 -> 0 | G62: /Proj | H62: =IF($C$19="Tier 2", E62+F62, 0) -> 0 | J62: 90 | K62: =IF(I62="", H62*J62,I62*J62) -> 0 | N62: 0 | O62: =IF(C62="Consultant",0,IF(I62="",H62,I62)) -> 0 | P62: 0 | Q62: =IF(C62="Consultant",IF(I62="",H62,I62),0) -> 0 | R62: 0
B63: C.O. Review | C63: Central Office | D63: Moderate | E63: =IFERROR(VLOOKUP('PE Estimate Tool'!$D63,PE_ComplexModTbl,2,FALSE),0)*'PE Hour Norms'!$D$17 -> 60 | F63: =IFERROR(VLOOKUP('PE Estimate Tool'!$D63,PE_ComplexModTbl,2,FALSE),0)*'PE Hour Norms'!$E$17 -> 15 | G63: /Sheet | H63: =IF($C$19="Tier 2", E63+F63*$C$18, 0) -> 0 | J63: 90 | K63: =IF(I63="", H63*J63,I63*J63) -> 0 | N63: 0 | O63: =IF(C63="Consultant",0,IF(I63="",H63,I63)) -> 0 | P63: 0 | Q63: =IF(C63="Consultant",IF(I63="",H63,I63),0) -> 0 | R63: 0
B64: Roundabout Comm. | C64: Central Office | D64: Moderate | E64: =IFERROR(VLOOKUP('PE Estimate Tool'!$D64,PE_ComplexModTbl,2,FALSE),0)*'PE Hour Norms'!$D$18 -> 80 | F64: =IFERROR(VLOOKUP('PE Estimate Tool'!$D64,PE_ComplexModTbl,2,FALSE),0)*'PE Hour Norms'!$E$18 -> 0 | G64: /Rnd'bt | H64: =IF($C$57="Yes",E64+F64*$C$18,0) -> 0 | J64: 90 | K64: =IF(I64="", H64*J64,I64*J64) -> 0 | N64: 0 | O64: =IF(C64="Consultant",0,IF(I64="",H64,I64)) -> 0 | P64: 0 | Q64: =IF(C64="Consultant",IF(I64="",H64,I64),0) -> 0 | R64: 0
B65: Public Meetings | E65: =$C$56 -> 2 | F65: Meetings | G65: ='PE Hour Norms'!E12 -> 2500 | H65: $/Mtg | J65: $/Mtg | K65: =IF(I65="",E65*G65,I65*E65) -> 5000 | N65: 0 | O65: 0 | P65: 0 | Q65: 0 | R65: =K65 -> 5000
B66: Misc. Cost #1 | K66: 0 | N66: 0 | O66: 0 | P66: 0 | Q66: 0 | R66: =K66 -> 0
B67: Misc. Cost #2 | K67: 0 | N67: 0 | O67: 0 | P67: 0 | Q67: 0 | R67: =K67 -> 0
B68: Remarks
B71: ROADWAY DESIGN | J71: Subtotal | K71: =SUM(K73:K77) -> 144210
C72: Personnel | D72: Level | E72: Base Hrs | F72: Hrs/Unit | G72: Unit | H72: Total Hrs | I72: Override Hrs | J72: Unit Price | K72: Total Cost | N72: VDOT $ | O72: VDOT Hr | P72: Consl $ | Q72: Consl Hr | R72: LS $
B73: Road Plans | C73: Consultant | D73: Moderate | E73: =IFERROR(VLOOKUP('PE Estimate Tool'!$D73,PE_ComplexModTbl,2,FALSE),0)*'PE Hour Norms'!$D$22 -> 850 | F73: =IFERROR(VLOOKUP('PE Estimate Tool'!$D73,PE_ComplexModTbl,2,FALSE),0)*'PE Hour Norms'!$E$22 -> 2900 | G73: /Mile | H73: =E73+F73*$C$16/5280 -> 850 | J73: =IF(C73="Consultant",$C$26,IF(C73="Local Staff",$C$27,$C$24)) -> 165 | K73: =IF(I73="", H73*J73,I73*J73) -> 140250 | N73: =IF(C73="Consultant",0,K73) -> 0 | O73: =IF(C73="Consultant",0,IF(I73="",H73,I73)) -> 0 | P73: =IF(C73="Consultant",K73,0) -> 140250 | Q73: =IF(C73="Consultant",IF(I73="",H73,I73),0) -> 850 | R73: 0
B74: TMP Plans | C74: Consultant | D74: Moderate | E74: =IFERROR(VLOOKUP('PE Estimate Tool'!$D74,PE_ComplexModTbl,2,FALSE),0)*'PE Hour Norms'!$D$23 -> 24 | F74: =IFERROR(VLOOKUP('PE Estimate Tool'!$D74,PE_ComplexModTbl,2,FALSE),0)*'PE Hour Norms'!$E$23 -> 430 | G74: /Mile | H74: =E74+F74*$C$16/5280 -> 24 | J74: 165 | K74: 3960 | N74: =IF(C74="Consultant",0,K74) -> 0 | O74: =IF(C74="Consultant",0,IF(I74="",H74,I74)) -> 0 | P74: =IF(C74="Consultant",K74,0) -> 3960 | Q74: =IF(C74="Consultant",IF(I74="",H74,I74),0) -> 24 | R74: 0
B75: Indep. Plan Review | C75: District | D75: Moderate | F75: =IFERROR(VLOOKUP('PE Estimate Tool'!$D75,PE_ComplexModTbl,2,FALSE),0)*'PE Hour Norms'!$E$24*100 -> 20 | G75: % | H75: =IF($C$73="Consultant", (SUM(H73:H74)-SUM(E73:E74))*F75/100, 0) -> 0 | J75: 90 | K75: 0 | N75: 0 | O75: 0 | P75: 0 | Q75: 0 | R75: 0
B76: Misc. Cost #1 | K76: 0 | N76: 0 | O76: 0 | P76: 0 | Q76: 0 | R76: =K76 -> 0
B77: Misc. Cost #2 | K77: 0 | N77: 0 | O77: 0 | P77: 0 | Q77: 0 | R77: =K77 -> 0
B78: Remarks
B81: HYDRAULICS DESIGN | J81: Subtotal | K81: =SUM(K88:K96) -> 35640
B82: Urban vs. Rural
B83: # of Prop. Bridges | C83: =$C$22 -> 0
B84: # of BMPs
B85: # of Large Culverts
B86: Floodplain Encroach.
C87: Personnel | D87: Level | E87: Base Hrs | F87: Hrs/Unit | G87: Unit | H87: Total Hrs | I87: Override Hrs | J87: Unit Price | K87: Total Cost | N87: VDOT $ | O87: VDOT Hr | P87: Consl $ | Q87: Consl Hr | R87: LS $
B88: Drainage Design | C88: Consultant | D88: Moderate | E88: =IFERROR(VLOOKUP('PE Estimate Tool'!$D88,PE_ComplexModTbl,2,FALSE),0)*IF($C$82="Rural", 'PE Hour Norms'!$D$27, 'PE Hour Norms'!$D$28) -> 156 | F88: =IFERROR(VLOOKUP('PE Estimate Tool'!$D88,PE_ComplexModTbl,2,FALSE),0)*IF($C$82="Rural", 'PE Hour Norms'!$E$27, 'PE Hour Norms'!$E$28) -> 1191 | G88: /Mile | H88: =E88+F88*$C$17/5280 -> 156 | J88: =IF(C88="Consultant",$C$26,IF(C88="Local Staff",$C$27,$C$24)) -> 165 | K88: =IF(I88="", H88*J88,I88*J88) -> 25740 | N88: =IF(C88="Consultant",0,K88) -> 0 | O88: =IF(C88="Consultant",0,IF(I88="",H88,I88)) -> 0 | P88: =IF(C88="Consultant",K88,0) -> 25740 | Q88: =IF(C88="Consultant",IF(I88="",H88,I88),0) -> 156 | R88: 0
B89: E&SC Design | C89: Consultant | D89: Moderate | E89: =IFERROR(VLOOKUP('PE Estimate Tool'!$D89,PE_ComplexModTbl,2,FALSE),0)*'PE Hour Norms'!$D$29 -> 60 | F89: =IFERROR(VLOOKUP('PE Estimate Tool'!$D89,PE_ComplexModTbl,2,FALSE),0)*'PE Hour Norms'!$E$29 -> 60 | G89: /Sheet | H89: =E89+F89*$C$18 -> 60 | J89: 165 | K89: 9900 | N89: 0 | O89: 0 | P89: =IF(C89="Consultant",K89,0) -> 9900 | Q89: 60 | R89: 0
B90: SWM Design | C90: Consultant | D90: Moderate | E90: =IFERROR(VLOOKUP('PE Estimate Tool'!$D90,PE_ComplexModTbl,2,FALSE),0)*'PE Hour Norms'!$D$30 -> 0 | F90: =IFERROR(VLOOKUP('PE Estimate Tool'!$D90,PE_ComplexModTbl,2,FALSE),0)*'PE Hour Norms'!$E$30 -> 240 | G90: /BMP | H90: =E90+F90*$C$84 -> 0 | J90: 165 | K90: 0 | N90: 0 | O90: 0 | P90: 0 | Q90: 0 | R90: 0
B91: Bridge H&HA | C91: Consultant | D91: Moderate | E91: =IFERROR(VLOOKUP('PE Estimate Tool'!$D91,PE_ComplexModTbl,2,FALSE),0)*'PE Hour Norms'!$D$31 -> 0 | F91: =IFERROR(VLOOKUP('PE Estimate Tool'!$D91,PE_ComplexModTbl,2,FALSE),0)*'PE Hour Norms'!$E$31 -> 375 | G91: /Bridge | H91: =E91+F91*$C$83 -> 0 | J91: 165 | K91: 0 | N91: 0 | O91: 0 | P91: 0 | Q91: 0 | R91: 0
B92: River Mechanics | C92: Consultant | D92: Moderate | E92: =IFERROR(VLOOKUP('PE Estimate Tool'!$D92,PE_ComplexModTbl,2,FALSE),0)*'PE Hour Norms'!$D$32 -> 337.5 | F92: =IFERROR(VLOOKUP('PE Estimate Tool'!$D92,PE_ComplexModTbl,2,FALSE),0)*'PE Hour Norms'!$E$32 -> 0 | G92: /Proj. | H92: =IF($C$86="Yes",E92+F92,0) -> 0 | J92: 165 | K92: 0 | N92: 0 | O92: 0 | P92: 0 | Q92: 0 | R92: 0
B93: Indep. Plan Review | C93: District | D93: Moderate | F93: =IFERROR(VLOOKUP('PE Estimate Tool'!$D93,PE_ComplexModTbl,2,FALSE),0)*'PE Hour Norms'!$E$33*100 -> 25 | G93: % | H93: =IF($C$88="Consultant", (SUM(H88:H92)-SUM(E88:E89))*F93/100, 0) -> 0 | J93: 90 | K93: 0 | N93: 0 | O93: 0 | P93: 0 | Q93: 0 | R93: 0
B94: Nutrient Credits | C94: Estimate Provided By: | H94: Date of Estimate: | K94: 0 | M94: =IF(K94>0,"","<-CHECK") -> <-CHECK | N94: 0 | O94: 0 | P94: 0 | Q94: 0 | R94: =K94 -> 0
B95: Misc. Cost #1 | K95: 0 | N95: 0 | O95: 0 | P95: 0 | Q95: 0 | R95: =K95 -> 0
B96: Misc. Cost #2 | K96: 0 | N96: 0 | O96: 0 | P96: 0 | Q96: 0 | R96: =K96 -> 0
B97: Remarks
B100: UTILITY DESIGN | J100: Subtotal | K100: =SUM(K106:K108) -> 0
B101: # of In-Plan Utilities | D101: utilities
B102: Default Length | C102: =$C$17 -> 0 | D102: ft/utilty
B103: Override Length | D103: ft/utilty
B104: Utility Sheets | C104: =ROUNDUP(IF(C103="",C102,C103)/700,0)*C101 -> 0 | D104: sheets
C105: Personnel | D105: Level | E105: Base Hrs | F105: Hrs/Unit | G105: Unit | H105: Total Hrs | I105: Override Hrs | J105: Unit Price | K105: Total Cost | N105: VDOT $ | O105: VDOT Hr | P105: Consl $ | Q105: Consl Hr | R105: LS $
B106: Utility Design | C106: Consultant | D106: Moderate | E106: =IFERROR(VLOOKUP('PE Estimate Tool'!$D106,PE_ComplexModTbl,2,FALSE),0)*'PE Hour Norms'!$D$36 -> 0 | F106: =IFERROR(VLOOKUP('PE Estimate Tool'!$D106,PE_ComplexModTbl,2,FALSE),0)*'PE Hour Norms'!$E$36 -> 40 | G106: /Sheet | H106: =IF(C104>0,E106+F106*$C$104,0) -> 0 | J106: =IF(C106="Consultant",$C$26,IF(C106="Local Staff",$C$27,$C$24)) -> 165 | K106: =IF(I106="", H106*J106,I106*J106) -> 0 | N106: =IF(C106="Consultant",0,K106) -> 0 | O106: =IF(C106="Consultant",0,IF(I106="",H106,I106)) -> 0 | P106: =IF(C106="Consultant",K106,0) -> 0 | Q106: =IF(C106="Consultant",IF(I106="",H106,I106),0) -> 0 | R106: 0
B107: Misc. Cost #1 | K107: 0 | N107: 0 | O107: 0 | P107: 0 | Q107: 0 | R107: =K107 -> 0
B108: Misc. Cost #2 | K108: 0 | N108: 0 | O108: 0 | P108: 0 | Q108: 0 | R108: =K108 -> 0
B109: Remarks
B112: TRAFFIC DESIGN/ENGINEERING/ANALYSIS | J112: Subtotal | K112: =SUM(K120:K129) -> 26025
B113: # of Signals
B114: Signals in MOT
B115: # of Intersections | D115: intx
B116: # of Interchanges | D116: intx
B117: Study Complete?
B118: Interchange Report? | M118: =IF(C118="Interstate IAR","<-CHECK","") -> 
C119: Personnel | D119: Level | E119: Base Hrs | F119: Hrs/Unit | G119: Unit | H119: Total Hrs | I119: Override Hrs | J119: Unit Price | K119: Total Cost | N119: VDOT $ | O119: VDOT Hr | P119: Consl $ | Q119: Consl Hr | R119: LS $
B120: Sign/PM Plans | C120: Consultant | D120: Moderate | E120: =IFERROR(VLOOKUP('PE Estimate Tool'!$D120,PE_ComplexModTbl,2,FALSE),0)*'PE Hour Norms'!$D$39 -> 100 | F120: =IFERROR(VLOOKUP('PE Estimate Tool'!$D120,PE_ComplexModTbl,2,FALSE),0)*'PE Hour Norms'!$E$39 -> 50 | G120: /Sheet | H120: =E120+F120*$C$18 -> 100 | J120: =IF(C120="Consultant",$C$26,IF(C120="Local Staff",$C$27,$C$24)) -> 165 | K120: =IF(I120="", H120*J120,I120*J120) -> 16500 | N120: =IF(C120="Consultant",0,K120) -> 0 | O120: =IF(C120="Consultant",0,IF(I120="",H120,I120)) -> 0 | P120: =IF(C120="Consultant",K120,0) -> 16500 | Q120: =IF(C120="Consultant",IF(I120="",H120,I120),0) -> 100 | R120: 0
B121: Signal Plans | C121: Consultant | D121: Moderate | E121: =IFERROR(VLOOKUP('PE Estimate Tool'!$D121,PE_ComplexModTbl,2,FALSE),0)*'PE Hour Norms'!$D$40 -> 95 | F121: =IFERROR(VLOOKUP('PE Estimate Tool'!$D121,PE_ComplexModTbl,2,FALSE),0)*'PE Hour Norms'!$E$40 -> 180 | G121: /Signal | H121: =IF(($C$113+$C$114)>0,E121+F121*($C$113+$C$114/3),0) -> 0 | J121: 165 | K121: 0 | N121: =IF(C121="Consultant",0,K121) -> 0 | O121: 0 | P121: =IF(C121="Consultant",K121,0) -> 0 | Q121: 0 | R121: 0
B122: Lighting Plans | C122: Consultant | D122: None | E122: =IFERROR(VLOOKUP('PE Estimate Tool'!$D122,PE_ComplexModTbl,2,FALSE),0)*'PE Hour Norms'!$D$41 -> 0 | F122: =IFERROR(VLOOKUP('PE Estimate Tool'!$D122,PE_ComplexModTbl,2,FALSE),0)*'PE Hour Norms'!$E$41 -> 0 | G122: /Sheet | H122: =E122+F122*$C$18 -> 0 | J122: 165 | K122: 0 | N122: 0 | O122: 0 | P122: 0 | Q122: 0 | R122: 0
B123: ITS Plans | C123: Consultant | D123: None | E123: =IFERROR(VLOOKUP('PE Estimate Tool'!$D123,PE_ComplexModTbl,2,FALSE),0)*'PE Hour Norms'!$D$42 -> 0 | F123: =IFERROR(VLOOKUP('PE Estimate Tool'!$D123,PE_ComplexModTbl,2,FALSE),0)*'PE Hour Norms'!$E$42 -> 0 | G123: /Sheet | H123: =E123+F123*$C$18 -> 0 | J123: 165 | K123: 0 | N123: 0 | O123: 0 | P123: 0 | Q123: 0 | R123: 0
B124: Full Traffic Study | C124: Consultant | D124: Moderate | E124: =IFERROR(VLOOKUP('PE Estimate Tool'!$D124,PE_ComplexModTbl,2,FALSE),0)*'PE Hour Norms'!$D$43 -> 25 | F124: =IFERROR(VLOOKUP('PE Estimate Tool'!$D124,PE_ComplexModTbl,2,FALSE),0)*'PE Hour Norms'!$E$43 -> 75 | G124: /Intx | H124: =IF($C$117="Yes",0,E124+F124*$C$115) -> 25 | J124: 165 | K124: 4125 | N124: 0 | O124: 0 | P124: 4125 | Q124: 25 | R124: 0
B125: Update Traffic Study | C125: Consultant | D125: Moderate | E125: =IFERROR(VLOOKUP('PE Estimate Tool'!$D125,PE_ComplexModTbl,2,FALSE),0)*'PE Hour Norms'!$D$44 -> 25 | F125: =IFERROR(VLOOKUP('PE Estimate Tool'!$D125,PE_ComplexModTbl,2,FALSE),0)*'PE Hour Norms'!$E$44 -> 75 | G125: /Intx | H125: =IF(C117="Yes",E125+F125*$C$115,0) -> 0 | J125: 165 | K125: 0 | N125: 0 | O125: 0 | P125: 0 | Q125: 0 | R125: 0
B126: IJR/IMR | C126: Consultant | D126: Moderate | E126: =IFERROR(VLOOKUP('PE Estimate Tool'!$D126,PE_ComplexModTbl,2,FALSE),0)*'PE Hour Norms'!$D$45 -> 180 | F126: =IFERROR(VLOOKUP('PE Estimate Tool'!$D126,PE_ComplexModTbl,2,FALSE),0)*'PE Hour Norms'!$E$45 -> 740 | G126: /Intx | H126: =IF(OR($C$118="Interst. OSAR", $C$118="Other IAR", $C$118="Other OSAR"),E126+F126*$C$116,0) -> 0 | J126: 165 | K126: 0 | N126: 0 | O126: 0 | P126: 0 | Q126: 0 | R126: 0
B127: Traffic Eng. Review | C127: District | D127: Moderate | E127: =IFERROR(VLOOKUP('PE Estimate Tool'!$D127,PE_ComplexModTbl,2,FALSE),0)*'PE Hour Norms'!$D$46 -> 60 | F127: =IFERROR(VLOOKUP('PE Estimate Tool'!$D127,PE_ComplexModTbl,2,FALSE),0)*'PE Hour Norms'!$E$46 -> 15 | G127: /Sheet | H127: =E127+F127*$C$18 -> 60 | J127: 90 | K127: 5400 | N127: 5400 | O127: 60 | P127: 0 | Q127: 0 | R127: 0
B128: Misc. Cost #1 | K128: 0 | N128: 0 | O128: 0 | P128: 0 | Q128: 0 | R128: =K128 -> 0
B129: Misc. Cost #2 | K129: 0 | N129: 0 | O129: 0 | P129: 0 | Q129: 0 | R129: =K129 -> 0
B130: Remarks
B133: STRUCTURE & BRIDGE DESIGN | J133: Subtotal | K133: =SUM(K140:K145) -> 0
B134: # of Prop. Bridges | C134: =$C$22 -> 0 | D134: Bridges
B135: Bridge Est. Type | E135: Deck Area | G135: total sqft | J135: =IF(AND('PE Hour Norms'!D49=0,'PE Hour Norms'!E49=0),"Off","On") -> Off | K135: =IF(J135="Off","Lump Sum",'PE Estimate Tool'!C135) -> Lump Sum | M135: =IF(F135>0,"",IF(AND(C135="Manhour",C134>0),"<-CHECK","")) -> 
B136: Length of Ret. Wall | D136: ft
B137: Length of Noise Wall | D137: ft
C138: Personnel | D138: Level | E138: Base Hrs | F138: Hrs/Unit | G138: Unit | H138: Total Hrs | I138: Override Hrs | J138: Unit Price | K138: Total Cost
B139: Bridge Design | C139: Estimate Provided By: | H139: Date of Estimate: | N139: VDOT $ | O139: VDOT Hr | P139: Consl $ | Q139: Consl Hr | R139: LS $
B140: Bridge Design | C140: Consultant | D140: Moderate | E140: =IFERROR(VLOOKUP('PE Estimate Tool'!$D140,PE_ComplexModTbl,2,FALSE),0)*'PE Hour Norms'!$D$49 -> 0 | F140: =IFERROR(VLOOKUP('PE Estimate Tool'!$D140,PE_ComplexModTbl,2,FALSE),0)*'PE Hour Norms'!$E$49 -> 0 | G140: /Sq Ft | H140: =IF(AND($K$135="Manhour",C134>0,F135>0),E140+F140*$F$135,0) -> 0 | J140: =IF(C140="Consultant",$C$26,IF(C140="Local Staff",$C$27,$C$24)) -> 165 | K140: =IF(K135="Manhour",IF(I140="", H140*J140,I140*J140),K139) -> 0 | M140: =IF(K140>0,"",IF(C134>0,"<-CHECK","")) ->  | N140: =IF(OR(C140="Consultant",NOT($K$135="Manhour")),0,K140) -> 0 | O140: =IF(OR(C140="Consultant",NOT($K$135="Manhour")),0,IF(I140="",H140,I140)) -> 0 | P140: =IF(AND(C140="Consultant",$K$135="Manhour"),K140,0) -> 0 | Q140: =IF(AND(C140="Consultant",$K$135="Manhour"),IF(I140="",H140,I140),0) -> 0 | R140: =IF($K$135="Manhour",0,K140) -> 0
B141: Retaining Walls | C141: Consultant | D141: Moderate | E141: =IFERROR(VLOOKUP('PE Estimate Tool'!$D141,PE_ComplexModTbl,2,FALSE),0)*'PE Hour Norms'!$D$50 -> 200 | F141: =IFERROR(VLOOKUP('PE Estimate Tool'!$D141,PE_ComplexModTbl,2,FALSE),0)*'PE Hour Norms'!$E$50 -> 300 | G141: /Mile | H141: =IF($C$136>0,E141+F141*$C$136/5280,0) -> 0 | J141: 165 | K141: =IF(I141="", H141*J141,I141*J141) -> 0 | N141: =IF(C141="Consultant",0,K141) -> 0 | O141: =IF(C141="Consultant",0,IF(I141="",H141,I141)) -> 0 | P141: =IF(C141="Consultant",K141,0) -> 0 | Q141: =IF(C141="Consultant",IF(I141="",H141,I141),0) -> 0 | R141: 0
B142: Noise Walls | C142: Consultant | D142: Moderate | E142: =IFERROR(VLOOKUP('PE Estimate Tool'!$D142,PE_ComplexModTbl,2,FALSE),0)*'PE Hour Norms'!$D$51 -> 200 | F142: =IFERROR(VLOOKUP('PE Estimate Tool'!$D142,PE_ComplexModTbl,2,FALSE),0)*'PE Hour Norms'!$E$51 -> 300 | G142: /Mile | H142: =IF($C$137>0,E142+F142*$C$137/5280,0) -> 0 | J142: 165 | K142: 0 | N142: 0 | O142: 0 | P142: 0 | Q142: 0 | R142: 0
B143: Indep. Plan Review | C143: Consultant | D143: Moderate | E143: =IFERROR(VLOOKUP('PE Estimate Tool'!$D143,PE_ComplexModTbl,2,FALSE),0)*'PE Hour Norms'!$D$52 -> 0 | F143: =IFERROR(VLOOKUP('PE Estimate Tool'!$D143,PE_ComplexModTbl,2,FALSE),0)*'PE Hour Norms'!$E$52 -> 60 | G143: /Bridge | H143: =IF($C$134>0,E143+F143*$C$134,0) -> 0 | J143: 165 | K143: 0 | N143: =IF(C143="Consultant",0,K143) -> 0 | O143: =IF(C143="Consultant",0,IF(I143="",H143,I143)) -> 0 | P143: =IF(C143="Consultant",K143,0) -> 0 | Q143: =IF(C143="Consultant",IF(I143="",H143,I143),0) -> 0 | R143: 0
B144: Misc. Cost #1 | K144: 0 | N144: 0 | O144: 0 | P144: 0 | Q144: 0 | R144: =K144 -> 0
B145: Misc. Cost #2 | K145: 0 | N145: 0 | O145: 0 | P145: 0 | Q145: 0 | R145: =K145 -> 0
B146: Remarks
B149: MATERIALS/GEOTECHNICAL DESIGN | J149: Subtotal | K149: =SUM(K157:K160) -> 28050
B150: Length of Walls | C150: =C136+C137 -> 0 | D150: ft
B151: Cuts/Fills > 25'?
B152: # of Large Culverts | C152: =$C$85 -> 0 | D152: Culverts
B153: # of BMPs | C153: =$C$84 -> 0 | D153: Ponds
B154: # of Prop. Bridges | C154: =$C$22 -> 0 | D154: Bridges
B155: # of Soil Borings | C155: =$C$17/200*IF(C151="Yes",1.5,1)+ROUNDUP($C$136/100,0)+ROUNDUP($C$137/200,0)+C153*5+C152*2+C154*10 -> 0 | D155: Borings
C156: Personnel | D156: Level | E156: Base Hrs | F156: Hrs/Unit | G156: Unit | H156: Total Hrs | I156: Override Hrs | J156: Unit Price | K156: Total Cost | N156: VDOT $ | O156: VDOT Hr | P156: Consl $ | Q156: Consl Hr | R156: LS $
B157: Materials Review | C157: Consultant | D157: Moderate | E157: =IFERROR(VLOOKUP('PE Estimate Tool'!$D157,PE_ComplexModTbl,2,FALSE),0)*'PE Hour Norms'!$D$55 -> 60 | F157: =IFERROR(VLOOKUP('PE Estimate Tool'!$D157,PE_ComplexModTbl,2,FALSE),0)*'PE Hour Norms'!$E$55 -> 15 | G157: /Sheet | H157: =E157+F157*$C$18 -> 60 | J157: =IF(C157="Consultant",$C$26,IF(C157="Local Staff",$C$27,$C$24)) -> 165 | K157: =IF(I157="", H157*J157,I157*J157) -> 9900 | N157: =IF(C157="Consultant",0,K157) -> 0 | O157: =IF(C157="Consultant",0,IF(I157="",H157,I157)) -> 0 | P157: =IF(C157="Consultant",K157,0) -> 9900 | Q157: =IF(C157="Consultant",IF(I157="",H157,I157),0) -> 60 | R157: 0
B158: Soils Investigation | C158: Consultant | D158: Moderate | E158: =IFERROR(VLOOKUP('PE Estimate Tool'!$D158,PE_ComplexModTbl,2,FALSE),0)*'PE Hour Norms'!$D$56 -> 110 | F158: =IFERROR(VLOOKUP('PE Estimate Tool'!$D158,PE_ComplexModTbl,2,FALSE),0)*'PE Hour Norms'!$E$56 -> 10 | G158: /Boring | H158: =E158+F158*$C$155 -> 110 | J158: 165 | K158: 18150 | N158: 0 | O158: 0 | P158: 18150 | Q158: 110 | R158: 0
B159: Misc. Cost #1 | K159: 0 | N159: 0 | O159: 0 | P159: 0 | Q159: 0 | R159: =K159 -> 0
B160: Misc. Cost #2 | K160: 0 | N160: 0 | O160: 0 | P160: 0 | Q160: 0 | R160: =K160 -> 0
B161: Remarks
B164: SURVEY | J164: Subtotal | K164: =SUM(K178:K184) -> 16025
B165: Base Survey Est Type
B166: Survey Location Type
B167: # Existing Utilities | D167: Lines
B168: LF Utility in Limits | C168: =C167*$C$17 -> 0 | D168: LF
B169: LF Location Survey | C169: =$C$23 -> 1000 | D169: LF
B170: LF Utility Survey | C170: =C169*C167 -> 0 | D170: LF
B171: # of Test Holes | C171: =C168/800 -> 0 | D171: Holes
B172: # of Existing Bridges | C172: =$C$21 -> 0 | D172: Bridges
C173: Personnel | D173: Level | E173: Base Hrs | F173: Hrs/Unit | G173: Unit | H173: Total Hrs | I173: Override Hrs | J173: Unit Price | K173: Total Cost | N173: VDOT $ | O173: VDOT Hr | P173: Consl $ | Q173: Consl Hr | R173: LS $
B174: Base Survey | C174: Estimate Provided By: | H174: Date of Estimate: | K174: 0 | M174: =IF(OR(K174>0,C165="Manhour"),"","<-CHECK") -> <-CHECK | N174: 0 | O174: 0 | P174: 0 | Q174: 0 | R174: =K174 -> 0
B175: Photogrammetry | C175: Consultant | D175: Moderate | E175: =IFERROR(VLOOKUP('PE Estimate Tool'!$D175,PE_ComplexModTbl,2,FALSE),0)*'PE Hour Norms'!$D$60 -> 0 | F175: =IFERROR(VLOOKUP('PE Estimate Tool'!$D175,PE_ComplexModTbl,2,FALSE),0)*'PE Hour Norms'!$E$60 -> 266 | G175: /Mile | H175: =(E175+F175*$C$169/5280)*IF(C166="Rural",'PE Hour Norms'!$E$59,1) -> 50.37878788 | J175: =IF(C175="Consultant",$C$25,IF(C175="Local Staff",$C$27,$C$24)) -> 140 | K175: =IF(C165="Manhour",IF(I175="", H175*J175,I175*J175),0) -> 0 | N175: =IF(C175="Consultant",0,K175) -> 0 | O175: =IF(C175="Consultant",0,IF(I175="",H175,I175)) -> 0 | P175: =IF(C175="Consultant",K175,0) -> 0 | Q175: =IF(C175="Consultant",IF(I175="",H175,I175),0) -> 50.37878788 | R175: 0
B176: Location Survey/Rev | C176: Consultant | D176: Moderate | E176: =IFERROR(VLOOKUP('PE Estimate Tool'!$D176,PE_ComplexModTbl,2,FALSE),0)*'PE Hour Norms'!$D$61 -> 80 | F176: =IFERROR(VLOOKUP('PE Estimate Tool'!$D176,PE_ComplexModTbl,2,FALSE),0)*'PE Hour Norms'!$E$61 -> 1655 | G176: /Mile | H176: =(E176+F176*$C$169/5280)*IF(C166="Rural",'PE Hour Norms'!$E$59,1) -> 393.4469697 | J176: 140 | K176: =IF(C165="Manhour",IF(I176="", H176*J176,I176*J176),0) -> 0 | N176: 0 | O176: 0 | P176: 0 | Q176: 393.4469697 | R176: 0
B177: Bridge Survey | C177: Consultant | D177: Moderate | E177: =IFERROR(VLOOKUP('PE Estimate Tool'!$D177,PE_ComplexModTbl,2,FALSE),0)*'PE Hour Norms'!$D$62 -> 0 | F177: =IFERROR(VLOOKUP('PE Estimate Tool'!$D177,PE_ComplexModTbl,2,FALSE),0)*'PE Hour Norms'!$E$62 -> 523 | G177: /Bridge | H177: =E177+F177*$C$172 -> 0 | J177: 140 | K177: =IF(C165="Manhour",IF(I177="", H177*J177,I177*J177),0) -> 0 | N177: 0 | O177: 0 | P177: 0 | Q177: 0 | R177: 0
B178: Base Survey Total | K178: =IF(C165="Manhour",SUM(K175:K177),K174) -> 0 | M178: =IF(K178>0,"","<-CHECK") -> <-CHECK | N178: =IF($C$165="Manhour",SUM(N175:N177),N174) -> 0 | O178: =IF($C$165="Manhour",SUM(O175:O177),O174) -> 0 | P178: 0 | Q178: 0 | R178: 0
B179: Subsurface Utility | C179: Consultant | D179: Moderate | E179: =IFERROR(VLOOKUP('PE Estimate Tool'!$D179,PE_ComplexModTbl,2,FALSE),0)*'PE Hour Norms'!$D$63 -> 75 | F179: =IFERROR(VLOOKUP('PE Estimate Tool'!$D179,PE_ComplexModTbl,2,FALSE),0)*'PE Hour Norms'!$E$63 -> 65 | G179: /Mile | H179: =E179+F179*$C$170/5280 -> 75 | J179: =IF(C179="Consultant",$C$25,IF(C179="Local Staff",$C$27,$C$24)) -> 140 | K179: =IF(I179="", H179*J179,I179*J179) -> 10500 | N179: =IF(C179="Consultant",0,K179) -> 0 | O179: =IF(C179="Consultant",0,IF(I179="",H179,I179)) -> 0 | P179: =IF(C179="Consultant",K179,0) -> 10500 | Q179: =IF(C179="Consultant",IF(I179="",H179,I179),0) -> 75 | R179: 0
B180: RW Sheets | C180: Consultant | D180: Moderate | E180: =IFERROR(VLOOKUP('PE Estimate Tool'!$D180,PE_ComplexModTbl,2,FALSE),0)*'PE Hour Norms'!$D$64 -> 25 | F180: =IFERROR(VLOOKUP('PE Estimate Tool'!$D180,PE_ComplexModTbl,2,FALSE),0)*'PE Hour Norms'!$E$64 -> 300 | G180: /Mile | H180: =E180+F180*$C$17/5280 -> 25 | J180: =IF(C180="Consultant",$C$26,IF(C180="Local Staff",$C$27,$C$24)) -> 165 | K180: 4125 | N180: 0 | O180: 0 | P180: 4125 | Q180: 25 | R180: 0
B181: Test Holes | C181: Consultant | D181: Moderate | E181: =IFERROR(VLOOKUP('PE Estimate Tool'!$D181,PE_ComplexModTbl,2,FALSE),0)*'PE Hour Norms'!$D$65 -> 10 | F181: =IFERROR(VLOOKUP('PE Estimate Tool'!$D181,PE_ComplexModTbl,2,FALSE),0)*'PE Hour Norms'!$E$65 -> 8 | G181: /Hole | H181: =E181+F181*$C$171 -> 10 | J181: =IF(C181="Consultant",$C$25,IF(C181="Local Staff",$C$27,$C$24)) -> 140 | K181: 1400 | N181: =IF(C181="Consultant",0,K181) -> 0 | O181: =IF(C181="Consultant",0,IF(I181="",H181,I181)) -> 0 | P181: =IF(C181="Consultant",K181,0) -> 1400 | Q181: =IF(C181="Consultant",IF(I181="",H181,I181),0) -> 10 | R181: 0
B182: RW/UT Staking | C182: Consultant | D182: Moderate | E182: =IFERROR(VLOOKUP('PE Estimate Tool'!$D182,PE_ComplexModTbl,2,FALSE),0)*'PE Hour Norms'!$D$66 -> 0 | F182: =IFERROR(VLOOKUP('PE Estimate Tool'!$D182,PE_ComplexModTbl,2,FALSE),0)*'PE Hour Norms'!$E$66 -> 484 | G182: /Mile | H182: =(E182+F182*$C$17/5280)*IF(C166="Rural",'PE Hour Norms'!$E$59,1) -> 0 | J182: =IF(C182="Consultant",$C$25,IF(C182="Local Staff",$C$27,$C$24)) -> 140 | K182: 0 | N182: 0 | O182: 0 | P182: 0 | Q182: 0 | R182: 0
B183: Misc. Cost #1 | K183: 0 | N183: 0 | O183: 0 | P183: 0 | Q183: 0 | R183: =K183 -> 0
B184: Misc. Cost #2 | K184: 0 | N184: 0 | O184: 0 | P184: 0 | Q184: 0 | R184: =K184 -> 0
B185: Remarks
B188: ENVIRONMENTAL | J188: Subtotal | K188: =SUM(K190:K193) -> 0
C189: Personnel | D189: Level | E189: Base Hrs | F189: Hrs/Unit | G189: Unit | H189: Total Hrs | I189: Override Hrs | J189: Unit Price | K189: Total Cost | N189: VDOT $ | O189: VDOT Hr | P189: Consl $ | Q189: Consl Hr | R189: LS $
B190: Environmental Costs | C190: Estimate Provided By: | H190: Date of Estimate: | K190: 0 | M190: =IF(K190>0,"","<-CHECK") -> <-CHECK | N190: 0 | O190: 0 | P190: 0 | Q190: 0 | R190: =K190 -> 0
B191: ECP Sheets/Sketches | C191: Consultant | D191: Moderate | E191: =IFERROR(VLOOKUP('PE Estimate Tool'!$D191,PE_ComplexModTbl,2,FALSE),0)*'PE Hour Norms'!$D$69 -> 0 | F191: =IFERROR(VLOOKUP('PE Estimate Tool'!$D191,PE_ComplexModTbl,2,FALSE),0)*'PE Hour Norms'!$E$69 -> 12 | G191: /Mile | H191: =E191+F191*$C$17/5280 -> 0 | J191: =IF(C191="Consultant",$C$26,IF(C191="Local Staff",$C$27,$C$24)) -> 165 | K191: =IF(I191="", H191*J191,I191*J191) -> 0 | N191: =IF(C191="Consultant",0,K191) -> 0 | O191: =IF(C191="Consultant",0,IF(I191="",H191,I191)) -> 0 | P191: =IF(C191="Consultant",K191,0) -> 0 | Q191: =IF(C191="Consultant",IF(I191="",H191,I191),0) -> 0 | R191: 0
B192: Misc. Cost #1 | K192: 0 | N192: 0 | O192: 0 | P192: 0 | Q192: 0 | R192: =K192 -> 0
B193: Misc. Cost #2 | K193: 0 | N193: 0 | O193: 0 | P193: 0 | Q193: 0 | R193: =K193 -> 0
B194: Remarks
B197: RIGHT OF WAY | J197: Subtotal | K197: =SUM(K200:K204) -> 14400
B198: Railroad Impact?
C199: Personnel | D199: Level | E199: Base Hrs | F199: Hrs/Unit | G199: Unit | H199: Total Hrs | I199: Override Hrs | J199: Unit Price | K199: Total Cost | N199: VDOT $ | O199: VDOT Hr | P199: Consl $ | Q199: Consl Hr | R199: LS $
B200: Right of Way | C200: District | D200: Moderate | E200: =IFERROR(VLOOKUP('PE Estimate Tool'!$D200,PE_ComplexModTbl,2,FALSE),0)*'PE Hour Norms'!$D$72 -> 80 | F200: =IFERROR(VLOOKUP('PE Estimate Tool'!$D200,PE_ComplexModTbl,2,FALSE),0)*'PE Hour Norms'!$E$72 -> 60 | G200: /Sheet | H200: =E200+F200*$C$18 -> 80 | J200: =IF(C200="Consultant",$C$26,IF(C200="Local Staff",$C$27,$C$24)) -> 90 | K200: =IF(I200="", H200*J200,I200*J200) -> 7200 | N200: =IF(C200="Consultant",0,K200) -> 7200 | O200: =IF(C200="Consultant",0,IF(I200="",H200,I200)) -> 80 | P200: =IF(C200="Consultant",K200,0) -> 0 | Q200: =IF(C200="Consultant",IF(I200="",H200,I200),0) -> 0 | R200: 0
B201: Utility Coordination | C201: District | D201: Moderate | E201: =IFERROR(VLOOKUP('PE Estimate Tool'!$D201,PE_ComplexModTbl,2,FALSE),0)*'PE Hour Norms'!$D$73 -> 80 | F201: =IFERROR(VLOOKUP('PE Estimate Tool'!$D201,PE_ComplexModTbl,2,FALSE),0)*'PE Hour Norms'!$E$73 -> 60 | G201: /Sheet | H201: =E201+F201*$C$18 -> 80 | J201: =IF(C201="Consultant",$C$26,IF(C201="Local Staff",$C$27,$C$24)) -> 90 | K201: =IF(I201="", H201*J201,I201*J201) -> 7200 | N201: 7200 | O201: =IF(C201="Consultant",0,IF(I201="",H201,I201)) -> 80 | P201: 0 | Q201: =IF(C201="Consultant",IF(I201="",H201,I201),0) -> 0 | R201: 0
B202: Railroad Review | C202: Consultant | D202: Moderate | E202: =IFERROR(VLOOKUP('PE Estimate Tool'!$D202,PE_ComplexModTbl,2,FALSE),0)*'PE Hour Norms'!$D$74 -> 100 | F202: =IFERROR(VLOOKUP('PE Estimate Tool'!$D202,PE_ComplexModTbl,2,FALSE),0)*'PE Hour Norms'!$E$74 -> 30 | G202: /Sheet | H202: =IF(C198="Yes",E202+F202*$C$18,0) -> 0 | J202: 165 | K202: =IF(I202="", H202*J202,I202*J202) -> 0 | N202: 0 | O202: =IF(C202="Consultant",0,IF(I202="",H202,I202)) -> 0 | P202: 0 | Q202: =IF(C202="Consultant",IF(I202="",H202,I202),0) -> 0 | R202: 0
B203: Misc. Cost #1 | K203: 0 | N203: 0 | O203: 0 | P203: 0 | Q203: 0 | R203: =K203 -> 0
B204: Misc. Cost #2 | K204: 0 | N204: 0 | O204: 0 | P204: 0 | Q204: 0 | R204: =K204 -> 0
B205: Remarks
B208: OTHER P.E. COSTS | J208: Subtotal | K208: =SUM(K210:K214) -> 0
C209: Personnel | D209: Level | E209: Base Hrs | F209: Hrs/Unit | G209: Unit | H209: Total Hrs | I209: Override Hrs | J209: Unit Price | K209: Total Cost | N209: VDOT $ | O209: VDOT Hr | P209: Consl $ | Q209: Consl Hr | R209: LS $
B210: Landscape Design | C210: Consultant | D210: None | E210: =IFERROR(VLOOKUP('PE Estimate Tool'!$D210,PE_ComplexModTbl,2,FALSE),0)*'PE Hour Norms'!$D$77 -> 0 | F210: =IFERROR(VLOOKUP('PE Estimate Tool'!$D210,PE_ComplexModTbl,2,FALSE),0)*'PE Hour Norms'!$E$77 -> 0 | G210: /Mile | H210: =E210+F210*$C$17/5280 -> 0 | J210: =IF(C210="Consultant",$C$26,IF(C210="Local Staff",$C$27,$C$24)) -> 165 | K210: =IF(I210="", H210*J210,I210*J210) -> 0 | N210: =IF(C210="Consultant",0,K210) -> 0 | O210: =IF(C210="Consultant",0,IF(I210="",H210,I210)) -> 0 | P210: =IF(C210="Consultant",K210,0) -> 0 | Q210: =IF(C210="Consultant",IF(I210="",H210,I210),0) -> 0 | R210: 0
B211: Misc. Cost #1 | K211: 0 | N211: 0 | O211: 0 | P211: 0 | Q211: 0 | R211: =K211 -> 0
B212: Misc. Cost #2 | K212: 0 | N212: 0 | O212: 0 | P212: 0 | Q212: 0 | R212: =K212 -> 0
B213: Misc. Cost #3 | K213: 0 | N213: 0 | O213: 0 | P213: 0 | Q213: 0 | R213: =K213 -> 0
B214: Misc. Cost #4 | K214: 0 | N214: 0 | O214: 0 | P214: 0 | Q214: 0 | R214: =K214 -> 0
B215: Remarks
B218: VDOT OVERSIGHT FOR LAP PROJECTS | J218: Subtotal | K218: =SUM(K219:K221) -> 100000 | N218: VDOT $ | O218: VDOT Hr | P218: Consl $ | Q218: Consl Hr | R218: LS $
B219: VDOT PE Oversight | C219: Estimate Provided By: | H219: Date of Estimate: | K219: 100000 | M219: =IF(OR(NOT($C$11="Locality"),K219>0),"","<-CHECK") ->  | N219: 0 | O219: 0 | P219: 0 | Q219: 0 | R219: =K219 -> 100000
B220: Misc. Cost #1 | K220: 0 | N220: 0 | O220: 0 | P220: 0 | Q220: 0 | R220: =K220 -> 0
B221: Misc. Cost #2 | K221: 0 | N221: 0 | O221: 0 | P221: 0 | Q221: 0 | R221: =K221 -> 0
B222: Remarks

Sheet PE % Check (hidden)
B2: CONCEPTUAL PE ESTIMATING TOOL | H2: CN Value | I2: Percent PE
B3: This tool can be used as an extra check to | H3: 0 | I3: 0.75
B4: compare the PE estimate to typical PE costs | H4: 200000 | I4: 0.75
B5: relative to the construction estimate. | H5: 300000 | I5: 0.58
H6: 400000 | I6: 0.5
B7: Total CN Estimate | C7: 5000000 | H7: 500000 | I7: 0.45
H8: 600000 | I8: 0.42
B9: Estimated PE % | C9: =VLOOKUP(C7,H3:I65,2) -> 0.19 | H9: 700000 | I9: 0.39
B10: Typical PE Cost* | C10: =C9*C7 -> 950000 | H10: 800000 | I10: 0.38
H11: 900000 | I11: 0.36
B12: PE Estimate Tool | C12: ='PE Estimate Tool'!K33 -> 354775 | H12: 1000000 | I12: 0.35
B13: Variance | C13: =(C12-C10)/C10 -> -0.6265526316 | H13: 1250000 | I13: 0.31
H14: 1500000 | I14: 0.28
B15: *Values may be low for recent projects | H15: 1750000 | I15: 0.26
H16: 2000000 | I16: 0.25
H17: 2250000 | I17: 0.24
H18: 2500000 | I18: 0.23
H19: 2750000 | I19: 0.22
H20: 3000000 | I20: 0.22
H21: 3250000 | I21: 0.21
H22: 3500000 | I22: 0.21
H23: 3750000 | I23: 0.2
H24: 4000000 | I24: 0.2
H25: 4250000 | I25: 0.2
H26: 4500000 | I26: 0.19
H27: 4750000 | I27: 0.19
H28: 5000000 | I28: 0.19
H29: 5500000 | I29: 0.19
H30: 6000000 | I30: 0.18
H31: 6500000 | I31: 0.18
H32: 7000000 | I32: 0.18
H33: 7500000 | I33: 0.18
H34: 8000000 | I34: 0.18
H35: 8500000 | I35: 0.17
H36: 9000000 | I36: 0.17
H37: 9500000 | I37: 0.17
H38: 10000000 | I38: 0.17
H39: 11000000 | I39: 0.17
H40: 12000000 | I40: 0.16
H41: 13000000 | I41: 0.16
H42: 14000000 | I42: 0.16
H43: 15000000 | I43: 0.15
H44: 16000000 | I44: 0.15
H45: 17000000 | I45: 0.15
H46: 18000000 | I46: 0.15
H47: 19000000 | I47: 0.15
H48: 20000000 | I48: 0.15
H49: 21000000 | I49: 0.14
H50: 22000000 | I50: 0.14
H51: 23000000 | I51: 0.14
H52: 24000000 | I52: 0.14
H53: 25000000 | I53: 0.14
H54: 26000000 | I54: 0.14
H55: 27000000 | I55: 0.14
H56: 28000000 | I56: 0.14
H57: 29000000 | I57: 0.14
H58: 30000000 | I58: 0.14
H59: 40000000 | I59: 0.13
H60: 50000000 | I60: 0.13
H61: 60000000 | I61: 0.13
H62: 70000000 | I62: 0.13
H63: 80000000 | I63: 0.13
H64: 90000000 | I64: 0.13
H65: 100000000 | I65: 0.13

Sheet PE Form Data (hidden)
A1: ✓ | B1: ✓ | C1: Yes | D1: Tier 1 | E1: Consultant | F1: Urban | G1: 2023 | H1: VDOT | I1: N/A or Done | J1: 1"=25' | K1: Lump Sum | L1: Show
A2: N/A | B2: ✘ | C2: No | D2: Tier 2 | E2: District | F2: Rural | G2: 2024 | H2: Locality | I2: Interstate IAR | J2: 1"=50' | K2: Manhour | L2: Hide
A3: ✘ | E3: Central Office | G3: 2025 | I3: Interst. OSAR
E4: Local Staff | G4: 2026 | I4: Other IAR
G5: 2027 | I5: Other OSAR
G6: 2028
G7: 2029
G8: 2030
G9: 2031
G10: 2032
G11: 2033
G12: 2034

Sheet PE Hour Norms
B1: P.E. Manhour Norms | F1: ='PE Estimate Tool'!K9 -> 0
B3: Statewide Norms + Culpeper Projects | F3: Design Complexity Multipliers:
B4: Updated 6/6/2023 | F4: Simple | G4: 0.75
F5: Moderate | G5: 1
F6: Complex | G6: =4/3 -> 1.333333333
F7: None | G7: 0
B9: PROJECT MANAGEMENT | D9: Moderate Level | G9: Simple Level | I9: Complex Level
B10: Description | C10: Units | D10: Base Hours | E10: Hrs/Unit | F10: Source | G10: Hrs/Unit | H10: Hrs/Unit | I10: Hrs/Unit | J10: Hrs/Unit
B11: Project Management | C11: HR/Mile | D11: 225 | E11: 450 | F11: Unverified- Approx 15% of Road Norms | G11: =D11*$G$4 -> 168.75 | H11: =E11*$G$4 -> 337.5 | I11: =D11*$G$6 -> 300 | J11: =E11*$G$6 -> 600
B12: Public Meetings | C12: $/Mtg | E12: 2500 | F12: Conservative estimate for advertising | G12: 0 | H12: 1875 | I12: 0 | J12: 3333.333333
B13: Construction Division review | C13: HR/Sheet | D13: 60 | E13: 15 | F13: Compared with Culpeper 2019 Projects | G13: 45 | H13: 11.25 | I13: 80 | J13: 20
B14: Proposal Development | F14: Unavailable- included in Proj Mgmt
B15: Programming | C15: HR/Sheet | D15: 100 | E15: 0 | F15: Culpeper 2018 expenditures | G15: 75 | H15: 0 | I15: 133.3333333 | J15: 0
B16: V.E. Study | C16: HR/Proj | D16: 240 | E16: 0 | F16: Based on estimated meeting hours | G16: 180 | H16: 0 | I16: 320 | J16: 0
B17: Central Office Review (Tier 2) | C17: HR/Sheet | D17: 60 | E17: 15 | F17: Unverified- similar tasks | G17: 45 | H17: 11.25 | I17: 80 | J17: 20
B18: Innovative Intersection Review | C18: HR/Sheet | D18: 80 | E18: 0 | F18: Unverified- similar tasks | G18: =D18*$G$4 -> 60 | H18: =E18*$G$4 -> 0 | I18: =D18*$G$6 -> 106.6666667 | J18: =E18*$G$6 -> 0
B19: ROADWAY | D19: Moderate Level | G19: Simple Level | I19: Complex Level
B20: Description | C20: Units | D20: Base Hours | E20: Hrs/Unit | F20: Source | G20: Hrs/Unit | H20: Hrs/Unit | I20: Hrs/Unit | J20: Hrs/Unit
B21: Rural Roadway Plan Design | C21: HR/Mile | D21: 800 | E21: 2100 | F21: 2013 L&D Manpower Norms (50 sc? not used) | G21: =D21*$G$4 -> 600 | H21: 1575 | I21: =D21*$G$6 -> 1066.666667 | J21: 2800
B22: Urban Roadway Plan Design | C22: HR/Mile | D22: 850 | E22: 2900 | F22: 2013 L&D Manpower Norms | G22: =D22*$G$4 -> 637.5 | H22: =E22*$G$4 -> 2175 | I22: =D22*$G$6 -> 1133.333333 | J22: =E22*$G$6 -> 3866.666667
B23: TMP Plan Design | C23: HR/Mile | D23: 24 | E23: 430 | F23: 2013 L&D Manpower Norms (Urban) | G23: 18 | H23: 322.5 | I23: 32 | J23: 573.3333333
B24: Independent Road Plan Review | C24: HR/Sheet | E24: 0.2 | F24: 2022 Culpeper project | G24: 0 | H24: 0.15 | I24: 0 | J24: 0.2666666667
B25: HYDRAULICS | D25: Moderate Level | G25: Simple Level | I25: Complex Level
B26: Description | C26: Units | D26: Base Hours | E26: Hrs/Unit | F26: Source | G26: Hrs/Unit | H26: Hrs/Unit | I26: Hrs/Unit | J26: Hrs/Unit
B27: Rural Drainage Design | C27: HR/Mile | D27: =104*1.5 -> 156 | E27: =613*1.5 -> 919.5 | F27: 2013 L&D Norms + 50% (recent Culp proj's) | G27: =D27*$G$4 -> 117 | H27: =E27*$G$4 -> 689.625 | I27: =D27*$G$6 -> 208 | J27: =E27*$G$6 -> 1226
B28: Urban Drainage Design | C28: HR/Mile | D28: =104*1.5 -> 156 | E28: =794*1.5 -> 1191 | F28: 2013 L&D Norms + 50% (recent Culp proj's) | G28: =D28*$G$4 -> 117 | H28: =E28*$G$4 -> 893.25 | I28: =D28*$G$6 -> 208 | J28: =E28*$G$6 -> 1588
B29: E&SC Design | C29: HR/Sheet | D29: =40*1.5 -> 60 | E29: =40*1.5 -> 60 | F29: 2013 L&D Norms for 2 Phase + 40 hrs SWPPP | G29: =D29*$G$4 -> 45 | H29: 45 | I29: =D29*$G$6 -> 80 | J29: 80
B30: SWM Design | C30: HR/BMP | D30: 0 | E30: =160*1.5 -> 240 | F30: 2013 L&D Norms + 50% (recent Culp proj's) | G30: 0 | H30: 180 | I30: 0 | J30: 320
B31: Bridge H&HA | C31: HR/Bridge | D31: 0 | E31: =250*1.5 -> 375 | F31: 2013 L&D Norms + 50% (recent Culp proj's) | G31: 0 | H31: 281.25 | I31: 0 | J31: 500
B32: River Mechanics | C32: HR/Proj | D32: =225*1.5 -> 337.5 | E32: 0 | F32: 2013 L&D Norms + 50% (recent Culp proj's) | G32: 253.125 | H32: 0 | I32: 450 | J32: 0
B33: Independent Hydraulics Review | C33: % HRs | E33: 0.25 | F33: 2013 L&D Manpower Norms | G33: 0 | H33: 0.1875 | I33: 0 | J33: 0.3333333333
B34: UTILITIES | D34: Moderate Level | G34: Simple Level | I34: Complex Level
B35: Description | C35: Units | D35: Base Hours | E35: Hrs/Unit | F35: Source | G35: Hrs/Unit | H35: Hrs/Unit | I35: Hrs/Unit | J35: Hrs/Unit
B36: Utility Design | C36: HR/Sheet | D36: 0 | E36: 40 | F36: 2013 L&D Manpower Norms | G36: =D36*$G$4 -> 0 | H36: =E36*$G$4 -> 30 | I36: =D36*$G$6 -> 0 | J36: =E36*$G$6 -> 53.33333333
B37: TRAFFIC | D37: Moderate Level | G37: Simple Level | I37: Complex Level
B38: Description | C38: Units | D38: Base Hours | E38: Hrs/Unit | F38: Source | G38: Hrs/Unit | H38: Hrs/Unit | I38: Hrs/Unit | J38: Hrs/Unit
B39: Sign/PM Plans | C39: HR/Sheet | D39: 100 | E39: 50 | F39: 2013 L&D Manpower Norms | G39: =D39*$G$4 -> 75 | H39: 37.5 | I39: =D39*$G$6 -> 133.3333333 | J39: 66.66666667
B40: Signal Plans | C40: HR/Signal | D40: 95 | E40: 180 | F40: 2013 L&D Manpower Norms | G40: 71.25 | H40: 135 | I40: 126.6666667 | J40: 240
B41: Lighting Plans | C41: HR/Sheet | D41: 135 | E41: 40 | F41: 2013 L&D Manpower Norms | G41: 101.25 | H41: 30 | I41: 180 | J41: 53.33333333
B42: ITS Plans | C42: HR/Sheet | D42: 50 | E42: 27 | F42: 2013 L&D Manpower Norms | G42: 37.5 | H42: 20.25 | I42: 66.66666667 | J42: 36
B43: Full Traffic Study | C43: HR/Intx | D43: 25 | E43: 75 | F43: Culpeper 2023 contracts (study updates) | G43: 18.75 | H43: 56.25 | I43: 33.33333333 | J43: 100
B44: Update Traffic Study | C44: HR/Intx | D44: 25 | E44: 75 | F44: Same as full study unless in-house | G44: 18.75 | H44: 56.25 | I44: 33.33333333 | J44: 100
B45: IJR/IMR | C45: HR/Intx | D45: 180 | E45: 740 | F45: Culpeper 2023 Interstate Minor Rd Mod. | G45: 135 | H45: 555 | I45: 240 | J45: 986.6666667
B46: Traffic Eng. Review | C46: HR/Sheet | D46: 60 | E46: 15 | F46: Compared with Culpeper 2019 Projects | G46: 45 | H46: 11.25 | I46: 80 | J46: 20
B47: STRUCTURES/BRIDGES | D47: Moderate Level | G47: Simple Level | I47: Complex Level
B48: Description | C48: Units | D48: Base Hours | E48: Hrs/Unit | F48: Source | G48: Hrs/Unit | H48: Hrs/Unit | I48: Hrs/Unit | J48: Hrs/Unit
B49: Bridge Plan Design | C49: HR/SF | F49: Unavailable- use Bridge PCES | G49: =D49*$G$4 -> 0 | H49: 0 | I49: =D49*$G$6 -> 0 | J49: 0
B50: Retaining Wall Plan Design | C50: HR/Mile | D50: 200 | E50: 300 | F50: Est. from 2022 Culpeper Contract | G50: 150 | H50: 225 | I50: 266.6666667 | J50: 400
B51: Noise Wall Plan Design | C51: HR/Mile | D51: 200 | E51: 300 | F51: Unverified- similar tasks | G51: 150 | H51: 225 | I51: 266.6666667 | J51: 400
B52: Independent Bridge Review | C52: HR/Bridge | D52: 0 | E52: 60 | F52: Culpeper rough estimate | G52: 0 | H52: 45 | I52: 0 | J52: 80
B53: MATERIALS/GEOTECH | D53: Moderate Level | G53: Simple Level | I53: Complex Level
B54: Description | C54: Units | D54: Base Hours | E54: Hrs/Unit | F54: Source | G54: Hrs/Unit | H54: Hrs/Unit | I54: Hrs/Unit | J54: Hrs/Unit
B55: Materials Engineering/Review | C55: HR/Sheet | D55: 60 | E55: 15 | F55: Compared with Culpeper 2019 Projects | G55: =D55*$G$4 -> 45 | H55: =E55*$G$4 -> 11.25 | I55: =D55*$G$6 -> 80 | J55: =E55*$G$6 -> 20
B56: Soil Investigation/Borings | C56: HR/Boring | D56: 110 | E56: 10 | F56: Est. from Culpeper 2022 contracts | G56: =D56*$G$4 -> 82.5 | H56: =E56*$G$4 -> 7.5 | I56: =D56*$G$6 -> 146.6666667 | J56: =E56*$G$6 -> 13.33333333
B57: SURVEY | D57: Moderate Level | G57: Simple Level | I57: Complex Level
B58: Description | C58: Units | D58: Base Hours | E58: Hrs/Unit | F58: Source | G58: Hrs/Unit | H58: Hrs/Unit | I58: Hrs/Unit | J58: Hrs/Unit
B59: Rural Multiplier | C59: % HRs | E59: 0.85 | F59: Approx. from 2013 L&D Manpower Norms | G59: =D59*$G$4 -> 0 | H59: =E59*$G$4 -> 0.6375 | I59: =D59*$G$6 -> 0 | J59: =E59*$G$6 -> 1.133333333
B60: Photogrammetry | C60: HR/Mile | D60: 0 | E60: 266 | F60: 2013 L&D Manpower Norms (Urban) | G60: =D60*$G$4 -> 0 | H60: 199.5 | I60: =D60*$G$6 -> 0 | J60: 354.6666667
B61: Location Survey, Review | C61: HR/Mile | D61: 80 | E61: 1655 | F61: 2013 L&D Manpower Norms (Urban) | G61: 60 | H61: 1241.25 | I61: 106.6666667 | J61: 2206.666667
B62: Bridge Survey | C62: HR/Bridge | D62: 0 | E62: 523 | F62: 2013 L&D Manpower Norms (Urban) | G62: =D62*$G$4 -> 0 | H62: =E62*$G$4 -> 392.25 | I62: =D62*$G$6 -> 0 | J62: =E62*$G$6 -> 697.3333333
B63: Utility Survey | C63: HR/Mile | D63: 75 | E63: 65 | F63: From 2018/22 Culpeper contracts (per line) | G63: 56.25 | H63: 48.75 | I63: 100 | J63: 86.66666667
B64: RW Sheets | C64: HR/Mile | D64: 25 | E64: 300 | F64: From Culpeper estimates, adj. 2013 norms | G64: 18.75 | H64: 225 | I64: 33.33333333 | J64: 400
B65: Test Pits | C65: HR/Hole | D65: 10 | E65: 8 | F65: Est. from 2018/2022 Culpeper contracts | G65: 7.5 | H65: 6 | I65: 13.33333333 | J65: 10.66666667
B66: R/W & Utilities Staking | C66: HR/Mile | D66: 0 | E66: 484 | F66: 2013 L&D Manpower Norms (Urban) | G66: 0 | H66: 363 | I66: 0 | J66: 645.3333333
B67: ENVIRONMENTAL | D67: Moderate Level | G67: Simple Level | I67: Complex Level
B68: Description | C68: Units | D68: Base Hours | E68: Hrs/Unit | F68: Source | G68: Hrs/Unit | H68: Hrs/Unit | I68: Hrs/Unit | J68: Hrs/Unit
B69: ECP Sheets & Permit Sketches | C69: HR/Sheet | D69: 0 | E69: 12 | F69: 2023 Culpeper Contracts | G69: =D69*$G$4 -> 0 | H69: =E69*$G$4 -> 9 | I69: =D69*$G$6 -> 0 | J69: =E69*$G$6 -> 16
B70: RIGHT OF WAY | D70: Moderate Level | G70: Simple Level | I70: Complex Level
B71: Description | C71: Units | D71: Base Hours | E71: Hrs/Unit | F71: Source | G71: Hrs/Unit | H71: Hrs/Unit | I71: Hrs/Unit | J71: Hrs/Unit
B72: Right of Way Coordination & Review | C72: HR/Sheet | D72: 80 | E72: 60 | F72: Compared with Culpeper 2019 Projects | G72: =D72*$G$4 -> 60 | H72: 45 | I72: =D72*$G$6 -> 106.6666667 | J72: 80
B73: Utility Coordination & Review | C73: HR/Sheet | D73: 80 | E73: 60 | F73: Compared with Culpeper 2019 Projects | G73: 60 | H73: 45 | I73: 106.6666667 | J73: 80
B74: Railroad Coordination & Review | C74: HR/Sheet | D74: 100 | E74: 30 | F74: Compared with Culpeper 2019 Project | G74: 75 | H74: 22.5 | I74: 133.3333333 | J74: 40
B75: OTHER | D75: Moderate Level | G75: Simple Level | I75: Complex Level
B76: Description | C76: Units | D76: Base Hours | E76: Hrs/Unit | F76: Source | G76: Hrs/Unit | H76: Hrs/Unit | I76: Hrs/Unit | J76: Hrs/Unit
B77: Landscaping Plan Design | C77: HR/Mile | D77: 60 | E77: 325 | F77: 2018 Culp Contract / 2013 Norm Avg for 1 mi | G77: =D77*$G$4 -> 45 | H77: =E77*$G$4 -> 243.75 | I77: =D77*$G$6 -> 80 | J77: =E77*$G$6 -> 433.3333333
